Workbook

Sheet CAPA

Sheet CLIENTES (hidden)
B1: PREFEITURA MUNICIPAL DE POUSO ALEGRE
B2: PREFEITURA MUNICIPAL DE CACHOEIRA DE MINAS
B3: PREFEITURA MUNICIPAL DE ITAJUBÁ
B4: PREFEITURA MUNICIPAL DE SANTA RITA DO SAPUCAÍ
B5: RYZA
B6: FAPEPE
B7: PREFEITURA MUNICIPAL DE DELFIM MOREIRA
B8: PREFEITURA MUNICIPAL DE PIRANGUINHO

Sheet DADOS
B2: DATA | D2: 2024-02-19
B4: CLIENTE | E4: 1
B6: REVISÃO | D6: R00
B8: PROJETO | D8: SISTEMA DE PROTEÇÃO CONTRA INCÊNDIO E PÂNICO CEIM PROFESSORA MARIA GRAFIRA NUNES SAPONARA
B10: BDI TIPO 1 | D10: 0.2652
B12: BDI TIPO 2 | D12: -
B14: BANCOS DE DADOS | D14: SINAPI: 12/2023 Minas Gerais SETOP: 08/2023 Minas Gerais SICRO : 10/2023 Minas Gerais SUDECAP: 10/2023 Minas Gerais
B16: RESPONSÁVEL | D16: FLÁVIA CRISTINA BARBOSA
B18: CREA | D18: CREA - MG 187.842/D
B20: TIPO | D20: PROJETO EXECUTIVO

Sheet ORC
A3: 1000 | D3: A | E3: ADMINISTRAÇÃO DE OBRA | M3: =SUMIF(A:A,D3,M:M) -> 0 | N3: =SUMIF(A:A,D3,N:N) -> 0
D4: A.B | M4: =IFERROR(SUMIFS(M:M,A:A,LEFT(D4,SEARCH(".",D4)-1),B:B,RIGHT(D4,LEN(D4)-SEARCH(".",D4))),"") -> 0 | N4: =IFERROR(SUMIFS(N:N,A:A,LEFT(D4,SEARCH(".",D4)-1),B:B,RIGHT(D4,LEN(D4)-SEARCH(".",D4))),"") -> 0
D5: A.B.C | M5: =IFERROR(SUMIFS(M:M,A:A,LEFT(D5,SEARCH(".",D5)-1),B:B,LEFT(RIGHT(D5,LEN(D5)-SEARCH(".",D5)),SEARCH(".",RIGHT(D5,LEN(D5)-SEARCH(".",D5)))-1),C:C,RIGHT(D5,LEN(D5)-SEARCH(".",D5,SEARCH(".",D5)+1))),"") -> 0 | N5: =IFERROR(SUMIFS(N:N,A:A,LEFT(D5,SEARCH(".",D5)-1),B:B,LEFT(RIGHT(D5,LEN(D5)-SEARCH(".",D5)),SEARCH(".",RIGHT(D5,LEN(D5)-SEARCH(".",D5)))-1),C:C,RIGHT(D5,LEN(D5)-SEARCH(".",D5,SEARCH(".",D5)+1))),"") -> 0
A6: =IFERROR(LEFT(D6,SEARCH(".",D6)-1),"") -> a | B6: =IFERROR(LEFT(RIGHT(D6,LEN(D6)-SEARCH(".",D6)),SEARCH(".",RIGHT(D6,LEN(D6)-SEARCH(".",D6)))-1),"") -> a/a | C6: =IFERROR(IF(LEN(D6)-LEN(SUBSTITUTE(D6,".",""))<>3,"",MID(D6,SEARCH(".",D6,SEARCH(".",D6)+1)+1,LEN(D6)-SEARCH(".",D6,SEARCH(".",D6)+1)-(LEN(D6)-(SEARCH(".",D6,SEARCH(".",D6,SEARCH(".",D6)+1)+1)-1)))),"") ->  | D6: a.a/a.a.a/a.a.a.a | E6: =IF($G6="SINAPI",VLOOKUP($F6,DADOS_SINAPI,2,0),IF(G6="SETOP",VLOOKUP($F6,DADOS_SETOP,2,0),IF(G6="CPU",VLOOKUP($F6,DADOS_COMPOSICAO,2,0),IF(G6="SICRO",VLOOKUP($F6,DADOS_SICRO,2,0),IF(G6="SUDECAP",VLOOKUP(F6,DADOS_SUDECAP,2,0),IF(G6="COTAÇÃO",VLOOKUP($F6,DADOS_COTACAO,2,0),"")))))) ->  | H6: =IF(G6="SINAPI",VLOOKUP($F6,DADOS_SINAPI,3,0),IF(G6="SETOP",VLOOKUP($F6,DADOS_SETOP,3,0),IF(G6="CPU",VLOOKUP($F6,DADOS_COMPOSICAO,10,0),IF(G6="SICRO",VLOOKUP($F6,DADOS_SICRO,3,0),IF(G6="SUDECAP",VLOOKUP(F6,DADOS_SUDECAP,3,0),IF(G6="COTAÇÃO",VLOOKUP($F6,DADOS_COTACAO,9,0),"")))))) ->  | J6: =TRUNC(IF(G6="SINAPI",VLOOKUP($F6,DADOS_SINAPI,4,0),IF(G6="SETOP",VLOOKUP($F6,DADOS_SETOP,4,0),IF(G6="CPU",VLOOKUP($F6,DADOS_COMPOSICAO,13,0),IF(G6="SICRO",VLOOKUP($F6,DADOS_SICRO,4,0),IF(G6="SUDECAP",VLOOKUP(F6,DADOS_SUDECAP,4,0),IF(G6="COTAÇÃO",VLOOKUP(F6,DADOS_COTACAO,12,0),"")))))),2) ->  | K6: BDI 1 | L6: =TRUNC(J6*(1+$N$17),2) ->  | M6: =IFERROR(TRUNC(I6*J6,2),"") ->  | N6: =IFERROR(TRUNC(L6*I6,2),"") -> 
A7: =IFERROR(LEFT(D7,SEARCH(".",D7)-1),"") -> a | B7: =IFERROR(LEFT(RIGHT(D7,LEN(D7)-SEARCH(".",D7)),SEARCH(".",RIGHT(D7,LEN(D7)-SEARCH(".",D7)))-1),"") -> a/a | C7: =IFERROR(IF(LEN(D7)-LEN(SUBSTITUTE(D7,".",""))<>3,"",MID(D7,SEARCH(".",D7,SEARCH(".",D7)+1)+1,LEN(D7)-SEARCH(".",D7,SEARCH(".",D7)+1)-(LEN(D7)-(SEARCH(".",D7,SEARCH(".",D7,SEARCH(".",D7)+1)+1)-1)))),"") ->  | D7: a.a/a.a.a/a.a.a.a | E7: =VLOOKUP($F7,DADOS_COTACAO,2,0) ->  | G7: COTAÇÃO | H7: =VLOOKUP($F7,DADOS_COTACAO,9,0) ->  | J7: =TRUNC(VLOOKUP($F7,DADOS_COTACAO,12,0),2) ->  | K7: BDI 2 | L7: =TRUNC(J7*(1+$N$18),2) ->  | M7: =IFERROR(TRUNC(I7*J7,2),"") ->  | N7: =IFERROR(TRUNC(L7*I7,2),"") -> 
A8: 2000
E11: MEMORIAL DE CÁLCULO | M11: Revisão: | N11: =DADOS!D6 -> R00 | O11: a
M12: Data: | N12: =DADOS!D2 -> 2024-02-19
D13: Projeto: | E13: =DADOS!D8 -> SISTEMA DE PROTEÇÃO CONTRA INCÊNDIO E PÂNICO CEIM PROFESSORA MARIA GRAFIRA NUNES SAPONARA | M13: Bancos:
D14: Responsável: | F14: Cliente: | M14: =DADOS!D14 -> SINAPI: 12/2023 Minas Gerais SETOP: 08/2023 Minas Gerais SICRO : 10/2023 Minas Gerais SUDECAP: 10/2023 Minas Gerais
M17: BDI 1: | N17: =DADOS!D10 -> 0.2652
M18: BDI 2: | N18: =DADOS!D12 -> -
D20: =E11&" DE "&DADOS!D20&" - "&E13 -> MEMORIAL DE CÁLCULO DE PROJETO EXECUTIVO - SISTEMA DE PROTEÇÃO CONTRA INCÊNDIO E PÂNICO CEIM PROFESSORA MARIA GRAFIRA NUNES SAPONARA
D22: Item | E22: Descrição | F22: Código | G22: Banco | H22: Unidade | I22: Quantidade | J22: Valor Unitário | K22: BDI | L22: Valor Unit. com BDI | M22: Total | N22: Total com BDI
A23: 1000 | D23: 1 | E23: CANTEIRO DE OBRAS | M23: =SUMIF(A:A,D23,M:M) -> 3586.14 | N23: =SUMIF(A:A,D23,N:N) -> 4537.17
A24: =IFERROR(LEFT(D24,SEARCH(".",D24)-1),"") -> 1 | B24: =IFERROR(LEFT(RIGHT(D24,LEN(D24)-SEARCH(".",D24)),SEARCH(".",RIGHT(D24,LEN(D24)-SEARCH(".",D24)))-1),"") ->  | C24: =IFERROR(IF(LEN(D24)-LEN(SUBSTITUTE(D24,".",""))<>3,"",MID(D24,SEARCH(".",D24,SEARCH(".",D24)+1)+1,LEN(D24)-SEARCH(".",D24,SEARCH(".",D24)+1)-(LEN(D24)-(SEARCH(".",D24,SEARCH(".",D24,SEARCH(".",D24)+1)+1)-1)))),"") ->  | D24: 1.1 | E24: =IF($G24="SINAPI",VLOOKUP($F24,DADOS_SINAPI,2,0),IF(G24="SETOP",VLOOKUP($F24,DADOS_SETOP,2,0),IF(G24="CPU",VLOOKUP($F24,DADOS_COMPOSICAO,2,0),IF(G24="SICRO",VLOOKUP($F24,DADOS_SICRO,2,0),IF(G24="SUDECAP",VLOOKUP(F24,DADOS_SUDECAP,2,0),IF(G24="COTAÇÃO",VLOOKUP($F24,DADOS_COTACAO,2,0),"")))))) -> LOCAÇÃO DE CONTAINER COM ISOLAMENTO TÉRMICO, TIPO 3, PARA DEPÓSITO/FERRAMENTARIA DE OBRA, COM MEDIDAS REFERENCIAIS DE (6) METROS COMPRIMENTO, (2,3) METROS LARGURA E (2,5) METROS ALTURA ÚTIL INTERNA, INCLUSIVE LIGAÇÕES ELÉTRICAS INTERNAS, EXCLUSIVE MOBILIZAÇÃO/DESMOBILIZAÇÃO E LIGAÇÕES PROVISÓRIAS EXTERNAS | F24: ED-16350 | G24: SETOP | H24: =IF(G24="SINAPI",VLOOKUP($F24,DADOS_SINAPI,3,0),IF(G24="SETOP",VLOOKUP($F24,DADOS_SETOP,3,0),IF(G24="CPU",VLOOKUP($F24,DADOS_COMPOSICAO,10,0),IF(G24="SICRO",VLOOKUP($F24,DADOS_SICRO,3,0),IF(G24="SUDECAP",VLOOKUP(F24,DADOS_SUDECAP,3,0),IF(G24="COTAÇÃO",VLOOKUP($F24,DADOS_COTACAO,9,0),"")))))) -> mês | I24: =F26 -> 2 | J24: =TRUNC(IF(G24="SINAPI",VLOOKUP($F24,DADOS_SINAPI,4,0),IF(G24="SETOP",VLOOKUP($F24,DADOS_SETOP,4,0),IF(G24="CPU",VLOOKUP($F24,DADOS_COMPOSICAO,13,0),IF(G24="SICRO",VLOOKUP($F24,DADOS_SICRO,4,0),IF(G24="SUDECAP",VLOOKUP(F24,DADOS_SUDECAP,4,0),IF(G24="COTAÇÃO",VLOOKUP(F24,DADOS_COTACAO,12,0),"")))))),2) -> 882.56 | K24: BDI 1 | L24: =TRUNC(J24*(1+$N$17),2) -> 1116.61 | M24: =IFERROR(TRUNC(I24*J24,2),"") -> 1765.12 | N24: =IFERROR(TRUNC(L24*I24,2),"") -> 2233.22
A25: 2000
A26: 2000 | E26: Quantidade | F26: 2 | G26: meses
A27: 2000
A28: =IFERROR(LEFT(D28,SEARCH(".",D28)-1),"") -> 1 | B28: =IFERROR(LEFT(RIGHT(D28,LEN(D28)-SEARCH(".",D28)),SEARCH(".",RIGHT(D28,LEN(D28)-SEARCH(".",D28)))-1),"") ->  | C28: =IFERROR(IF(LEN(D28)-LEN(SUBSTITUTE(D28,".",""))<>3,"",MID(D28,SEARCH(".",D28,SEARCH(".",D28)+1)+1,LEN(D28)-SEARCH(".",D28,SEARCH(".",D28)+1)-(LEN(D28)-(SEARCH(".",D28,SEARCH(".",D28,SEARCH(".",D28)+1)+1)-1)))),"") ->  | D28: 1.2 | E28: =IF($G28="SINAPI",VLOOKUP($F28,DADOS_SINAPI,2,0),IF(G28="SETOP",VLOOKUP($F28,DADOS_SETOP,2,0),IF(G28="CPU",VLOOKUP($F28,DADOS_COMPOSICAO,2,0),IF(G28="SICRO",VLOOKUP($F28,DADOS_SICRO,2,0),IF(G28="SUDECAP",VLOOKUP(F28,DADOS_SUDECAP,2,0),IF(G28="COTAÇÃO",VLOOKUP($F28,DADOS_COTACAO,2,0),"")))))) -> LIGAÇÕES PROVISÓRIAS PARA CONTAINER TIPO 3 (CORRESPONDENTE AO CÓDIGO ED-16350) | F28: ED-16358 | G28: SETOP | H28: =IF(G28="SINAPI",VLOOKUP($F28,DADOS_SINAPI,3,0),IF(G28="SETOP",VLOOKUP($F28,DADOS_SETOP,3,0),IF(G28="CPU",VLOOKUP($F28,DADOS_COMPOSICAO,10,0),IF(G28="SICRO",VLOOKUP($F28,DADOS_SICRO,3,0),IF(G28="SUDECAP",VLOOKUP(F28,DADOS_SUDECAP,3,0),IF(G28="COTAÇÃO",VLOOKUP($F28,DADOS_COTACAO,9,0),"")))))) -> un | I28: =F30 -> 1 | J28: =TRUNC(IF(G28="SINAPI",VLOOKUP($F28,DADOS_SINAPI,4,0),IF(G28="SETOP",VLOOKUP($F28,DADOS_SETOP,4,0),IF(G28="CPU",VLOOKUP($F28,DADOS_COMPOSICAO,13,0),IF(G28="SICRO",VLOOKUP($F28,DADOS_SICRO,4,0),IF(G28="SUDECAP",VLOOKUP(F28,DADOS_SUDECAP,4,0),IF(G28="COTAÇÃO",VLOOKUP(F28,DADOS_COTACAO,12,0),"")))))),2) -> 296.2 | K28: BDI 1 | L28: =TRUNC(J28*(1+$N$17),2) -> 374.75 | M28: =IFERROR(TRUNC(I28*J28,2),"") -> 296.2 | N28: =IFERROR(TRUNC(L28*I28,2),"") -> 374.75
A29: 2000
A30: 2000 | E30: Quantidade | F30: 1 | G30: un
A31: 2000
A32: =IFERROR(LEFT(D32,SEARCH(".",D32)-1),"") -> 1 | B32: =IFERROR(LEFT(RIGHT(D32,LEN(D32)-SEARCH(".",D32)),SEARCH(".",RIGHT(D32,LEN(D32)-SEARCH(".",D32)))-1),"") ->  | C32: =IFERROR(IF(LEN(D32)-LEN(SUBSTITUTE(D32,".",""))<>3,"",MID(D32,SEARCH(".",D32,SEARCH(".",D32)+1)+1,LEN(D32)-SEARCH(".",D32,SEARCH(".",D32)+1)-(LEN(D32)-(SEARCH(".",D32,SEARCH(".",D32,SEARCH(".",D32)+1)+1)-1)))),"") ->  | D32: 1.3 | E32: =IF($G32="SINAPI",VLOOKUP($F32,DADOS_SINAPI,2,0),IF(G32="SETOP",VLOOKUP($F32,DADOS_SETOP,2,0),IF(G32="CPU",VLOOKUP($F32,DADOS_COMPOSICAO,2,0),IF(G32="SICRO",VLOOKUP($F32,DADOS_SICRO,2,0),IF(G32="SUDECAP",VLOOKUP(F32,DADOS_SUDECAP,2,0),IF(G32="COTAÇÃO",VLOOKUP($F32,DADOS_COTACAO,2,0),"")))))) -> MOBILIZAÇÃO E DESMOBILIZAÇÃO DE CONTAINER, INCLUSIVE CARGA, DESCARGA E TRANSPORTE EM CAMINHÃO CARROCERIA COM GUINDAUTO (MUNCK), EXCLUSIVE LOCAÇÃO DO CONTAINER | F32: ED-50137 | G32: SETOP | H32: =IF(G32="SINAPI",VLOOKUP($F32,DADOS_SINAPI,3,0),IF(G32="SETOP",VLOOKUP($F32,DADOS_SETOP,3,0),IF(G32="CPU",VLOOKUP($F32,DADOS_COMPOSICAO,10,0),IF(G32="SICRO",VLOOKUP($F32,DADOS_SICRO,3,0),IF(G32="SUDECAP",VLOOKUP(F32,DADOS_SUDECAP,3,0),IF(G32="COTAÇÃO",VLOOKUP($F32,DADOS_COTACAO,9,0),"")))))) -> un | I32: =F34 -> 1 | J32: =TRUNC(IF(G32="SINAPI",VLOOKUP($F32,DADOS_SINAPI,4,0),IF(G32="SETOP",VLOOKUP($F32,DADOS_SETOP,4,0),IF(G32="CPU",VLOOKUP($F32,DADOS_COMPOSICAO,13,0),IF(G32="SICRO",VLOOKUP($F32,DADOS_SICRO,4,0),IF(G32="SUDECAP",VLOOKUP(F32,DADOS_SUDECAP,4,0),IF(G32="COTAÇÃO",VLOOKUP(F32,DADOS_COTACAO,12,0),"")))))),2) -> 1524.82 | K32: BDI 1 | L32: =TRUNC(J32*(1+$N$17),2) -> 1929.2 | M32: =IFERROR(TRUNC(I32*J32,2),"") -> 1524.82 | N32: =IFERROR(TRUNC(L32*I32,2),"") -> 1929.2
A33: 2000
A34: 2000 | E34: Quantidade | F34: 1 | G34: un
A35: 2000
A36: 1000 | D36: 2 | E36: SERVIÇOS PRELIMINARES | M36: =SUMIF(A:A,D36,M:M) -> 1367.14 | N36: =SUMIF(A:A,D36,N:N) -> 1729.7
A37: =IFERROR(LEFT(D37,SEARCH(".",D37)-1),"") -> 2 | B37: =IFERROR(LEFT(RIGHT(D37,LEN(D37)-SEARCH(".",D37)),SEARCH(".",RIGHT(D37,LEN(D37)-SEARCH(".",D37)))-1),"") ->  | C37: =IFERROR(IF(LEN(D37)-LEN(SUBSTITUTE(D37,".",""))<>3,"",MID(D37,SEARCH(".",D37,SEARCH(".",D37)+1)+1,LEN(D37)-SEARCH(".",D37,SEARCH(".",D37)+1)-(LEN(D37)-(SEARCH(".",D37,SEARCH(".",D37,SEARCH(".",D37)+1)+1)-1)))),"") ->  | D37: 2.1 | E37: =IF($G37="SINAPI",VLOOKUP($F37,DADOS_SINAPI,2,0),IF(G37="SETOP",VLOOKUP($F37,DADOS_SETOP,2,0),IF(G37="CPU",VLOOKUP($F37,DADOS_COMPOSICAO,2,0),IF(G37="SICRO",VLOOKUP($F37,DADOS_SICRO,2,0),IF(G37="SUDECAP",VLOOKUP(F37,DADOS_SUDECAP,2,0),IF(G37="COTAÇÃO",VLOOKUP($F37,DADOS_COTACAO,2,0),"")))))) -> FORNECIMENTO E COLOCAÇÃO DE PLACA DE OBRA EM CHAPA GALVANIZADA #26, ESP. 0,45MM, DIMENSÃO (3X1,5)M, PLOTADA COM ADESIVO VINÍLICO, AFIXADA COM REBITES 4,8X40MM, EM ESTRUTURA METÁLICA DE METALON 20X20MM, ESP. 1,25MM, INCLUSIVE SUPORTE EM EUCALIPTO AUTOCLAVADO PINTADO COM TINTA PVA DUAS (2) DEMÃOS | F37: ED-28427 | G37: SETOP | H37: =IF(G37="SINAPI",VLOOKUP($F37,DADOS_SINAPI,3,0),IF(G37="SETOP",VLOOKUP($F37,DADOS_SETOP,3,0),IF(G37="CPU",VLOOKUP($F37,DADOS_COMPOSICAO,10,0),IF(G37="SICRO",VLOOKUP($F37,DADOS_SICRO,3,0),IF(G37="SUDECAP",VLOOKUP(F37,DADOS_SUDECAP,3,0),IF(G37="COTAÇÃO",VLOOKUP($F37,DADOS_COTACAO,9,0),"")))))) -> un | I37: =F39 -> 1 | J37: =TRUNC(IF(G37="SINAPI",VLOOKUP($F37,DADOS_SINAPI,4,0),IF(G37="SETOP",VLOOKUP($F37,DADOS_SETOP,4,0),IF(G37="CPU",VLOOKUP($F37,DADOS_COMPOSICAO,13,0),IF(G37="SICRO",VLOOKUP($F37,DADOS_SICRO,4,0),IF(G37="SUDECAP",VLOOKUP(F37,DADOS_SUDECAP,4,0),IF(G37="COTAÇÃO",VLOOKUP(F37,DADOS_COTACAO,12,0),"")))))),2) -> 1367.14 | K37: BDI 1 | L37: =TRUNC(J37*(1+$N$17),2) -> 1729.7 | M37: =IFERROR(TRUNC(I37*J37,2),"") -> 1367.14 | N37: =IFERROR(TRUNC(L37*I37,2),"") -> 1729.7
A38: 2000
A39: 2000 | E39: Quantidade | F39: 1 | G39: un
A40: 2000
A41: 1000 | D41: 3 | E41: INSTALAÇÕES ELÉTRICAS | M41: =SUMIF(A:A,D41,M:M) -> 24846.1 | N41: =SUMIF(A:A,D41,N:N) -> 31414.61
A42: =IFERROR(LEFT(D42,SEARCH(".",D42)-1),"") -> 3 | B42: =IFERROR(LEFT(RIGHT(D42,LEN(D42)-SEARCH(".",D42)),SEARCH(".",RIGHT(D42,LEN(D42)-SEARCH(".",D42)))-1),"") ->  | C42: =IFERROR(IF(LEN(D42)-LEN(SUBSTITUTE(D42,".",""))<>3,"",MID(D42,SEARCH(".",D42,SEARCH(".",D42)+1)+1,LEN(D42)-SEARCH(".",D42,SEARCH(".",D42)+1)-(LEN(D42)-(SEARCH(".",D42,SEARCH(".",D42,SEARCH(".",D42)+1)+1)-1)))),"") ->  | D42: 3.1 | E42: =IF($G42="SINAPI",VLOOKUP($F42,DADOS_SINAPI,2,0),IF(G42="SETOP",VLOOKUP($F42,DADOS_SETOP,2,0),IF(G42="CPU",VLOOKUP($F42,DADOS_COMPOSICAO,2,0),IF(G42="SICRO",VLOOKUP($F42,DADOS_SICRO,2,0),IF(G42="SUDECAP",VLOOKUP(F42,DADOS_SUDECAP,2,0),IF(G42="COTAÇÃO",VLOOKUP($F42,DADOS_COTACAO,2,0),"")))))) -> TOMADA MÉDIA DE EMBUTIR (1 MÓDULO), 2P+T 10 A, INCLUINDO SUPORTE E PLACA - FORNECIMENTO E INSTALAÇÃO. AF_03/2023 | F42: 91996 | G42: SINAPI | H42: =IF(G42="SINAPI",VLOOKUP($F42,DADOS_SINAPI,3,0),IF(G42="SETOP",VLOOKUP($F42,DADOS_SETOP,3,0),IF(G42="CPU",VLOOKUP($F42,DADOS_COMPOSICAO,10,0),IF(G42="SICRO",VLOOKUP($F42,DADOS_SICRO,3,0),IF(G42="SUDECAP",VLOOKUP(F42,DADOS_SUDECAP,3,0),IF(G42="COTAÇÃO",VLOOKUP($F42,DADOS_COTACAO,9,0),"")))))) -> UN | I42: =F44 -> 61 | J42: =TRUNC(IF(G42="SINAPI",VLOOKUP($F42,DADOS_SINAPI,4,0),IF(G42="SETOP",VLOOKUP($F42,DADOS_SETOP,4,0),IF(G42="CPU",VLOOKUP($F42,DADOS_COMPOSICAO,13,0),IF(G42="SICRO",VLOOKUP($F42,DADOS_SICRO,4,0),IF(G42="SUDECAP",VLOOKUP(F42,DADOS_SUDECAP,4,0),IF(G42="COTAÇÃO",VLOOKUP(F42,DADOS_COTACAO,12,0),"")))))),2) -> 31.88 | K42: BDI 1 | L42: =TRUNC(J42*(1+$N$17),2) -> 40.33 | M42: =IFERROR(TRUNC(I42*J42,2),"") -> 1944.68 | N42: =IFERROR(TRUNC(L42*I42,2),"") -> 2460.13
A43: 2000
A44: 2000 | E44: Quantidade | F44: 61 | G44: un
A45: 2000
A46: =IFERROR(LEFT(D46,SEARCH(".",D46)-1),"") -> 3 | B46: =IFERROR(LEFT(RIGHT(D46,LEN(D46)-SEARCH(".",D46)),SEARCH(".",RIGHT(D46,LEN(D46)-SEARCH(".",D46)))-1),"") ->  | C46: =IFERROR(IF(LEN(D46)-LEN(SUBSTITUTE(D46,".",""))<>3,"",MID(D46,SEARCH(".",D46,SEARCH(".",D46)+1)+1,LEN(D46)-SEARCH(".",D46,SEARCH(".",D46)+1)-(LEN(D46)-(SEARCH(".",D46,SEARCH(".",D46,SEARCH(".",D46)+1)+1)-1)))),"") ->  | D46: 3.2 | E46: =IF($G46="SINAPI",VLOOKUP($F46,DADOS_SINAPI,2,0),IF(G46="SETOP",VLOOKUP($F46,DADOS_SETOP,2,0),IF(G46="CPU",VLOOKUP($F46,DADOS_COMPOSICAO,2,0),IF(G46="SICRO",VLOOKUP($F46,DADOS_SICRO,2,0),IF(G46="SUDECAP",VLOOKUP(F46,DADOS_SUDECAP,2,0),IF(G46="COTAÇÃO",VLOOKUP($F46,DADOS_COTACAO,2,0),"")))))) -> CABO DE COBRE FLEXÍVEL ISOLADO, 2,5 MM², ANTI-CHAMA 450/750 V, PARA CIRCUITOS TERMINAIS - FORNECIMENTO E INSTALAÇÃO. AF_03/2023 | F46: 91926 | G46: SINAPI | H46: =IF(G46="SINAPI",VLOOKUP($F46,DADOS_SINAPI,3,0),IF(G46="SETOP",VLOOKUP($F46,DADOS_SETOP,3,0),IF(G46="CPU",VLOOKUP($F46,DADOS_COMPOSICAO,10,0),IF(G46="SICRO",VLOOKUP($F46,DADOS_SICRO,3,0),IF(G46="SUDECAP",VLOOKUP(F46,DADOS_SUDECAP,3,0),IF(G46="COTAÇÃO",VLOOKUP($F46,DADOS_COTACAO,9,0),"")))))) -> M | I46: =F48 -> 1960.1 | J46: =TRUNC(IF(G46="SINAPI",VLOOKUP($F46,DADOS_SINAPI,4,0),IF(G46="SETOP",VLOOKUP($F46,DADOS_SETOP,4,0),IF(G46="CPU",VLOOKUP($F46,DADOS_COMPOSICAO,13,0),IF(G46="SICRO",VLOOKUP($F46,DADOS_SICRO,4,0),IF(G46="SUDECAP",VLOOKUP(F46,DADOS_SUDECAP,4,0),IF(G46="COTAÇÃO",VLOOKUP(F46,DADOS_COTACAO,12,0),"")))))),2) -> 3.69 | K46: BDI 1 | L46: =TRUNC(J46*(1+$N$17),2) -> 4.66 | M46: =IFERROR(TRUNC(I46*J46,2),"") -> 7232.76 | N46: =IFERROR(TRUNC(L46*I46,2),"") -> 9134.06
A47: 2000
A48: 2000 | E48: Quantidade | F48: 1960.1 | G48: m
A49: 2000
A50: =IFERROR(LEFT(D50,SEARCH(".",D50)-1),"") -> 3 | B50: =IFERROR(LEFT(RIGHT(D50,LEN(D50)-SEARCH(".",D50)),SEARCH(".",RIGHT(D50,LEN(D50)-SEARCH(".",D50)))-1),"") ->  | C50: =IFERROR(IF(LEN(D50)-LEN(SUBSTITUTE(D50,".",""))<>3,"",MID(D50,SEARCH(".",D50,SEARCH(".",D50)+1)+1,LEN(D50)-SEARCH(".",D50,SEARCH(".",D50)+1)-(LEN(D50)-(SEARCH(".",D50,SEARCH(".",D50,SEARCH(".",D50)+1)+1)-1)))),"") ->  | D50: 3.3 | E50: =IF($G50="SINAPI",VLOOKUP($F50,DADOS_SINAPI,2,0),IF(G50="SETOP",VLOOKUP($F50,DADOS_SETOP,2,0),IF(G50="CPU",VLOOKUP($F50,DADOS_COMPOSICAO,2,0),IF(G50="SICRO",VLOOKUP($F50,DADOS_SICRO,2,0),IF(G50="SUDECAP",VLOOKUP(F50,DADOS_SUDECAP,2,0),IF(G50="COTAÇÃO",VLOOKUP($F50,DADOS_COTACAO,2,0),"")))))) -> ELETRODUTO DE PVC RÍGIDO ROSCÁVEL, DN 20 MM (3/4"), INCLUSIVE CONEXÕES, SUPORTES E FIXAÇÃO | F50: ED-49308 | G50: SETOP | H50: =IF(G50="SINAPI",VLOOKUP($F50,DADOS_SINAPI,3,0),IF(G50="SETOP",VLOOKUP($F50,DADOS_SETOP,3,0),IF(G50="CPU",VLOOKUP($F50,DADOS_COMPOSICAO,10,0),IF(G50="SICRO",VLOOKUP($F50,DADOS_SICRO,3,0),IF(G50="SUDECAP",VLOOKUP(F50,DADOS_SUDECAP,3,0),IF(G50="COTAÇÃO",VLOOKUP($F50,DADOS_COTACAO,9,0),"")))))) -> m | I50: =F52 -> 641.5 | J50: =TRUNC(IF(G50="SINAPI",VLOOKUP($F50,DADOS_SINAPI,4,0),IF(G50="SETOP",VLOOKUP($F50,DADOS_SETOP,4,0),IF(G50="CPU",VLOOKUP($F50,DADOS_COMPOSICAO,13,0),IF(G50="SICRO",VLOOKUP($F50,DADOS_SICRO,4,0),IF(G50="SUDECAP",VLOOKUP(F50,DADOS_SUDECAP,4,0),IF(G50="COTAÇÃO",VLOOKUP(F50,DADOS_COTACAO,12,0),"")))))),2) -> 19.96 | K50: BDI 1 | L50: =TRUNC(J50*(1+$N$17),2) -> 25.25 | M50: =IFERROR(TRUNC(I50*J50,2),"") -> 12804.34 | N50: =IFERROR(TRUNC(L50*I50,2),"") -> 16197.87
A51: 2000
A52: 2000 | E52: Quantidade | F52: 641.5 | G52: m
A53: 2000
A54: =IFERROR(LEFT(D54,SEARCH(".",D54)-1),"") -> 3 | B54: =IFERROR(LEFT(RIGHT(D54,LEN(D54)-SEARCH(".",D54)),SEARCH(".",RIGHT(D54,LEN(D54)-SEARCH(".",D54)))-1),"") ->  | C54: =IFERROR(IF(LEN(D54)-LEN(SUBSTITUTE(D54,".",""))<>3,"",MID(D54,SEARCH(".",D54,SEARCH(".",D54)+1)+1,LEN(D54)-SEARCH(".",D54,SEARCH(".",D54)+1)-(LEN(D54)-(SEARCH(".",D54,SEARCH(".",D54,SEARCH(".",D54)+1)+1)-1)))),"") ->  | D54: 3.4 | E54: =IF($G54="SINAPI",VLOOKUP($F54,DADOS_SINAPI,2,0),IF(G54="SETOP",VLOOKUP($F54,DADOS_SETOP,2,0),IF(G54="CPU",VLOOKUP($F54,DADOS_COMPOSICAO,2,0),IF(G54="SICRO",VLOOKUP($F54,DADOS_SICRO,2,0),IF(G54="SUDECAP",VLOOKUP(F54,DADOS_SUDECAP,2,0),IF(G54="COTAÇÃO",VLOOKUP($F54,DADOS_COTACAO,2,0),"")))))) -> LUVA PARA ELETRODUTO, PVC, ROSCÁVEL, DN 25 MM (3/4"), PARA CIRCUITOS TERMINAIS, INSTALADA EM PAREDE - FORNECIMENTO E INSTALAÇÃO. AF_03/2023 | F54: 91884 | G54: SINAPI | H54: =IF(G54="SINAPI",VLOOKUP($F54,DADOS_SINAPI,3,0),IF(G54="SETOP",VLOOKUP($F54,DADOS_SETOP,3,0),IF(G54="CPU",VLOOKUP($F54,DADOS_COMPOSICAO,10,0),IF(G54="SICRO",VLOOKUP($F54,DADOS_SICRO,3,0),IF(G54="SUDECAP",VLOOKUP(F54,DADOS_SUDECAP,3,0),IF(G54="COTAÇÃO",VLOOKUP($F54,DADOS_COTACAO,9,0),"")))))) -> UN | I54: =F56 -> 108 | J54: =TRUNC(IF(G54="SINAPI",VLOOKUP($F54,DADOS_SINAPI,4,0),IF(G54="SETOP",VLOOKUP($F54,DADOS_SETOP,4,0),IF(G54="CPU",VLOOKUP($F54,DADOS_COMPOSICAO,13,0),IF(G54="SICRO",VLOOKUP($F54,DADOS_SICRO,4,0),IF(G54="SUDECAP",VLOOKUP(F54,DADOS_SUDECAP,4,0),IF(G54="COTAÇÃO",VLOOKUP(F54,DADOS_COTACAO,12,0),"")))))),2) -> 10.1 | K54: BDI 1 | L54: =TRUNC(J54*(1+$N$17),2) -> 12.77 | M54: =IFERROR(TRUNC(I54*J54,2),"") -> 1090.8 | N54: =IFERROR(TRUNC(L54*I54,2),"") -> 1379.16
A55: 2000
A56: 2000 | E56: Quantidade | F56: 108 | G56: un
A57: 2000
A58: =IFERROR(LEFT(D58,SEARCH(".",D58)-1),"") -> 3 | B58: =IFERROR(LEFT(RIGHT(D58,LEN(D58)-SEARCH(".",D58)),SEARCH(".",RIGHT(D58,LEN(D58)-SEARCH(".",D58)))-1),"") ->  | C58: =IFERROR(IF(LEN(D58)-LEN(SUBSTITUTE(D58,".",""))<>3,"",MID(D58,SEARCH(".",D58,SEARCH(".",D58)+1)+1,LEN(D58)-SEARCH(".",D58,SEARCH(".",D58)+1)-(LEN(D58)-(SEARCH(".",D58,SEARCH(".",D58,SEARCH(".",D58)+1)+1)-1)))),"") ->  | D58: 3.5 | E58: =IF($G58="SINAPI",VLOOKUP($F58,DADOS_SINAPI,2,0),IF(G58="SETOP",VLOOKUP($F58,DADOS_SETOP,2,0),IF(G58="CPU",VLOOKUP($F58,DADOS_COMPOSICAO,2,0),IF(G58="SICRO",VLOOKUP($F58,DADOS_SICRO,2,0),IF(G58="SUDECAP",VLOOKUP(F58,DADOS_SUDECAP,2,0),IF(G58="COTAÇÃO",VLOOKUP($F58,DADOS_COTACAO,2,0),"")))))) -> CONDULETE DE PVC, TIPO X, PARA ELETRODUTO DE PVC SOLDÁVEL DN 25 MM (3/4), APARENTE - FORNECIMENTO E INSTALAÇÃO. AF_10/2022 | F58: 95817 | G58: SINAPI | H58: =IF(G58="SINAPI",VLOOKUP($F58,DADOS_SINAPI,3,0),IF(G58="SETOP",VLOOKUP($F58,DADOS_SETOP,3,0),IF(G58="CPU",VLOOKUP($F58,DADOS_COMPOSICAO,10,0),IF(G58="SICRO",VLOOKUP($F58,DADOS_SICRO,3,0),IF(G58="SUDECAP",VLOOKUP(F58,DADOS_SUDECAP,3,0),IF(G58="COTAÇÃO",VLOOKUP($F58,DADOS_COTACAO,9,0),"")))))) -> UN | I58: =F60 -> 20 | J58: =TRUNC(IF(G58="SINAPI",VLOOKUP($F58,DADOS_SINAPI,4,0),IF(G58="SETOP",VLOOKUP($F58,DADOS_SETOP,4,0),IF(G58="CPU",VLOOKUP($F58,DADOS_COMPOSICAO,13,0),IF(G58="SICRO",VLOOKUP($F58,DADOS_SICRO,4,0),IF(G58="SUDECAP",VLOOKUP(F58,DADOS_SUDECAP,4,0),IF(G58="COTAÇÃO",VLOOKUP(F58,DADOS_COTACAO,12,0),"")))))),2) -> 34.25 | K58: BDI 1 | L58: =TRUNC(J58*(1+$N$17),2) -> 43.33 | M58: =IFERROR(TRUNC(I58*J58,2),"") -> 685 | N58: =IFERROR(TRUNC(L58*I58,2),"") -> 866.6
A59: 2000
A60: 2000 | E60: Quantidade | F60: 20 | G60: un
A61: 2000
A62: =IFERROR(LEFT(D62,SEARCH(".",D62)-1),"") -> 3 | B62: =IFERROR(LEFT(RIGHT(D62,LEN(D62)-SEARCH(".",D62)),SEARCH(".",RIGHT(D62,LEN(D62)-SEARCH(".",D62)))-1),"") ->  | C62: =IFERROR(IF(LEN(D62)-LEN(SUBSTITUTE(D62,".",""))<>3,"",MID(D62,SEARCH(".",D62,SEARCH(".",D62)+1)+1,LEN(D62)-SEARCH(".",D62,SEARCH(".",D62)+1)-(LEN(D62)-(SEARCH(".",D62,SEARCH(".",D62,SEARCH(".",D62)+1)+1)-1)))),"") ->  | D62: 3.6 | E62: =IF($G62="SINAPI",VLOOKUP($F62,DADOS_SINAPI,2,0),IF(G62="SETOP",VLOOKUP($F62,DADOS_SETOP,2,0),IF(G62="CPU",VLOOKUP($F62,DADOS_COMPOSICAO,2,0),IF(G62="SICRO",VLOOKUP($F62,DADOS_SICRO,2,0),IF(G62="SUDECAP",VLOOKUP(F62,DADOS_SUDECAP,2,0),IF(G62="COTAÇÃO",VLOOKUP($F62,DADOS_COTACAO,2,0),"")))))) -> PLACA CEGA PARA CONDULETE, COM DIÂMETRO DE SAÍDA 3/4" (20MM), EXCLUSIVE CONDULETE | F62: ED-17990 | G62: SETOP | H62: =IF(G62="SINAPI",VLOOKUP($F62,DADOS_SINAPI,3,0),IF(G62="SETOP",VLOOKUP($F62,DADOS_SETOP,3,0),IF(G62="CPU",VLOOKUP($F62,DADOS_COMPOSICAO,10,0),IF(G62="SICRO",VLOOKUP($F62,DADOS_SICRO,3,0),IF(G62="SUDECAP",VLOOKUP(F62,DADOS_SUDECAP,3,0),IF(G62="COTAÇÃO",VLOOKUP($F62,DADOS_COTACAO,9,0),"")))))) -> un | I62: =F64 -> 20 | J62: =TRUNC(IF(G62="SINAPI",VLOOKUP($F62,DADOS_SINAPI,4,0),IF(G62="SETOP",VLOOKUP($F62,DADOS_SETOP,4,0),IF(G62="CPU",VLOOKUP($F62,DADOS_COMPOSICAO,13,0),IF(G62="SICRO",VLOOKUP($F62,DADOS_SICRO,4,0),IF(G62="SUDECAP",VLOOKUP(F62,DADOS_SUDECAP,4,0),IF(G62="COTAÇÃO",VLOOKUP(F62,DADOS_COTACAO,12,0),"")))))),2) -> 5.26 | K62: BDI 1 | L62: =TRUNC(J62*(1+$N$17),2) -> 6.65 | M62: =IFERROR(TRUNC(I62*J62,2),"") -> 105.2 | N62: =IFERROR(TRUNC(L62*I62,2),"") -> 133
A63: 2000
A64: 2000 | E64: Quantidade | F64: 20 | G64: un
A65: 2000
A66: =IFERROR(LEFT(D66,SEARCH(".",D66)-1),"") -> 3 | B66: =IFERROR(LEFT(RIGHT(D66,LEN(D66)-SEARCH(".",D66)),SEARCH(".",RIGHT(D66,LEN(D66)-SEARCH(".",D66)))-1),"") ->  | C66: =IFERROR(IF(LEN(D66)-LEN(SUBSTITUTE(D66,".",""))<>3,"",MID(D66,SEARCH(".",D66,SEARCH(".",D66)+1)+1,LEN(D66)-SEARCH(".",D66,SEARCH(".",D66)+1)-(LEN(D66)-(SEARCH(".",D66,SEARCH(".",D66,SEARCH(".",D66)+1)+1)-1)))),"") ->  | D66: 3.7 | E66: =IF($G66="SINAPI",VLOOKUP($F66,DADOS_SINAPI,2,0),IF(G66="SETOP",VLOOKUP($F66,DADOS_SETOP,2,0),IF(G66="CPU",VLOOKUP($F66,DADOS_COMPOSICAO,2,0),IF(G66="SICRO",VLOOKUP($F66,DADOS_SICRO,2,0),IF(G66="SUDECAP",VLOOKUP(F66,DADOS_SUDECAP,2,0),IF(G66="COTAÇÃO",VLOOKUP($F66,DADOS_COTACAO,2,0),"")))))) -> CAIXA RETANGULAR 4" X 2" MÉDIA (1,30 M DO PISO), PVC, INSTALADA EM PAREDE - FORNECIMENTO E INSTALAÇÃO. AF_03/2023 | F66: 91940 | G66: SINAPI | H66: =IF(G66="SINAPI",VLOOKUP($F66,DADOS_SINAPI,3,0),IF(G66="SETOP",VLOOKUP($F66,DADOS_SETOP,3,0),IF(G66="CPU",VLOOKUP($F66,DADOS_COMPOSICAO,10,0),IF(G66="SICRO",VLOOKUP($F66,DADOS_SICRO,3,0),IF(G66="SUDECAP",VLOOKUP(F66,DADOS_SUDECAP,3,0),IF(G66="COTAÇÃO",VLOOKUP($F66,DADOS_COTACAO,9,0),"")))))) -> UN | I66: =F68 -> 61 | J66: =TRUNC(IF(G66="SINAPI",VLOOKUP($F66,DADOS_SINAPI,4,0),IF(G66="SETOP",VLOOKUP($F66,DADOS_SETOP,4,0),IF(G66="CPU",VLOOKUP($F66,DADOS_COMPOSICAO,13,0),IF(G66="SICRO",VLOOKUP($F66,DADOS_SICRO,4,0),IF(G66="SUDECAP",VLOOKUP(F66,DADOS_SUDECAP,4,0),IF(G66="COTAÇÃO",VLOOKUP(F66,DADOS_COTACAO,12,0),"")))))),2) -> 16.12 | K66: BDI 1 | L66: =TRUNC(J66*(1+$N$17),2) -> 20.39 | M66: =IFERROR(TRUNC(I66*J66,2),"") -> 983.32 | N66: =IFERROR(TRUNC(L66*I66,2),"") -> 1243.79
A67: 2000
A68: 2000 | E68: Quantidade | F68: 61 | G68: un
A69: 2000
A70: 1000 | D70: 4 | E70: SISTEMA DE PROTEÇÃO CONTRA INCÊNDIO E PÂNICO | M70: =SUMIF(A:A,D70,M:M) -> 85773.93 | N70: =SUMIF(A:A,D70,N:N) -> 108508.53
D71: 4.1 | E71: EXTINTORES | M71: =IFERROR(SUMIFS(M:M,A:A,LEFT(D71,SEARCH(".",D71)-1),B:B,RIGHT(D71,LEN(D71)-SEARCH(".",D71))),"") -> 8678.67 | N71: =IFERROR(SUMIFS(N:N,A:A,LEFT(D71,SEARCH(".",D71)-1),B:B,RIGHT(D71,LEN(D71)-SEARCH(".",D71))),"") -> 10980.06
A72: =IFERROR(LEFT(D72,SEARCH(".",D72)-1),"") -> 4 | B72: =IFERROR(LEFT(RIGHT(D72,LEN(D72)-SEARCH(".",D72)),SEARCH(".",RIGHT(D72,LEN(D72)-SEARCH(".",D72)))-1),"") -> 1 | C72: =IFERROR(IF(LEN(D72)-LEN(SUBSTITUTE(D72,".",""))<>3,"",MID(D72,SEARCH(".",D72,SEARCH(".",D72)+1)+1,LEN(D72)-SEARCH(".",D72,SEARCH(".",D72)+1)-(LEN(D72)-(SEARCH(".",D72,SEARCH(".",D72,SEARCH(".",D72)+1)+1)-1)))),"") ->  | D72: 4.1.1 | E72: =IF($G72="SINAPI",VLOOKUP($F72,DADOS_SINAPI,2,0),IF(G72="SETOP",VLOOKUP($F72,DADOS_SETOP,2,0),IF(G72="CPU",VLOOKUP($F72,DADOS_COMPOSICAO,2,0),IF(G72="SICRO",VLOOKUP($F72,DADOS_SICRO,2,0),IF(G72="SUDECAP",VLOOKUP(F72,DADOS_SUDECAP,2,0),IF(G72="COTAÇÃO",VLOOKUP($F72,DADOS_COTACAO,2,0),"")))))) -> EXTINTOR DE INCÊNDIO TIPO PÓ QUÍMICO 4-A:40-B:C, CAPACIDADE 6 KG. FORNECIMENTO E INSTALAÇÃO | F72: DAC-2.1 | G72: CPU | H72: =IF(G72="SINAPI",VLOOKUP($F72,DADOS_SINAPI,3,0),IF(G72="SETOP",VLOOKUP($F72,DADOS_SETOP,3,0),IF(G72="CPU",VLOOKUP($F72,DADOS_COMPOSICAO,10,0),IF(G72="SICRO",VLOOKUP($F72,DADOS_SICRO,3,0),IF(G72="SUDECAP",VLOOKUP(F72,DADOS_SUDECAP,3,0),IF(G72="COTAÇÃO",VLOOKUP($F72,DADOS_COTACAO,9,0),"")))))) -> UN | I72: =F79 -> 39 | J72: =TRUNC(IF(G72="SINAPI",VLOOKUP($F72,DADOS_SINAPI,4,0),IF(G72="SETOP",VLOOKUP($F72,DADOS_SETOP,4,0),IF(G72="CPU",VLOOKUP($F72,DADOS_COMPOSICAO,13,0),IF(G72="SICRO",VLOOKUP($F72,DADOS_SICRO,4,0),IF(G72="SUDECAP",VLOOKUP(F72,DADOS_SUDECAP,4,0),IF(G72="COTAÇÃO",VLOOKUP(F72,DADOS_COTACAO,12,0),"")))))),2) -> 222.53 | K72: BDI 1 | L72: =TRUNC(J72*(1+$N$17),2) -> 281.54 | M72: =IFERROR(TRUNC(I72*J72,2),"") -> 8678.67 | N72: =IFERROR(TRUNC(L72*I72,2),"") -> 10980.06
A73: 2000
A74: 2000 | E74: Térreo | F74: 25 | G74: un
A75: 2000 | E75: Mezanino | F75: 1 | G75: un
A76: 2000 | E76: 1º Pavimento | F76: 7 | G76: un
A77: 2000 | E77: 2º Pavimento | F77: 3 | G77: un
A78: 2000 | E78: 3º Pavimento | F78: 3 | G78: un
A79: 2000 | E79: Total | F79: =SUM(F74:F78) -> 39 | G79: un
A80: 2000
D81: 4.2 | E81: ILUMINAÇÃO DE EMERGÊNCIA | M81: =IFERROR(SUMIFS(M:M,A:A,LEFT(D81,SEARCH(".",D81)-1),B:B,RIGHT(D81,LEN(D81)-SEARCH(".",D81))),"") -> 3871.1 | N81: =IFERROR(SUMIFS(N:N,A:A,LEFT(D81,SEARCH(".",D81)-1),B:B,RIGHT(D81,LEN(D81)-SEARCH(".",D81))),"") -> 4897.6
A82: =IFERROR(LEFT(D82,SEARCH(".",D82)-1),"") -> 4 | B82: =IFERROR(LEFT(RIGHT(D82,LEN(D82)-SEARCH(".",D82)),SEARCH(".",RIGHT(D82,LEN(D82)-SEARCH(".",D82)))-1),"") -> 2 | C82: =IFERROR(IF(LEN(D82)-LEN(SUBSTITUTE(D82,".",""))<>3,"",MID(D82,SEARCH(".",D82,SEARCH(".",D82)+1)+1,LEN(D82)-SEARCH(".",D82,SEARCH(".",D82)+1)-(LEN(D82)-(SEARCH(".",D82,SEARCH(".",D82,SEARCH(".",D82)+1)+1)-1)))),"") ->  | D82: 4.2.1 | E82: =IF($G82="SINAPI",VLOOKUP($F82,DADOS_SINAPI,2,0),IF(G82="SETOP",VLOOKUP($F82,DADOS_SETOP,2,0),IF(G82="CPU",VLOOKUP($F82,DADOS_COMPOSICAO,2,0),IF(G82="SICRO",VLOOKUP($F82,DADOS_SICRO,2,0),IF(G82="SUDECAP",VLOOKUP(F82,DADOS_SUDECAP,2,0),IF(G82="COTAÇÃO",VLOOKUP($F82,DADOS_COTACAO,2,0),"")))))) -> LUMINÁRIA DE EMERGÊNCIA AUTÔNOMA, TIPO LED POTÊNCIA TOTAL DE 2W, FORNECIMENTO E INSTALAÇÃO | F82: ED-26989 | G82: SETOP | H82: =IF(G82="SINAPI",VLOOKUP($F82,DADOS_SINAPI,3,0),IF(G82="SETOP",VLOOKUP($F82,DADOS_SETOP,3,0),IF(G82="CPU",VLOOKUP($F82,DADOS_COMPOSICAO,10,0),IF(G82="SICRO",VLOOKUP($F82,DADOS_SICRO,3,0),IF(G82="SUDECAP",VLOOKUP(F82,DADOS_SUDECAP,3,0),IF(G82="COTAÇÃO",VLOOKUP($F82,DADOS_COTACAO,9,0),"")))))) -> un | I82: =F89 -> 55 | J82: =TRUNC(IF(G82="SINAPI",VLOOKUP($F82,DADOS_SINAPI,4,0),IF(G82="SETOP",VLOOKUP($F82,DADOS_SETOP,4,0),IF(G82="CPU",VLOOKUP($F82,DADOS_COMPOSICAO,13,0),IF(G82="SICRO",VLOOKUP($F82,DADOS_SICRO,4,0),IF(G82="SUDECAP",VLOOKUP(F82,DADOS_SUDECAP,4,0),IF(G82="COTAÇÃO",VLOOKUP(F82,DADOS_COTACAO,12,0),"")))))),2) -> 29.04 | K82: BDI 1 | L82: =TRUNC(J82*(1+$N$17),2) -> 36.74 | M82: =IFERROR(TRUNC(I82*J82,2),"") -> 1597.2 | N82: =IFERROR(TRUNC(L82*I82,2),"") -> 2020.7
A83: 2000
A84: 2000 | E84: Térreo | F84: 31 | G84: un
A85: 2000 | E85: Mezanino | F85: 3 | G85: un
A86: 2000 | E86: 1º Pavimento | F86: 10 | G86: un
A87: 2000 | E87: 2º Pavimento | F87: 5 | G87: un
A88: 2000 | E88: 3º Pavimento | F88: 6 | G88: un
A89: 2000 | E89: Total | F89: =SUM(F84:F88) -> 55 | G89: un
A90: 2000
A91: =IFERROR(LEFT(D91,SEARCH(".",D91)-1),"") -> 4 | B91: =IFERROR(LEFT(RIGHT(D91,LEN(D91)-SEARCH(".",D91)),SEARCH(".",RIGHT(D91,LEN(D91)-SEARCH(".",D91)))-1),"") -> 2 | C91: =IFERROR(IF(LEN(D91)-LEN(SUBSTITUTE(D91,".",""))<>3,"",MID(D91,SEARCH(".",D91,SEARCH(".",D91)+1)+1,LEN(D91)-SEARCH(".",D91,SEARCH(".",D91)+1)-(LEN(D91)-(SEARCH(".",D91,SEARCH(".",D91,SEARCH(".",D91)+1)+1)-1)))),"") ->  | D91: 4.2.2 | E91: =IF($G91="SINAPI",VLOOKUP($F91,DADOS_SINAPI,2,0),IF(G91="SETOP",VLOOKUP($F91,DADOS_SETOP,2,0),IF(G91="CPU",VLOOKUP($F91,DADOS_COMPOSICAO,2,0),IF(G91="SICRO",VLOOKUP($F91,DADOS_SICRO,2,0),IF(G91="SUDECAP",VLOOKUP(F91,DADOS_SUDECAP,2,0),IF(G91="COTAÇÃO",VLOOKUP($F91,DADOS_COTACAO,2,0),"")))))) -> LUMINÁRIA DE EMERGÊNCIA AUTÔNOMA, TIPO LED COM DOIS FARÓIS, POTÊNCIA TOTAL DE 8W, FORNECIMENTO E INSTALAÇÃO | F91: ED-26993 | G91: SETOP | H91: =IF(G91="SINAPI",VLOOKUP($F91,DADOS_SINAPI,3,0),IF(G91="SETOP",VLOOKUP($F91,DADOS_SETOP,3,0),IF(G91="CPU",VLOOKUP($F91,DADOS_COMPOSICAO,10,0),IF(G91="SICRO",VLOOKUP($F91,DADOS_SICRO,3,0),IF(G91="SUDECAP",VLOOKUP(F91,DADOS_SUDECAP,3,0),IF(G91="COTAÇÃO",VLOOKUP($F91,DADOS_COTACAO,9,0),"")))))) -> un | I91: =F94 -> 10 | J91: =TRUNC(IF(G91="SINAPI",VLOOKUP($F91,DADOS_SINAPI,4,0),IF(G91="SETOP",VLOOKUP($F91,DADOS_SETOP,4,0),IF(G91="CPU",VLOOKUP($F91,DADOS_COMPOSICAO,13,0),IF(G91="SICRO",VLOOKUP($F91,DADOS_SICRO,4,0),IF(G91="SUDECAP",VLOOKUP(F91,DADOS_SUDECAP,4,0),IF(G91="COTAÇÃO",VLOOKUP(F91,DADOS_COTACAO,12,0),"")))))),2) -> 227.39 | K91: BDI 1 | L91: =TRUNC(J91*(1+$N$17),2) -> 287.69 | M91: =IFERROR(TRUNC(I91*J91,2),"") -> 2273.9 | N91: =IFERROR(TRUNC(L91*I91,2),"") -> 2876.9
A92: 2000
A93: 2000 | E93: Quadra de esportes | F93: 10 | G93: un
A94: 2000 | E94: Total | F94: =SUM(F90:F93) -> 10 | G94: un
A95: 2000
D96: 4.3 | E96: PLACAS DE SINALIZAÇÃO DE EMERGÊNCIA | M96: =IFERROR(SUMIFS(M:M,A:A,LEFT(D96,SEARCH(".",D96)-1),B:B,RIGHT(D96,LEN(D96)-SEARCH(".",D96))),"") -> 3373.74 | N96: =IFERROR(SUMIFS(N:N,A:A,LEFT(D96,SEARCH(".",D96)-1),B:B,RIGHT(D96,LEN(D96)-SEARCH(".",D96))),"") -> 4268.17
D97: 4.3.1 | E97: PLACAS DE SINALIZAÇÃO DE ORIENTAÇÃO E SALVAMENTO | M97: =IFERROR(SUMIFS(M:M,A:A,LEFT(D97,SEARCH(".",D97)-1),B:B,LEFT(RIGHT(D97,LEN(D97)-SEARCH(".",D97)),SEARCH(".",RIGHT(D97,LEN(D97)-SEARCH(".",D97)))-1),C:C,RIGHT(D97,LEN(D97)-SEARCH(".",D97,SEARCH(".",D97)+1))),"") -> 1748.92 | N97: =IFERROR(SUMIFS(N:N,A:A,LEFT(D97,SEARCH(".",D97)-1),B:B,LEFT(RIGHT(D97,LEN(D97)-SEARCH(".",D97)),SEARCH(".",RIGHT(D97,LEN(D97)-SEARCH(".",D97)))-1),C:C,RIGHT(D97,LEN(D97)-SEARCH(".",D97,SEARCH(".",D97)+1))),"") -> 2212.6
A98: =IFERROR(LEFT(D98,SEARCH(".",D98)-1),"") -> 4 | B98: =IFERROR(LEFT(RIGHT(D98,LEN(D98)-SEARCH(".",D98)),SEARCH(".",RIGHT(D98,LEN(D98)-SEARCH(".",D98)))-1),"") -> 3 | C98: =IFERROR(IF(LEN(D98)-LEN(SUBSTITUTE(D98,".",""))<>3,"",MID(D98,SEARCH(".",D98,SEARCH(".",D98)+1)+1,LEN(D98)-SEARCH(".",D98,SEARCH(".",D98)+1)-(LEN(D98)-(SEARCH(".",D98,SEARCH(".",D98,SEARCH(".",D98)+1)+1)-1)))),"") -> 1 | D98: 4.3.1.1 | E98: =IF($G98="SINAPI",VLOOKUP($F98,DADOS_SINAPI,2,0),IF(G98="SETOP",VLOOKUP($F98,DADOS_SETOP,2,0),IF(G98="CPU",VLOOKUP($F98,DADOS_COMPOSICAO,2,0),IF(G98="SICRO",VLOOKUP($F98,DADOS_SICRO,2,0),IF(G98="SUDECAP",VLOOKUP(F98,DADOS_SUDECAP,2,0),IF(G98="COTAÇÃO",VLOOKUP($F98,DADOS_COTACAO,2,0),"")))))) -> PLACA FOTOLUMINESCENTE PARA SINALIZAÇÃO DE EMERGÊNCIA, TIPO "S2", DIMENSÃO (380X190)MM, INCLUSIVE FIXAÇÃO | F98: ED-50201 | G98: SETOP | H98: =IF(G98="SINAPI",VLOOKUP($F98,DADOS_SINAPI,3,0),IF(G98="SETOP",VLOOKUP($F98,DADOS_SETOP,3,0),IF(G98="CPU",VLOOKUP($F98,DADOS_COMPOSICAO,10,0),IF(G98="SICRO",VLOOKUP($F98,DADOS_SICRO,3,0),IF(G98="SUDECAP",VLOOKUP(F98,DADOS_SUDECAP,3,0),IF(G98="COTAÇÃO",VLOOKUP($F98,DADOS_COTACAO,9,0),"")))))) -> un | I98: =F104 -> 29 | J98: =TRUNC(IF(G98="SINAPI",VLOOKUP($F98,DADOS_SINAPI,4,0),IF(G98="SETOP",VLOOKUP($F98,DADOS_SETOP,4,0),IF(G98="CPU",VLOOKUP($F98,DADOS_COMPOSICAO,13,0),IF(G98="SICRO",VLOOKUP($F98,DADOS_SICRO,4,0),IF(G98="SUDECAP",VLOOKUP(F98,DADOS_SUDECAP,4,0),IF(G98="COTAÇÃO",VLOOKUP(F98,DADOS_COTACAO,12,0),"")))))),2) -> 19.01 | K98: BDI 1 | L98: =TRUNC(J98*(1+$N$17),2) -> 24.05 | M98: =IFERROR(TRUNC(I98*J98,2),"") -> 551.29 | N98: =IFERROR(TRUNC(L98*I98,2),"") -> 697.45
A99: 2000
A100: 2000 | E100: Térreo | F100: 17 | G100: un
A101: 2000 | E101: 1º Pavimento | F101: 6 | G101: un
A102: 2000 | E102: 2º Pavimento | F102: 3 | G102: un
A103: 2000 | E103: 3º Pavimento | F103: 3 | G103: un
A104: 2000 | E104: Total | F104: =SUM(F100:F103) -> 29 | G104: un
A105: 2000
A106: =IFERROR(LEFT(D106,SEARCH(".",D106)-1),"") -> 4 | B106: =IFERROR(LEFT(RIGHT(D106,LEN(D106)-SEARCH(".",D106)),SEARCH(".",RIGHT(D106,LEN(D106)-SEARCH(".",D106)))-1),"") -> 3 | C106: =IFERROR(IF(LEN(D106)-LEN(SUBSTITUTE(D106,".",""))<>3,"",MID(D106,SEARCH(".",D106,SEARCH(".",D106)+1)+1,LEN(D106)-SEARCH(".",D106,SEARCH(".",D106)+1)-(LEN(D106)-(SEARCH(".",D106,SEARCH(".",D106,SEARCH(".",D106)+1)+1)-1)))),"") -> 1 | D106: 4.3.1.2 | E106: =IF($G106="SINAPI",VLOOKUP($F106,DADOS_SINAPI,2,0),IF(G106="SETOP",VLOOKUP($F106,DADOS_SETOP,2,0),IF(G106="CPU",VLOOKUP($F106,DADOS_COMPOSICAO,2,0),IF(G106="SICRO",VLOOKUP($F106,DADOS_SICRO,2,0),IF(G106="SUDECAP",VLOOKUP(F106,DADOS_SUDECAP,2,0),IF(G106="COTAÇÃO",VLOOKUP($F106,DADOS_COTACAO,2,0),"")))))) -> PLACA FOTOLUMINESCENTE PARA SINALIZAÇÃO DE EMERGÊNCIA, TIPO "S3", DIMENSÃO (380X190)MM, INCLUSIVE FIXAÇÃO | F106: ED-29400 | G106: SETOP | H106: =IF(G106="SINAPI",VLOOKUP($F106,DADOS_SINAPI,3,0),IF(G106="SETOP",VLOOKUP($F106,DADOS_SETOP,3,0),IF(G106="CPU",VLOOKUP($F106,DADOS_COMPOSICAO,10,0),IF(G106="SICRO",VLOOKUP($F106,DADOS_SICRO,3,0),IF(G106="SUDECAP",VLOOKUP(F106,DADOS_SUDECAP,3,0),IF(G106="COTAÇÃO",VLOOKUP($F106,DADOS_COTACAO,9,0),"")))))) -> un | I106: =F112 -> 48 | J106: =TRUNC(IF(G106="SINAPI",VLOOKUP($F106,DADOS_SINAPI,4,0),IF(G106="SETOP",VLOOKUP($F106,DADOS_SETOP,4,0),IF(G106="CPU",VLOOKUP($F106,DADOS_COMPOSICAO,13,0),IF(G106="SICRO",VLOOKUP($F106,DADOS_SICRO,4,0),IF(G106="SUDECAP",VLOOKUP(F106,DADOS_SUDECAP,4,0),IF(G106="COTAÇÃO",VLOOKUP(F106,DADOS_COTACAO,12,0),"")))))),2) -> 19.01 | K106: BDI 1 | L106: =TRUNC(J106*(1+$N$17),2) -> 24.05 | M106: =IFERROR(TRUNC(I106*J106,2),"") -> 912.48 | N106: =IFERROR(TRUNC(L106*I106,2),"") -> 1154.4
A107: 2000
A108: 2000 | E108: Térreo | F108: 26 | G108: un
A109: 2000 | E109: 1º Pavimento | F109: 15 | G109: un
A110: 2000 | E110: 2º Pavimento | F110: 4 | G110: un
A111: 2000 | E111: 3º Pavimento | F111: 3 | G111: un
A112: 2000 | E112: Total | F112: =SUM(F108:F111) -> 48 | G112: un
A113: 2000
A114: =IFERROR(LEFT(D114,SEARCH(".",D114)-1),"") -> 4 | B114: =IFERROR(LEFT(RIGHT(D114,LEN(D114)-SEARCH(".",D114)),SEARCH(".",RIGHT(D114,LEN(D114)-SEARCH(".",D114)))-1),"") -> 3 | C114: =IFERROR(IF(LEN(D114)-LEN(SUBSTITUTE(D114,".",""))<>3,"",MID(D114,SEARCH(".",D114,SEARCH(".",D114)+1)+1,LEN(D114)-SEARCH(".",D114,SEARCH(".",D114)+1)-(LEN(D114)-(SEARCH(".",D114,SEARCH(".",D114,SEARCH(".",D114)+1)+1)-1)))),"") -> 1 | D114: 4.3.1.3 | E114: =IF($G114="SINAPI",VLOOKUP($F114,DADOS_SINAPI,2,0),IF(G114="SETOP",VLOOKUP($F114,DADOS_SETOP,2,0),IF(G114="CPU",VLOOKUP($F114,DADOS_COMPOSICAO,2,0),IF(G114="SICRO",VLOOKUP($F114,DADOS_SICRO,2,0),IF(G114="SUDECAP",VLOOKUP(F114,DADOS_SUDECAP,2,0),IF(G114="COTAÇÃO",VLOOKUP($F114,DADOS_COTACAO,2,0),"")))))) -> PLACA FOTOLUMINESCENTE PARA SINALIZAÇÃO DE EMERGÊNCIA, TIPO "S8", DIMENSÃO (380X190)MM, INCLUSIVE FIXAÇÃO | F114: ED-29405 | G114: SETOP | H114: =IF(G114="SINAPI",VLOOKUP($F114,DADOS_SINAPI,3,0),IF(G114="SETOP",VLOOKUP($F114,DADOS_SETOP,3,0),IF(G114="CPU",VLOOKUP($F114,DADOS_COMPOSICAO,10,0),IF(G114="SICRO",VLOOKUP($F114,DADOS_SICRO,3,0),IF(G114="SUDECAP",VLOOKUP(F114,DADOS_SUDECAP,3,0),IF(G114="COTAÇÃO",VLOOKUP($F114,DADOS_COTACAO,9,0),"")))))) -> un | I114: =F120 -> 8 | J114: =TRUNC(IF(G114="SINAPI",VLOOKUP($F114,DADOS_SINAPI,4,0),IF(G114="SETOP",VLOOKUP($F114,DADOS_SETOP,4,0),IF(G114="CPU",VLOOKUP($F114,DADOS_COMPOSICAO,13,0),IF(G114="SICRO",VLOOKUP($F114,DADOS_SICRO,4,0),IF(G114="SUDECAP",VLOOKUP(F114,DADOS_SUDECAP,4,0),IF(G114="COTAÇÃO",VLOOKUP(F114,DADOS_COTACAO,12,0),"")))))),2) -> 19.01 | K114: BDI 1 | L114: =TRUNC(J114*(1+$N$17),2) -> 24.05 | M114: =IFERROR(TRUNC(I114*J114,2),"") -> 152.08 | N114: =IFERROR(TRUNC(L114*I114,2),"") -> 192.4
A115: 2000
A116: 2000 | E116: Mezanino | F116: 1 | G116: un
A117: 2000 | E117: 1º Pavimento | F117: 3 | G117: un
A118: 2000 | E118: 2º Pavimento | F118: 2 | G118: un
A119: 2000 | E119: 3º Pavimento | F119: 2 | G119: un
A120: 2000 | E120: Total | F120: =SUM(F116:F119) -> 8 | G120: un
A121: 2000
A122: =IFERROR(LEFT(D122,SEARCH(".",D122)-1),"") -> 4 | B122: =IFERROR(LEFT(RIGHT(D122,LEN(D122)-SEARCH(".",D122)),SEARCH(".",RIGHT(D122,LEN(D122)-SEARCH(".",D122)))-1),"") -> 3 | C122: =IFERROR(IF(LEN(D122)-LEN(SUBSTITUTE(D122,".",""))<>3,"",MID(D122,SEARCH(".",D122,SEARCH(".",D122)+1)+1,LEN(D122)-SEARCH(".",D122,SEARCH(".",D122)+1)-(LEN(D122)-(SEARCH(".",D122,SEARCH(".",D122,SEARCH(".",D122)+1)+1)-1)))),"") -> 1 | D122: 4.3.1.4 | E122: =IF($G122="SINAPI",VLOOKUP($F122,DADOS_SINAPI,2,0),IF(G122="SETOP",VLOOKUP($F122,DADOS_SETOP,2,0),IF(G122="CPU",VLOOKUP($F122,DADOS_COMPOSICAO,2,0),IF(G122="SICRO",VLOOKUP($F122,DADOS_SICRO,2,0),IF(G122="SUDECAP",VLOOKUP(F122,DADOS_SUDECAP,2,0),IF(G122="COTAÇÃO",VLOOKUP($F122,DADOS_COTACAO,2,0),"")))))) -> PLACA FOTOLUMINESCENTE PARA SINALIZAÇÃO DE EMERGÊNCIA, TIPO "S9", DIMENSÃO (380X190)MM, INCLUSIVE FIXAÇÃO | F122: ED-50203 | G122: SETOP | H122: =IF(G122="SINAPI",VLOOKUP($F122,DADOS_SINAPI,3,0),IF(G122="SETOP",VLOOKUP($F122,DADOS_SETOP,3,0),IF(G122="CPU",VLOOKUP($F122,DADOS_COMPOSICAO,10,0),IF(G122="SICRO",VLOOKUP($F122,DADOS_SICRO,3,0),IF(G122="SUDECAP",VLOOKUP(F122,DADOS_SUDECAP,3,0),IF(G122="COTAÇÃO",VLOOKUP($F122,DADOS_COTACAO,9,0),"")))))) -> un | I122: =F125 -> 1 | J122: =TRUNC(IF(G122="SINAPI",VLOOKUP($F122,DADOS_SINAPI,4,0),IF(G122="SETOP",VLOOKUP($F122,DADOS_SETOP,4,0),IF(G122="CPU",VLOOKUP($F122,DADOS_COMPOSICAO,13,0),IF(G122="SICRO",VLOOKUP($F122,DADOS_SICRO,4,0),IF(G122="SUDECAP",VLOOKUP(F122,DADOS_SUDECAP,4,0),IF(G122="COTAÇÃO",VLOOKUP(F122,DADOS_COTACAO,12,0),"")))))),2) -> 19.01 | K122: BDI 1 | L122: =TRUNC(J122*(1+$N$17),2) -> 24.05 | M122: =IFERROR(TRUNC(I122*J122,2),"") -> 19.01 | N122: =IFERROR(TRUNC(L122*I122,2),"") -> 24.05
A123: 2000
A124: 2000 | E124: Quadra de esportes | F124: 1 | G124: un
A125: 2000 | E125: Total | F125: =SUM(F124:F124) -> 1 | G125: un
A126: 2000
A127: =IFERROR(LEFT(D127,SEARCH(".",D127)-1),"") -> 4 | B127: =IFERROR(LEFT(RIGHT(D127,LEN(D127)-SEARCH(".",D127)),SEARCH(".",RIGHT(D127,LEN(D127)-SEARCH(".",D127)))-1),"") -> 3 | C127: =IFERROR(IF(LEN(D127)-LEN(SUBSTITUTE(D127,".",""))<>3,"",MID(D127,SEARCH(".",D127,SEARCH(".",D127)+1)+1,LEN(D127)-SEARCH(".",D127,SEARCH(".",D127)+1)-(LEN(D127)-(SEARCH(".",D127,SEARCH(".",D127,SEARCH(".",D127)+1)+1)-1)))),"") -> 1 | D127: 4.3.1.5 | E127: =IF($G127="SINAPI",VLOOKUP($F127,DADOS_SINAPI,2,0),IF(G127="SETOP",VLOOKUP($F127,DADOS_SETOP,2,0),IF(G127="CPU",VLOOKUP($F127,DADOS_COMPOSICAO,2,0),IF(G127="SICRO",VLOOKUP($F127,DADOS_SICRO,2,0),IF(G127="SUDECAP",VLOOKUP(F127,DADOS_SUDECAP,2,0),IF(G127="COTAÇÃO",VLOOKUP($F127,DADOS_COTACAO,2,0),"")))))) -> PLACA FOTOLUMINESCENTE PARA SINALIZAÇÃO DE EMERGÊNCIA, TIPO "S12", DIMENSÃO (380X190)MM, INCLUSIVE FIXAÇÃO | F127: ED-50205 | G127: SETOP | H127: =IF(G127="SINAPI",VLOOKUP($F127,DADOS_SINAPI,3,0),IF(G127="SETOP",VLOOKUP($F127,DADOS_SETOP,3,0),IF(G127="CPU",VLOOKUP($F127,DADOS_COMPOSICAO,10,0),IF(G127="SICRO",VLOOKUP($F127,DADOS_SICRO,3,0),IF(G127="SUDECAP",VLOOKUP(F127,DADOS_SUDECAP,3,0),IF(G127="COTAÇÃO",VLOOKUP($F127,DADOS_COTACAO,9,0),"")))))) -> un | I127: =F130 -> 6 | J127: =TRUNC(IF(G127="SINAPI",VLOOKUP($F127,DADOS_SINAPI,4,0),IF(G127="SETOP",VLOOKUP($F127,DADOS_SETOP,4,0),IF(G127="CPU",VLOOKUP($F127,DADOS_COMPOSICAO,13,0),IF(G127="SICRO",VLOOKUP($F127,DADOS_SICRO,4,0),IF(G127="SUDECAP",VLOOKUP(F127,DADOS_SUDECAP,4,0),IF(G127="COTAÇÃO",VLOOKUP(F127,DADOS_COTACAO,12,0),"")))))),2) -> 19.01 | K127: BDI 1 | L127: =TRUNC(J127*(1+$N$17),2) -> 24.05 | M127: =IFERROR(TRUNC(I127*J127,2),"") -> 114.06 | N127: =IFERROR(TRUNC(L127*I127,2),"") -> 144.3
A128: 2000
A129: 2000 | E129: Térreo | F129: 6 | G129: un
A130: 2000 | E130: Total | F130: =SUM(F129:F129) -> 6 | G130: un
A131: 2000
D132: 4.3.2 | E132: PLACAS DE SINALIZAÇÃO DE EQUPAMENTOS DE COMBATE A INCÊNDIO E ALARME | M132: =IFERROR(SUMIFS(M:M,A:A,LEFT(D132,SEARCH(".",D132)-1),B:B,LEFT(RIGHT(D132,LEN(D132)-SEARCH(".",D132)),SEARCH(".",RIGHT(D132,LEN(D132)-SEARCH(".",D132)))-1),C:C,RIGHT(D132,LEN(D132)-SEARCH(".",D132,SEARCH(".",D132)+1))),"") -> 1114.18 | N132: =IFERROR(SUMIFS(N:N,A:A,LEFT(D132,SEARCH(".",D132)-1),B:B,LEFT(RIGHT(D132,LEN(D132)-SEARCH(".",D132)),SEARCH(".",RIGHT(D132,LEN(D132)-SEARCH(".",D132)))-1),C:C,RIGHT(D132,LEN(D132)-SEARCH(".",D132,SEARCH(".",D132)+1))),"") -> 1409.58
A133: =IFERROR(LEFT(D133,SEARCH(".",D133)-1),"") -> 4 | B133: =IFERROR(LEFT(RIGHT(D133,LEN(D133)-SEARCH(".",D133)),SEARCH(".",RIGHT(D133,LEN(D133)-SEARCH(".",D133)))-1),"") -> 3 | C133: =IFERROR(IF(LEN(D133)-LEN(SUBSTITUTE(D133,".",""))<>3,"",MID(D133,SEARCH(".",D133,SEARCH(".",D133)+1)+1,LEN(D133)-SEARCH(".",D133,SEARCH(".",D133)+1)-(LEN(D133)-(SEARCH(".",D133,SEARCH(".",D133,SEARCH(".",D133)+1)+1)-1)))),"") -> 2 | D133: 4.3.2.1 | E133: =IF($G133="SINAPI",VLOOKUP($F133,DADOS_SINAPI,2,0),IF(G133="SETOP",VLOOKUP($F133,DADOS_SETOP,2,0),IF(G133="CPU",VLOOKUP($F133,DADOS_COMPOSICAO,2,0),IF(G133="SICRO",VLOOKUP($F133,DADOS_SICRO,2,0),IF(G133="SUDECAP",VLOOKUP(F133,DADOS_SUDECAP,2,0),IF(G133="COTAÇÃO",VLOOKUP($F133,DADOS_COTACAO,2,0),"")))))) -> PLACA FOTOLUMINESCENTE PARA SINALIZAÇÃO DE EMERGÊNCIA, TIPO "E1", DIMENSÃO (300X300)MM, INCLUSIVE FIXAÇÃO | F133: ED-29388 | G133: SETOP | H133: =IF(G133="SINAPI",VLOOKUP($F133,DADOS_SINAPI,3,0),IF(G133="SETOP",VLOOKUP($F133,DADOS_SETOP,3,0),IF(G133="CPU",VLOOKUP($F133,DADOS_COMPOSICAO,10,0),IF(G133="SICRO",VLOOKUP($F133,DADOS_SICRO,3,0),IF(G133="SUDECAP",VLOOKUP(F133,DADOS_SUDECAP,3,0),IF(G133="COTAÇÃO",VLOOKUP($F133,DADOS_COTACAO,9,0),"")))))) -> un | I133: =F140 -> 13 | J133: =TRUNC(IF(G133="SINAPI",VLOOKUP($F133,DADOS_SINAPI,4,0),IF(G133="SETOP",VLOOKUP($F133,DADOS_SETOP,4,0),IF(G133="CPU",VLOOKUP($F133,DADOS_COMPOSICAO,13,0),IF(G133="SICRO",VLOOKUP($F133,DADOS_SICRO,4,0),IF(G133="SUDECAP",VLOOKUP(F133,DADOS_SUDECAP,4,0),IF(G133="COTAÇÃO",VLOOKUP(F133,DADOS_COTACAO,12,0),"")))))),2) -> 16.03 | K133: BDI 1 | L133: =TRUNC(J133*(1+$N$17),2) -> 20.28 | M133: =IFERROR(TRUNC(I133*J133,2),"") -> 208.39 | N133: =IFERROR(TRUNC(L133*I133,2),"") -> 263.64
A134: 2000
A135: 2000 | E135: Térreo | F135: 8 | G135: un
A136: 2000 | E136: Mezanino | F136: 1 | G136: un
A137: 2000 | E137: 1º Pavimento | F137: 2 | G137: un
A138: 2000 | E138: 2º Pavimento | F138: 1 | G138: un
A139: 2000 | E139: 3º Pavimento | F139: 1 | G139: un
A140: 2000 | E140: Total | F140: =SUM(F135:F139) -> 13 | G140: un
A141: 2000
A142: =IFERROR(LEFT(D142,SEARCH(".",D142)-1),"") -> 4 | B142: =IFERROR(LEFT(RIGHT(D142,LEN(D142)-SEARCH(".",D142)),SEARCH(".",RIGHT(D142,LEN(D142)-SEARCH(".",D142)))-1),"") -> 3 | C142: =IFERROR(IF(LEN(D142)-LEN(SUBSTITUTE(D142,".",""))<>3,"",MID(D142,SEARCH(".",D142,SEARCH(".",D142)+1)+1,LEN(D142)-SEARCH(".",D142,SEARCH(".",D142)+1)-(LEN(D142)-(SEARCH(".",D142,SEARCH(".",D142,SEARCH(".",D142)+1)+1)-1)))),"") -> 2 | D142: 4.3.2.2 | E142: =IF($G142="SINAPI",VLOOKUP($F142,DADOS_SINAPI,2,0),IF(G142="SETOP",VLOOKUP($F142,DADOS_SETOP,2,0),IF(G142="CPU",VLOOKUP($F142,DADOS_COMPOSICAO,2,0),IF(G142="SICRO",VLOOKUP($F142,DADOS_SICRO,2,0),IF(G142="SUDECAP",VLOOKUP(F142,DADOS_SUDECAP,2,0),IF(G142="COTAÇÃO",VLOOKUP($F142,DADOS_COTACAO,2,0),"")))))) -> PLACA FOTOLUMINESCENTE PARA SINALIZAÇÃO DE EMERGÊNCIA, TIPO "E2", DIMENSÃO (150X100)MM, INCLUSIVE FIXAÇÃO | F142: ED-29389 | G142: SETOP | H142: =IF(G142="SINAPI",VLOOKUP($F142,DADOS_SINAPI,3,0),IF(G142="SETOP",VLOOKUP($F142,DADOS_SETOP,3,0),IF(G142="CPU",VLOOKUP($F142,DADOS_COMPOSICAO,10,0),IF(G142="SICRO",VLOOKUP($F142,DADOS_SICRO,3,0),IF(G142="SUDECAP",VLOOKUP(F142,DADOS_SUDECAP,3,0),IF(G142="COTAÇÃO",VLOOKUP($F142,DADOS_COTACAO,9,0),"")))))) -> un | I142: =F149 -> 13 | J142: =TRUNC(IF(G142="SINAPI",VLOOKUP($F142,DADOS_SINAPI,4,0),IF(G142="SETOP",VLOOKUP($F142,DADOS_SETOP,4,0),IF(G142="CPU",VLOOKUP($F142,DADOS_COMPOSICAO,13,0),IF(G142="SICRO",VLOOKUP($F142,DADOS_SICRO,4,0),IF(G142="SUDECAP",VLOOKUP(F142,DADOS_SUDECAP,4,0),IF(G142="COTAÇÃO",VLOOKUP(F142,DADOS_COTACAO,12,0),"")))))),2) -> 9.09 | K142: BDI 1 | L142: =TRUNC(J142*(1+$N$17),2) -> 11.5 | M142: =IFERROR(TRUNC(I142*J142,2),"") -> 118.17 | N142: =IFERROR(TRUNC(L142*I142,2),"") -> 149.5
A143: 2000
A144: 2000 | E144: Térreo | F144: 8 | G144: un
A145: 2000 | E145: Mezanino | F145: 1 | G145: un
A146: 2000 | E146: 1º Pavimento | F146: 2 | G146: un
A147: 2000 | E147: 2º Pavimento | F147: 1 | G147: un
A148: 2000 | E148: 3º Pavimento | F148: 1 | G148: un
A149: 2000 | E149: Total | F149: =SUM(F144:F148) -> 13 | G149: un
A150: 2000
A151: =IFERROR(LEFT(D151,SEARCH(".",D151)-1),"") -> 4 | B151: =IFERROR(LEFT(RIGHT(D151,LEN(D151)-SEARCH(".",D151)),SEARCH(".",RIGHT(D151,LEN(D151)-SEARCH(".",D151)))-1),"") -> 3 | C151: =IFERROR(IF(LEN(D151)-LEN(SUBSTITUTE(D151,".",""))<>3,"",MID(D151,SEARCH(".",D151,SEARCH(".",D151)+1)+1,LEN(D151)-SEARCH(".",D151,SEARCH(".",D151)+1)-(LEN(D151)-(SEARCH(".",D151,SEARCH(".",D151,SEARCH(".",D151)+1)+1)-1)))),"") -> 2 | D151: 4.3.2.3 | E151: =IF($G151="SINAPI",VLOOKUP($F151,DADOS_SINAPI,2,0),IF(G151="SETOP",VLOOKUP($F151,DADOS_SETOP,2,0),IF(G151="CPU",VLOOKUP($F151,DADOS_COMPOSICAO,2,0),IF(G151="SICRO",VLOOKUP($F151,DADOS_SICRO,2,0),IF(G151="SUDECAP",VLOOKUP(F151,DADOS_SUDECAP,2,0),IF(G151="COTAÇÃO",VLOOKUP($F151,DADOS_COTACAO,2,0),"")))))) -> PLACA FOTOLUMINESCENTE PARA SINALIZAÇÃO DE EMERGÊNCIA, TIPO "E3", DIMENSÃO (150X100)MM, INCLUSIVE FIXAÇÃO | F151: ED-29390 | G151: SETOP | H151: =IF(G151="SINAPI",VLOOKUP($F151,DADOS_SINAPI,3,0),IF(G151="SETOP",VLOOKUP($F151,DADOS_SETOP,3,0),IF(G151="CPU",VLOOKUP($F151,DADOS_COMPOSICAO,10,0),IF(G151="SICRO",VLOOKUP($F151,DADOS_SICRO,3,0),IF(G151="SUDECAP",VLOOKUP(F151,DADOS_SUDECAP,3,0),IF(G151="COTAÇÃO",VLOOKUP($F151,DADOS_COTACAO,9,0),"")))))) -> un | I151: =F155 -> 2 | J151: =TRUNC(IF(G151="SINAPI",VLOOKUP($F151,DADOS_SINAPI,4,0),IF(G151="SETOP",VLOOKUP($F151,DADOS_SETOP,4,0),IF(G151="CPU",VLOOKUP($F151,DADOS_COMPOSICAO,13,0),IF(G151="SICRO",VLOOKUP($F151,DADOS_SICRO,4,0),IF(G151="SUDECAP",VLOOKUP(F151,DADOS_SUDECAP,4,0),IF(G151="COTAÇÃO",VLOOKUP(F151,DADOS_COTACAO,12,0),"")))))),2) -> 9.09 | K151: BDI 1 | L151: =TRUNC(J151*(1+$N$17),2) -> 11.5 | M151: =IFERROR(TRUNC(I151*J151,2),"") -> 18.18 | N151: =IFERROR(TRUNC(L151*I151,2),"") -> 23
A152: 2000
A153: 2000 | E153: Recepção | F153: 1 | G153: un
A154: 2000 | E154: Casa bomba de incêndio | F154: 1 | G154: un
A155: 2000 | E155: Total | F155: =SUM(F153:F154) -> 2 | G155: un
A156: 2000
A157: =IFERROR(LEFT(D157,SEARCH(".",D157)-1),"") -> 4 | B157: =IFERROR(LEFT(RIGHT(D157,LEN(D157)-SEARCH(".",D157)),SEARCH(".",RIGHT(D157,LEN(D157)-SEARCH(".",D157)))-1),"") -> 3 | C157: =IFERROR(IF(LEN(D157)-LEN(SUBSTITUTE(D157,".",""))<>3,"",MID(D157,SEARCH(".",D157,SEARCH(".",D157)+1)+1,LEN(D157)-SEARCH(".",D157,SEARCH(".",D157)+1)-(LEN(D157)-(SEARCH(".",D157,SEARCH(".",D157,SEARCH(".",D157)+1)+1)-1)))),"") -> 2 | D157: 4.3.2.4 | E157: =IF($G157="SINAPI",VLOOKUP($F157,DADOS_SINAPI,2,0),IF(G157="SETOP",VLOOKUP($F157,DADOS_SETOP,2,0),IF(G157="CPU",VLOOKUP($F157,DADOS_COMPOSICAO,2,0),IF(G157="SICRO",VLOOKUP($F157,DADOS_SICRO,2,0),IF(G157="SUDECAP",VLOOKUP(F157,DADOS_SUDECAP,2,0),IF(G157="COTAÇÃO",VLOOKUP($F157,DADOS_COTACAO,2,0),"")))))) -> PLACA FOTOLUMINESCENTE PARA SINALIZAÇÃO DE EMERGÊNCIA, TIPO "E5", DIMENSÃO (300X300)MM, INCLUSIVE FIXAÇÃO | F157: ED-50199 | G157: SETOP | H157: =IF(G157="SINAPI",VLOOKUP($F157,DADOS_SINAPI,3,0),IF(G157="SETOP",VLOOKUP($F157,DADOS_SETOP,3,0),IF(G157="CPU",VLOOKUP($F157,DADOS_COMPOSICAO,10,0),IF(G157="SICRO",VLOOKUP($F157,DADOS_SICRO,3,0),IF(G157="SUDECAP",VLOOKUP(F157,DADOS_SUDECAP,3,0),IF(G157="COTAÇÃO",VLOOKUP($F157,DADOS_COTACAO,9,0),"")))))) -> un | I157: =F164 -> 39 | J157: =TRUNC(IF(G157="SINAPI",VLOOKUP($F157,DADOS_SINAPI,4,0),IF(G157="SETOP",VLOOKUP($F157,DADOS_SETOP,4,0),IF(G157="CPU",VLOOKUP($F157,DADOS_COMPOSICAO,13,0),IF(G157="SICRO",VLOOKUP($F157,DADOS_SICRO,4,0),IF(G157="SUDECAP",VLOOKUP(F157,DADOS_SUDECAP,4,0),IF(G157="COTAÇÃO",VLOOKUP(F157,DADOS_COTACAO,12,0),"")))))),2) -> 16.03 | K157: BDI 1 | L157: =TRUNC(J157*(1+$N$17),2) -> 20.28 | M157: =IFERROR(TRUNC(I157*J157,2),"") -> 625.17 | N157: =IFERROR(TRUNC(L157*I157,2),"") -> 790.92
A158: 2000
A159: 2000 | E159: Térreo | F159: 25 | G159: un
A160: 2000 | E160: Mezanino | F160: 1 | G160: un
A161: 2000 | E161: 1º Pavimento | F161: 7 | G161: un
A162: 2000 | E162: 2º Pavimento | F162: 3 | G162: un
A163: 2000 | E163: 3º Pavimento | F163: 3 | G163: un
A164: 2000 | E164: Total | F164: =SUM(F159:F163) -> 39 | G164: un
A165: 2000
A166: =IFERROR(LEFT(D166,SEARCH(".",D166)-1),"") -> 4 | B166: =IFERROR(LEFT(RIGHT(D166,LEN(D166)-SEARCH(".",D166)),SEARCH(".",RIGHT(D166,LEN(D166)-SEARCH(".",D166)))-1),"") -> 3 | C166: =IFERROR(IF(LEN(D166)-LEN(SUBSTITUTE(D166,".",""))<>3,"",MID(D166,SEARCH(".",D166,SEARCH(".",D166)+1)+1,LEN(D166)-SEARCH(".",D166,SEARCH(".",D166)+1)-(LEN(D166)-(SEARCH(".",D166,SEARCH(".",D166,SEARCH(".",D166)+1)+1)-1)))),"") -> 2 | D166: 4.3.2.5 | E166: =IF($G166="SINAPI",VLOOKUP($F166,DADOS_SINAPI,2,0),IF(G166="SETOP",VLOOKUP($F166,DADOS_SETOP,2,0),IF(G166="CPU",VLOOKUP($F166,DADOS_COMPOSICAO,2,0),IF(G166="SICRO",VLOOKUP($F166,DADOS_SICRO,2,0),IF(G166="SUDECAP",VLOOKUP(F166,DADOS_SUDECAP,2,0),IF(G166="COTAÇÃO",VLOOKUP($F166,DADOS_COTACAO,2,0),"")))))) -> PLACA FOTOLUMINESCENTE PARA SINALIZAÇÃO DE EMERGÊNCIA, TIPO "E8", DIMENSÃO (300X300)MM, INCLUSIVE FIXAÇÃO | F166: ED-50200 | G166: SETOP | H166: =IF(G166="SINAPI",VLOOKUP($F166,DADOS_SINAPI,3,0),IF(G166="SETOP",VLOOKUP($F166,DADOS_SETOP,3,0),IF(G166="CPU",VLOOKUP($F166,DADOS_COMPOSICAO,10,0),IF(G166="SICRO",VLOOKUP($F166,DADOS_SICRO,3,0),IF(G166="SUDECAP",VLOOKUP(F166,DADOS_SUDECAP,3,0),IF(G166="COTAÇÃO",VLOOKUP($F166,DADOS_COTACAO,9,0),"")))))) -> un | I166: =F173 -> 9 | J166: =TRUNC(IF(G166="SINAPI",VLOOKUP($F166,DADOS_SINAPI,4,0),IF(G166="SETOP",VLOOKUP($F166,DADOS_SETOP,4,0),IF(G166="CPU",VLOOKUP($F166,DADOS_COMPOSICAO,13,0),IF(G166="SICRO",VLOOKUP($F166,DADOS_SICRO,4,0),IF(G166="SUDECAP",VLOOKUP(F166,DADOS_SUDECAP,4,0),IF(G166="COTAÇÃO",VLOOKUP(F166,DADOS_COTACAO,12,0),"")))))),2) -> 16.03 | K166: BDI 1 | L166: =TRUNC(J166*(1+$N$17),2) -> 20.28 | M166: =IFERROR(TRUNC(I166*J166,2),"") -> 144.27 | N166: =IFERROR(TRUNC(L166*I166,2),"") -> 182.52
A167: 2000
A168: 2000 | E168: Térreo | F168: 4 | G168: un
A169: 2000 | E169: Mezanino | F169: 1 | G169: un
A170: 2000 | E170: 1º Pavimento | F170: 2 | G170: un
A171: 2000 | E171: 2º Pavimento | F171: 1 | G171: un
A172: 2000 | E172: 3º Pavimento | F172: 1 | G172: un
A173: 2000 | E173: Total | F173: =SUM(F168:F172) -> 9 | G173: un
A174: 2000
D175: 4.3.3 | E175: PLACAS DE SINALIZAÇÃO COMPLEMENTAR | M175: =IFERROR(SUMIFS(M:M,A:A,LEFT(D175,SEARCH(".",D175)-1),B:B,LEFT(RIGHT(D175,LEN(D175)-SEARCH(".",D175)),SEARCH(".",RIGHT(D175,LEN(D175)-SEARCH(".",D175)))-1),C:C,RIGHT(D175,LEN(D175)-SEARCH(".",D175,SEARCH(".",D175)+1))),"") -> 510.64 | N175: =IFERROR(SUMIFS(N:N,A:A,LEFT(D175,SEARCH(".",D175)-1),B:B,LEFT(RIGHT(D175,LEN(D175)-SEARCH(".",D175)),SEARCH(".",RIGHT(D175,LEN(D175)-SEARCH(".",D175)))-1),C:C,RIGHT(D175,LEN(D175)-SEARCH(".",D175,SEARCH(".",D175)+1))),"") -> 645.99
A176: =IFERROR(LEFT(D176,SEARCH(".",D176)-1),"") -> 4 | B176: =IFERROR(LEFT(RIGHT(D176,LEN(D176)-SEARCH(".",D176)),SEARCH(".",RIGHT(D176,LEN(D176)-SEARCH(".",D176)))-1),"") -> 3 | C176: =IFERROR(IF(LEN(D176)-LEN(SUBSTITUTE(D176,".",""))<>3,"",MID(D176,SEARCH(".",D176,SEARCH(".",D176)+1)+1,LEN(D176)-SEARCH(".",D176,SEARCH(".",D176)+1)-(LEN(D176)-(SEARCH(".",D176,SEARCH(".",D176,SEARCH(".",D176)+1)+1)-1)))),"") -> 3 | D176: 4.3.3.1 | E176: =IF($G176="SINAPI",VLOOKUP($F176,DADOS_SINAPI,2,0),IF(G176="SETOP",VLOOKUP($F176,DADOS_SETOP,2,0),IF(G176="CPU",VLOOKUP($F176,DADOS_COMPOSICAO,2,0),IF(G176="SICRO",VLOOKUP($F176,DADOS_SICRO,2,0),IF(G176="SUDECAP",VLOOKUP(F176,DADOS_SUDECAP,2,0),IF(G176="COTAÇÃO",VLOOKUP($F176,DADOS_COTACAO,2,0),"")))))) -> PLACA FOTOLUMINESCENTE PARA SINALIZAÇÃO DE EMERGÊNCIA, TIPO "M1", DIMENSÃO (400X600)MM, INCLUSIVE FIXAÇÃO | F176: ED-32246 | G176: SETOP | H176: =IF(G176="SINAPI",VLOOKUP($F176,DADOS_SINAPI,3,0),IF(G176="SETOP",VLOOKUP($F176,DADOS_SETOP,3,0),IF(G176="CPU",VLOOKUP($F176,DADOS_COMPOSICAO,10,0),IF(G176="SICRO",VLOOKUP($F176,DADOS_SICRO,3,0),IF(G176="SUDECAP",VLOOKUP(F176,DADOS_SUDECAP,3,0),IF(G176="COTAÇÃO",VLOOKUP($F176,DADOS_COTACAO,9,0),"")))))) -> un | I176: =F179 -> 1 | J176: =TRUNC(IF(G176="SINAPI",VLOOKUP($F176,DADOS_SINAPI,4,0),IF(G176="SETOP",VLOOKUP($F176,DADOS_SETOP,4,0),IF(G176="CPU",VLOOKUP($F176,DADOS_COMPOSICAO,13,0),IF(G176="SICRO",VLOOKUP($F176,DADOS_SICRO,4,0),IF(G176="SUDECAP",VLOOKUP(F176,DADOS_SUDECAP,4,0),IF(G176="COTAÇÃO",VLOOKUP(F176,DADOS_COTACAO,12,0),"")))))),2) -> 104.74 | K176: BDI 1 | L176: =TRUNC(J176*(1+$N$17),2) -> 132.51 | M176: =IFERROR(TRUNC(I176*J176,2),"") -> 104.74 | N176: =IFERROR(TRUNC(L176*I176,2),"") -> 132.51
A177: 2000
A178: 2000 | E178: Recepção | F178: 1 | G178: un
A179: 2000 | E179: Total | F179: =SUM(F178:F178) -> 1 | G179: un
A180: 2000
A181: =IFERROR(LEFT(D181,SEARCH(".",D181)-1),"") -> 4 | B181: =IFERROR(LEFT(RIGHT(D181,LEN(D181)-SEARCH(".",D181)),SEARCH(".",RIGHT(D181,LEN(D181)-SEARCH(".",D181)))-1),"") -> 3 | C181: =IFERROR(IF(LEN(D181)-LEN(SUBSTITUTE(D181,".",""))<>3,"",MID(D181,SEARCH(".",D181,SEARCH(".",D181)+1)+1,LEN(D181)-SEARCH(".",D181,SEARCH(".",D181)+1)-(LEN(D181)-(SEARCH(".",D181,SEARCH(".",D181,SEARCH(".",D181)+1)+1)-1)))),"") -> 3 | D181: 4.3.3.2 | E181: =IF($G181="SINAPI",VLOOKUP($F181,DADOS_SINAPI,2,0),IF(G181="SETOP",VLOOKUP($F181,DADOS_SETOP,2,0),IF(G181="CPU",VLOOKUP($F181,DADOS_COMPOSICAO,2,0),IF(G181="SICRO",VLOOKUP($F181,DADOS_SICRO,2,0),IF(G181="SUDECAP",VLOOKUP(F181,DADOS_SUDECAP,2,0),IF(G181="COTAÇÃO",VLOOKUP($F181,DADOS_COTACAO,2,0),"")))))) -> PLACA FOTOLUMINESCENTE PARA SINALIZAÇÃO DE EMERGÊNCIA, TIPO "M2", DIMENSÃO (380X190)MM, INCLUSIVE FIXAÇÃO | F181: ED-32247 | G181: SETOP | H181: =IF(G181="SINAPI",VLOOKUP($F181,DADOS_SINAPI,3,0),IF(G181="SETOP",VLOOKUP($F181,DADOS_SETOP,3,0),IF(G181="CPU",VLOOKUP($F181,DADOS_COMPOSICAO,10,0),IF(G181="SICRO",VLOOKUP($F181,DADOS_SICRO,3,0),IF(G181="SUDECAP",VLOOKUP(F181,DADOS_SUDECAP,3,0),IF(G181="COTAÇÃO",VLOOKUP($F181,DADOS_COTACAO,9,0),"")))))) -> un | I181: =F185 -> 6 | J181: =TRUNC(IF(G181="SINAPI",VLOOKUP($F181,DADOS_SINAPI,4,0),IF(G181="SETOP",VLOOKUP($F181,DADOS_SETOP,4,0),IF(G181="CPU",VLOOKUP($F181,DADOS_COMPOSICAO,13,0),IF(G181="SICRO",VLOOKUP($F181,DADOS_SICRO,4,0),IF(G181="SUDECAP",VLOOKUP(F181,DADOS_SUDECAP,4,0),IF(G181="COTAÇÃO",VLOOKUP(F181,DADOS_COTACAO,12,0),"")))))),2) -> 36.9 | K181: BDI 1 | L181: =TRUNC(J181*(1+$N$17),2) -> 46.68 | M181: =IFERROR(TRUNC(I181*J181,2),"") -> 221.4 | N181: =IFERROR(TRUNC(L181*I181,2),"") -> 280.08
A182: 2000
A183: 2000 | E183: Térreo | F183: 5 | G183: un
A184: 2000 | E184: Mezanino | F184: 1 | G184: un
A185: 2000 | E185: Total | F185: =SUM(F183:F184) -> 6 | G185: un
A186: 2000
A187: =IFERROR(LEFT(D187,SEARCH(".",D187)-1),"") -> 4 | B187: =IFERROR(LEFT(RIGHT(D187,LEN(D187)-SEARCH(".",D187)),SEARCH(".",RIGHT(D187,LEN(D187)-SEARCH(".",D187)))-1),"") -> 3 | C187: =IFERROR(IF(LEN(D187)-LEN(SUBSTITUTE(D187,".",""))<>3,"",MID(D187,SEARCH(".",D187,SEARCH(".",D187)+1)+1,LEN(D187)-SEARCH(".",D187,SEARCH(".",D187)+1)-(LEN(D187)-(SEARCH(".",D187,SEARCH(".",D187,SEARCH(".",D187)+1)+1)-1)))),"") -> 3 | D187: 4.3.3.3 | E187: =IF($G187="SINAPI",VLOOKUP($F187,DADOS_SINAPI,2,0),IF(G187="SETOP",VLOOKUP($F187,DADOS_SETOP,2,0),IF(G187="CPU",VLOOKUP($F187,DADOS_COMPOSICAO,2,0),IF(G187="SICRO",VLOOKUP($F187,DADOS_SICRO,2,0),IF(G187="SUDECAP",VLOOKUP(F187,DADOS_SUDECAP,2,0),IF(G187="COTAÇÃO",VLOOKUP($F187,DADOS_COTACAO,2,0),"")))))) -> PLACA FOTOLUMINESCENTE PARA SINALIZAÇÃO DE EMERGÊNCIA, TIPO "M7", DIMENSÃO (380X190)MM, INCLUSIVE FIXAÇÃO | F187: ED-32250 | G187: SETOP | H187: =IF(G187="SINAPI",VLOOKUP($F187,DADOS_SINAPI,3,0),IF(G187="SETOP",VLOOKUP($F187,DADOS_SETOP,3,0),IF(G187="CPU",VLOOKUP($F187,DADOS_COMPOSICAO,10,0),IF(G187="SICRO",VLOOKUP($F187,DADOS_SICRO,3,0),IF(G187="SUDECAP",VLOOKUP(F187,DADOS_SUDECAP,3,0),IF(G187="COTAÇÃO",VLOOKUP($F187,DADOS_COTACAO,9,0),"")))))) -> un | I187: =F191 -> 5 | J187: =TRUNC(IF(G187="SINAPI",VLOOKUP($F187,DADOS_SINAPI,4,0),IF(G187="SETOP",VLOOKUP($F187,DADOS_SETOP,4,0),IF(G187="CPU",VLOOKUP($F187,DADOS_COMPOSICAO,13,0),IF(G187="SICRO",VLOOKUP($F187,DADOS_SICRO,4,0),IF(G187="SUDECAP",VLOOKUP(F187,DADOS_SUDECAP,4,0),IF(G187="COTAÇÃO",VLOOKUP(F187,DADOS_COTACAO,12,0),"")))))),2) -> 36.9 | K187: BDI 1 | L187: =TRUNC(J187*(1+$N$17),2) -> 46.68 | M187: =IFERROR(TRUNC(I187*J187,2),"") -> 184.5 | N187: =IFERROR(TRUNC(L187*I187,2),"") -> 233.4
A188: 2000
A189: 2000 | E189: Térreo | F189: 4 | G189: un
A190: 2000 | E190: 3º Pavimento | F190: 1 | G190: un
A191: 2000 | E191: Total | F191: =SUM(F189:F190) -> 5 | G191: un
A192: 2000
D193: 4.4 | E193: SISTEMA DE ALARME DE INCÊNDIO | M193: =IFERROR(SUMIFS(M:M,A:A,LEFT(D193,SEARCH(".",D193)-1),B:B,RIGHT(D193,LEN(D193)-SEARCH(".",D193))),"") -> 44034.81 | N193: =IFERROR(SUMIFS(N:N,A:A,LEFT(D193,SEARCH(".",D193)-1),B:B,RIGHT(D193,LEN(D193)-SEARCH(".",D193))),"") -> 55704.66
A194: =IFERROR(LEFT(D194,SEARCH(".",D194)-1),"") -> 4 | B194: =IFERROR(LEFT(RIGHT(D194,LEN(D194)-SEARCH(".",D194)),SEARCH(".",RIGHT(D194,LEN(D194)-SEARCH(".",D194)))-1),"") -> 4 | C194: =IFERROR(IF(LEN(D194)-LEN(SUBSTITUTE(D194,".",""))<>3,"",MID(D194,SEARCH(".",D194,SEARCH(".",D194)+1)+1,LEN(D194)-SEARCH(".",D194,SEARCH(".",D194)+1)-(LEN(D194)-(SEARCH(".",D194,SEARCH(".",D194,SEARCH(".",D194)+1)+1)-1)))),"") ->  | D194: 4.4.1 | E194: =IF($G194="SINAPI",VLOOKUP($F194,DADOS_SINAPI,2,0),IF(G194="SETOP",VLOOKUP($F194,DADOS_SETOP,2,0),IF(G194="CPU",VLOOKUP($F194,DADOS_COMPOSICAO,2,0),IF(G194="SICRO",VLOOKUP($F194,DADOS_SICRO,2,0),IF(G194="SUDECAP",VLOOKUP(F194,DADOS_SUDECAP,2,0),IF(G194="COTAÇÃO",VLOOKUP($F194,DADOS_COTACAO,2,0),"")))))) -> ACIONADOR MANUAL DE ALARME DE INCÊNDIO | F194: ED-50180 | G194: SETOP | H194: =IF(G194="SINAPI",VLOOKUP($F194,DADOS_SINAPI,3,0),IF(G194="SETOP",VLOOKUP($F194,DADOS_SETOP,3,0),IF(G194="CPU",VLOOKUP($F194,DADOS_COMPOSICAO,10,0),IF(G194="SICRO",VLOOKUP($F194,DADOS_SICRO,3,0),IF(G194="SUDECAP",VLOOKUP(F194,DADOS_SUDECAP,3,0),IF(G194="COTAÇÃO",VLOOKUP($F194,DADOS_COTACAO,9,0),"")))))) -> un | I194: =F201 -> 13 | J194: =TRUNC(IF(G194="SINAPI",VLOOKUP($F194,DADOS_SINAPI,4,0),IF(G194="SETOP",VLOOKUP($F194,DADOS_SETOP,4,0),IF(G194="CPU",VLOOKUP($F194,DADOS_COMPOSICAO,13,0),IF(G194="SICRO",VLOOKUP($F194,DADOS_SICRO,4,0),IF(G194="SUDECAP",VLOOKUP(F194,DADOS_SUDECAP,4,0),IF(G194="COTAÇÃO",VLOOKUP(F194,DADOS_COTACAO,12,0),"")))))),2) -> 120.78 | K194: BDI 1 | L194: =TRUNC(J194*(1+$N$17),2) -> 152.81 | M194: =IFERROR(TRUNC(I194*J194,2),"") -> 1570.14 | N194: =IFERROR(TRUNC(L194*I194,2),"") -> 1986.53
A195: 2000
A196: 2000 | E196: Térreo | F196: 8 | G196: un
A197: 2000 | E197: Mezanino | F197: 1 | G197: un
A198: 2000 | E198: 1º Pavimento | F198: 2 | G198: un
A199: 2000 | E199: 2º Pavimento | F199: 1 | G199: un
A200: 2000 | E200: 3º Pavimento | F200: 1 | G200: un
A201: 2000 | E201: Total | F201: =SUM(F196:F200) -> 13 | G201: un
A202: 2000
A203: =IFERROR(LEFT(D203,SEARCH(".",D203)-1),"") -> 4 | B203: =IFERROR(LEFT(RIGHT(D203,LEN(D203)-SEARCH(".",D203)),SEARCH(".",RIGHT(D203,LEN(D203)-SEARCH(".",D203)))-1),"") -> 4 | C203: =IFERROR(IF(LEN(D203)-LEN(SUBSTITUTE(D203,".",""))<>3,"",MID(D203,SEARCH(".",D203,SEARCH(".",D203)+1)+1,LEN(D203)-SEARCH(".",D203,SEARCH(".",D203)+1)-(LEN(D203)-(SEARCH(".",D203,SEARCH(".",D203,SEARCH(".",D203)+1)+1)-1)))),"") ->  | D203: 4.4.2 | E203: =IF($G203="SINAPI",VLOOKUP($F203,DADOS_SINAPI,2,0),IF(G203="SETOP",VLOOKUP($F203,DADOS_SETOP,2,0),IF(G203="CPU",VLOOKUP($F203,DADOS_COMPOSICAO,2,0),IF(G203="SICRO",VLOOKUP($F203,DADOS_SICRO,2,0),IF(G203="SUDECAP",VLOOKUP(F203,DADOS_SUDECAP,2,0),IF(G203="COTAÇÃO",VLOOKUP($F203,DADOS_COTACAO,2,0),"")))))) -> SINALIZADOR VISUAL E ACÚSTICO PARA SISTEMA DE INCÊNDIO ENDEREÇÁVEL. FORNECIMENTO E INSTALAÇÃO | F203: DAC-2.2 | G203: CPU | H203: =IF(G203="SINAPI",VLOOKUP($F203,DADOS_SINAPI,3,0),IF(G203="SETOP",VLOOKUP($F203,DADOS_SETOP,3,0),IF(G203="CPU",VLOOKUP($F203,DADOS_COMPOSICAO,10,0),IF(G203="SICRO",VLOOKUP($F203,DADOS_SICRO,3,0),IF(G203="SUDECAP",VLOOKUP(F203,DADOS_SUDECAP,3,0),IF(G203="COTAÇÃO",VLOOKUP($F203,DADOS_COTACAO,9,0),"")))))) -> UN | I203: =F210 -> 13 | J203: =TRUNC(IF(G203="SINAPI",VLOOKUP($F203,DADOS_SINAPI,4,0),IF(G203="SETOP",VLOOKUP($F203,DADOS_SETOP,4,0),IF(G203="CPU",VLOOKUP($F203,DADOS_COMPOSICAO,13,0),IF(G203="SICRO",VLOOKUP($F203,DADOS_SICRO,4,0),IF(G203="SUDECAP",VLOOKUP(F203,DADOS_SUDECAP,4,0),IF(G203="COTAÇÃO",VLOOKUP(F203,DADOS_COTACAO,12,0),"")))))),2) -> 144.01 | K203: BDI 1 | L203: =TRUNC(J203*(1+$N$17),2) -> 182.2 | M203: =IFERROR(TRUNC(I203*J203,2),"") -> 1872.13 | N203: =IFERROR(TRUNC(L203*I203,2),"") -> 2368.6
A204: 2000
A205: 2000 | E205: Térreo | F205: 8 | G205: un
A206: 2000 | E206: Mezanino | F206: 1 | G206: un
A207: 2000 | E207: 1º Pavimento | F207: 2 | G207: un
A208: 2000 | E208: 2º Pavimento | F208: 1 | G208: un
... 192 more rows

Sheet ABC
A2: CURVA ABC DE SERVIÇOS | H2: Revisão: | I2: =DADOS!D6 -> R00
H3: Data: | I3: =DADOS!D2 -> 2024-02-19
A4: Projeto: | C4: Responsável: | D4: Cliente: | H4: Bancos:
A5: =DADOS!D8 -> SISTEMA DE PROTEÇÃO CONTRA INCÊNDIO E PÂNICO CEIM PROFESSORA MARIA GRAFIRA NUNES SAPONARA | H5: =DADOS!D14 -> SINAPI: 12/2023 Minas Gerais SETOP: 08/2023 Minas Gerais SICRO : 10/2023 Minas Gerais SUDECAP: 10/2023 Minas Gerais
H8: BDI 1: | I8: =DADOS!D10 -> 0.2652
H9: BDI 2: | I9: =DADOS!D12 -> -
A11: =A2&" DE "&DADOS!D20&" - "&A5 -> CURVA ABC DE SERVIÇOS DE PROJETO EXECUTIVO - SISTEMA DE PROTEÇÃO CONTRA INCÊNDIO E PÂNICO CEIM PROFESSORA MARIA GRAFIRA NUNES SAPONARA
A13: Código | B13: Banco | C13: Descrição | D13: Unidade | E13: Quantidade | F13: Valor Unitário | G13: Total | H13: Peso (%) | I13: Peso Acumulado (%)
A15: COT-INC-008 | B15: COTAÇÃO | C15: CABO PP 4X1,00 MM² BLINDADO | D15: M | E15: 1116.7 | F15: 37.33 | G15: 41686.41 | H15: 0.2554070356 | I15: 0.2554070356
A16: ED-50266 | B16: SETOP | C16: LIMPEZA FINAL PARA ENTREGA DA OBRA | D16: m2 | E16: 2053.75 | F16: 8.29 | G16: 17025.58 | H16: 0.1043134421 | I16: 0.3597204777
A17: ED-49308 | B17: SETOP | C17: ELETRODUTO DE PVC RÍGIDO ROSCÁVEL, DN 20 MM (3/4"), INCLUSIVE CONEXÕES, SUPORTES E FIXAÇÃO | D17: m | E17: 641.5 | F17: 25.25 | G17: 16197.87 | H17: 0.09924217411 | I17: 0.4589626518
A18: DAC-2.1 | B18: CPU | C18: EXTINTOR DE INCÊNDIO TIPO PÓ QUÍMICO 4-A:40-B:C, CAPACIDADE 6 KG. FORNECIMENTO E INSTALAÇÃO | D18: UN | E18: 39 | F18: 281.54 | G18: 10980.06 | H18: 0.06727335299 | I18: 0.5262360048
A19: ED-51033 | B19: SETOP | C19: CORDOALHA EM AÇO GALVANIZADO 3/8" SM COM 7 FIOS | D19: m | E19: 210 | F19: 45.69 | G19: 9594.9 | H19: 0.0587866637 | I19: 0.5850226685
A20: 91926 | B20: SINAPI | C20: CABO DE COBRE FLEXÍVEL ISOLADO, 2,5 MM², ANTI-CHAMA 450/750 V, PARA CIRCUITOS TERMINAIS - FORNECIMENTO E INSTALAÇÃO. AF_03/2023 | D20: M | E20: 1960.1 | F20: 4.66 | G20: 9134.06 | H20: 0.05596315891 | I20: 0.6409858274
A21: 21136 | B21: SINAPI | C21: ELETRODUTO EM ACO GALVANIZADO ELETROLITICO, LEVE, DIAMETRO 1", PAREDE DE 0,90 MM | D21: M | E21: 328.4 | F21: 15.8 | G21: 5188.72 | H21: 0.03179059059 | I21: 0.672776418
A22: ED-26991 | B22: SETOP | C22: CORRIMÃO SIMPLES EM TUBO GALVANIZADO, COM COSTURA, CLASSE LEVE (NBR-5580), DIÂMETRO 1.1/2", ESP. 3MM, INCLUSIVE SUPORTE PARA CORRIMÃO EM BARRA CHATA (1"X1/ | D22: m | E22: 29.6 | F22: 124.21 | G22: 3676.61 | H22: 0.0225260957 | I22: 0.6953025137
A23: ED-26993 | B23: SETOP | C23: LUMINÁRIA DE EMERGÊNCIA AUTÔNOMA, TIPO LED COM DOIS FARÓIS, POTÊNCIA TOTAL DE 8W, FORNECIMENTO E INSTALAÇÃO | D23: un | E23: 10 | F23: 287.69 | G23: 2876.9 | H23: 0.01762637993 | I23: 0.7129288936
A24: 37527 | B24: SINAPI | C24: MANGUEIRA DE INCENDIO, TIPO 2, DE 1 1/2", COMPRIMENTO = 15 M, TECIDO EM FIO DE POLIESTER E TUBO INTERNO EM BORRACHA SINTETICA, COM UNIOES ENGATE RAPIDO | D24: UN | E24: 4 | F24: 711.63 | G24: 2846.52 | H24: 0.01744024575 | I24: 0.7303691394
A25: DAC-2.7 | B25: CPU | C25: MONTAGEM DE LONGARINA COM CABO DE AÇO | D25: UN | E25: 100 | F25: 26.74 | G25: 2674 | H25: 0.01638323888 | I25: 0.7467523783
A26: DAC-2.4 | B26: CPU | C26: ABRIGO DUPLO PARA MANGUEIRAS, 120X90X17CM, INSTALADO EM MURETA DE ALVENARIA COM ACABAMENTO - FORNECIMENTO E INSTALAÇÃO | D26: UN | E26: 1 | F26: 2632.61 | G26: 2632.61 | H26: 0.01612964791 | I26: 0.7628820262
A27: 91996 | B27: SINAPI | C27: TOMADA MÉDIA DE EMBUTIR (1 MÓDULO), 2P+T 10 A, INCLUINDO SUPORTE E PLACA - FORNECIMENTO E INSTALAÇÃO. AF_03/2023 | D27: UN | E27: 61 | F27: 40.33 | G27: 2460.13 | H27: 0.01507288611 | I27: 0.7779549123
A28: DAC-2.2 | B28: CPU | C28: SINALIZADOR VISUAL E ACÚSTICO PARA SISTEMA DE INCÊNDIO ENDEREÇÁVEL. FORNECIMENTO E INSTALAÇÃO | D28: UN | E28: 13 | F28: 182.2 | G28: 2368.6 | H28: 0.0145120941 | I28: 0.7924670064
A29: ED-16350 | B29: SETOP | C29: LOCAÇÃO DE CONTAINER COM ISOLAMENTO TÉRMICO, TIPO 3, PARA DEPÓSITO/FERRAMENTARIA DE OBRA, COM MEDIDAS REFERENCIAIS DE (6) METROS COMPRIMENTO, (2,3) METROS LARGURA E (2,5) METROS ALTURA ÚTIL INTERNA, INCLUSIVE LIGAÇÕES ELÉTRICAS INTERNAS, EXCLUSIVE MOBILIZAÇÃO/DESMOBILIZAÇÃO E LIGAÇÕES PROVISÓRIAS EXTERNAS | D29: mês | E29: 2 | F29: 1116.61 | G29: 2233.22 | H29: 0.01368263902 | I29: 0.8061496454
A30: DAC-2.3 | B30: CPU | C30: CENTRAL DE ALARME DE INCÊNDIO ENDEREÇÁVEL. FORNECIMENTO E INSTALAÇÃO | D30: UN | E30: 1 | F30: 2161.36 | G30: 2161.36 | H30: 0.01324236245 | I30: 0.8193920078
A31: ED-26989 | B31: SETOP | C31: LUMINÁRIA DE EMERGÊNCIA AUTÔNOMA, TIPO LED POTÊNCIA TOTAL DE 2W, FORNECIMENTO E INSTALAÇÃO | D31: un | E31: 55 | F31: 36.74 | G31: 2020.7 | H31: 0.01238055752 | I31: 0.8317725654
A32: ED-50180 | B32: SETOP | C32: ACIONADOR MANUAL DE ALARME DE INCÊNDIO | D32: un | E32: 13 | F32: 152.81 | G32: 1986.53 | H32: 0.01217120252 | I32: 0.8439437679
A33: ED-50137 | B33: SETOP | C33: MOBILIZAÇÃO E DESMOBILIZAÇÃO DE CONTAINER, INCLUSIVE CARGA, DESCARGA E TRANSPORTE EM CAMINHÃO CARROCERIA COM GUINDAUTO (MUNCK), EXCLUSIVE LOCAÇÃO DO CONTAINER | D33: un | E33: 1 | F33: 1929.2 | G33: 1929.2 | H33: 0.01181994931 | I33: 0.8557637172
A34: 95802 | B34: SINAPI | C34: CONDULETE DE ALUMÍNIO, TIPO X, PARA ELETRODUTO DE AÇO GALVANIZADO DN 25 MM (1''), APARENTE - FORNECIMENTO E INSTALAÇÃO. AF_10/2022 | D34: UN | E34: 29 | F34: 60.4 | G34: 1751.6 | H34: 0.01073181796 | I34: 0.8664955351
A35: ED-28427 | B35: SETOP | C35: FORNECIMENTO E COLOCAÇÃO DE PLACA DE OBRA EM CHAPA GALVANIZADA #26, ESP. 0,45MM, DIMENSÃO (3X1,5)M, PLOTADA COM ADESIVO VINÍLICO, AFIXADA COM REBITES 4,8X40MM, EM ESTRUTURA METÁLICA DE METALON 20X20MM, ESP. 1,25MM, INCLUSIVE SUPORTE EM EUCALIPTO AUTOCLAVADO PINTADO COM TINTA PVA DUAS (2) DEMÃOS | D35: un | E35: 1 | F35: 1729.7 | G35: 1729.7 | H35: 0.0105976396 | I35: 0.8770931747
A36: COT-INC-006 | B36: COTAÇÃO | C36: QUADRO DE COMANDO PARA BOMBA DE INCÊNDIO 7,5 CV | D36: UN | E36: 1 | F36: 1580.09 | G36: 1580.09 | H36: 0.009680999223 | I36: 0.886774174
A37: 91884 | B37: SINAPI | C37: LUVA PARA ELETRODUTO, PVC, ROSCÁVEL, DN 25 MM (3/4"), PARA CIRCUITOS TERMINAIS, INSTALADA EM PAREDE - FORNECIMENTO E INSTALAÇÃO. AF_03/2023 | D37: UN | E37: 108 | F37: 12.77 | G37: 1379.16 | H37: 0.008449928098 | I37: 0.8952241021
A38: ED-50496 | B38: SETOP | C38: PINTURA ESMALTE EM TUBO GALVANIZADO, DUAS (2) DEMÃOS, INCLUSIVE UMA (1) DEMÃO DE FUNDO ANTICORROSIVO | D38: m | E38: 45.2 | F38: 29.45 | G38: 1331.14 | H38: 0.008155716007 | I38: 0.9033798181
A39: ED-50185 | B39: SETOP | C39: PRESSOSTATO TELEMECANIQUE, MODELO XML B004 A2S11, COM ESCALA DE 3 A 58 PSI | D39: U | E39: 1 | F39: 1263.69 | G39: 1263.69 | H39: 0.007742458916 | I39: 0.911122277
A40: 91940 | B40: SINAPI | C40: CAIXA RETANGULAR 4" X 2" MÉDIA (1,30 M DO PISO), PVC, INSTALADA EM PAREDE - FORNECIMENTO E INSTALAÇÃO. AF_03/2023 | D40: UN | E40: 61 | F40: 20.39 | G40: 1243.79 | H40: 0.007620534288 | I40: 0.9187428113
A41: ED-32102 | B41: SETOP | C41: GUARDA-CORPO EXTERNO, ALTURA 130CM, EM TUBO GALVANIZADO, COM COSTURA, DIÂMETRO 2", ESP. 3MM, GRADIL COM DIVISÃO VERTICAL EM TUBO GALVANIZADO, COM COSTURA, DIÂMETRO 1", ESP. 3MM, INCLUSIVE CORRIMÃO SIMPLES, EXCLUSIVE PINTURA | D41: m | E41: 1.2 | F41: 1018.16 | G41: 1221.79 | H41: 0.007485743243 | I41: 0.9262285545
A42: ED-29400 | B42: SETOP | C42: PLACA FOTOLUMINESCENTE PARA SINALIZAÇÃO DE EMERGÊNCIA, TIPO "S3", DIMENSÃO (380X190)MM, INCLUSIVE FIXAÇÃO | D42: un | E42: 48 | F42: 24.05 | G42: 1154.4 | H42: 0.007072853764 | I42: 0.9333014083
A43: 10899 | B43: SINAPI | C43: ADAPTADOR EM LATAO, ENGATE RAPIDO 2 1/2" X ROSCA INTERNA 5 FIOS 2 1/2", PARA INSTALACAO PREDIAL DE COMBATE A INCENDIO | D43: UN | E43: 9 | F43: 99.76 | G43: 897.84 | H43: 0.0055009451 | I43: 0.9388023534
A44: 95817 | B44: SINAPI | C44: CONDULETE DE PVC, TIPO X, PARA ELETRODUTO DE PVC SOLDÁVEL DN 25 MM (3/4), APARENTE - FORNECIMENTO E INSTALAÇÃO. AF_10/2022 | D44: UN | E44: 20 | F44: 43.33 | G44: 866.6 | H44: 0.005309541815 | I44: 0.9441118952
A45: ED-31857 | B45: SETOP | C45: FIXAÇÃO DE CORRIMÃO SIMPLES METÁLICO, EM ALVENARIA COM ARGAMASSA, INCLUSIVE CORTE OU RASGO EM ALVENARIA | D45: m | E45: 29 | F45: 27.72 | G45: 803.88 | H45: 0.004925264799 | I45: 0.94903716
A46: ED-50199 | B46: SETOP | C46: PLACA FOTOLUMINESCENTE PARA SINALIZAÇÃO DE EMERGÊNCIA, TIPO "E5", DIMENSÃO (300X300)MM, INCLUSIVE FIXAÇÃO | D46: un | E46: 39 | F46: 20.28 | G46: 790.92 | H46: 0.004845860619 | I46: 0.9538830206
A47: 1564 | B47: SINAPI | C47: GRAMPO PARALELO METALICO PARA CABO DE 6 A 50 MM2, COM 2 PARAFUSOS | D47: UN | E47: 32 | F47: 22.4 | G47: 716.8 | H47: 0.004391737333 | I47: 0.9582747579
A48: ED-50201 | B48: SETOP | C48: PLACA FOTOLUMINESCENTE PARA SINALIZAÇÃO DE EMERGÊNCIA, TIPO "S2", DIMENSÃO (380X190)MM, INCLUSIVE FIXAÇÃO | D48: un | E48: 29 | F48: 24.05 | G48: 697.45 | H48: 0.004273182482 | I48: 0.9625479404
A49: 92364 | B49: SINAPI | C49: TUBO DE AÇO GALVANIZADO COM COSTURA, CLASSE MÉDIA, DN 32 (1 1/4"), CONEXÃO ROSQUEADA, INSTALADO EM REDE DE ALIMENTAÇÃO PARA HIDRANTE - FORNECIMENTO E INSTALAÇÃO. AF_10/2020 | D49: M | E49: 10 | F49: 69.29 | G49: 692.9 | H49: 0.004245305243 | I49: 0.9667932457
A50: 1597 | B50: SINAPI | C50: CONECTOR DE ALUMINIO TIPO PRENSA CABO, BITOLA 3/8", PARA CABOS DE DIAMETRO DE 9 A 10 MM | D50: UN | E50: 32 | F50: 20.92 | G50: 669.44 | H50: 0.004101568974 | I50: 0.9708948146
A51: ED-50186 | B51: SETOP | C51: CILINDRO DE PRESSÃO OU MOLA PNEUMÁTICA DE DIÂMETRO 150mm, COMPRIMENTO DE 1,20m COM GARRAS PARA FIXAÇÃO NA PAREDE | D51: U | E51: 1 | F51: 538.98 | G51: 538.98 | H51: 0.003302258075 | I51: 0.9741970727
A52: 402 | B52: SINAPI | C52: GANCHO OLHAL EM ACO GALVANIZADO, ESPESSURA 16MM, ABERTURA 21MM | D52: UN | E52: 32 | F52: 14.76 | G52: 472.32 | H52: 0.002893841207 | I52: 0.9770909139
A53: ED-16358 | B53: SETOP | C53: LIGAÇÕES PROVISÓRIAS PARA CONTAINER TIPO 3 (CORRESPONDENTE AO CÓDIGO ED-16350) | D53: un | E53: 1 | F53: 374.75 | G53: 374.75 | H53: 0.002296042921 | I53: 0.9793869568
A54: COT-INC-004 | B54: COTAÇÃO | C54: BATERIA PARA ALARME DE INCÊNDIO | D54: UN | E54: 2 | F54: 166.66 | G54: 333.32 | H54: 0.002042206875 | I54: 0.9814291637
A55: ED-32247 | B55: SETOP | C55: PLACA FOTOLUMINESCENTE PARA SINALIZAÇÃO DE EMERGÊNCIA, TIPO "M2", DIMENSÃO (380X190)MM, INCLUSIVE FIXAÇÃO | D55: un | E55: 6 | F55: 46.68 | G55: 280.08 | H55: 0.001716012545 | I55: 0.9831451763
A56: ED-29388 | B56: SETOP | C56: PLACA FOTOLUMINESCENTE PARA SINALIZAÇÃO DE EMERGÊNCIA, TIPO "E1", DIMENSÃO (300X300)MM, INCLUSIVE FIXAÇÃO | D56: un | E56: 13 | F56: 20.28 | G56: 263.64 | H56: 0.001615286873 | I56: 0.9847604631
A57: DAC-2.5 | B57: CPU | C57: ACIONADOR MANUAL TIPO LIGA-DESLIGA PARA BOMBA DE INCÊNDIO. FORNECIMENTO E INSTALAÇÃO | D57: UN | E57: 2 | F57: 118.35 | G57: 236.7 | H57: 0.001450229111 | I57: 0.9862106923
A58: ED-32250 | B58: SETOP | C58: PLACA FOTOLUMINESCENTE PARA SINALIZAÇÃO DE EMERGÊNCIA, TIPO "M7", DIMENSÃO (380X190)MM, INCLUSIVE FIXAÇÃO | D58: un | E58: 5 | F58: 46.68 | G58: 233.4 | H58: 0.001430010454 | I58: 0.9876407027
A59: ED-50495 | B59: SETOP | C59: PINTURA ESMALTE SINTÉTICO EM SUPERFÍCIES METÁLICAS, DUAS (2) DEMÃOS, INCLUSIVE UMA (1) DEMÃO DE FUNDO ANTICORROSIVO | D59: m² | E59: 5 | F59: 46.43 | G59: 232.15 | H59: 0.001422351872 | I59: 0.9890630546
A60: ED-29405 | B60: SETOP | C60: PLACA FOTOLUMINESCENTE PARA SINALIZAÇÃO DE EMERGÊNCIA, TIPO "S8", DIMENSÃO (380X190)MM, INCLUSIVE FIXAÇÃO | D60: un | E60: 8 | F60: 24.05 | G60: 192.4 | H60: 0.001178808961 | I60: 0.9902418635
A61: 101917 | B61: SINAPI | C61: MANÔMETRO 0 A 200 PSI (0 A 14 KGF/CM2), D = 50MM - FORNECIMENTO E INSTALAÇÃO. AF_10/2020 | D61: UN | E61: 1 | F61: 190.8 | G61: 190.8 | H61: 0.001169005975 | I61: 0.9914108695
A62: ED-50200 | B62: SETOP | C62: PLACA FOTOLUMINESCENTE PARA SINALIZAÇÃO DE EMERGÊNCIA, TIPO "E8", DIMENSÃO (300X300)MM, INCLUSIVE FIXAÇÃO | D62: un | E62: 9 | F62: 20.28 | G62: 182.52 | H62: 0.001118275527 | I62: 0.992529145
A63: 10902 | B63: SINAPI | C63: ESGUICHO TIPO JATO SOLIDO, EM LATAO, ENGATE RAPIDO 1 1/2" X 13 MM, PARA MANGUEIRA EM INSTALACAO PREDIAL COMBATE A INCENDIO | D63: UN | E63: 2 | F63: 81.63 | G63: 163.26 | H63: 0.001000272094 | I63: 0.9935294171
A64: ED-29389 | B64: SETOP | C64: PLACA FOTOLUMINESCENTE PARA SINALIZAÇÃO DE EMERGÊNCIA, TIPO "E2", DIMENSÃO (150X100)MM, INCLUSIVE FIXAÇÃO | D64: un | E64: 13 | F64: 11.5 | G64: 149.5 | H64: 0.0009159664221 | I64: 0.9944453836
A65: ED-50205 | B65: SETOP | C65: PLACA FOTOLUMINESCENTE PARA SINALIZAÇÃO DE EMERGÊNCIA, TIPO "S12", DIMENSÃO (380X190)MM, INCLUSIVE FIXAÇÃO | D65: un | E65: 6 | F65: 24.05 | G65: 144.3 | H65: 0.0008841067204 | I65: 0.9953294903
A66: 1892 | B66: SINAPI | C66: LUVA EM PVC RIGIDO ROSCAVEL, DE 1", PARA ELETRODUTO | D66: UN | E66: 66 | F66: 2.18 | G66: 143.88 | H66: 0.0008815334368 | I66: 0.9962110237
A67: ED-17990 | B67: SETOP | C67: PLACA CEGA PARA CONDULETE, COM DIÂMETRO DE SAÍDA 3/4" (20MM), EXCLUSIVE CONDULETE | D67: un | E67: 20 | F67: 6.65 | G67: 133 | H67: 0.000814873138 | I67: 0.9970258969
A68: ED-32246 | B68: SETOP | C68: PLACA FOTOLUMINESCENTE PARA SINALIZAÇÃO DE EMERGÊNCIA, TIPO "M1", DIMENSÃO (400X600)MM, INCLUSIVE FIXAÇÃO | D68: un | E68: 1 | F68: 132.51 | G68: 132.51 | H68: 0.0008118709738 | I68: 0.9978377678
A69: 7543 | B69: SINAPI | C69: TAMPA CEGA EM PVC PARA CONDULETE 4 X 2" | D69: UN | E69: 12 | F69: 7.02 | G69: 84.24 | H69: 0.0005161271665 | I69: 0.998353895
A70: ED-50187 | B70: SETOP | C70: SIRENE PARA ALARME DE BOMBA EM FUNCIONAMENTO, 220V | D70: U | E70: 1 | F70: 80.25 | G70: 80.25 | H70: 0.0004916809724 | I70: 0.998845576
A71: ED-32107 | B71: SETOP | C71: FIXAÇÃO DE CORRIMÃO SIMPLES METÁLICO, EM GUARDA-CORPO, INCLUSIVE CORTE, MONTAGEM E SOLDAGEM | D71: m | E71: 48.4 | F71: 1.11 | G71: 53.72 | H71: 0.0003291352254 | I71: 0.9991747112
A72: ED-32064 | B72: SETOP | C72: FIXAÇÃO DE GUARDA-CORPO METÁLICO COM OU SEM CORRIMÃO, EM PISO COM CONCRETO, INCLUSIVE CORTE OU RASGO EM CONCRETO | D72: m | E72: 1.2 | F72: 44.35 | G72: 53.22 | H72: 0.0003260717925 | I72: 0.999500783
A73: ED-50203 | B73: SETOP | C73: PLACA FOTOLUMINESCENTE PARA SINALIZAÇÃO DE EMERGÊNCIA, TIPO "S9", DIMENSÃO (380X190)MM, INCLUSIVE FIXAÇÃO | D73: un | E73: 1 | F73: 24.05 | G73: 24.05 | H73: 0.0001473511201 | I73: 0.9996481341
A74: ED-29390 | B74: SETOP | C74: PLACA FOTOLUMINESCENTE PARA SINALIZAÇÃO DE EMERGÊNCIA, TIPO "E3", DIMENSÃO (150X100)MM, INCLUSIVE FIXAÇÃO | D74: un | E74: 2 | F74: 11.5 | G74: 23 | H74: 0.0001409179111 | I74: 0.999789052
A75: ED-50508 | B75: SETOP | C75: LIXAMENTO MANUAL EM SUPERFÍCIE METÁLICA PARA REMOÇÃO DE TINTA | D75: m2 | E75: 3 | F75: 5.76 | G75: 17.28 | H75: 0.0001058722393 | I75: 0.9998949243
A76: DAC-2.6 | B76: CPU | C76: INSTALAÇÃO QUADRO DE COMANDO PARA O SISTEMA DE COMBATE A INCÊNDIO | D76: UN | E76: 1 | F76: 17.15 | G76: 17.15 | H76: 0.0001050757467 | I76: 1
A148: TOTAL INCLUINDO ADMINISTRAÇÃO | H148: =ORC!M396 -> 129045.91
A149: BDI | H149: =ORC!M397 -> 34169.68
A150: TOTAL GERAL | H150: =IF(ORC!M398=SUM(G:G),ORC!M398,"ERRO") -> 163215.59
D157: RESPONSÁVEL TÉCNICO: | F157: =DADOS!D16 -> FLÁVIA CRISTINA BARBOSA
F158: =DADOS!D18 -> CREA - MG 187.842/D

Sheet Auxiliar_ABC (hidden)
A1: COT-INC-008 | B1: COTAÇÃO | C1: CABO PP 4X1,00 MM² BLINDADO | D1: M | E1: 1116.7 | F1: 37.33 | G1: 41686.41 | H1: 0.2554070356 | I1: 0.2554070356 | R1: QUANTIDADE TOTAL | V1: VALOR TOTAL | W1: % | X1: =W1 -> %
A2: ED-50266 | B2: SETOP | C2: LIMPEZA FINAL PARA ENTREGA DA OBRA | D2: m2 | E2: 2053.75 | F2: 8.29 | G2: 17025.58 | H2: 0.1043134421 | I2: 0.3597204777 | R2: =SUMIF(ORC!$F:$F,O2,ORC!$I:$I) -> 0 | V2: =SUMIF(ORC!$F:$F,O2,ORC!$N:$N) -> 0 | W2: =V2/SUM($I:$I) -> 0 | X2: =W2+X1 -> 
A3: ED-49308 | B3: SETOP | C3: ELETRODUTO DE PVC RÍGIDO ROSCÁVEL, DN 20 MM (3/4"), INCLUSIVE CONEXÕES, SUPORTES E FIXAÇÃO | D3: m | E3: 641.5 | F3: 25.25 | G3: 16197.87 | H3: 0.09924217411 | I3: 0.4589626518
A4: DAC-2.1 | B4: CPU | C4: EXTINTOR DE INCÊNDIO TIPO PÓ QUÍMICO 4-A:40-B:C, CAPACIDADE 6 KG. FORNECIMENTO E INSTALAÇÃO | D4: UN | E4: 39 | F4: 281.54 | G4: 10980.06 | H4: 0.06727335299 | I4: 0.5262360048
A5: ED-51033 | B5: SETOP | C5: CORDOALHA EM AÇO GALVANIZADO 3/8" SM COM 7 FIOS | D5: m | E5: 210 | F5: 45.69 | G5: 9594.9 | H5: 0.0587866637 | I5: 0.5850226685
A6: 91926 | B6: SINAPI | C6: CABO DE COBRE FLEXÍVEL ISOLADO, 2,5 MM², ANTI-CHAMA 450/750 V, PARA CIRCUITOS TERMINAIS - FORNECIMENTO E INSTALAÇÃO. AF_03/2023 | D6: M | E6: 1960.1 | F6: 4.66 | G6: 9134.06 | H6: 0.05596315891 | I6: 0.6409858274
A7: 21136 | B7: SINAPI | C7: ELETRODUTO EM ACO GALVANIZADO ELETROLITICO, LEVE, DIAMETRO 1", PAREDE DE 0,90 MM | D7: M | E7: 328.4 | F7: 15.8 | G7: 5188.72 | H7: 0.03179059059 | I7: 0.672776418
A8: ED-26991 | B8: SETOP | C8: CORRIMÃO SIMPLES EM TUBO GALVANIZADO, COM COSTURA, CLASSE LEVE (NBR-5580), DIÂMETRO 1.1/2", ESP. 3MM, INCLUSIVE SUPORTE PARA CORRIMÃO EM BARRA CHATA (1"X1/ | D8: m | E8: 29.6 | F8: 124.21 | G8: 3676.61 | H8: 0.0225260957 | I8: 0.6953025137
A9: ED-26993 | B9: SETOP | C9: LUMINÁRIA DE EMERGÊNCIA AUTÔNOMA, TIPO LED COM DOIS FARÓIS, POTÊNCIA TOTAL DE 8W, FORNECIMENTO E INSTALAÇÃO | D9: un | E9: 10 | F9: 287.69 | G9: 2876.9 | H9: 0.01762637993 | I9: 0.7129288936
A10: 37527 | B10: SINAPI | C10: MANGUEIRA DE INCENDIO, TIPO 2, DE 1 1/2", COMPRIMENTO = 15 M, TECIDO EM FIO DE POLIESTER E TUBO INTERNO EM BORRACHA SINTETICA, COM UNIOES ENGATE RAPIDO | D10: UN | E10: 4 | F10: 711.63 | G10: 2846.52 | H10: 0.01744024575 | I10: 0.7303691394
A11: DAC-2.7 | B11: CPU | C11: MONTAGEM DE LONGARINA COM CABO DE AÇO | D11: UN | E11: 100 | F11: 26.74 | G11: 2674 | H11: 0.01638323888 | I11: 0.7467523783
A12: DAC-2.4 | B12: CPU | C12: ABRIGO DUPLO PARA MANGUEIRAS, 120X90X17CM, INSTALADO EM MURETA DE ALVENARIA COM ACABAMENTO - FORNECIMENTO E INSTALAÇÃO | D12: UN | E12: 1 | F12: 2632.61 | G12: 2632.61 | H12: 0.01612964791 | I12: 0.7628820262
A13: 91996 | B13: SINAPI | C13: TOMADA MÉDIA DE EMBUTIR (1 MÓDULO), 2P+T 10 A, INCLUINDO SUPORTE E PLACA - FORNECIMENTO E INSTALAÇÃO. AF_03/2023 | D13: UN | E13: 61 | F13: 40.33 | G13: 2460.13 | H13: 0.01507288611 | I13: 0.7779549123
A14: DAC-2.2 | B14: CPU | C14: SINALIZADOR VISUAL E ACÚSTICO PARA SISTEMA DE INCÊNDIO ENDEREÇÁVEL. FORNECIMENTO E INSTALAÇÃO | D14: UN | E14: 13 | F14: 182.2 | G14: 2368.6 | H14: 0.0145120941 | I14: 0.7924670064
A15: ED-16350 | B15: SETOP | C15: LOCAÇÃO DE CONTAINER COM ISOLAMENTO TÉRMICO, TIPO 3, PARA DEPÓSITO/FERRAMENTARIA DE OBRA, COM MEDIDAS REFERENCIAIS DE (6) METROS COMPRIMENTO, (2,3) METROS LARGURA E (2,5) METROS ALTURA ÚTIL INTERNA, INCLUSIVE LIGAÇÕES ELÉTRICAS INTERNAS, EXCLUSIVE MOBILIZAÇÃO/DESMOBILIZAÇÃO E LIGAÇÕES PROVISÓRIAS EXTERNAS | D15: mês | E15: 2 | F15: 1116.61 | G15: 2233.22 | H15: 0.01368263902 | I15: 0.8061496454
A16: DAC-2.3 | B16: CPU | C16: CENTRAL DE ALARME DE INCÊNDIO ENDEREÇÁVEL. FORNECIMENTO E INSTALAÇÃO | D16: UN | E16: 1 | F16: 2161.36 | G16: 2161.36 | H16: 0.01324236245 | I16: 0.8193920078
A17: ED-26989 | B17: SETOP | C17: LUMINÁRIA DE EMERGÊNCIA AUTÔNOMA, TIPO LED POTÊNCIA TOTAL DE 2W, FORNECIMENTO E INSTALAÇÃO | D17: un | E17: 55 | F17: 36.74 | G17: 2020.7 | H17: 0.01238055752 | I17: 0.8317725654
A18: ED-50180 | B18: SETOP | C18: ACIONADOR MANUAL DE ALARME DE INCÊNDIO | D18: un | E18: 13 | F18: 152.81 | G18: 1986.53 | H18: 0.01217120252 | I18: 0.8439437679
A19: ED-50137 | B19: SETOP | C19: MOBILIZAÇÃO E DESMOBILIZAÇÃO DE CONTAINER, INCLUSIVE CARGA, DESCARGA E TRANSPORTE EM CAMINHÃO CARROCERIA COM GUINDAUTO (MUNCK), EXCLUSIVE LOCAÇÃO DO CONTAINER | D19: un | E19: 1 | F19: 1929.2 | G19: 1929.2 | H19: 0.01181994931 | I19: 0.8557637172
A20: 95802 | B20: SINAPI | C20: CONDULETE DE ALUMÍNIO, TIPO X, PARA ELETRODUTO DE AÇO GALVANIZADO DN 25 MM (1''), APARENTE - FORNECIMENTO E INSTALAÇÃO. AF_10/2022 | D20: UN | E20: 29 | F20: 60.4 | G20: 1751.6 | H20: 0.01073181796 | I20: 0.8664955351
A21: ED-28427 | B21: SETOP | C21: FORNECIMENTO E COLOCAÇÃO DE PLACA DE OBRA EM CHAPA GALVANIZADA #26, ESP. 0,45MM, DIMENSÃO (3X1,5)M, PLOTADA COM ADESIVO VINÍLICO, AFIXADA COM REBITES 4,8X40MM, EM ESTRUTURA METÁLICA DE METALON 20X20MM, ESP. 1,25MM, INCLUSIVE SUPORTE EM EUCALIPTO AUTOCLAVADO PINTADO COM TINTA PVA DUAS (2) DEMÃOS | D21: un | E21: 1 | F21: 1729.7 | G21: 1729.7 | H21: 0.0105976396 | I21: 0.8770931747
A22: COT-INC-006 | B22: COTAÇÃO | C22: QUADRO DE COMANDO PARA BOMBA DE INCÊNDIO 7,5 CV | D22: UN | E22: 1 | F22: 1580.09 | G22: 1580.09 | H22: 0.009680999223 | I22: 0.886774174
A23: 91884 | B23: SINAPI | C23: LUVA PARA ELETRODUTO, PVC, ROSCÁVEL, DN 25 MM (3/4"), PARA CIRCUITOS TERMINAIS, INSTALADA EM PAREDE - FORNECIMENTO E INSTALAÇÃO. AF_03/2023 | D23: UN | E23: 108 | F23: 12.77 | G23: 1379.16 | H23: 0.008449928098 | I23: 0.8952241021
A24: ED-50496 | B24: SETOP | C24: PINTURA ESMALTE EM TUBO GALVANIZADO, DUAS (2) DEMÃOS, INCLUSIVE UMA (1) DEMÃO DE FUNDO ANTICORROSIVO | D24: m | E24: 45.2 | F24: 29.45 | G24: 1331.14 | H24: 0.008155716007 | I24: 0.9033798181
A25: ED-50185 | B25: SETOP | C25: PRESSOSTATO TELEMECANIQUE, MODELO XML B004 A2S11, COM ESCALA DE 3 A 58 PSI | D25: U | E25: 1 | F25: 1263.69 | G25: 1263.69 | H25: 0.007742458916 | I25: 0.911122277
A26: 91940 | B26: SINAPI | C26: CAIXA RETANGULAR 4" X 2" MÉDIA (1,30 M DO PISO), PVC, INSTALADA EM PAREDE - FORNECIMENTO E INSTALAÇÃO. AF_03/2023 | D26: UN | E26: 61 | F26: 20.39 | G26: 1243.79 | H26: 0.007620534288 | I26: 0.9187428113
A27: ED-32102 | B27: SETOP | C27: GUARDA-CORPO EXTERNO, ALTURA 130CM, EM TUBO GALVANIZADO, COM COSTURA, DIÂMETRO 2", ESP. 3MM, GRADIL COM DIVISÃO VERTICAL EM TUBO GALVANIZADO, COM COSTURA, DIÂMETRO 1", ESP. 3MM, INCLUSIVE CORRIMÃO SIMPLES, EXCLUSIVE PINTURA | D27: m | E27: 1.2 | F27: 1018.16 | G27: 1221.79 | H27: 0.007485743243 | I27: 0.9262285545
A28: ED-29400 | B28: SETOP | C28: PLACA FOTOLUMINESCENTE PARA SINALIZAÇÃO DE EMERGÊNCIA, TIPO "S3", DIMENSÃO (380X190)MM, INCLUSIVE FIXAÇÃO | D28: un | E28: 48 | F28: 24.05 | G28: 1154.4 | H28: 0.007072853764 | I28: 0.9333014083
A29: 10899 | B29: SINAPI | C29: ADAPTADOR EM LATAO, ENGATE RAPIDO 2 1/2" X ROSCA INTERNA 5 FIOS 2 1/2", PARA INSTALACAO PREDIAL DE COMBATE A INCENDIO | D29: UN | E29: 9 | F29: 99.76 | G29: 897.84 | H29: 0.0055009451 | I29: 0.9388023534
A30: 95817 | B30: SINAPI | C30: CONDULETE DE PVC, TIPO X, PARA ELETRODUTO DE PVC SOLDÁVEL DN 25 MM (3/4), APARENTE - FORNECIMENTO E INSTALAÇÃO. AF_10/2022 | D30: UN | E30: 20 | F30: 43.33 | G30: 866.6 | H30: 0.005309541815 | I30: 0.9441118952
A31: ED-31857 | B31: SETOP | C31: FIXAÇÃO DE CORRIMÃO SIMPLES METÁLICO, EM ALVENARIA COM ARGAMASSA, INCLUSIVE CORTE OU RASGO EM ALVENARIA | D31: m | E31: 29 | F31: 27.72 | G31: 803.88 | H31: 0.004925264799 | I31: 0.94903716
A32: ED-50199 | B32: SETOP | C32: PLACA FOTOLUMINESCENTE PARA SINALIZAÇÃO DE EMERGÊNCIA, TIPO "E5", DIMENSÃO (300X300)MM, INCLUSIVE FIXAÇÃO | D32: un | E32: 39 | F32: 20.28 | G32: 790.92 | H32: 0.004845860619 | I32: 0.9538830206
A33: 1564 | B33: SINAPI | C33: GRAMPO PARALELO METALICO PARA CABO DE 6 A 50 MM2, COM 2 PARAFUSOS | D33: UN | E33: 32 | F33: 22.4 | G33: 716.8 | H33: 0.004391737333 | I33: 0.9582747579
A34: ED-50201 | B34: SETOP | C34: PLACA FOTOLUMINESCENTE PARA SINALIZAÇÃO DE EMERGÊNCIA, TIPO "S2", DIMENSÃO (380X190)MM, INCLUSIVE FIXAÇÃO | D34: un | E34: 29 | F34: 24.05 | G34: 697.45 | H34: 0.004273182482 | I34: 0.9625479404
A35: 92364 | B35: SINAPI | C35: TUBO DE AÇO GALVANIZADO COM COSTURA, CLASSE MÉDIA, DN 32 (1 1/4"), CONEXÃO ROSQUEADA, INSTALADO EM REDE DE ALIMENTAÇÃO PARA HIDRANTE - FORNECIMENTO E INSTALAÇÃO. AF_10/2020 | D35: M | E35: 10 | F35: 69.29 | G35: 692.9 | H35: 0.004245305243 | I35: 0.9667932457
A36: 1597 | B36: SINAPI | C36: CONECTOR DE ALUMINIO TIPO PRENSA CABO, BITOLA 3/8", PARA CABOS DE DIAMETRO DE 9 A 10 MM | D36: UN | E36: 32 | F36: 20.92 | G36: 669.44 | H36: 0.004101568974 | I36: 0.9708948146
A37: ED-50186 | B37: SETOP | C37: CILINDRO DE PRESSÃO OU MOLA PNEUMÁTICA DE DIÂMETRO 150mm, COMPRIMENTO DE 1,20m COM GARRAS PARA FIXAÇÃO NA PAREDE | D37: U | E37: 1 | F37: 538.98 | G37: 538.98 | H37: 0.003302258075 | I37: 0.9741970727
A38: 402 | B38: SINAPI | C38: GANCHO OLHAL EM ACO GALVANIZADO, ESPESSURA 16MM, ABERTURA 21MM | D38: UN | E38: 32 | F38: 14.76 | G38: 472.32 | H38: 0.002893841207 | I38: 0.9770909139
A39: ED-16358 | B39: SETOP | C39: LIGAÇÕES PROVISÓRIAS PARA CONTAINER TIPO 3 (CORRESPONDENTE AO CÓDIGO ED-16350) | D39: un | E39: 1 | F39: 374.75 | G39: 374.75 | H39: 0.002296042921 | I39: 0.9793869568
A40: COT-INC-004 | B40: COTAÇÃO | C40: BATERIA PARA ALARME DE INCÊNDIO | D40: UN | E40: 2 | F40: 166.66 | G40: 333.32 | H40: 0.002042206875 | I40: 0.9814291637
A41: ED-32247 | B41: SETOP | C41: PLACA FOTOLUMINESCENTE PARA SINALIZAÇÃO DE EMERGÊNCIA, TIPO "M2", DIMENSÃO (380X190)MM, INCLUSIVE FIXAÇÃO | D41: un | E41: 6 | F41: 46.68 | G41: 280.08 | H41: 0.001716012545 | I41: 0.9831451763
A42: ED-29388 | B42: SETOP | C42: PLACA FOTOLUMINESCENTE PARA SINALIZAÇÃO DE EMERGÊNCIA, TIPO "E1", DIMENSÃO (300X300)MM, INCLUSIVE FIXAÇÃO | D42: un | E42: 13 | F42: 20.28 | G42: 263.64 | H42: 0.001615286873 | I42: 0.9847604631
A43: DAC-2.5 | B43: CPU | C43: ACIONADOR MANUAL TIPO LIGA-DESLIGA PARA BOMBA DE INCÊNDIO. FORNECIMENTO E INSTALAÇÃO | D43: UN | E43: 2 | F43: 118.35 | G43: 236.7 | H43: 0.001450229111 | I43: 0.9862106923
A44: ED-32250 | B44: SETOP | C44: PLACA FOTOLUMINESCENTE PARA SINALIZAÇÃO DE EMERGÊNCIA, TIPO "M7", DIMENSÃO (380X190)MM, INCLUSIVE FIXAÇÃO | D44: un | E44: 5 | F44: 46.68 | G44: 233.4 | H44: 0.001430010454 | I44: 0.9876407027
A45: ED-50495 | B45: SETOP | C45: PINTURA ESMALTE SINTÉTICO EM SUPERFÍCIES METÁLICAS, DUAS (2) DEMÃOS, INCLUSIVE UMA (1) DEMÃO DE FUNDO ANTICORROSIVO | D45: m² | E45: 5 | F45: 46.43 | G45: 232.15 | H45: 0.001422351872 | I45: 0.9890630546
A46: ED-29405 | B46: SETOP | C46: PLACA FOTOLUMINESCENTE PARA SINALIZAÇÃO DE EMERGÊNCIA, TIPO "S8", DIMENSÃO (380X190)MM, INCLUSIVE FIXAÇÃO | D46: un | E46: 8 | F46: 24.05 | G46: 192.4 | H46: 0.001178808961 | I46: 0.9902418635
A47: 101917 | B47: SINAPI | C47: MANÔMETRO 0 A 200 PSI (0 A 14 KGF/CM2), D = 50MM - FORNECIMENTO E INSTALAÇÃO. AF_10/2020 | D47: UN | E47: 1 | F47: 190.8 | G47: 190.8 | H47: 0.001169005975 | I47: 0.9914108695
A48: ED-50200 | B48: SETOP | C48: PLACA FOTOLUMINESCENTE PARA SINALIZAÇÃO DE EMERGÊNCIA, TIPO "E8", DIMENSÃO (300X300)MM, INCLUSIVE FIXAÇÃO | D48: un | E48: 9 | F48: 20.28 | G48: 182.52 | H48: 0.001118275527 | I48: 0.992529145
A49: 10902 | B49: SINAPI | C49: ESGUICHO TIPO JATO SOLIDO, EM LATAO, ENGATE RAPIDO 1 1/2" X 13 MM, PARA MANGUEIRA EM INSTALACAO PREDIAL COMBATE A INCENDIO | D49: UN | E49: 2 | F49: 81.63 | G49: 163.26 | H49: 0.001000272094 | I49: 0.9935294171
A50: ED-29389 | B50: SETOP | C50: PLACA FOTOLUMINESCENTE PARA SINALIZAÇÃO DE EMERGÊNCIA, TIPO "E2", DIMENSÃO (150X100)MM, INCLUSIVE FIXAÇÃO | D50: un | E50: 13 | F50: 11.5 | G50: 149.5 | H50: 0.0009159664221 | I50: 0.9944453836
A51: ED-50205 | B51: SETOP | C51: PLACA FOTOLUMINESCENTE PARA SINALIZAÇÃO DE EMERGÊNCIA, TIPO "S12", DIMENSÃO (380X190)MM, INCLUSIVE FIXAÇÃO | D51: un | E51: 6 | F51: 24.05 | G51: 144.3 | H51: 0.0008841067204 | I51: 0.9953294903
A52: 1892 | B52: SINAPI | C52: LUVA EM PVC RIGIDO ROSCAVEL, DE 1", PARA ELETRODUTO | D52: UN | E52: 66 | F52: 2.18 | G52: 143.88 | H52: 0.0008815334368 | I52: 0.9962110237
A53: ED-17990 | B53: SETOP | C53: PLACA CEGA PARA CONDULETE, COM DIÂMETRO DE SAÍDA 3/4" (20MM), EXCLUSIVE CONDULETE | D53: un | E53: 20 | F53: 6.65 | G53: 133 | H53: 0.000814873138 | I53: 0.9970258969
A54: ED-32246 | B54: SETOP | C54: PLACA FOTOLUMINESCENTE PARA SINALIZAÇÃO DE EMERGÊNCIA, TIPO "M1", DIMENSÃO (400X600)MM, INCLUSIVE FIXAÇÃO | D54: un | E54: 1 | F54: 132.51 | G54: 132.51 | H54: 0.0008118709738 | I54: 0.9978377678
A55: 7543 | B55: SINAPI | C55: TAMPA CEGA EM PVC PARA CONDULETE 4 X 2" | D55: UN | E55: 12 | F55: 7.02 | G55: 84.24 | H55: 0.0005161271665 | I55: 0.998353895
A56: ED-50187 | B56: SETOP | C56: SIRENE PARA ALARME DE BOMBA EM FUNCIONAMENTO, 220V | D56: U | E56: 1 | F56: 80.25 | G56: 80.25 | H56: 0.0004916809724 | I56: 0.998845576
A57: ED-32107 | B57: SETOP | C57: FIXAÇÃO DE CORRIMÃO SIMPLES METÁLICO, EM GUARDA-CORPO, INCLUSIVE CORTE, MONTAGEM E SOLDAGEM | D57: m | E57: 48.4 | F57: 1.11 | G57: 53.72 | H57: 0.0003291352254 | I57: 0.9991747112
A58: ED-32064 | B58: SETOP | C58: FIXAÇÃO DE GUARDA-CORPO METÁLICO COM OU SEM CORRIMÃO, EM PISO COM CONCRETO, INCLUSIVE CORTE OU RASGO EM CONCRETO | D58: m | E58: 1.2 | F58: 44.35 | G58: 53.22 | H58: 0.0003260717925 | I58: 0.999500783
A59: ED-50203 | B59: SETOP | C59: PLACA FOTOLUMINESCENTE PARA SINALIZAÇÃO DE EMERGÊNCIA, TIPO "S9", DIMENSÃO (380X190)MM, INCLUSIVE FIXAÇÃO | D59: un | E59: 1 | F59: 24.05 | G59: 24.05 | H59: 0.0001473511201 | I59: 0.9996481341
A60: ED-29390 | B60: SETOP | C60: PLACA FOTOLUMINESCENTE PARA SINALIZAÇÃO DE EMERGÊNCIA, TIPO "E3", DIMENSÃO (150X100)MM, INCLUSIVE FIXAÇÃO | D60: un | E60: 2 | F60: 11.5 | G60: 23 | H60: 0.0001409179111 | I60: 0.999789052
A61: ED-50508 | B61: SETOP | C61: LIXAMENTO MANUAL EM SUPERFÍCIE METÁLICA PARA REMOÇÃO DE TINTA | D61: m2 | E61: 3 | F61: 5.76 | G61: 17.28 | H61: 0.0001058722393 | I61: 0.9998949243
A62: DAC-2.6 | B62: CPU | C62: INSTALAÇÃO QUADRO DE COMANDO PARA O SISTEMA DE COMBATE A INCÊNDIO | D62: UN | E62: 1 | F62: 17.15 | G62: 17.15 | H62: 0.0001050757467 | I62: 1

Sheet Auxiliar_ABC2 (hidden)
A1: 1 | D1: 1.1 | E1: LOCAÇÃO DE CONTAINER COM ISOLAMENTO TÉRMICO, TIPO 3, PARA DEPÓSITO/FERRAMENTARIA DE OBRA, COM MEDIDAS REFERENCIAIS DE (6) METROS COMPRIMENTO, (2,3) METROS LARGURA E (2,5) METROS ALTURA ÚTIL INTERNA, INCLUSIVE LIGAÇÕES ELÉTRICAS INTERNAS, EXCLUSIVE MOBILIZAÇÃO/DESMOBILIZAÇÃO E LIGAÇÕES PROVISÓRIAS EXTERNAS | F1: ED-16350 | G1: SETOP | H1: mês | I1: 2 | J1: 882.56 | K1: BDI 1 | L1: 1116.61 | M1: 1765.12 | N1: 2233.22
A2: 1 | D2: 1.2 | E2: LIGAÇÕES PROVISÓRIAS PARA CONTAINER TIPO 3 (CORRESPONDENTE AO CÓDIGO ED-16350) | F2: ED-16358 | G2: SETOP | H2: un | I2: 1 | J2: 296.2 | K2: BDI 1 | L2: 374.75 | M2: 296.2 | N2: 374.75
A3: 1 | D3: 1.3 | E3: MOBILIZAÇÃO E DESMOBILIZAÇÃO DE CONTAINER, INCLUSIVE CARGA, DESCARGA E TRANSPORTE EM CAMINHÃO CARROCERIA COM GUINDAUTO (MUNCK), EXCLUSIVE LOCAÇÃO DO CONTAINER | F3: ED-50137 | G3: SETOP | H3: un | I3: 1 | J3: 1524.82 | K3: BDI 1 | L3: 1929.2 | M3: 1524.82 | N3: 1929.2
A4: 2 | D4: 2.1 | E4: FORNECIMENTO E COLOCAÇÃO DE PLACA DE OBRA EM CHAPA GALVANIZADA #26, ESP. 0,45MM, DIMENSÃO (3X1,5)M, PLOTADA COM ADESIVO VINÍLICO, AFIXADA COM REBITES 4,8X40MM, EM ESTRUTURA METÁLICA DE METALON 20X20MM, ESP. 1,25MM, INCLUSIVE SUPORTE EM EUCALIPTO AUTOCLAVADO PINTADO COM TINTA PVA DUAS (2) DEMÃOS | F4: ED-28427 | G4: SETOP | H4: un | I4: 1 | J4: 1367.14 | K4: BDI 1 | L4: 1729.7 | M4: 1367.14 | N4: 1729.7
A5: 3 | D5: 3.1 | E5: TOMADA MÉDIA DE EMBUTIR (1 MÓDULO), 2P+T 10 A, INCLUINDO SUPORTE E PLACA - FORNECIMENTO E INSTALAÇÃO. AF_03/2023 | F5: 91996 | G5: SINAPI | H5: UN | I5: 61 | J5: 31.88 | K5: BDI 1 | L5: 40.33 | M5: 1944.68 | N5: 2460.13
A6: 3 | D6: 3.2 | E6: CABO DE COBRE FLEXÍVEL ISOLADO, 2,5 MM², ANTI-CHAMA 450/750 V, PARA CIRCUITOS TERMINAIS - FORNECIMENTO E INSTALAÇÃO. AF_03/2023 | F6: 91926 | G6: SINAPI | H6: M | I6: 1960.1 | J6: 3.69 | K6: BDI 1 | L6: 4.66 | M6: 7232.76 | N6: 9134.06
A7: 3 | D7: 3.3 | E7: ELETRODUTO DE PVC RÍGIDO ROSCÁVEL, DN 20 MM (3/4"), INCLUSIVE CONEXÕES, SUPORTES E FIXAÇÃO | F7: ED-49308 | G7: SETOP | H7: m | I7: 641.5 | J7: 19.96 | K7: BDI 1 | L7: 25.25 | M7: 12804.34 | N7: 16197.87
A8: 3 | D8: 3.4 | E8: LUVA PARA ELETRODUTO, PVC, ROSCÁVEL, DN 25 MM (3/4"), PARA CIRCUITOS TERMINAIS, INSTALADA EM PAREDE - FORNECIMENTO E INSTALAÇÃO. AF_03/2023 | F8: 91884 | G8: SINAPI | H8: UN | I8: 108 | J8: 10.1 | K8: BDI 1 | L8: 12.77 | M8: 1090.8 | N8: 1379.16
A9: 3 | D9: 3.5 | E9: CONDULETE DE PVC, TIPO X, PARA ELETRODUTO DE PVC SOLDÁVEL DN 25 MM (3/4), APARENTE - FORNECIMENTO E INSTALAÇÃO. AF_10/2022 | F9: 95817 | G9: SINAPI | H9: UN | I9: 20 | J9: 34.25 | K9: BDI 1 | L9: 43.33 | M9: 685 | N9: 866.6
A10: 3 | D10: 3.6 | E10: PLACA CEGA PARA CONDULETE, COM DIÂMETRO DE SAÍDA 3/4" (20MM), EXCLUSIVE CONDULETE | F10: ED-17990 | G10: SETOP | H10: un | I10: 20 | J10: 5.26 | K10: BDI 1 | L10: 6.65 | M10: 105.2 | N10: 133
A11: 3 | D11: 3.7 | E11: CAIXA RETANGULAR 4" X 2" MÉDIA (1,30 M DO PISO), PVC, INSTALADA EM PAREDE - FORNECIMENTO E INSTALAÇÃO. AF_03/2023 | F11: 91940 | G11: SINAPI | H11: UN | I11: 61 | J11: 16.12 | K11: BDI 1 | L11: 20.39 | M11: 983.32 | N11: 1243.79
A12: 4 | B12: 1 | D12: 4.1.1 | E12: EXTINTOR DE INCÊNDIO TIPO PÓ QUÍMICO 4-A:40-B:C, CAPACIDADE 6 KG. FORNECIMENTO E INSTALAÇÃO | F12: DAC-2.1 | G12: CPU | H12: UN | I12: 39 | J12: 222.53 | K12: BDI 1 | L12: 281.54 | M12: 8678.67 | N12: 10980.06
A13: 4 | B13: 2 | D13: 4.2.1 | E13: LUMINÁRIA DE EMERGÊNCIA AUTÔNOMA, TIPO LED POTÊNCIA TOTAL DE 2W, FORNECIMENTO E INSTALAÇÃO | F13: ED-26989 | G13: SETOP | H13: un | I13: 55 | J13: 29.04 | K13: BDI 1 | L13: 36.74 | M13: 1597.2 | N13: 2020.7
A14: 4 | B14: 2 | D14: 4.2.2 | E14: LUMINÁRIA DE EMERGÊNCIA AUTÔNOMA, TIPO LED COM DOIS FARÓIS, POTÊNCIA TOTAL DE 8W, FORNECIMENTO E INSTALAÇÃO | F14: ED-26993 | G14: SETOP | H14: un | I14: 10 | J14: 227.39 | K14: BDI 1 | L14: 287.69 | M14: 2273.9 | N14: 2876.9
A15: 4 | B15: 3 | C15: 1 | D15: 4.3.1.1 | E15: PLACA FOTOLUMINESCENTE PARA SINALIZAÇÃO DE EMERGÊNCIA, TIPO "S2", DIMENSÃO (380X190)MM, INCLUSIVE FIXAÇÃO | F15: ED-50201 | G15: SETOP | H15: un | I15: 29 | J15: 19.01 | K15: BDI 1 | L15: 24.05 | M15: 551.29 | N15: 697.45
A16: 4 | B16: 3 | C16: 1 | D16: 4.3.1.2 | E16: PLACA FOTOLUMINESCENTE PARA SINALIZAÇÃO DE EMERGÊNCIA, TIPO "S3", DIMENSÃO (380X190)MM, INCLUSIVE FIXAÇÃO | F16: ED-29400 | G16: SETOP | H16: un | I16: 48 | J16: 19.01 | K16: BDI 1 | L16: 24.05 | M16: 912.48 | N16: 1154.4
A17: 4 | B17: 3 | C17: 1 | D17: 4.3.1.3 | E17: PLACA FOTOLUMINESCENTE PARA SINALIZAÇÃO DE EMERGÊNCIA, TIPO "S8", DIMENSÃO (380X190)MM, INCLUSIVE FIXAÇÃO | F17: ED-29405 | G17: SETOP | H17: un | I17: 8 | J17: 19.01 | K17: BDI 1 | L17: 24.05 | M17: 152.08 | N17: 192.4
A18: 4 | B18: 3 | C18: 1 | D18: 4.3.1.4 | E18: PLACA FOTOLUMINESCENTE PARA SINALIZAÇÃO DE EMERGÊNCIA, TIPO "S9", DIMENSÃO (380X190)MM, INCLUSIVE FIXAÇÃO | F18: ED-50203 | G18: SETOP | H18: un | I18: 1 | J18: 19.01 | K18: BDI 1 | L18: 24.05 | M18: 19.01 | N18: 24.05
A19: 4 | B19: 3 | C19: 1 | D19: 4.3.1.5 | E19: PLACA FOTOLUMINESCENTE PARA SINALIZAÇÃO DE EMERGÊNCIA, TIPO "S12", DIMENSÃO (380X190)MM, INCLUSIVE FIXAÇÃO | F19: ED-50205 | G19: SETOP | H19: un | I19: 6 | J19: 19.01 | K19: BDI 1 | L19: 24.05 | M19: 114.06 | N19: 144.3
A20: 4 | B20: 3 | C20: 2 | D20: 4.3.2.1 | E20: PLACA FOTOLUMINESCENTE PARA SINALIZAÇÃO DE EMERGÊNCIA, TIPO "E1", DIMENSÃO (300X300)MM, INCLUSIVE FIXAÇÃO | F20: ED-29388 | G20: SETOP | H20: un | I20: 13 | J20: 16.03 | K20: BDI 1 | L20: 20.28 | M20: 208.39 | N20: 263.64
A21: 4 | B21: 3 | C21: 2 | D21: 4.3.2.2 | E21: PLACA FOTOLUMINESCENTE PARA SINALIZAÇÃO DE EMERGÊNCIA, TIPO "E2", DIMENSÃO (150X100)MM, INCLUSIVE FIXAÇÃO | F21: ED-29389 | G21: SETOP | H21: un | I21: 13 | J21: 9.09 | K21: BDI 1 | L21: 11.5 | M21: 118.17 | N21: 149.5
A22: 4 | B22: 3 | C22: 2 | D22: 4.3.2.3 | E22: PLACA FOTOLUMINESCENTE PARA SINALIZAÇÃO DE EMERGÊNCIA, TIPO "E3", DIMENSÃO (150X100)MM, INCLUSIVE FIXAÇÃO | F22: ED-29390 | G22: SETOP | H22: un | I22: 2 | J22: 9.09 | K22: BDI 1 | L22: 11.5 | M22: 18.18 | N22: 23
A23: 4 | B23: 3 | C23: 2 | D23: 4.3.2.4 | E23: PLACA FOTOLUMINESCENTE PARA SINALIZAÇÃO DE EMERGÊNCIA, TIPO "E5", DIMENSÃO (300X300)MM, INCLUSIVE FIXAÇÃO | F23: ED-50199 | G23: SETOP | H23: un | I23: 39 | J23: 16.03 | K23: BDI 1 | L23: 20.28 | M23: 625.17 | N23: 790.92
A24: 4 | B24: 3 | C24: 2 | D24: 4.3.2.5 | E24: PLACA FOTOLUMINESCENTE PARA SINALIZAÇÃO DE EMERGÊNCIA, TIPO "E8", DIMENSÃO (300X300)MM, INCLUSIVE FIXAÇÃO | F24: ED-50200 | G24: SETOP | H24: un | I24: 9 | J24: 16.03 | K24: BDI 1 | L24: 20.28 | M24: 144.27 | N24: 182.52
A25: 4 | B25: 3 | C25: 3 | D25: 4.3.3.1 | E25: PLACA FOTOLUMINESCENTE PARA SINALIZAÇÃO DE EMERGÊNCIA, TIPO "M1", DIMENSÃO (400X600)MM, INCLUSIVE FIXAÇÃO | F25: ED-32246 | G25: SETOP | H25: un | I25: 1 | J25: 104.74 | K25: BDI 1 | L25: 132.51 | M25: 104.74 | N25: 132.51
A26: 4 | B26: 3 | C26: 3 | D26: 4.3.3.2 | E26: PLACA FOTOLUMINESCENTE PARA SINALIZAÇÃO DE EMERGÊNCIA, TIPO "M2", DIMENSÃO (380X190)MM, INCLUSIVE FIXAÇÃO | F26: ED-32247 | G26: SETOP | H26: un | I26: 6 | J26: 36.9 | K26: BDI 1 | L26: 46.68 | M26: 221.4 | N26: 280.08
A27: 4 | B27: 3 | C27: 3 | D27: 4.3.3.3 | E27: PLACA FOTOLUMINESCENTE PARA SINALIZAÇÃO DE EMERGÊNCIA, TIPO "M7", DIMENSÃO (380X190)MM, INCLUSIVE FIXAÇÃO | F27: ED-32250 | G27: SETOP | H27: un | I27: 5 | J27: 36.9 | K27: BDI 1 | L27: 46.68 | M27: 184.5 | N27: 233.4
A28: 4 | B28: 4 | D28: 4.4.1 | E28: ACIONADOR MANUAL DE ALARME DE INCÊNDIO | F28: ED-50180 | G28: SETOP | H28: un | I28: 13 | J28: 120.78 | K28: BDI 1 | L28: 152.81 | M28: 1570.14 | N28: 1986.53
A29: 4 | B29: 4 | D29: 4.4.2 | E29: SINALIZADOR VISUAL E ACÚSTICO PARA SISTEMA DE INCÊNDIO ENDEREÇÁVEL. FORNECIMENTO E INSTALAÇÃO | F29: DAC-2.2 | G29: CPU | H29: UN | I29: 13 | J29: 144.01 | K29: BDI 1 | L29: 182.2 | M29: 1872.13 | N29: 2368.6
A30: 4 | B30: 4 | D30: 4.4.3 | E30: CENTRAL DE ALARME DE INCÊNDIO ENDEREÇÁVEL. FORNECIMENTO E INSTALAÇÃO | F30: DAC-2.3 | G30: CPU | H30: UN | I30: 1 | J30: 1708.32 | K30: BDI 1 | L30: 2161.36 | M30: 1708.32 | N30: 2161.36
A31: 4 | B31: 4 | D31: 4.4.4 | E31: BATERIA PARA ALARME DE INCÊNDIO | F31: COT-INC-004 | G31: COTAÇÃO | H31: UN | I31: 2 | J31: 131.73 | K31: BDI 1 | L31: 166.66 | M31: 263.46 | N31: 333.32
A32: 4 | B32: 4 | D32: 4.4.5 | E32: CONDULETE DE ALUMÍNIO, TIPO X, PARA ELETRODUTO DE AÇO GALVANIZADO DN 25 MM (1''), APARENTE - FORNECIMENTO E INSTALAÇÃO. AF_10/2022 | F32: 95802 | G32: SINAPI | H32: UN | I32: 29 | J32: 47.74 | K32: BDI 1 | L32: 60.4 | M32: 1384.46 | N32: 1751.6
A33: 4 | B33: 4 | D33: 4.4.6 | E33: ELETRODUTO EM ACO GALVANIZADO ELETROLITICO, LEVE, DIAMETRO 1", PAREDE DE 0,90 MM | F33: 21136 | G33: SINAPI | H33: M | I33: 328.4 | J33: 12.49 | K33: BDI 1 | L33: 15.8 | M33: 4101.71 | N33: 5188.72
A34: 4 | B34: 4 | D34: 4.4.7 | E34: LUVA EM PVC RIGIDO ROSCAVEL, DE 1", PARA ELETRODUTO | F34: 1892 | G34: SINAPI | H34: UN | I34: 66 | J34: 1.73 | K34: BDI 1 | L34: 2.18 | M34: 114.18 | N34: 143.88
A35: 4 | B35: 4 | D35: 4.4.8 | E35: TAMPA CEGA EM PVC PARA CONDULETE 4 X 2" | F35: 7543 | G35: SINAPI | H35: UN | I35: 12 | J35: 5.55 | K35: BDI 1 | L35: 7.02 | M35: 66.6 | N35: 84.24
A36: 4 | B36: 4 | D36: 4.4.9 | E36: CABO PP 4X1,00 MM² BLINDADO | F36: COT-INC-008 | G36: COTAÇÃO | H36: M | I36: 1116.7 | J36: 29.51 | K36: BDI 1 | L36: 37.33 | M36: 32953.81 | N36: 41686.41
A37: 4 | B37: 5 | D37: 4.5.1 | E37: ABRIGO DUPLO PARA MANGUEIRAS, 120X90X17CM, INSTALADO EM MURETA DE ALVENARIA COM ACABAMENTO - FORNECIMENTO E INSTALAÇÃO | F37: DAC-2.4 | G37: CPU | H37: UN | I37: 1 | J37: 2080.79 | K37: BDI 1 | L37: 2632.61 | M37: 2080.79 | N37: 2632.61
A38: 4 | B38: 5 | D38: 4.5.2 | E38: LIXAMENTO MANUAL EM SUPERFÍCIE METÁLICA PARA REMOÇÃO DE TINTA | F38: ED-50508 | G38: SETOP | H38: m2 | I38: 3 | J38: 4.56 | K38: BDI 1 | L38: 5.76 | M38: 13.68 | N38: 17.28
A39: 4 | B39: 5 | D39: 4.5.3 | E39: PINTURA ESMALTE EM TUBO GALVANIZADO, DUAS (2) DEMÃOS, INCLUSIVE UMA (1) DEMÃO DE FUNDO ANTICORROSIVO | F39: ED-50496 | G39: SETOP | H39: m | I39: 15 | J39: 23.28 | K39: BDI 1 | L39: 29.45 | M39: 349.2 | N39: 441.75
A40: 4 | B40: 5 | D40: 4.5.4 | E40: PINTURA ESMALTE SINTÉTICO EM SUPERFÍCIES METÁLICAS, DUAS (2) DEMÃOS, INCLUSIVE UMA (1) DEMÃO DE FUNDO ANTICORROSIVO | F40: ED-50495 | G40: SETOP | H40: m² | I40: 5 | J40: 36.7 | K40: BDI 1 | L40: 46.43 | M40: 183.5 | N40: 232.15
A41: 4 | B41: 5 | D41: 4.5.5 | E41: ACIONADOR MANUAL TIPO LIGA-DESLIGA PARA BOMBA DE INCÊNDIO. FORNECIMENTO E INSTALAÇÃO | F41: DAC-2.5 | G41: CPU | H41: UN | I41: 2 | J41: 93.55 | K41: BDI 1 | L41: 118.35 | M41: 187.1 | N41: 236.7
A42: 4 | B42: 5 | D42: 4.5.6 | E42: QUADRO DE COMANDO PARA BOMBA DE INCÊNDIO 7,5 CV | F42: COT-INC-006 | G42: COTAÇÃO | H42: UN | I42: 1 | J42: 1248.89 | K42: BDI 1 | L42: 1580.09 | M42: 1248.89 | N42: 1580.09
A43: 4 | B43: 5 | D43: 4.5.7 | E43: PRESSOSTATO TELEMECANIQUE, MODELO XML B004 A2S11, COM ESCALA DE 3 A 58 PSI | F43: ED-50185 | G43: SETOP | H43: U | I43: 1 | J43: 998.81 | K43: BDI 1 | L43: 1263.69 | M43: 998.81 | N43: 1263.69
A44: 4 | B44: 5 | D44: 4.5.8 | E44: MANÔMETRO 0 A 200 PSI (0 A 14 KGF/CM2), D = 50MM - FORNECIMENTO E INSTALAÇÃO. AF_10/2020 | F44: 101917 | G44: SINAPI | H44: UN | I44: 1 | J44: 150.81 | K44: BDI 1 | L44: 190.8 | M44: 150.81 | N44: 190.8
A45: 4 | B45: 5 | D45: 4.5.9 | E45: CILINDRO DE PRESSÃO OU MOLA PNEUMÁTICA DE DIÂMETRO 150mm, COMPRIMENTO DE 1,20m COM GARRAS PARA FIXAÇÃO NA PAREDE | F45: ED-50186 | G45: SETOP | H45: U | I45: 1 | J45: 426.01 | K45: BDI 1 | L45: 538.98 | M45: 426.01 | N45: 538.98
A46: 4 | B46: 5 | D46: 4.5.10 | E46: SIRENE PARA ALARME DE BOMBA EM FUNCIONAMENTO, 220V | F46: ED-50187 | G46: SETOP | H46: U | I46: 1 | J46: 63.43 | K46: BDI 1 | L46: 80.25 | M46: 63.43 | N46: 80.25
A47: 4 | B47: 5 | D47: 4.5.11 | E47: INSTALAÇÃO QUADRO DE COMANDO PARA O SISTEMA DE COMBATE A INCÊNDIO | F47: DAC-2.6 | G47: CPU | H47: UN | I47: 1 | J47: 13.56 | K47: BDI 1 | L47: 17.15 | M47: 13.56 | N47: 17.15
A48: 4 | B48: 5 | D48: 4.5.12 | E48: MANGUEIRA DE INCENDIO, TIPO 2, DE 1 1/2", COMPRIMENTO = 15 M, TECIDO EM FIO DE POLIESTER E TUBO INTERNO EM BORRACHA SINTETICA, COM UNIOES ENGATE RAPIDO | F48: 37527 | G48: SINAPI | H48: UN | I48: 4 | J48: 562.47 | K48: BDI 1 | L48: 711.63 | M48: 2249.88 | N48: 2846.52
A49: 4 | B49: 5 | D49: 4.5.13 | E49: ESGUICHO TIPO JATO SOLIDO, EM LATAO, ENGATE RAPIDO 1 1/2" X 13 MM, PARA MANGUEIRA EM INSTALACAO PREDIAL COMBATE A INCENDIO | F49: 10902 | G49: SINAPI | H49: UN | I49: 2 | J49: 64.52 | K49: BDI 1 | L49: 81.63 | M49: 129.04 | N49: 163.26
A50: 4 | B50: 5 | D50: 4.5.14 | E50: ADAPTADOR EM LATAO, ENGATE RAPIDO 2 1/2" X ROSCA INTERNA 5 FIOS 2 1/2", PARA INSTALACAO PREDIAL DE COMBATE A INCENDIO | F50: 10899 | G50: SINAPI | H50: UN | I50: 9 | J50: 78.85 | K50: BDI 1 | L50: 99.76 | M50: 709.65 | N50: 897.84
A51: 4 | B51: 5 | D51: 4.5.15 | E51: TUBO DE AÇO GALVANIZADO COM COSTURA, CLASSE MÉDIA, DN 32 (1 1/4"), CONEXÃO ROSQUEADA, INSTALADO EM REDE DE ALIMENTAÇÃO PARA HIDRANTE - FORNECIMENTO E INSTALAÇÃO. AF_10/2020 | F51: 92364 | G51: SINAPI | H51: M | I51: 10 | J51: 54.77 | K51: BDI 1 | L51: 69.29 | M51: 547.7 | N51: 692.9
A52: 4 | B52: 6 | D52: 4.6.1 | E52: GUARDA-CORPO EXTERNO, ALTURA 130CM, EM TUBO GALVANIZADO, COM COSTURA, DIÂMETRO 2", ESP. 3MM, GRADIL COM DIVISÃO VERTICAL EM TUBO GALVANIZADO, COM COSTURA, DIÂMETRO 1", ESP. 3MM, INCLUSIVE CORRIMÃO SIMPLES, EXCLUSIVE PINTURA | F52: ED-32102 | G52: SETOP | H52: m | I52: 1.2 | J52: 804.75 | K52: BDI 1 | L52: 1018.16 | M52: 965.7 | N52: 1221.79
A53: 4 | B53: 6 | D53: 4.6.2 | E53: CORRIMÃO SIMPLES EM TUBO GALVANIZADO, COM COSTURA, CLASSE LEVE (NBR-5580), DIÂMETRO 1.1/2", ESP. 3MM, INCLUSIVE SUPORTE PARA CORRIMÃO EM BARRA CHATA (1"X1/ | F53: ED-26991 | G53: SETOP | H53: m | I53: 29.6 | J53: 98.18 | K53: BDI 1 | L53: 124.21 | M53: 2906.12 | N53: 3676.61
A54: 4 | B54: 6 | D54: 4.6.3 | E54: FIXAÇÃO DE CORRIMÃO SIMPLES METÁLICO, EM GUARDA-CORPO, INCLUSIVE CORTE, MONTAGEM E SOLDAGEM | F54: ED-32107 | G54: SETOP | H54: m | I54: 48.4 | J54: 0.88 | K54: BDI 1 | L54: 1.11 | M54: 42.59 | N54: 53.72
A55: 4 | B55: 6 | D55: 4.6.4 | E55: FIXAÇÃO DE GUARDA-CORPO METÁLICO COM OU SEM CORRIMÃO, EM PISO COM CONCRETO, INCLUSIVE CORTE OU RASGO EM CONCRETO | F55: ED-32064 | G55: SETOP | H55: m | I55: 1.2 | J55: 35.06 | K55: BDI 1 | L55: 44.35 | M55: 42.07 | N55: 53.22
A56: 4 | B56: 6 | D56: 4.6.5 | E56: FIXAÇÃO DE CORRIMÃO SIMPLES METÁLICO, EM ALVENARIA COM ARGAMASSA, INCLUSIVE CORTE OU RASGO EM ALVENARIA | F56: ED-31857 | G56: SETOP | H56: m | I56: 29 | J56: 21.91 | K56: BDI 1 | L56: 27.72 | M56: 635.39 | N56: 803.88
A57: 4 | B57: 6 | D57: 4.6.6 | E57: PINTURA ESMALTE EM TUBO GALVANIZADO, DUAS (2) DEMÃOS, INCLUSIVE UMA (1) DEMÃO DE FUNDO ANTICORROSIVO | F57: ED-50496 | G57: SETOP | H57: m | I57: 30.2 | J57: 23.28 | K57: BDI 1 | L57: 29.45 | M57: 703.05 | N57: 889.39
A58: 4 | B58: 6 | D58: 4.6.7 | E58: CORDOALHA EM AÇO GALVANIZADO 3/8" SM COM 7 FIOS | F58: ED-51033 | G58: SETOP | H58: m | I58: 210 | J58: 36.12 | K58: BDI 1 | L58: 45.69 | M58: 7585.2 | N58: 9594.9
A59: 4 | B59: 6 | D59: 4.6.8 | E59: GRAMPO PARALELO METALICO PARA CABO DE 6 A 50 MM2, COM 2 PARAFUSOS | F59: 1564 | G59: SINAPI | H59: UN | I59: 32 | J59: 17.71 | K59: BDI 1 | L59: 22.4 | M59: 566.72 | N59: 716.8
A60: 4 | B60: 6 | D60: 4.6.9 | E60: CONECTOR DE ALUMINIO TIPO PRENSA CABO, BITOLA 3/8", PARA CABOS DE DIAMETRO DE 9 A 10 MM | F60: 1597 | G60: SINAPI | H60: UN | I60: 32 | J60: 16.54 | K60: BDI 1 | L60: 20.92 | M60: 529.28 | N60: 669.44
A61: 4 | B61: 6 | D61: 4.6.10 | E61: GANCHO OLHAL EM ACO GALVANIZADO, ESPESSURA 16MM, ABERTURA 21MM | F61: 402 | G61: SINAPI | H61: UN | I61: 32 | J61: 11.67 | K61: BDI 1 | L61: 14.76 | M61: 373.44 | N61: 472.32
A62: 4 | B62: 6 | D62: 4.6.11 | E62: MONTAGEM DE LONGARINA COM CABO DE AÇO | F62: DAC-2.7 | G62: CPU | H62: UN | I62: 100 | J62: 21.14 | K62: BDI 1 | L62: 26.74 | M62: 2114 | N62: 2674
A63: 5 | D63: 5.1 | E63: LIMPEZA FINAL PARA ENTREGA DA OBRA | F63: ED-50266 | G63: SETOP | H63: m2 | I63: 2053.75 | J63: 6.56 | K63: BDI 1 | L63: 8.29 | M63: 13472.6 | N63: 17025.58

Sheet CPU
A2: COMPOSIÇÕES DE CUSTO | L2: Revisão: | M2: =DADOS!D6 -> R00
L3: Data: | M3: =DADOS!D2 -> 2024-02-19
A4: Projeto: | D4: Cliente: | H4: Cliente: | L4: Bancos:
A5: =DADOS!D8 -> SISTEMA DE PROTEÇÃO CONTRA INCÊNDIO E PÂNICO CEIM PROFESSORA MARIA GRAFIRA NUNES SAPONARA | L5: =DADOS!D14 -> SINAPI: 12/2023 Minas Gerais SETOP: 08/2023 Minas Gerais SICRO : 10/2023 Minas Gerais SUDECAP: 10/2023 Minas Gerais
L8: BDI 1: | M8: =DADOS!D10 -> 0.2652
L9: BDI 2: | M9: =DADOS!D12 -> -
A11: =A2&" DE "&DADOS!D20&" - "&A5 -> COMPOSIÇÕES DE CUSTO DE PROJETO EXECUTIVO - SISTEMA DE PROTEÇÃO CONTRA INCÊNDIO E PÂNICO CEIM PROFESSORA MARIA GRAFIRA NUNES SAPONARA
A13: CÓDIGO | B13: DESCRIÇÃO | I13: Banco | J13: Unid. | K13: Coeficiente | L13: Preço Unit. | M13: Total
A15: 2 | B15: =VLOOKUP(A15,ORC!$D$41:$N$398,2,0) -> 
A16: DAC-2.1 | B16: EXTINTOR DE INCÊNDIO TIPO PÓ QUÍMICO 4-A:40-B:C, CAPACIDADE 6 KG. FORNECIMENTO E INSTALAÇÃO | I16: CPU | J16: UN | M16: =SUM(M17:M20) -> 222.534478
B17: 88248 | C17: =IF(I17="SINAPI",VLOOKUP(B17,DADOS_SINAPI,2,0),IF(I17="SETOP",VLOOKUP(B17,DADOS_SETOP,2,0),IF(I17="SICRO",VLOOKUP(B17,DADOS_SICRO,2,0),IF(I17="SUDECAP",VLOOKUP(B17,DADOS_SUDECAP,2,0),IF(I17="COTAÇÃO",VLOOKUP(B17,DADOS_COTACAO,2,0),VLOOKUP(B17,DADOS_COMPOSICAO,2,0)))))) -> AUXILIAR DE ENCANADOR OU BOMBEIRO HIDRÁULICO COM ENCARGOS COMPLEMENTARES | I17: SINAPI | J17: =IF(I17="SINAPI",VLOOKUP(B17,DADOS_SINAPI,3,0),IF(I17="SETOP",VLOOKUP(B17,DADOS_SETOP,3,0),IF(I17="SICRO",VLOOKUP(B17,DADOS_SICRO,3,0),IF(I17="SUDECAP",VLOOKUP(B17,DADOS_SUDECAP,3,0),IF(I17="COTAÇÃO",VLOOKUP(B17,DADOS_COTACAO,9,0),VLOOKUP(B17,DADOS_COMPOSICAO,10,0)))))) -> H | K17: 0.4574 | L17: =IF(I17="SINAPI",VLOOKUP(B17,DADOS_SINAPI,4,0),IF(I17="SETOP",VLOOKUP(B17,DADOS_SETOP,4,0),IF(I17="SICRO",VLOOKUP(B17,DADOS_SICRO,4,0),IF(I17="SUDECAP",VLOOKUP(B17,DADOS_SUDECAP,4,0),IF(I17="COTAÇÃO",VLOOKUP(B17,DADOS_COTACAO,12,0),VLOOKUP(B17,DADOS_COMPOSICAO,13,0)))))) -> 19.36 | M17: =K17*L17 -> 8.855264
B18: 88267 | C18: =IF(I18="SINAPI",VLOOKUP(B18,DADOS_SINAPI,2,0),IF(I18="SETOP",VLOOKUP(B18,DADOS_SETOP,2,0),IF(I18="SICRO",VLOOKUP(B18,DADOS_SICRO,2,0),IF(I18="SUDECAP",VLOOKUP(B18,DADOS_SUDECAP,2,0),IF(I18="COTAÇÃO",VLOOKUP(B18,DADOS_COTACAO,2,0),VLOOKUP(B18,DADOS_COMPOSICAO,2,0)))))) -> ENCANADOR OU BOMBEIRO HIDRÁULICO COM ENCARGOS COMPLEMENTARES | I18: SINAPI | J18: =IF(I18="SINAPI",VLOOKUP(B18,DADOS_SINAPI,3,0),IF(I18="SETOP",VLOOKUP(B18,DADOS_SETOP,3,0),IF(I18="SICRO",VLOOKUP(B18,DADOS_SICRO,3,0),IF(I18="SUDECAP",VLOOKUP(B18,DADOS_SUDECAP,3,0),IF(I18="COTAÇÃO",VLOOKUP(B18,DADOS_COTACAO,9,0),VLOOKUP(B18,DADOS_COMPOSICAO,10,0)))))) -> H | K18: 0.4574 | L18: =IF(I18="SINAPI",VLOOKUP(B18,DADOS_SINAPI,4,0),IF(I18="SETOP",VLOOKUP(B18,DADOS_SETOP,4,0),IF(I18="SICRO",VLOOKUP(B18,DADOS_SICRO,4,0),IF(I18="SUDECAP",VLOOKUP(B18,DADOS_SUDECAP,4,0),IF(I18="COTAÇÃO",VLOOKUP(B18,DADOS_COTACAO,12,0),VLOOKUP(B18,DADOS_COMPOSICAO,13,0)))))) -> 23.61 | M18: 10.799214
B19: 4350 | C19: =IF(I19="SINAPI",VLOOKUP(B19,DADOS_SINAPI,2,0),IF(I19="SETOP",VLOOKUP(B19,DADOS_SETOP,2,0),IF(I19="SICRO",VLOOKUP(B19,DADOS_SICRO,2,0),IF(I19="SUDECAP",VLOOKUP(B19,DADOS_SUDECAP,2,0),IF(I19="COTAÇÃO",VLOOKUP(B19,DADOS_COTACAO,2,0),VLOOKUP(B19,DADOS_COMPOSICAO,2,0)))))) -> BUCHA DE NYLON, DIAMETRO DO FURO 8 MM, COMPRIMENTO 40 MM, COM PARAFUSO DE ROSCA SOBERBA, CABECA CHATA, FENDA SIMPLES, 4,8 X 50 MM | I19: SINAPI | J19: =IF(I19="SINAPI",VLOOKUP(B19,DADOS_SINAPI,3,0),IF(I19="SETOP",VLOOKUP(B19,DADOS_SETOP,3,0),IF(I19="SICRO",VLOOKUP(B19,DADOS_SICRO,3,0),IF(I19="SUDECAP",VLOOKUP(B19,DADOS_SUDECAP,3,0),IF(I19="COTAÇÃO",VLOOKUP(B19,DADOS_COTACAO,9,0),VLOOKUP(B19,DADOS_COMPOSICAO,10,0)))))) -> UN | K19: 2 | L19: =IF(I19="SINAPI",VLOOKUP(B19,DADOS_SINAPI,4,0),IF(I19="SETOP",VLOOKUP(B19,DADOS_SETOP,4,0),IF(I19="SICRO",VLOOKUP(B19,DADOS_SICRO,4,0),IF(I19="SUDECAP",VLOOKUP(B19,DADOS_SUDECAP,4,0),IF(I19="COTAÇÃO",VLOOKUP(B19,DADOS_COTACAO,12,0),VLOOKUP(B19,DADOS_COMPOSICAO,13,0)))))) -> 0.87 | M19: 1.74
B20: COT-INC-001 | C20: =IF(I20="SINAPI",VLOOKUP(B20,DADOS_SINAPI,2,0),IF(I20="SETOP",VLOOKUP(B20,DADOS_SETOP,2,0),IF(I20="SICRO",VLOOKUP(B20,DADOS_SICRO,2,0),IF(I20="SUDECAP",VLOOKUP(B20,DADOS_SUDECAP,2,0),IF(I20="COTAÇÃO",VLOOKUP(B20,DADOS_COTACAO,2,0),VLOOKUP(B20,DADOS_COMPOSICAO,2,0)))))) -> EXTINTOR DE INCÊNDIO TIPO PÓ QUÍMICO 4-A:40-B:C, CAPACIDADE 6 KG | I20: COTAÇÃO | J20: =IF(I20="SINAPI",VLOOKUP(B20,DADOS_SINAPI,3,0),IF(I20="SETOP",VLOOKUP(B20,DADOS_SETOP,3,0),IF(I20="SICRO",VLOOKUP(B20,DADOS_SICRO,3,0),IF(I20="SUDECAP",VLOOKUP(B20,DADOS_SUDECAP,3,0),IF(I20="COTAÇÃO",VLOOKUP(B20,DADOS_COTACAO,9,0),VLOOKUP(B20,DADOS_COMPOSICAO,10,0)))))) -> UN | K20: 1 | L20: =IF(I20="SINAPI",VLOOKUP(B20,DADOS_SINAPI,4,0),IF(I20="SETOP",VLOOKUP(B20,DADOS_SETOP,4,0),IF(I20="SICRO",VLOOKUP(B20,DADOS_SICRO,4,0),IF(I20="SUDECAP",VLOOKUP(B20,DADOS_SUDECAP,4,0),IF(I20="COTAÇÃO",VLOOKUP(B20,DADOS_COTACAO,12,0),VLOOKUP(B20,DADOS_COMPOSICAO,13,0)))))) -> 201.14 | M20: =K20*L20 -> 201.14
A22: DAC-2.2 | B22: SINALIZADOR VISUAL E ACÚSTICO PARA SISTEMA DE INCÊNDIO ENDEREÇÁVEL. FORNECIMENTO E INSTALAÇÃO | I22: CPU | J22: UN | M22: =SUM(M23:M25) -> 144.01342
B23: 88264 | C23: =IF(I23="SINAPI",VLOOKUP(B23,DADOS_SINAPI,2,0),IF(I23="SETOP",VLOOKUP(B23,DADOS_SETOP,2,0),IF(I23="SICRO",VLOOKUP(B23,DADOS_SICRO,2,0),IF(I23="SUDECAP",VLOOKUP(B23,DADOS_SUDECAP,2,0),IF(I23="COTAÇÃO",VLOOKUP(B23,DADOS_COTACAO,2,0),VLOOKUP(B23,DADOS_COMPOSICAO,2,0)))))) -> ELETRICISTA COM ENCARGOS COMPLEMENTARES | I23: SINAPI | J23: =IF(I23="SINAPI",VLOOKUP(B23,DADOS_SINAPI,3,0),IF(I23="SETOP",VLOOKUP(B23,DADOS_SETOP,3,0),IF(I23="SICRO",VLOOKUP(B23,DADOS_SICRO,3,0),IF(I23="SUDECAP",VLOOKUP(B23,DADOS_SUDECAP,3,0),IF(I23="COTAÇÃO",VLOOKUP(B23,DADOS_COTACAO,9,0),VLOOKUP(B23,DADOS_COMPOSICAO,10,0)))))) -> H | K23: 1.303 | L23: =IF(I23="SINAPI",VLOOKUP(B23,DADOS_SINAPI,4,0),IF(I23="SETOP",VLOOKUP(B23,DADOS_SETOP,4,0),IF(I23="SICRO",VLOOKUP(B23,DADOS_SICRO,4,0),IF(I23="SUDECAP",VLOOKUP(B23,DADOS_SUDECAP,4,0),IF(I23="COTAÇÃO",VLOOKUP(B23,DADOS_COTACAO,12,0),VLOOKUP(B23,DADOS_COMPOSICAO,13,0)))))) -> 24.69 | M23: =K23*L23 -> 32.17107
B24: 88247 | C24: =IF(I24="SINAPI",VLOOKUP(B24,DADOS_SINAPI,2,0),IF(I24="SETOP",VLOOKUP(B24,DADOS_SETOP,2,0),IF(I24="SICRO",VLOOKUP(B24,DADOS_SICRO,2,0),IF(I24="SUDECAP",VLOOKUP(B24,DADOS_SUDECAP,2,0),IF(I24="COTAÇÃO",VLOOKUP(B24,DADOS_COTACAO,2,0),VLOOKUP(B24,DADOS_COMPOSICAO,2,0)))))) -> AUXILIAR DE ELETRICISTA COM ENCARGOS COMPLEMENTARES | I24: SINAPI | J24: =IF(I24="SINAPI",VLOOKUP(B24,DADOS_SINAPI,3,0),IF(I24="SETOP",VLOOKUP(B24,DADOS_SETOP,3,0),IF(I24="SICRO",VLOOKUP(B24,DADOS_SICRO,3,0),IF(I24="SUDECAP",VLOOKUP(B24,DADOS_SUDECAP,3,0),IF(I24="COTAÇÃO",VLOOKUP(B24,DADOS_COTACAO,9,0),VLOOKUP(B24,DADOS_COMPOSICAO,10,0)))))) -> H | K24: 1.521 | L24: =IF(I24="SINAPI",VLOOKUP(B24,DADOS_SINAPI,4,0),IF(I24="SETOP",VLOOKUP(B24,DADOS_SETOP,4,0),IF(I24="SICRO",VLOOKUP(B24,DADOS_SICRO,4,0),IF(I24="SUDECAP",VLOOKUP(B24,DADOS_SUDECAP,4,0),IF(I24="COTAÇÃO",VLOOKUP(B24,DADOS_COTACAO,12,0),VLOOKUP(B24,DADOS_COMPOSICAO,13,0)))))) -> 20.35 | M24: 30.95235
B25: COT-INC-002 | C25: =IF(I25="SINAPI",VLOOKUP(B25,DADOS_SINAPI,2,0),IF(I25="SETOP",VLOOKUP(B25,DADOS_SETOP,2,0),IF(I25="SICRO",VLOOKUP(B25,DADOS_SICRO,2,0),IF(I25="SUDECAP",VLOOKUP(B25,DADOS_SUDECAP,2,0),IF(I25="COTAÇÃO",VLOOKUP(B25,DADOS_COTACAO,2,0),VLOOKUP(B25,DADOS_COMPOSICAO,2,0)))))) -> SINALIZADOR VISUAL E ACÚSTICO PARA SISTEMA DE INCÊNDIO ENDEREÇÁVEL | I25: COTAÇÃO | J25: =IF(I25="SINAPI",VLOOKUP(B25,DADOS_SINAPI,3,0),IF(I25="SETOP",VLOOKUP(B25,DADOS_SETOP,3,0),IF(I25="SICRO",VLOOKUP(B25,DADOS_SICRO,3,0),IF(I25="SUDECAP",VLOOKUP(B25,DADOS_SUDECAP,3,0),IF(I25="COTAÇÃO",VLOOKUP(B25,DADOS_COTACAO,9,0),VLOOKUP(B25,DADOS_COMPOSICAO,10,0)))))) -> UN | K25: 1 | L25: =IF(I25="SINAPI",VLOOKUP(B25,DADOS_SINAPI,4,0),IF(I25="SETOP",VLOOKUP(B25,DADOS_SETOP,4,0),IF(I25="SICRO",VLOOKUP(B25,DADOS_SICRO,4,0),IF(I25="SUDECAP",VLOOKUP(B25,DADOS_SUDECAP,4,0),IF(I25="COTAÇÃO",VLOOKUP(B25,DADOS_COTACAO,12,0),VLOOKUP(B25,DADOS_COMPOSICAO,13,0)))))) -> 80.89 | M25: =K25*L25 -> 80.89
A27: DAC-2.3 | B27: CENTRAL DE ALARME DE INCÊNDIO ENDEREÇÁVEL. FORNECIMENTO E INSTALAÇÃO | I27: CPU | J27: UN | M27: =SUM(M28:M30) -> 1708.3292
B28: 88266 | C28: =IF(I28="SINAPI",VLOOKUP(B28,DADOS_SINAPI,2,0),IF(I28="SETOP",VLOOKUP(B28,DADOS_SETOP,2,0),IF(I28="SICRO",VLOOKUP(B28,DADOS_SICRO,2,0),IF(I28="SUDECAP",VLOOKUP(B28,DADOS_SUDECAP,2,0),IF(I28="COTAÇÃO",VLOOKUP(B28,DADOS_COTACAO,2,0),VLOOKUP(B28,DADOS_COMPOSICAO,2,0)))))) -> ELETROTÉCNICO COM ENCARGOS COMPLEMENTARES | I28: SINAPI | J28: =IF(I28="SINAPI",VLOOKUP(B28,DADOS_SINAPI,3,0),IF(I28="SETOP",VLOOKUP(B28,DADOS_SETOP,3,0),IF(I28="SICRO",VLOOKUP(B28,DADOS_SICRO,3,0),IF(I28="SUDECAP",VLOOKUP(B28,DADOS_SUDECAP,3,0),IF(I28="COTAÇÃO",VLOOKUP(B28,DADOS_COTACAO,9,0),VLOOKUP(B28,DADOS_COMPOSICAO,10,0)))))) -> H | K28: 3.27 | L28: =IF(I28="SINAPI",VLOOKUP(B28,DADOS_SINAPI,4,0),IF(I28="SETOP",VLOOKUP(B28,DADOS_SETOP,4,0),IF(I28="SICRO",VLOOKUP(B28,DADOS_SICRO,4,0),IF(I28="SUDECAP",VLOOKUP(B28,DADOS_SUDECAP,4,0),IF(I28="COTAÇÃO",VLOOKUP(B28,DADOS_COTACAO,12,0),VLOOKUP(B28,DADOS_COMPOSICAO,13,0)))))) -> 34.98 | M28: =K28*L28 -> 114.3846
B29: 88243 | C29: =IF(I29="SINAPI",VLOOKUP(B29,DADOS_SINAPI,2,0),IF(I29="SETOP",VLOOKUP(B29,DADOS_SETOP,2,0),IF(I29="SICRO",VLOOKUP(B29,DADOS_SICRO,2,0),IF(I29="SUDECAP",VLOOKUP(B29,DADOS_SUDECAP,2,0),IF(I29="COTAÇÃO",VLOOKUP(B29,DADOS_COTACAO,2,0),VLOOKUP(B29,DADOS_COMPOSICAO,2,0)))))) -> AJUDANTE ESPECIALIZADO COM ENCARGOS COMPLEMENTARES | I29: SINAPI | J29: =IF(I29="SINAPI",VLOOKUP(B29,DADOS_SINAPI,3,0),IF(I29="SETOP",VLOOKUP(B29,DADOS_SETOP,3,0),IF(I29="SICRO",VLOOKUP(B29,DADOS_SICRO,3,0),IF(I29="SUDECAP",VLOOKUP(B29,DADOS_SUDECAP,3,0),IF(I29="COTAÇÃO",VLOOKUP(B29,DADOS_COTACAO,9,0),VLOOKUP(B29,DADOS_COMPOSICAO,10,0)))))) -> H | K29: 3.27 | L29: =IF(I29="SINAPI",VLOOKUP(B29,DADOS_SINAPI,4,0),IF(I29="SETOP",VLOOKUP(B29,DADOS_SETOP,4,0),IF(I29="SICRO",VLOOKUP(B29,DADOS_SICRO,4,0),IF(I29="SUDECAP",VLOOKUP(B29,DADOS_SUDECAP,4,0),IF(I29="COTAÇÃO",VLOOKUP(B29,DADOS_COTACAO,12,0),VLOOKUP(B29,DADOS_COMPOSICAO,13,0)))))) -> 20.98 | M29: =K29*L29 -> 68.6046
B30: COT-INC-003 | C30: =IF(I30="SINAPI",VLOOKUP(B30,DADOS_SINAPI,2,0),IF(I30="SETOP",VLOOKUP(B30,DADOS_SETOP,2,0),IF(I30="SICRO",VLOOKUP(B30,DADOS_SICRO,2,0),IF(I30="SUDECAP",VLOOKUP(B30,DADOS_SUDECAP,2,0),IF(I30="COTAÇÃO",VLOOKUP(B30,DADOS_COTACAO,2,0),VLOOKUP(B30,DADOS_COMPOSICAO,2,0)))))) -> CENTRAL DE ALARME DE INCÊNDIO ENDEREÇÁVEL | I30: COTAÇÃO | J30: =IF(I30="SINAPI",VLOOKUP(B30,DADOS_SINAPI,3,0),IF(I30="SETOP",VLOOKUP(B30,DADOS_SETOP,3,0),IF(I30="SICRO",VLOOKUP(B30,DADOS_SICRO,3,0),IF(I30="SUDECAP",VLOOKUP(B30,DADOS_SUDECAP,3,0),IF(I30="COTAÇÃO",VLOOKUP(B30,DADOS_COTACAO,9,0),VLOOKUP(B30,DADOS_COMPOSICAO,10,0)))))) -> UN | K30: 1 | L30: =IF(I30="SINAPI",VLOOKUP(B30,DADOS_SINAPI,4,0),IF(I30="SETOP",VLOOKUP(B30,DADOS_SETOP,4,0),IF(I30="SICRO",VLOOKUP(B30,DADOS_SICRO,4,0),IF(I30="SUDECAP",VLOOKUP(B30,DADOS_SUDECAP,4,0),IF(I30="COTAÇÃO",VLOOKUP(B30,DADOS_COTACAO,12,0),VLOOKUP(B30,DADOS_COMPOSICAO,13,0)))))) -> 1525.34 | M30: =K30*L30 -> 1525.34
A32: DAC-2.4 | B32: ABRIGO DUPLO PARA MANGUEIRAS, 120X90X17CM, INSTALADO EM MURETA DE ALVENARIA COM ACABAMENTO - FORNECIMENTO E INSTALAÇÃO | I32: CPU | J32: UN | M32: =SUM(M33:M49) -> 2080.7933
B33: 88267 | C33: =IF(I33="SINAPI",VLOOKUP(B33,DADOS_SINAPI,2,0),IF(I33="SETOP",VLOOKUP(B33,DADOS_SETOP,2,0),IF(I33="SICRO",VLOOKUP(B33,DADOS_SICRO,2,0),IF(I33="SUDECAP",VLOOKUP(B33,DADOS_SUDECAP,2,0),IF(I33="COTAÇÃO",VLOOKUP(B33,DADOS_COTACAO,2,0),VLOOKUP(B33,DADOS_COMPOSICAO,2,0)))))) -> ENCANADOR OU BOMBEIRO HIDRÁULICO COM ENCARGOS COMPLEMENTARES | I33: SINAPI | J33: =IF(I33="SINAPI",VLOOKUP(B33,DADOS_SINAPI,3,0),IF(I33="SETOP",VLOOKUP(B33,DADOS_SETOP,3,0),IF(I33="SICRO",VLOOKUP(B33,DADOS_SICRO,3,0),IF(I33="SUDECAP",VLOOKUP(B33,DADOS_SUDECAP,3,0),IF(I33="COTAÇÃO",VLOOKUP(B33,DADOS_COTACAO,9,0),VLOOKUP(B33,DADOS_COMPOSICAO,10,0)))))) -> H | K33: 2.22 | L33: =IF(I33="SINAPI",VLOOKUP(B33,DADOS_SINAPI,4,0),IF(I33="SETOP",VLOOKUP(B33,DADOS_SETOP,4,0),IF(I33="SICRO",VLOOKUP(B33,DADOS_SICRO,4,0),IF(I33="SUDECAP",VLOOKUP(B33,DADOS_SUDECAP,4,0),IF(I33="COTAÇÃO",VLOOKUP(B33,DADOS_COTACAO,12,0),VLOOKUP(B33,DADOS_COMPOSICAO,13,0)))))) -> 23.61 | M33: =K33*L33 -> 52.4142
B34: 88248 | C34: AUXILIAR DE ENCANADOR OU BOMBEIRO HIDRÁULICO COM ENCARGOS COMPLEMENTARES | I34: SINAPI | J34: H | K34: 2.62 | L34: 19.36 | M34: 50.7232
B35: 103326 | C35: ALVENARIA DE VEDAÇÃO DE BLOCOS CERÂMICOS FURADOS NA VERTICAL DE 19X19X39 CM (ESPESSURA 19 CM) E ARGAMASSA DE ASSENTAMENTO COM PREPARO EM BETONEIRA. AF_12/2021 | I35: SINAPI | J35: m² | K35: 2.25 | L35: 86.36 | M35: 194.31
B36: ED-48199 | C36: =IF(I36="SINAPI",VLOOKUP(B36,DADOS_SINAPI,2,0),IF(I36="SETOP",VLOOKUP(B36,DADOS_SETOP,2,0),IF(I36="SICRO",VLOOKUP(B36,DADOS_SICRO,2,0),IF(I36="SUDECAP",VLOOKUP(B36,DADOS_SUDECAP,2,0),IF(I36="COTAÇÃO",VLOOKUP(B36,DADOS_COTACAO,2,0),VLOOKUP(B36,DADOS_COMPOSICAO,2,0)))))) -> ALVENARIA ESTRUTURAL COM BLOCO DE CONCRETO, ESP. 19CM, (FBK 4,5MPA), PARA REVESTIMENTO, INCLUSIVE ARGAMASSA PARA ASSENTAMENTO | I36: SETOP | J36: m² | K36: 1.2 | L36: =IF(I36="SINAPI",VLOOKUP(B36,DADOS_SINAPI,4,0),IF(I36="SETOP",VLOOKUP(B36,DADOS_SETOP,4,0),IF(I36="SICRO",VLOOKUP(B36,DADOS_SICRO,4,0),IF(I36="SUDECAP",VLOOKUP(B36,DADOS_SUDECAP,4,0),IF(I36="COTAÇÃO",VLOOKUP(B36,DADOS_COTACAO,12,0),VLOOKUP(B36,DADOS_COMPOSICAO,13,0)))))) -> 86.15 | M36: =K36*L36 -> 103.38
B37: 87879 | C37: =IF(I37="SINAPI",VLOOKUP(B37,DADOS_SINAPI,2,0),IF(I37="SETOP",VLOOKUP(B37,DADOS_SETOP,2,0),IF(I37="SICRO",VLOOKUP(B37,DADOS_SICRO,2,0),IF(I37="SUDECAP",VLOOKUP(B37,DADOS_SUDECAP,2,0),IF(I37="COTAÇÃO",VLOOKUP(B37,DADOS_COTACAO,2,0),VLOOKUP(B37,DADOS_COMPOSICAO,2,0)))))) -> CHAPISCO APLICADO EM ALVENARIAS E ESTRUTURAS DE CONCRETO INTERNAS, COM COLHER DE PEDREIRO. ARGAMASSA TRAÇO 1:3 COM PREPARO EM BETONEIRA 400L. AF_10/2022 | I37: SINAPI | J37: m² | K37: 4.3 | L37: =IF(I37="SINAPI",VLOOKUP(B37,DADOS_SINAPI,4,0),IF(I37="SETOP",VLOOKUP(B37,DADOS_SETOP,4,0),IF(I37="SICRO",VLOOKUP(B37,DADOS_SICRO,4,0),IF(I37="SUDECAP",VLOOKUP(B37,DADOS_SUDECAP,4,0),IF(I37="COTAÇÃO",VLOOKUP(B37,DADOS_COTACAO,12,0),VLOOKUP(B37,DADOS_COMPOSICAO,13,0)))))) -> 4.02 | M37: =K37*L37 -> 17.286
B38: 87529 | C38: =IF(I38="SINAPI",VLOOKUP(B38,DADOS_SINAPI,2,0),IF(I38="SETOP",VLOOKUP(B38,DADOS_SETOP,2,0),IF(I38="SICRO",VLOOKUP(B38,DADOS_SICRO,2,0),IF(I38="SUDECAP",VLOOKUP(B38,DADOS_SUDECAP,2,0),IF(I38="COTAÇÃO",VLOOKUP(B38,DADOS_COTACAO,2,0),VLOOKUP(B38,DADOS_COMPOSICAO,2,0)))))) -> MASSA ÚNICA, PARA RECEBIMENTO DE PINTURA, EM ARGAMASSA TRAÇO 1:2:8, PREPARO MECÂNICO COM BETONEIRA 400L, APLICADA MANUALMENTE EM FACES INTERNAS DE PAREDES, ESPESSURA DE 20MM, COM EXECUÇÃO DE TALISCAS. AF_06/2014 | I38: SINAPI | J38: m² | K38: 4.3 | L38: =IF(I38="SINAPI",VLOOKUP(B38,DADOS_SINAPI,4,0),IF(I38="SETOP",VLOOKUP(B38,DADOS_SETOP,4,0),IF(I38="SICRO",VLOOKUP(B38,DADOS_SICRO,4,0),IF(I38="SUDECAP",VLOOKUP(B38,DADOS_SUDECAP,4,0),IF(I38="COTAÇÃO",VLOOKUP(B38,DADOS_COTACAO,12,0),VLOOKUP(B38,DADOS_COMPOSICAO,13,0)))))) -> 35.09 | M38: =K38*L38 -> 150.887
B39: ED-50474 | C39: =IF(I39="SINAPI",VLOOKUP(B39,DADOS_SINAPI,2,0),IF(I39="SETOP",VLOOKUP(B39,DADOS_SETOP,2,0),IF(I39="SICRO",VLOOKUP(B39,DADOS_SICRO,2,0),IF(I39="SUDECAP",VLOOKUP(B39,DADOS_SUDECAP,2,0),IF(I39="COTAÇÃO",VLOOKUP(B39,DADOS_COTACAO,2,0),VLOOKUP(B39,DADOS_COMPOSICAO,2,0)))))) -> EMASSAMENTO EM PAREDE COM MASSA ACRÍLICA, DUAS (2) DEMÃOS, INCLUSIVE LIXAMENTO PARA PINTURA | I39: SETOP | J39: m² | K39: 4.3 | L39: =IF(I39="SINAPI",VLOOKUP(B39,DADOS_SINAPI,4,0),IF(I39="SETOP",VLOOKUP(B39,DADOS_SETOP,4,0),IF(I39="SICRO",VLOOKUP(B39,DADOS_SICRO,4,0),IF(I39="SUDECAP",VLOOKUP(B39,DADOS_SUDECAP,4,0),IF(I39="COTAÇÃO",VLOOKUP(B39,DADOS_COTACAO,12,0),VLOOKUP(B39,DADOS_COMPOSICAO,13,0)))))) -> 21.47 | M39: =K39*L39 -> 92.321
B40: 88415 | C40: =IF(I40="SINAPI",VLOOKUP(B40,DADOS_SINAPI,2,0),IF(I40="SETOP",VLOOKUP(B40,DADOS_SETOP,2,0),IF(I40="SICRO",VLOOKUP(B40,DADOS_SICRO,2,0),IF(I40="SUDECAP",VLOOKUP(B40,DADOS_SUDECAP,2,0),IF(I40="COTAÇÃO",VLOOKUP(B40,DADOS_COTACAO,2,0),VLOOKUP(B40,DADOS_COMPOSICAO,2,0)))))) -> APLICAÇÃO MANUAL DE FUNDO SELADOR ACRÍLICO EM PAREDES EXTERNAS DE CASAS. AF_06/2014 | I40: SINAPI | J40: m² | K40: 4.3 | L40: =IF(I40="SINAPI",VLOOKUP(B40,DADOS_SINAPI,4,0),IF(I40="SETOP",VLOOKUP(B40,DADOS_SETOP,4,0),IF(I40="SICRO",VLOOKUP(B40,DADOS_SICRO,4,0),IF(I40="SUDECAP",VLOOKUP(B40,DADOS_SUDECAP,4,0),IF(I40="COTAÇÃO",VLOOKUP(B40,DADOS_COTACAO,12,0),VLOOKUP(B40,DADOS_COMPOSICAO,13,0)))))) -> 3.4 | M40: =K40*L40 -> 14.62
B41: 95626 | C41: =IF(I41="SINAPI",VLOOKUP(B41,DADOS_SINAPI,2,0),IF(I41="SETOP",VLOOKUP(B41,DADOS_SETOP,2,0),IF(I41="SICRO",VLOOKUP(B41,DADOS_SICRO,2,0),IF(I41="SUDECAP",VLOOKUP(B41,DADOS_SUDECAP,2,0),IF(I41="COTAÇÃO",VLOOKUP(B41,DADOS_COTACAO,2,0),VLOOKUP(B41,DADOS_COMPOSICAO,2,0)))))) -> APLICAÇÃO MANUAL DE TINTA LÁTEX ACRÍLICA EM PAREDE EXTERNAS DE CASAS, DUAS DEMÃOS. AF_11/2016 | I41: SINAPI | J41: m² | K41: 4 | L41: =IF(I41="SINAPI",VLOOKUP(B41,DADOS_SINAPI,4,0),IF(I41="SETOP",VLOOKUP(B41,DADOS_SETOP,4,0),IF(I41="SICRO",VLOOKUP(B41,DADOS_SICRO,4,0),IF(I41="SUDECAP",VLOOKUP(B41,DADOS_SUDECAP,4,0),IF(I41="COTAÇÃO",VLOOKUP(B41,DADOS_COTACAO,12,0),VLOOKUP(B41,DADOS_COMPOSICAO,13,0)))))) -> 16.14 | M41: =K41*L41 -> 64.56
B42: COT-INC-007 | C42: ABRIGO DUPLO PARA MANGUEIRA DE INCÊNDIO 90X120X17 | I42: COTAÇÃO | J42: UN | K42: 1 | L42: 906.38 | M42: 906.38
B43: 96527 | C43: ESCAVAÇÃO MANUAL DE VALA PARA VIGA BALDRAME (INCLUINDO ESCAVAÇÃO PARA COLOCAÇÃO DE FÔRMAS). AF_06/2017 | I43: SINAPI | J43: m³ | K43: 0.12 | L43: 110.52 | M43: 13.2624
B44: 96624 | C44: =IF(I44="SINAPI",VLOOKUP(B44,DADOS_SINAPI,2,0),IF(I44="SETOP",VLOOKUP(B44,DADOS_SETOP,2,0),IF(I44="SICRO",VLOOKUP(B44,DADOS_SICRO,2,0),IF(I44="SUDECAP",VLOOKUP(B44,DADOS_SUDECAP,2,0),IF(I44="COTAÇÃO",VLOOKUP(B44,DADOS_COTACAO,2,0),VLOOKUP(B44,DADOS_COMPOSICAO,2,0)))))) -> LASTRO COM MATERIAL GRANULAR (PEDRA BRITADA N.2), APLICADO EM PISOS OU LAJES SOBRE SOLO, ESPESSURA DE *10 CM*. AF_08/2017 | I44: SINAPI | J44: m³ | K44: 0.06 | L44: =IF(I44="SINAPI",VLOOKUP(B44,DADOS_SINAPI,4,0),IF(I44="SETOP",VLOOKUP(B44,DADOS_SETOP,4,0),IF(I44="SICRO",VLOOKUP(B44,DADOS_SICRO,4,0),IF(I44="SUDECAP",VLOOKUP(B44,DADOS_SUDECAP,4,0),IF(I44="COTAÇÃO",VLOOKUP(B44,DADOS_COTACAO,12,0),VLOOKUP(B44,DADOS_COMPOSICAO,13,0)))))) -> 166.97 | M44: =K44*L44 -> 10.0182
B45: 101174 | C45: =IF(I45="SINAPI",VLOOKUP(B45,DADOS_SINAPI,2,0),IF(I45="SETOP",VLOOKUP(B45,DADOS_SETOP,2,0),IF(I45="SICRO",VLOOKUP(B45,DADOS_SICRO,2,0),IF(I45="SUDECAP",VLOOKUP(B45,DADOS_SUDECAP,2,0),IF(I45="COTAÇÃO",VLOOKUP(B45,DADOS_COTACAO,2,0),VLOOKUP(B45,DADOS_COMPOSICAO,2,0)))))) -> ESTACA BROCA DE CONCRETO, DIÂMETRO DE 25CM, ESCAVAÇÃO MANUAL COM TRADO CONCHA, COM ARMADURA DE ARRANQUE. AF_05/2020 | I45: SINAPI | J45: m | K45: 2 | L45: =IF(I45="SINAPI",VLOOKUP(B45,DADOS_SINAPI,4,0),IF(I45="SETOP",VLOOKUP(B45,DADOS_SETOP,4,0),IF(I45="SICRO",VLOOKUP(B45,DADOS_SICRO,4,0),IF(I45="SUDECAP",VLOOKUP(B45,DADOS_SUDECAP,4,0),IF(I45="COTAÇÃO",VLOOKUP(B45,DADOS_COTACAO,12,0),VLOOKUP(B45,DADOS_COMPOSICAO,13,0)))))) -> 76.9 | M45: =K45*L45 -> 153.8
B46: ED-48298 | C46: =IF(I46="SINAPI",VLOOKUP(B46,DADOS_SINAPI,2,0),IF(I46="SETOP",VLOOKUP(B46,DADOS_SETOP,2,0),IF(I46="SICRO",VLOOKUP(B46,DADOS_SICRO,2,0),IF(I46="SUDECAP",VLOOKUP(B46,DADOS_SUDECAP,2,0),IF(I46="COTAÇÃO",VLOOKUP(B46,DADOS_COTACAO,2,0),VLOOKUP(B46,DADOS_COMPOSICAO,2,0)))))) -> CORTE, DOBRA E MONTAGEM DE AÇO CA-50/60, INCLUSIVE ESPAÇADOR | I46: SETOP | J46: kg | K46: 9.4 | L46: =IF(I46="SINAPI",VLOOKUP(B46,DADOS_SINAPI,4,0),IF(I46="SETOP",VLOOKUP(B46,DADOS_SETOP,4,0),IF(I46="SICRO",VLOOKUP(B46,DADOS_SICRO,4,0),IF(I46="SUDECAP",VLOOKUP(B46,DADOS_SUDECAP,4,0),IF(I46="COTAÇÃO",VLOOKUP(B46,DADOS_COTACAO,12,0),VLOOKUP(B46,DADOS_COMPOSICAO,13,0)))))) -> 11.53 | M46: =K46*L46 -> 108.382
B47: ED-49810 | C47: =IF(I47="SINAPI",VLOOKUP(B47,DADOS_SINAPI,2,0),IF(I47="SETOP",VLOOKUP(B47,DADOS_SETOP,2,0),IF(I47="SICRO",VLOOKUP(B47,DADOS_SICRO,2,0),IF(I47="SUDECAP",VLOOKUP(B47,DADOS_SUDECAP,2,0),IF(I47="COTAÇÃO",VLOOKUP(B47,DADOS_COTACAO,2,0),VLOOKUP(B47,DADOS_COMPOSICAO,2,0)))))) -> FÔRMA E DESFORMA PARA VIGA-CINTA/BLOCO COM TÁBUA E SARRAFO, REAPROVEITAMENTO (3X) (FUNDAÇÃO) | I47: SETOP | J47: m² | K47: 1.08 | L47: =IF(I47="SINAPI",VLOOKUP(B47,DADOS_SINAPI,4,0),IF(I47="SETOP",VLOOKUP(B47,DADOS_SETOP,4,0),IF(I47="SICRO",VLOOKUP(B47,DADOS_SICRO,4,0),IF(I47="SUDECAP",VLOOKUP(B47,DADOS_SUDECAP,4,0),IF(I47="COTAÇÃO",VLOOKUP(B47,DADOS_COTACAO,12,0),VLOOKUP(B47,DADOS_COMPOSICAO,13,0)))))) -> 56.41 | M47: =K47*L47 -> 60.9228
B48: 94966 | C48: =IF(I48="SINAPI",VLOOKUP(B48,DADOS_SINAPI,2,0),IF(I48="SETOP",VLOOKUP(B48,DADOS_SETOP,2,0),IF(I48="SICRO",VLOOKUP(B48,DADOS_SICRO,2,0),IF(I48="SUDECAP",VLOOKUP(B48,DADOS_SUDECAP,2,0),IF(I48="COTAÇÃO",VLOOKUP(B48,DADOS_COTACAO,2,0),VLOOKUP(B48,DADOS_COMPOSICAO,2,0)))))) -> CONCRETO FCK = 30MPA, TRAÇO 1:2,1:2,5 (EM MASSA SECA DE CIMENTO/ AREIA MÉDIA/ BRITA 1) - PREPARO MECÂNICO COM BETONEIRA 400 L. AF_05/2021 | I48: SINAPI | J48: m² | K48: 0.129 | L48: =IF(I48="SINAPI",VLOOKUP(B48,DADOS_SINAPI,4,0),IF(I48="SETOP",VLOOKUP(B48,DADOS_SETOP,4,0),IF(I48="SICRO",VLOOKUP(B48,DADOS_SICRO,4,0),IF(I48="SUDECAP",VLOOKUP(B48,DADOS_SUDECAP,4,0),IF(I48="COTAÇÃO",VLOOKUP(B48,DADOS_COTACAO,12,0),VLOOKUP(B48,DADOS_COMPOSICAO,13,0)))))) -> 510.5 | M48: =K48*L48 -> 65.8545
B49: 98557 | C49: =IF(I49="SINAPI",VLOOKUP(B49,DADOS_SINAPI,2,0),IF(I49="SETOP",VLOOKUP(B49,DADOS_SETOP,2,0),IF(I49="SICRO",VLOOKUP(B49,DADOS_SICRO,2,0),IF(I49="SUDECAP",VLOOKUP(B49,DADOS_SUDECAP,2,0),IF(I49="COTAÇÃO",VLOOKUP(B49,DADOS_COTACAO,2,0),VLOOKUP(B49,DADOS_COMPOSICAO,2,0)))))) -> IMPERMEABILIZAÇÃO DE SUPERFÍCIE COM EMULSÃO ASFÁLTICA, 2 DEMÃOS. AF_09/2023 | I49: SINAPI | J49: m² | K49: 0.56 | L49: =IF(I49="SINAPI",VLOOKUP(B49,DADOS_SINAPI,4,0),IF(I49="SETOP",VLOOKUP(B49,DADOS_SETOP,4,0),IF(I49="SICRO",VLOOKUP(B49,DADOS_SICRO,4,0),IF(I49="SUDECAP",VLOOKUP(B49,DADOS_SUDECAP,4,0),IF(I49="COTAÇÃO",VLOOKUP(B49,DADOS_COTACAO,12,0),VLOOKUP(B49,DADOS_COMPOSICAO,13,0)))))) -> 38.7 | M49: =K49*L49 -> 21.672
A51: DAC-2.5 | B51: ACIONADOR MANUAL TIPO LIGA-DESLIGA PARA BOMBA DE INCÊNDIO. FORNECIMENTO E INSTALAÇÃO | I51: CPU | J51: UN | M51: =SUM(M52:M54) -> 93.5584
B52: 88266 | C52: =IF(I52="SINAPI",VLOOKUP(B52,DADOS_SINAPI,2,0),IF(I52="SETOP",VLOOKUP(B52,DADOS_SETOP,2,0),IF(I52="SICRO",VLOOKUP(B52,DADOS_SICRO,2,0),IF(I52="SUDECAP",VLOOKUP(B52,DADOS_SUDECAP,2,0),IF(I52="COTAÇÃO",VLOOKUP(B52,DADOS_COTACAO,2,0),VLOOKUP(B52,DADOS_COMPOSICAO,2,0)))))) -> ELETROTÉCNICO COM ENCARGOS COMPLEMENTARES | I52: SINAPI | J52: =IF(I52="SINAPI",VLOOKUP(B52,DADOS_SINAPI,3,0),IF(I52="SETOP",VLOOKUP(B52,DADOS_SETOP,3,0),IF(I52="SICRO",VLOOKUP(B52,DADOS_SICRO,3,0),IF(I52="SUDECAP",VLOOKUP(B52,DADOS_SUDECAP,3,0),IF(I52="COTAÇÃO",VLOOKUP(B52,DADOS_COTACAO,9,0),VLOOKUP(B52,DADOS_COMPOSICAO,10,0)))))) -> H | K52: 0.29 | L52: =IF(I52="SINAPI",VLOOKUP(B52,DADOS_SINAPI,4,0),IF(I52="SETOP",VLOOKUP(B52,DADOS_SETOP,4,0),IF(I52="SICRO",VLOOKUP(B52,DADOS_SICRO,4,0),IF(I52="SUDECAP",VLOOKUP(B52,DADOS_SUDECAP,4,0),IF(I52="COTAÇÃO",VLOOKUP(B52,DADOS_COTACAO,12,0),VLOOKUP(B52,DADOS_COMPOSICAO,13,0)))))) -> 34.98 | M52: =K52*L52 -> 10.1442
B53: 88243 | C53: =IF(I53="SINAPI",VLOOKUP(B53,DADOS_SINAPI,2,0),IF(I53="SETOP",VLOOKUP(B53,DADOS_SETOP,2,0),IF(I53="SICRO",VLOOKUP(B53,DADOS_SICRO,2,0),IF(I53="SUDECAP",VLOOKUP(B53,DADOS_SUDECAP,2,0),IF(I53="COTAÇÃO",VLOOKUP(B53,DADOS_COTACAO,2,0),VLOOKUP(B53,DADOS_COMPOSICAO,2,0)))))) -> AJUDANTE ESPECIALIZADO COM ENCARGOS COMPLEMENTARES | I53: SINAPI | J53: =IF(I53="SINAPI",VLOOKUP(B53,DADOS_SINAPI,3,0),IF(I53="SETOP",VLOOKUP(B53,DADOS_SETOP,3,0),IF(I53="SICRO",VLOOKUP(B53,DADOS_SICRO,3,0),IF(I53="SUDECAP",VLOOKUP(B53,DADOS_SUDECAP,3,0),IF(I53="COTAÇÃO",VLOOKUP(B53,DADOS_COTACAO,9,0),VLOOKUP(B53,DADOS_COMPOSICAO,10,0)))))) -> H | K53: 0.29 | L53: =IF(I53="SINAPI",VLOOKUP(B53,DADOS_SINAPI,4,0),IF(I53="SETOP",VLOOKUP(B53,DADOS_SETOP,4,0),IF(I53="SICRO",VLOOKUP(B53,DADOS_SICRO,4,0),IF(I53="SUDECAP",VLOOKUP(B53,DADOS_SUDECAP,4,0),IF(I53="COTAÇÃO",VLOOKUP(B53,DADOS_COTACAO,12,0),VLOOKUP(B53,DADOS_COMPOSICAO,13,0)))))) -> 20.98 | M53: 6.0842
B54: COT-INC-005 | C54: =IF(I54="SINAPI",VLOOKUP(B54,DADOS_SINAPI,2,0),IF(I54="SETOP",VLOOKUP(B54,DADOS_SETOP,2,0),IF(I54="SICRO",VLOOKUP(B54,DADOS_SICRO,2,0),IF(I54="SUDECAP",VLOOKUP(B54,DADOS_SUDECAP,2,0),IF(I54="COTAÇÃO",VLOOKUP(B54,DADOS_COTACAO,2,0),VLOOKUP(B54,DADOS_COMPOSICAO,2,0)))))) -> ACIONADOR MANUAL TIPO LIGA-DESLIGA PARA BOMBA DE INCÊNDIO | I54: COTAÇÃO | J54: =IF(I54="SINAPI",VLOOKUP(B54,DADOS_SINAPI,3,0),IF(I54="SETOP",VLOOKUP(B54,DADOS_SETOP,3,0),IF(I54="SICRO",VLOOKUP(B54,DADOS_SICRO,3,0),IF(I54="SUDECAP",VLOOKUP(B54,DADOS_SUDECAP,3,0),IF(I54="COTAÇÃO",VLOOKUP(B54,DADOS_COTACAO,9,0),VLOOKUP(B54,DADOS_COMPOSICAO,10,0)))))) -> UN | K54: 1 | L54: =IF(I54="SINAPI",VLOOKUP(B54,DADOS_SINAPI,4,0),IF(I54="SETOP",VLOOKUP(B54,DADOS_SETOP,4,0),IF(I54="SICRO",VLOOKUP(B54,DADOS_SICRO,4,0),IF(I54="SUDECAP",VLOOKUP(B54,DADOS_SUDECAP,4,0),IF(I54="COTAÇÃO",VLOOKUP(B54,DADOS_COTACAO,12,0),VLOOKUP(B54,DADOS_COMPOSICAO,13,0)))))) -> 77.33 | M54: 77.33
A56: DAC-2.6 | B56: INSTALAÇÃO QUADRO DE COMANDO PARA O SISTEMA DE COMBATE A INCÊNDIO | I56: CPU | J56: UN | M56: =SUM(M57:M59) -> 13.5616
B57: 88264 | C57: =IF(I57="SINAPI",VLOOKUP(B57,DADOS_SINAPI,2,0),IF(I57="SETOP",VLOOKUP(B57,DADOS_SETOP,2,0),IF(I57="SICRO",VLOOKUP(B57,DADOS_SICRO,2,0),IF(I57="SUDECAP",VLOOKUP(B57,DADOS_SUDECAP,2,0),IF(I57="COTAÇÃO",VLOOKUP(B57,DADOS_COTACAO,2,0),VLOOKUP(B57,DADOS_COMPOSICAO,2,0)))))) -> ELETRICISTA COM ENCARGOS COMPLEMENTARES | I57: SINAPI | J57: =IF(I57="SINAPI",VLOOKUP(B57,DADOS_SINAPI,3,0),IF(I57="SETOP",VLOOKUP(B57,DADOS_SETOP,3,0),IF(I57="SICRO",VLOOKUP(B57,DADOS_SICRO,3,0),IF(I57="SUDECAP",VLOOKUP(B57,DADOS_SUDECAP,3,0),IF(I57="COTAÇÃO",VLOOKUP(B57,DADOS_COTACAO,9,0),VLOOKUP(B57,DADOS_COMPOSICAO,10,0)))))) -> H | K57: 0.29 | L57: =IF(I57="SINAPI",VLOOKUP(B57,DADOS_SINAPI,4,0),IF(I57="SETOP",VLOOKUP(B57,DADOS_SETOP,4,0),IF(I57="SICRO",VLOOKUP(B57,DADOS_SICRO,4,0),IF(I57="SUDECAP",VLOOKUP(B57,DADOS_SUDECAP,4,0),IF(I57="COTAÇÃO",VLOOKUP(B57,DADOS_COTACAO,12,0),VLOOKUP(B57,DADOS_COMPOSICAO,13,0)))))) -> 24.69 | M57: =K57*L57 -> 7.1601
B58: 88247 | C58: =IF(I58="SINAPI",VLOOKUP(B58,DADOS_SINAPI,2,0),IF(I58="SETOP",VLOOKUP(B58,DADOS_SETOP,2,0),IF(I58="SICRO",VLOOKUP(B58,DADOS_SICRO,2,0),IF(I58="SUDECAP",VLOOKUP(B58,DADOS_SUDECAP,2,0),IF(I58="COTAÇÃO",VLOOKUP(B58,DADOS_COTACAO,2,0),VLOOKUP(B58,DADOS_COMPOSICAO,2,0)))))) -> AUXILIAR DE ELETRICISTA COM ENCARGOS COMPLEMENTARES | I58: SINAPI | J58: =IF(I58="SINAPI",VLOOKUP(B58,DADOS_SINAPI,3,0),IF(I58="SETOP",VLOOKUP(B58,DADOS_SETOP,3,0),IF(I58="SICRO",VLOOKUP(B58,DADOS_SICRO,3,0),IF(I58="SUDECAP",VLOOKUP(B58,DADOS_SUDECAP,3,0),IF(I58="COTAÇÃO",VLOOKUP(B58,DADOS_COTACAO,9,0),VLOOKUP(B58,DADOS_COMPOSICAO,10,0)))))) -> H | K58: 0.29 | L58: =IF(I58="SINAPI",VLOOKUP(B58,DADOS_SINAPI,4,0),IF(I58="SETOP",VLOOKUP(B58,DADOS_SETOP,4,0),IF(I58="SICRO",VLOOKUP(B58,DADOS_SICRO,4,0),IF(I58="SUDECAP",VLOOKUP(B58,DADOS_SUDECAP,4,0),IF(I58="COTAÇÃO",VLOOKUP(B58,DADOS_COTACAO,12,0),VLOOKUP(B58,DADOS_COMPOSICAO,13,0)))))) -> 20.35 | M58: =K58*L58 -> 5.9015
B59: 7583 | C59: =IF(I59="SINAPI",VLOOKUP(B59,DADOS_SINAPI,2,0),IF(I59="SETOP",VLOOKUP(B59,DADOS_SETOP,2,0),IF(I59="SICRO",VLOOKUP(B59,DADOS_SICRO,2,0),IF(I59="SUDECAP",VLOOKUP(B59,DADOS_SUDECAP,2,0),IF(I59="COTAÇÃO",VLOOKUP(B59,DADOS_COTACAO,2,0),VLOOKUP(B59,DADOS_COMPOSICAO,2,0)))))) -> BUCHA DE NYLON SEM ABA S8, COM PARAFUSO DE 4,80 X 50 MM EM ACO ZINCADO COM ROSCA SOBERBA, CABECA CHATA E FENDA PHILLIPS | I59: SINAPI | J59: =IF(I59="SINAPI",VLOOKUP(B59,DADOS_SINAPI,3,0),IF(I59="SETOP",VLOOKUP(B59,DADOS_SETOP,3,0),IF(I59="SICRO",VLOOKUP(B59,DADOS_SICRO,3,0),IF(I59="SUDECAP",VLOOKUP(B59,DADOS_SUDECAP,3,0),IF(I59="COTAÇÃO",VLOOKUP(B59,DADOS_COTACAO,9,0),VLOOKUP(B59,DADOS_COMPOSICAO,10,0)))))) -> UN | K59: 1 | L59: =IF(I59="SINAPI",VLOOKUP(B59,DADOS_SINAPI,4,0),IF(I59="SETOP",VLOOKUP(B59,DADOS_SETOP,4,0),IF(I59="SICRO",VLOOKUP(B59,DADOS_SICRO,4,0),IF(I59="SUDECAP",VLOOKUP(B59,DADOS_SUDECAP,4,0),IF(I59="COTAÇÃO",VLOOKUP(B59,DADOS_COTACAO,12,0),VLOOKUP(B59,DADOS_COMPOSICAO,13,0)))))) -> 0.5 | M59: 0.5
A61: DAC-2.7 | B61: MONTAGEM DE LONGARINA COM CABO DE AÇO | I61: CPU | J61: UN | M61: =SUM(M62:M63) -> 21.14
B62: 88316 | C62: =IF(I62="SINAPI",VLOOKUP(B62,DADOS_SINAPI,2,0),IF(I62="SETOP",VLOOKUP(B62,DADOS_SETOP,2,0),IF(I62="SICRO",VLOOKUP(B62,DADOS_SICRO,2,0),IF(I62="SUDECAP",VLOOKUP(B62,DADOS_SUDECAP,2,0),IF(I62="COTAÇÃO",VLOOKUP(B62,DADOS_COTACAO,2,0),VLOOKUP(B62,DADOS_COMPOSICAO,2,0)))))) -> SERVENTE COM ENCARGOS COMPLEMENTARES | I62: SINAPI | J62: =IF(I62="SINAPI",VLOOKUP(B62,DADOS_SINAPI,3,0),IF(I62="SETOP",VLOOKUP(B62,DADOS_SETOP,3,0),IF(I62="SICRO",VLOOKUP(B62,DADOS_SICRO,3,0),IF(I62="SUDECAP",VLOOKUP(B62,DADOS_SUDECAP,3,0),IF(I62="COTAÇÃO",VLOOKUP(B62,DADOS_COTACAO,9,0),VLOOKUP(B62,DADOS_COMPOSICAO,10,0)))))) -> H | K62: 0.5 | L62: =IF(I62="SINAPI",VLOOKUP(B62,DADOS_SINAPI,4,0),IF(I62="SETOP",VLOOKUP(B62,DADOS_SETOP,4,0),IF(I62="SICRO",VLOOKUP(B62,DADOS_SICRO,4,0),IF(I62="SUDECAP",VLOOKUP(B62,DADOS_SUDECAP,4,0),IF(I62="COTAÇÃO",VLOOKUP(B62,DADOS_COTACAO,12,0),VLOOKUP(B62,DADOS_COMPOSICAO,13,0)))))) -> 18.12 | M62: =K62*L62 -> 9.06
B63: 88315 | C63: =IF(I63="SINAPI",VLOOKUP(B63,DADOS_SINAPI,2,0),IF(I63="SETOP",VLOOKUP(B63,DADOS_SETOP,2,0),IF(I63="SICRO",VLOOKUP(B63,DADOS_SICRO,2,0),IF(I63="SUDECAP",VLOOKUP(B63,DADOS_SUDECAP,2,0),IF(I63="COTAÇÃO",VLOOKUP(B63,DADOS_COTACAO,2,0),VLOOKUP(B63,DADOS_COMPOSICAO,2,0)))))) -> SERRALHEIRO COM ENCARGOS COMPLEMENTARES | I63: SINAPI | J63: =IF(I63="SINAPI",VLOOKUP(B63,DADOS_SINAPI,3,0),IF(I63="SETOP",VLOOKUP(B63,DADOS_SETOP,3,0),IF(I63="SICRO",VLOOKUP(B63,DADOS_SICRO,3,0),IF(I63="SUDECAP",VLOOKUP(B63,DADOS_SUDECAP,3,0),IF(I63="COTAÇÃO",VLOOKUP(B63,DADOS_COTACAO,9,0),VLOOKUP(B63,DADOS_COMPOSICAO,10,0)))))) -> H | K63: 0.5 | L63: =IF(I63="SINAPI",VLOOKUP(B63,DADOS_SINAPI,4,0),IF(I63="SETOP",VLOOKUP(B63,DADOS_SETOP,4,0),IF(I63="SICRO",VLOOKUP(B63,DADOS_SICRO,4,0),IF(I63="SUDECAP",VLOOKUP(B63,DADOS_SUDECAP,4,0),IF(I63="COTAÇÃO",VLOOKUP(B63,DADOS_COTACAO,12,0),VLOOKUP(B63,DADOS_COMPOSICAO,13,0)))))) -> 24.16 | M63: 12.08
D74: RESPONSÁVEL TÉCNICO: | G74: =DADOS!D16 -> FLÁVIA CRISTINA BARBOSA
G75: =DADOS!D18 -> CREA - MG 187.842/D

Sheet COT
A2: PLANILHA DE COTAÇÕES | K2: Revisão: | L2: =DADOS!D6 -> R00
K3: Data: | L3: =DADOS!D2 -> 2024-02-19
A4: Projeto: | D4: Responsável: | G4: Cliente: | K4: Bancos:
A5: =DADOS!D8 -> SISTEMA DE PROTEÇÃO CONTRA INCÊNDIO E PÂNICO CEIM PROFESSORA MARIA GRAFIRA NUNES SAPONARA | D5: =DADOS!G8 -> 0 | K5: =DADOS!D14 -> SINAPI: 12/2023 Minas Gerais SETOP: 08/2023 Minas Gerais SICRO : 10/2023 Minas Gerais SUDECAP: 10/2023 Minas Gerais
K8: BDI 1: | L8: =DADOS!D10 -> 0.2652
K9: BDI 2: | L9: =DADOS!D12 -> -
A11: =A2&" DE "&DADOS!D20&" - "&A5 -> PLANILHA DE COTAÇÕES DE PROJETO EXECUTIVO - SISTEMA DE PROTEÇÃO CONTRA INCÊNDIO E PÂNICO CEIM PROFESSORA MARIA GRAFIRA NUNES SAPONARA
A13: COT-INC-001 | B13: EXTINTOR DE INCÊNDIO TIPO PÓ QUÍMICO 4-A:40-B:C, CAPACIDADE 6 KG | I13: UN | L13: =MEDIAN(L15:XFD17) -> 201.14
A14: EMPRESA | B14: CIDADE | C14: LOCAL / LINK | G14: CNPJ | H14: CONTATO | I14: UN | J14: VALOR | K14: FRETE | L14: TOTAL
A15: TRIAMOM | C15: https://triamom.com.br/produto/extintor-contra-incendio-po-4a40bc-abc-6kg/ | G15: 41.787.899/0001-11 | H15: (35) 3421-2050 | I15: UN | J15: 133 | K15: 25.01 | L15: =J15+K15 -> 158.01
A16: EXTINCENTRO | C16: https://www.extincentro.com.br/aa2puao0k-extintor-abc-04-kg-2a20bc-1-unid | G16: 25.923.913/0001-00 | H16: (37) 2101-0665 | I16: UN | J16: 193 | K16: 31.43 | L16: =J16+K16 -> 224.43
A17: MAGAZINE LUIZA | C17: https://www.magazineluiza.com.br/extintor-abc-6kg-4a40-bc-paracatu-extintores/p/aakdc3ccka/pi/exti/?seller_id=paracatuextintor&srsltid=AfmBOoq87dwdCk5ygDYlQbegZKZ1unBpiR7NILMxaJrpALuWmD6Ic4uyGfw | G17: 47.960.950/1088-36 | H17: 0800 773 3838 | I17: UN | J17: 186.24 | K17: 14.9 | L17: =J17+K17 -> 201.14
A19: COT-INC-002 | B19: SINALIZADOR VISUAL E ACÚSTICO PARA SISTEMA DE INCÊNDIO ENDEREÇÁVEL | I19: UN | L19: =MEDIAN(L21:XFD23) -> 80.89
A20: EMPRESA | B20: CIDADE | C20: LOCAL / LINK | G20: CNPJ | H20: CONTATO | I20: UN | J20: VALOR | K20: FRETE | L20: TOTAL
A21: NET ALARMES | C21: https://www.netalarmes.com.br/alarme/alarme-de-incendio/sinalizador-audiovisual-convencional-intelbras-sav-420-c | G21: 20.544.487/0001-80 | H21: (43) 3344-4002 | I21: UN | J21: 60.78 | K21: 17.12 | L21: =J21+K21 -> 77.9
A22: ELETRÔNICA SANTANA | C22: https://www.eletronicasantana.com.br/sinalizador-audiovisual-convencional-sav-420c-4615030-intelbras/p | G22: 60.717.899/0001-90 | H22: (11) 2823-7066 | I22: UN | J22: 67.9 | K22: 18.06 | L22: =J22+K22 -> 85.96
A23: UPPER SEG | C23: https://www.upperseg.com.br/deteccao-e-alarme-de-incendio/acessorios/avisador-visual-e-sonoro-convencional-led-24vcc-slim-engesul/ | G23: 17.354.683/0001-88 | H23: (43) 3024-5144 | I23: UN | J23: 61.6 | K23: 19.29 | L23: =J23+K23 -> 80.89
A25: COT-INC-003 | B25: CENTRAL DE ALARME DE INCÊNDIO ENDEREÇÁVEL | I25: UN | L25: =MEDIAN(L27:XFD29) -> 1525.34
A26: EMPRESA | B26: CIDADE | C26: LOCAL / LINK | G26: CNPJ | H26: CONTATO | I26: UN | J26: VALOR | K26: FRETE | L26: TOTAL
A27: UPPER SEG | C27: https://www.upperseg.com.br/deteccao-e-alarme-de-incendio/centrais/central-de-alarme-de-incendio-enderecavel-cie-1125-intelbras/?gclid=Cj0KCQjwnrmlBhDHARIsADJ5b_kMZI9_DJWmNBcIP4MLpuo6DfPR4LqBkqnrxemCCCos_tZFGbYweucaAhbxEALw_wcB | G27: 17.354.683/0001-88 | I27: UN | J27: 1491.41 | K27: 33.93 | L27: =J27+K27 -> 1525.34
A28: BR FIRE | C28: https://brfireconexoes.com.br/produto/central-de-alarme-enderecavel-2/?srsltid=AfmBOopSScPx6oSl7PxOPT4Avn3pCB4OgfjlZilyTOpIlKYs1HUgw5VzBTY | G28: 48.181.310/0001-86 | H28: (35) 3422-2308 | I28: UN | J28: 1589 | K28: 15.57 | L28: =J28+K28 -> 1604.57
A29: NET ALARMES | C29: https://www.netalarmes.com.br/central-de-alarme-de-incendio-intelbras-cie-1125-enderecavel?parceiro=8046&srsltid=AdGWZVQVxCJDRWfNmad_R2Y4AjlHxbydkvffaTEoUUimGx-vIwxyUjQlge0 | G29: 20.544.487/0001-80 | H29: (43) 3344-4002 | I29: UN | J29: 1466.14 | K29: 38.14 | L29: =J29+K29 -> 1504.28
A31: COT-INC-004 | B31: BATERIA PARA ALARME DE INCÊNDIO | I31: UN | L31: =MEDIAN(L33:XFD35) -> 131.73
A32: EMPRESA | B32: CIDADE | C32: LOCAL / LINK | G32: CNPJ | H32: CONTATO | I32: UN | J32: VALOR | K32: FRETE | L32: TOTAL
A33: MAGAZINE LUIZA | C33: https://www.magazineluiza.com.br/bateria-selada-12v-xb-12al-intelbras/p/aj50gk469b/cj/batr/?&seller_id=mgazs&utm_source=google&utm_medium=pla&utm_campaign=&partner_id=73499&gad_source=1&gclid=Cj0KCQiAy9msBhD0ARIsANbk0A85vsUeIHT9igErpHMVjfUB8hverJBZj3UKZFHsztDx2EPjgvERinwaAhc8EALw_wcB&gclsrc=aw.ds | G33: 47.960.950/1088-36 | H33: 0800 770 8411 | I33: UN | J33: 114 | K33: 0 | L33: =J33+K33 -> 114
A34: UPPER SEG | C34: https://www.upperseg.com.br/alarme/acessorios/bateria/bateria-de-chumbo-acido-12v-para-sistemas-de-seguranca-xb-12al/ | G34: 17.354.683/0001-88 | H34: (43) 3024-5144 | I34: UN | J34: 106.31 | K34: 25.42 | L34: =J34+K34 -> 131.73
A35: GRUPO MEGA | C35: https://www.mgavirtual.com.br/bateria-selada-12v-xb-12al-p2572 | G35: 92.826.742/0001-99 | H35: (51) 3269-6000 | I35: UN | J35: 120 | K35: 26.62 | L35: =J35+K35 -> 146.62
A36: COT-INC-005 | B36: ACIONADOR MANUAL TIPO LIGA-DESLIGA PARA BOMBA DE INCÊNDIO | I36: UN | L36: =MEDIAN(L38:XFD40) -> 77.33
A37: EMPRESA | B37: CIDADE | C37: LOCAL / LINK | G37: CNPJ | H37: CONTATO | I37: UN | J37: VALOR | K37: FRETE | L37: TOTAL
A38: QUALITY | C38: https://www.lojaqualitytubos.com.br/botoeira-de-bomba-com-martelo-p1000615?utm_source=google&utm_medium=upc&utm_campaign=qualitytubos&gclid=Cj0KCQjwnrmlBhDHARIsADJ5b_nV2RHKQjyEaOTe_-S5ebBRrEaUuspgcvFmlbzdjohktNVWUhBTEhMaAqx2EALw_wcB | G38: 29.851.289/0001-34 | H38: (011) 3107-0000 | I38: UN | J38: 49.7 | K38: 59.9 | L38: =J38+K38 -> 109.6
A39: MULTISEG | C39: https://www.multiseg.com.br/31/acionador-manual-de-bomba-ip20-convencional-com-boto-liga-desliga?gclid=Cj0KCQjwnrmlBhDHARIsADJ5b_nerTrqH8eSyizKSLtMbcyDtGPUUMHbWa7ukuiSIE9oKOUGfc7xJCIaAoNuEALw_wcB | G39: 10.498.304/0001-84 | H39: (47) 3426-1212 | I39: UN | J39: 53.98 | K39: 23.35 | L39: =J39+K39 -> 77.33
A40: ELETRÔNICA SANTANA | C40: https://www.eletronicasantana.com.br/acionador-manual-de-bomba-amb-3202-4611101-intelbras-18243-00001/p?idsku=29284&gclid=Cj0KCQjwnrmlBhDHARIsADJ5b_lgDT82OxI05p_DCO_RwjzbamU3hH64G3pf0GsA2BcghHnQazo--bgaAjCWEALw_wcB | G40: 60717899/0001-90 | H40: (11) 2823-7066 | I40: UN | J40: 46.9 | K40: 17.85 | L40: =J40+K40 -> 64.75
A42: COT-INC-006 | B42: QUADRO DE COMANDO PARA BOMBA DE INCÊNDIO 7,5 CV | I42: UN | L42: =MEDIAN(L44:XFD46) -> 1248.89
A43: EMPRESA | B43: CIDADE | C43: LOCAL / LINK | G43: CNPJ | H43: CONTATO | I43: UN | J43: VALOR | K43: FRETE | L43: TOTAL
A44: MEGA THOR | C44: https://www.megathor.com.br/quadro-comando-incendio-7-5cv-trifasico-220?parceiro=2543&srsltid=AfmBOoqPOn6VRTXq_KTmGzg7eUI8DWH73_pw8oTRTLjk-bSQnSxJgicQ93s | G44: 40.863.901/0001-21 | H44: (11) 4395-1324 | I44: UN | J44: 1169.89 | K44: 79 | L44: =J44+K44 -> 1248.89
A45: VIEW TECH | C45: https://www.viewtech.ind.br/painel-estrela-triangulo-7-5cv-380v-bomba-incendio-weg-k | G45: 07.327.325/0001-22 | H45: (14) 99141-8223 | I45: UN | J45: 1397.25 | L45: =J45+K45 -> 1397.25
A46: BOMBA SHOPPING | C46: https://www.bombashopping.com.br/painel-partida-direta-para-combate-a-incendio-weg--750cv-380v-trifasico-comando-24vcc-0000000050277/p?idsku=832014368&srsltid=AfmBOoqIBLJFgvOgmvG2YFCPFp_iImInb4DPw29AboRyoZi2WH7x2ytq-j4 | G46: 14.778.311/0001-90 | H46: (11) 2971-5695 | I46: UN | J46: 1156.5 | K46: 77 | L46: =J46+K46 -> 1233.5
A47: COT-INC-007 | B47: ABRIGO DUPLO PARA MANGUEIRA DE INCÊNDIO 90X120X17 | I47: UN | L47: =MEDIAN(L49:XFD51) -> 906.38
A48: EMPRESA | B48: CIDADE | C48: LOCAL / LINK | G48: CNPJ | H48: CONTATO | I48: UN | J48: VALOR | K48: FRETE | L48: TOTAL
A49: MEGA THOR | C49: https://www.megathor.com.br/caixa-mangueiras-incendio-90-x-120-x-17-cm-?parceiro=2543&gad_source=4&gclid=CjwKCAiArLyuBhA7EiwA-qo80Ab7bHFm7u4wrwT1cx7rU5-3UVE0AnFJMjB86zRptbtrbjud5Mk_TRoCN1UQAvD_BwE | G49: 40.863.901/0001-21 | H49: (11) 4395-1324 | I49: UN | J49: 785.42 | K49: 149 | L49: =J49+K49 -> 934.42
A50: FADEF | C50: https://lojafadef.com.br/produtos/abrigo-de-embutir-para-mangueira-de-incendio-l120-x-a90-x-p17/ | G50: 40.366.260/0001-08 | I50: UN | J50: 598 | K50: 308.38 | L50: =J50+K50 -> 906.38
A51: POSITANO | C51: https://www.acospositano.com.br/abrigo-para-mangueira-de-incendio-2-portas?utm_source=Site&utm_medium=GoogleMerchant&utm_campaign=GoogleMerchant&srsltid=AfmBOopvGa1TAmkfP5GjBC9tnuHNFxa1rCv1OmXvkqS95eR6BnNIrsCf7gY | G51: 18.546.673/0001-07 | H51: (11) 93392-9003 | I51: UN | J51: 540.17 | K51: 199.2 | L51: =J51+K51 -> 739.37
A52: COT-INC-008 | B52: CABO PP 4X1,00 MM² BLINDADO | I52: M | L52: =MEDIAN(L54:XFD56) -> 29.51
A53: EMPRESA | B53: CIDADE | C53: LOCAL / LINK | G53: CNPJ | H53: CONTATO | I53: M | J53: VALOR | K53: FRETE | L53: TOTAL
A54: CONDUSCAMP | C54: https://loja.conduscamp.com.br/produto/cabo-comandocontrole-4x100-mm%c2%b2-blindado-malha-de-cobre-estanhado-preto/5415778?idSku=5421814 | G54: 02.080.427/0001-72 | H54: (19) 3738-3399 | I54: M | J54: 9.37 | K54: 20.14 | L54: =J54+K54 -> 29.51
A55: MULTISEG | C55: https://www.multiseg.com.br/698/cabo-blindado-para-alarme-de-incndio-4-vias-4-x-1mm?srsltid=AfmBOopBFySXq-8BADmOiGdl59vmJ-prdn36W0SEf29aKppvNGBlhHhPC8U | G55: 10.498.304/0001-84 | H55: (41) 99237-1425 | I55: M | J55: 8.49 | K55: 23.04 | L55: =J55+K55 -> 31.53
A56: EETROFIO | C56: https://www.eletrofio.com/materiais-eletricos/cabos/cabos-comando-pp/cabo-de-comando-pp-4x1-por-metro?parceiro=3223&srsltid=AfmBOorr8HjD990nAf_RpSuzWR77uyoKKtXbQqnQ64zEESq_Tpqdyfc5044 | G56: 06.114.741/0001-80 | H56: (16) 3209-3070 | I56: M | J56: 4.37 | K56: 21.1 | L56: =J56+K56 -> 25.47
C63: RESPONSÁVEL TÉCNICO: | F63: =DADOS!D16 -> FLÁVIA CRISTINA BARBOSA
F64: =DADOS!D18 -> CREA - MG 187.842/D

Sheet SINAPI
B1: SINAPI DEZEMBRO 2023
A2: CÓDIGO | B2: DESCRIÇÃO | C2: UNIDADE | D2: PREÇO
A3: 38605 | B3: ABERTURA PARA ENCAIXE DE CUBA OU LAVATORIO EM BANCADA DE MARMORE/ GRANITO OU OUTRO TIPO DE PEDRA NATURAL | C3: UN | D3: 108.21
A4: 11270 | B4: ABRACADEIRA DE LATAO PARA FIXACAO DE CABO PARA-RAIO, DIMENSOES 32 X 24 X 24 MM | C4: UN | D4: 3.54
A5: 412 | B5: ABRACADEIRA DE NYLON PARA AMARRACAO DE CABOS, COMPRIMENTO DE *230* X *7,6* MM | C5: UN | D5: 0.92
A6: 414 | B6: ABRACADEIRA DE NYLON PARA AMARRACAO DE CABOS, COMPRIMENTO DE 100 X 2,5 MM | C6: UN | D6: 0.05
A7: 410 | B7: ABRACADEIRA DE NYLON PARA AMARRACAO DE CABOS, COMPRIMENTO DE 150 X *3,6* MM | C7: UN | D7: 0.14
A8: 411 | B8: ABRACADEIRA DE NYLON PARA AMARRACAO DE CABOS, COMPRIMENTO DE 200 X *4,6* MM | C8: UN | D8: 0.18
A9: 408 | B9: ABRACADEIRA DE NYLON PARA AMARRACAO DE CABOS, COMPRIMENTO DE 390 X *4,6* MM | C9: UN | D9: 0.89
A10: 39131 | B10: ABRACADEIRA EM ACO PARA AMARRACAO DE ELETRODUTOS, TIPO D, COM 1 1/2" E CUNHA DE FIXACAO | C10: UN | D10: 3.16
A11: 394 | B11: ABRACADEIRA EM ACO PARA AMARRACAO DE ELETRODUTOS, TIPO D, COM 1 1/2" E PARAFUSO DE FIXACAO | C11: UN | D11: 3.2
A12: 39130 | B12: ABRACADEIRA EM ACO PARA AMARRACAO DE ELETRODUTOS, TIPO D, COM 1 1/4" E CUNHA DE FIXACAO | C12: UN | D12: 2.88
A13: 395 | B13: ABRACADEIRA EM ACO PARA AMARRACAO DE ELETRODUTOS, TIPO D, COM 1 1/4" E PARAFUSO DE FIXACAO | C13: UN | D13: 3.08
A14: 39127 | B14: ABRACADEIRA EM ACO PARA AMARRACAO DE ELETRODUTOS, TIPO D, COM 1/2" E CUNHA DE FIXACAO | C14: UN | D14: 1.52
A15: 392 | B15: ABRACADEIRA EM ACO PARA AMARRACAO DE ELETRODUTOS, TIPO D, COM 1/2" E PARAFUSO DE FIXACAO | C15: UN | D15: 1.56
A16: 39129 | B16: ABRACADEIRA EM ACO PARA AMARRACAO DE ELETRODUTOS, TIPO D, COM 1" E CUNHA DE FIXACAO | C16: UN | D16: 1.78
A17: 393 | B17: ABRACADEIRA EM ACO PARA AMARRACAO DE ELETRODUTOS, TIPO D, COM 1" E PARAFUSO DE FIXACAO | C17: UN | D17: 1.86
A18: 39133 | B18: ABRACADEIRA EM ACO PARA AMARRACAO DE ELETRODUTOS, TIPO D, COM 2 1/2" E CUNHA DE FIXACAO | C18: UN | D18: 4.15
A19: 397 | B19: ABRACADEIRA EM ACO PARA AMARRACAO DE ELETRODUTOS, TIPO D, COM 2 1/2" E PARAFUSO DE FIXACAO | C19: UN | D19: 4.59
A20: 39132 | B20: ABRACADEIRA EM ACO PARA AMARRACAO DE ELETRODUTOS, TIPO D, COM 2" E CUNHA DE FIXACAO | C20: UN | D20: 3.32
A21: 396 | B21: ABRACADEIRA EM ACO PARA AMARRACAO DE ELETRODUTOS, TIPO D, COM 2" E PARAFUSO DE FIXACAO | C21: UN | D21: 3.56
A22: 39135 | B22: ABRACADEIRA EM ACO PARA AMARRACAO DE ELETRODUTOS, TIPO D, COM 3 1/2" E CUNHA DE FIXACAO | C22: UN | D22: 6.64
A23: 39128 | B23: ABRACADEIRA EM ACO PARA AMARRACAO DE ELETRODUTOS, TIPO D, COM 3/4" E CUNHA DE FIXACAO | C23: UN | D23: 1.66
A24: 400 | B24: ABRACADEIRA EM ACO PARA AMARRACAO DE ELETRODUTOS, TIPO D, COM 3/4" E PARAFUSO DE FIXACAO | C24: UN | D24: 1.62
A25: 39125 | B25: ABRACADEIRA EM ACO PARA AMARRACAO DE ELETRODUTOS, TIPO D, COM 3/8" E PARAFUSO DE FIXACAO | C25: UN | D25: 1.66
A26: 39134 | B26: ABRACADEIRA EM ACO PARA AMARRACAO DE ELETRODUTOS, TIPO D, COM 3" E CUNHA DE FIXACAO | C26: UN | D26: 5.54
A27: 398 | B27: ABRACADEIRA EM ACO PARA AMARRACAO DE ELETRODUTOS, TIPO D, COM 3" E PARAFUSO DE FIXACAO | C27: UN | D27: 5.1
A28: 39126 | B28: ABRACADEIRA EM ACO PARA AMARRACAO DE ELETRODUTOS, TIPO D, COM 4" E CUNHA DE FIXACAO | C28: UN | D28: 7.47
A29: 399 | B29: ABRACADEIRA EM ACO PARA AMARRACAO DE ELETRODUTOS, TIPO D, COM 4" E PARAFUSO DE FIXACAO | C29: UN | D29: 6.58
A30: 39158 | B30: ABRACADEIRA EM ACO PARA AMARRACAO DE ELETRODUTOS, TIPO ECONOMICA (GOTA), COM 8" | C30: UN | D30: 17.68
A31: 39141 | B31: ABRACADEIRA EM ACO PARA AMARRACAO DE ELETRODUTOS, TIPO U SIMPLES, COM 1 1/2" | C31: UN | D31: 1.28
A32: 39140 | B32: ABRACADEIRA EM ACO PARA AMARRACAO DE ELETRODUTOS, TIPO U SIMPLES, COM 1 1/4" | C32: UN | D32: 1.16
A33: 39137 | B33: ABRACADEIRA EM ACO PARA AMARRACAO DE ELETRODUTOS, TIPO U SIMPLES, COM 1/2" | C33: UN | D33: 0.67
A34: 39139 | B34: ABRACADEIRA EM ACO PARA AMARRACAO DE ELETRODUTOS, TIPO U SIMPLES, COM 1" | C34: UN | D34: 0.96
A35: 39143 | B35: ABRACADEIRA EM ACO PARA AMARRACAO DE ELETRODUTOS, TIPO U SIMPLES, COM 2 1/2" | C35: UN | D35: 2.65
A36: 39142 | B36: ABRACADEIRA EM ACO PARA AMARRACAO DE ELETRODUTOS, TIPO U SIMPLES, COM 2" | C36: UN | D36: 1.89
A37: 39138 | B37: ABRACADEIRA EM ACO PARA AMARRACAO DE ELETRODUTOS, TIPO U SIMPLES, COM 3/4" | C37: UN | D37: 0.71
A38: 39136 | B38: ABRACADEIRA EM ACO PARA AMARRACAO DE ELETRODUTOS, TIPO U SIMPLES, COM 3/8" | C38: UN | D38: 0.47
A39: 39144 | B39: ABRACADEIRA EM ACO PARA AMARRACAO DE ELETRODUTOS, TIPO U SIMPLES, COM 3" | C39: UN | D39: 3.08
A40: 39145 | B40: ABRACADEIRA EM ACO PARA AMARRACAO DE ELETRODUTOS, TIPO U SIMPLES, COM 4" | C40: UN | D40: 5.08
A41: 12615 | B41: ABRACADEIRA PVC, PARA CALHA PLUVIAL, DIAMETRO ENTRE *80 E 100* MM, PARA DRENAGEM PLUVIAL PREDIAL | C41: UN | D41: 13.09
A42: 11927 | B42: ABRACADEIRA, GALVANIZADA/ZINCADA, ROSCA SEM FIM, PARAFUSO INOX, LARGURA FITA *12,6 A *14 MM, D = 2" A 2 1/2" | C42: UN | D42: 10.56
A43: 11928 | B43: ABRACADEIRA, GALVANIZADA/ZINCADA, ROSCA SEM FIM, PARAFUSO INOX, LARGURA FITA *12,6 A *14 MM, D = 3" A 3 3/4" | C43: UN | D43: 12.1
A44: 11929 | B44: ABRACADEIRA, GALVANIZADA/ZINCADA, ROSCA SEM FIM, PARAFUSO INOX, LARGURA FITA *12,6 A *14 MM, D = 4" A 4 3/4" | C44: UN | D44: 18.72
A45: 36801 | B45: ACABAMENTO DE METAL CROMADO PARA REGISTRO PEQUENO, DE PAREDE, 1/2 " OU 3/4 " | C45: UN | D45: 33.16
A46: 36246 | B46: ACABAMENTO SIMPLES/CONVENCIONAL PARA FORRO PVC, TIPO "U" OU "C", COR BRANCA, COMPRIMENTO 6 M | C46: M | D46: 3.9
A47: 37600 | B47: ACESSORIO DE LIGACAO NAO ELETRICO PARA CARGAS EXPLOSIVAS, TUBO DE 6 M | C47: UN | D47: 104.86
A48: 37599 | B48: ACESSORIO INICIADOR NAO ELETRICO, TUBO DE 6 M, TEMPO DE RETARDO DE *160* MS | C48: UN | D48: 97.6
A49: 1 | B49: ACETILENO (RECARGA DE GAS ACETILENO PARA CILINDRO DE CONJUNTO OXICORTE GRANDE) NAO INCLUI TROCA/MANUTENCAO DO CILINDRO | C49: KG | D49: 89.18
A50: 3 | B50: ACIDO CLORIDRICO / ACIDO MURIATICO, DILUICAO 10% A 12% PARA USO EM LIMPEZA | C50: L | D50: 20.46
A51: 43054 | B51: ACO CA-25, 10,0 MM, OU 12,5 MM, OU 16,0 MM, OU 20,0 MM, OU 25,0 MM, VERGALHAO | C51: KG | D51: 7.5
A52: 42402 | B52: ACO CA-25, 16,0 MM, BARRA DE TRANSFERENCIA | C52: KG | D52: 7.17
A53: 42403 | B53: ACO CA-25, 20,0 MM, BARRA DE TRANSFERENCIA | C53: KG | D53: 9.2
A54: 42404 | B54: ACO CA-25, 25,0 MM, BARRA DE TRANSFERENCIA | C54: KG | D54: 9.15
A55: 42405 | B55: ACO CA-25, 32,0 MM, BARRA DE TRANSFERENCIA | C55: KG | D55: 9.74
A56: 34341 | B56: ACO CA-25, 32,0 MM, VERGALHAO | C56: KG | D56: 8.46
A57: 43053 | B57: ACO CA-25, 6,3 MM OU 8,0 MM, VERGALHAO | C57: KG | D57: 6.7
A58: 43058 | B58: ACO CA-50, 10,0 MM, OU 12,5 MM, OU 16,0 MM, OU 20,0 MM, DOBRADO E CORTADO | C58: KG | D58: 6.95
A59: 34 | B59: ACO CA-50, 10,0 MM, VERGALHAO | C59: KG | D59: 6.98
A60: 43055 | B60: ACO CA-50, 12,5 MM OU 16,0 MM, VERGALHAO | C60: KG | D60: 6.05
A61: 43056 | B61: ACO CA-50, 20,0 MM OU 25,0 MM, VERGALHAO | C61: KG | D61: 6.97
A62: 43057 | B62: ACO CA-50, 32,0 MM, VERGALHAO | C62: KG | D62: 7.66
A63: 34449 | B63: ACO CA-50, 6,3 MM, DOBRADO E CORTADO | C63: KG | D63: 8.19
A64: 32 | B64: ACO CA-50, 6,3 MM, VERGALHAO | C64: KG | D64: 7.37
A65: 33 | B65: ACO CA-50, 8,0 MM, VERGALHAO | C65: KG | D65: 7.41
A66: 43061 | B66: ACO CA-60, 4,2 MM OU 5,0 MM, DOBRADO E CORTADO | C66: KG | D66: 6.92
A67: 43059 | B67: ACO CA-60, 4,2 MM, OU 5,0 MM, OU 6,0 MM, OU 7,0 MM, VERGALHAO | C67: KG | D67: 6.61
A68: 43062 | B68: ACO CA-60, 6,0 MM OU 7,0 MM, DOBRADO E CORTADO | C68: KG | D68: 7.32
A69: 43060 | B69: ACO CA-60, 8,0 MM OU 9,5 MM, VERGALHAO | C69: KG | D69: 5.76
A70: 40410 | B70: ACOPLAMENTO RIGIDO EM FERRO FUNDIDO PARA SISTEMA DE TUBULACAO RANHURADA, DN 50 MM (2") | C70: UN | D70: 23.72
A71: 40411 | B71: ACOPLAMENTO RIGIDO EM FERRO FUNDIDO PARA SISTEMA DE TUBULACAO RANHURADA, DN 65 MM (2 1/2") | C71: UN | D71: 25.74
A72: 40412 | B72: ACOPLAMENTO RIGIDO EM FERRO FUNDIDO PARA SISTEMA DE TUBULACAO RANHURADA, DN 80 MM (3") | C72: UN | D72: 28.89
A73: 44254 | B73: ADAPTADOR CPVC, ROSCAVEL, COM FLANGES E ANEL DE VEDACAO, 15 MM, CAIXA D'AGUA PARA AGUA QUENTE | C73: UN | D73: 26.29
A74: 44255 | B74: ADAPTADOR CPVC, ROSCAVEL, COM FLANGES E ANEL DE VEDACAO, 22 MM, CAIXA D'AGUA PARA AGUA QUENTE | C74: UN | D74: 29.14
A75: 44256 | B75: ADAPTADOR CPVC, ROSCAVEL, COM FLANGES E ANEL DE VEDACAO, 28 MM, CAIXA D'AGUA PARA AGUA QUENTE | C75: UN | D75: 32.91
A76: 44257 | B76: ADAPTADOR CPVC, ROSCAVEL, COM FLANGES E ANEL DE VEDACAO, 35 MM, CAIXA D'AGUA PARA AGUA QUENTE | C76: UN | D76: 52.07
A77: 44258 | B77: ADAPTADOR CPVC, ROSCAVEL, COM FLANGES E ANEL DE VEDACAO, 42 MM, CAIXA D'AGUA PARA AGUA QUENTE | C77: UN | D77: 59.51
A78: 44259 | B78: ADAPTADOR CPVC, ROSCAVEL, COM FLANGES E ANEL DE VEDACAO, 54 MM, CAIXA D'AGUA PARA AGUA QUENTE | C78: UN | D78: 81.69
A79: 37997 | B79: ADAPTADOR CPVC, SOLDAVEL, 15 MM, PARA AGUA QUENTE | C79: UN | D79: 15.67
A80: 37998 | B80: ADAPTADOR CPVC, SOLDAVEL, 22 MM, PARA AGUA QUENTE | C80: UN | D80: 20.97
A81: 55 | B81: ADAPTADOR DE COMPRESSAO EM POLIPROPILENO (PP), PARA TUBO EM PEAD, 20 MM X 1/2", PARA LIGACAO PREDIAL DE AGUA (NTS 179) | C81: UN | D81: 4.2
A82: 61 | B82: ADAPTADOR DE COMPRESSAO EM POLIPROPILENO (PP), PARA TUBO EM PEAD, 20 MM X 3/4", PARA LIGACAO PREDIAL DE AGUA (NTS 179) | C82: UN | D82: 3.97
A83: 62 | B83: ADAPTADOR DE COMPRESSAO EM POLIPROPILENO (PP), PARA TUBO EM PEAD, 32 MM X 1", PARA LIGACAO PREDIAL DE AGUA (NTS 179) | C83: UN | D83: 8.23
A84: 10899 | B84: ADAPTADOR EM LATAO, ENGATE RAPIDO 2 1/2" X ROSCA INTERNA 5 FIOS 2 1/2", PARA INSTALACAO PREDIAL DE COMBATE A INCENDIO | C84: UN | D84: 78.85
A85: 10900 | B85: ADAPTADOR EM LATAO, ENGATE RAPIDO1 1/2" X ROSCA INTERNA 5 FIOS 2 1/2", PARA INSTALACAO PREDIAL DE COMBATE A INCENDIO | C85: UN | D85: 61.71
A86: 103 | B86: ADAPTADOR PVC SOLDAVEL CURTO COM BOLSA E ROSCA, 110 MM X 4", PARA AGUA FRIA | C86: UN | D86: 44.26
A87: 107 | B87: ADAPTADOR PVC SOLDAVEL CURTO COM BOLSA E ROSCA, 20 MM X 1/2", PARA AGUA FRIA | C87: UN | D87: 0.83
A88: 65 | B88: ADAPTADOR PVC SOLDAVEL CURTO COM BOLSA E ROSCA, 25 MM X 3/4", PARA AGUA FRIA | C88: UN | D88: 0.91
A89: 108 | B89: ADAPTADOR PVC SOLDAVEL CURTO COM BOLSA E ROSCA, 32 MM X 1", PARA AGUA FRIA | C89: UN | D89: 1.83
A90: 110 | B90: ADAPTADOR PVC SOLDAVEL CURTO COM BOLSA E ROSCA, 40 MM X 1 1/2", PARA AGUA FRIA | C90: UN | D90: 6.37
A91: 109 | B91: ADAPTADOR PVC SOLDAVEL CURTO COM BOLSA E ROSCA, 40 MM X 1 1/4", PARA AGUA FRIA | C91: UN | D91: 3.79
A92: 111 | B92: ADAPTADOR PVC SOLDAVEL CURTO COM BOLSA E ROSCA, 50 MM X 1 1/4", PARA AGUA FRIA | C92: UN | D92: 8.61
A93: 112 | B93: ADAPTADOR PVC SOLDAVEL CURTO COM BOLSA E ROSCA, 50 MM X1 1/2", PARA AGUA FRIA | C93: UN | D93: 4.56
A94: 113 | B94: ADAPTADOR PVC SOLDAVEL CURTO COM BOLSA E ROSCA, 60 MM X 2", PARA AGUA FRIA | C94: UN | D94: 11.43
A95: 104 | B95: ADAPTADOR PVC SOLDAVEL CURTO COM BOLSA E ROSCA, 75 MM X 2 1/2", PARA AGUA FRIA | C95: UN | D95: 19.89
A96: 102 | B96: ADAPTADOR PVC SOLDAVEL CURTO COM BOLSA E ROSCA, 85 MM X 3", PARA AGUA FRIA | C96: UN | D96: 27.43
A97: 95 | B97: ADAPTADOR PVC SOLDAVEL, COM FLANGE E ANEL DE VEDACAO, 20 MM X 1/2", PARA CAIXA D'AGUA | C97: UN | D97: 11.59
A98: 96 | B98: ADAPTADOR PVC SOLDAVEL, COM FLANGE E ANEL DE VEDACAO, 25 MM X 3/4", PARA CAIXA D'AGUA | C98: UN | D98: 12.61
A99: 97 | B99: ADAPTADOR PVC SOLDAVEL, COM FLANGE E ANEL DE VEDACAO, 32 MM X 1", PARA CAIXA D'AGUA | C99: UN | D99: 18.97
A100: 98 | B100: ADAPTADOR PVC SOLDAVEL, COM FLANGE E ANEL DE VEDACAO, 40 MM X 1 1/4", PARA CAIXA D'AGUA | C100: UN | D100: 28.39
A101: 99 | B101: ADAPTADOR PVC SOLDAVEL, COM FLANGE E ANEL DE VEDACAO, 50 MM X 1 1/2", PARA CAIXA D'AGUA | C101: UN | D101: 26.84
A102: 100 | B102: ADAPTADOR PVC SOLDAVEL, COM FLANGES E ANEL DE VEDACAO, 60 MM X 2", PARA CAIXA D' AGUA | C102: UN | D102: 46.89
A103: 75 | B103: ADAPTADOR PVC SOLDAVEL, COM FLANGES LIVRES, 110 MM X 4", PARA CAIXA D' AGUA | C103: UN | D103: 273.36
A104: 83 | B104: ADAPTADOR PVC SOLDAVEL, COM FLANGES LIVRES, 75 MM X 2 1/2", PARA CAIXA D' AGUA | C104: UN | D104: 218.54
A105: 74 | B105: ADAPTADOR PVC SOLDAVEL, COM FLANGES LIVRES, 85 MM X 3", PARA CAIXA D' AGUA | C105: UN | D105: 312.46
A106: 106 | B106: ADAPTADOR PVC SOLDAVEL, LONGO, COM FLANGE LIVRE, 110 MM X 4", PARA CAIXA D' AGUA | C106: UN | D106: 395.11
A107: 88 | B107: ADAPTADOR PVC SOLDAVEL, LONGO, COM FLANGE LIVRE, 32 MM X 1", PARA CAIXA D' AGUA | C107: UN | D107: 11.1
A108: 82 | B108: ADAPTADOR PVC SOLDAVEL, LONGO, COM FLANGE LIVRE, 75 MM X 2 1/2", PARA CAIXA D' AGUA | C108: UN | D108: 207.93
A109: 105 | B109: ADAPTADOR PVC SOLDAVEL, LONGO, COM FLANGE LIVRE, 85 MM X 3", PARA CAIXA D' AGUA | C109: UN | D109: 294.63
A110: 60 | B110: ADAPTADOR PVC, COM REGISTRO, PARA PEAD, 20 MM X 3/4", PARA LIGACAO PREDIAL DE AGUA | C110: UN | D110: 5.45
A111: 72 | B111: ADAPTADOR PVC, ROSCAVEL, COM FLANGES E ANEL DE VEDACAO, 1 1/2", PARA CAIXA D'AGUA | C111: UN | D111: 51.47
A112: 67 | B112: ADAPTADOR PVC, ROSCAVEL, COM FLANGES E ANEL DE VEDACAO, 1/2", PARA CAIXA D' AGUA | C112: UN | D112: 16.64
A113: 71 | B113: ADAPTADOR PVC, ROSCAVEL, COM FLANGES E ANEL DE VEDACAO, 1", PARA CAIXA D' AGUA | C113: UN | D113: 31.79
A114: 73 | B114: ADAPTADOR PVC, ROSCAVEL, COM FLANGES E ANEL DE VEDACAO, 3/4", PARA CAIXA D' AGUA | C114: UN | D114: 15.92
A115: 46 | B115: ADAPTADOR, PVC PBA, BOLSA/ROSCA, JE, DN 75 / DE 85 MM | C115: UN | D115: 39.09
A116: 47 | B116: ADAPTADOR, PVC PBA, BOLSA/ROSCA, JE, DN 100 / DE 110 MM | C116: UN | D116: 66.84
A117: 48 | B117: ADAPTADOR, PVC PBA, BOLSA/ROSCA, JE, DN 50 / DE 60 MM | C117: UN | D117: 17.43
A118: 52 | B118: ADAPTADOR, PVC PBA, PONTA/ROSCA, JE, DN 50 / DE 60 MM | C118: UN | D118: 13.24
A119: 43 | B119: ADAPTADOR, PVC PBA, PONTA/ROSCA, JE, DN 75 / DE 85 MM | C119: UN | D119: 44.7
A120: 39719 | B120: ADESIVO / COLA DE CONTATO LIQUIDO, A BASE DE RESINAS, PARA COLAGEM DE ESPUMA PARA ISOLAMENTO TERMICO FLEXIVEL | C120: L | D120: 150.11
A121: 3410 | B121: ADESIVO / COLA PARA EPS (ISOPOR) E OUTROS MATERIAIS | C121: KG | D121: 33.76
A122: 4791 | B122: ADESIVO ACRILICO DE BASE AQUOSA / COLA DE CONTATO | C122: KG | D122: 47.6
A123: 157 | B123: ADESIVO ESTRUTURAL A BASE DE RESINA EPOXI PARA INJECAO EM TRINCAS, BICOMPONENTE, BAIXA VISCOSIDADE | C123: KG | D123: 142.79
A124: 156 | B124: ADESIVO ESTRUTURAL A BASE DE RESINA EPOXI, BICOMPONENTE, FLUIDO | C124: KG | D124: 50.84
A125: 131 | B125: ADESIVO ESTRUTURAL A BASE DE RESINA EPOXI, BICOMPONENTE, PASTOSO (TIXOTROPICO) | C125: KG | D125: 43.48
A126: 21114 | B126: ADESIVO PARA TUBOS CPVC, *75* G | C126: UN | D126: 29.59
A127: 119 | B127: ADESIVO PLASTICO PARA PVC, BISNAGA COM 75 GR | C127: UN | D127: 7.5
A128: 122 | B128: ADESIVO PLASTICO PARA PVC, FRASCO COM *850* GR | C128: UN | D128: 57.7
A129: 20080 | B129: ADESIVO PLASTICO PARA PVC, FRASCO COM 175 GR | C129: UN | D129: 18.83
A130: 124 | B130: ADITIVO ACELERADOR DE PEGA E ENDURECIMENTO PARA ARGAMASSAS E CONCRETOS, LIQUIDO E ISENTO DE CLORETOS | C130: L | D130: 16.77
A131: 7334 | B131: ADITIVO ADESIVO LIQUIDO PARA ARGAMASSAS DE REVESTIMENTOS CIMENTICIOS | C131: L | D131: 14.15
A132: 123 | B132: ADITIVO IMPERMEABILIZANTE DE PEGA NORMAL PARA ARGAMASSAS E CONCRETOS SEM ARMACAO, LIQUIDO E ISENTO DE CLORETOS | C132: L | D132: 6.86
A133: 127 | B133: ADITIVO IMPERMEABILIZANTE DE PEGA ULTRARRAPIDA, LIQUIDO E ISENTO DE CLORETOS | C133: L | D133: 16.38
A134: 41373 | B134: ADITIVO LIQUIDO IMPERMEABILIZANTE CRISTALIZANTE | C134: L | D134: 22.82
A135: 133 | B135: ADITIVO LIQUIDO INCORPORADOR DE AR PARA CONCRETO E ARGAMASSA, LIQUIDO E ISENTO DE CLORETOS | C135: L | D135: 6.8
A136: 43617 | B136: ADITIVO PLASTIFICANTE E ESTABILIZADOR PARA ARGAMASSAS DE ASSENTAMENTO E REBOCO, LIQUIDO E ISENTO DE CLORETOS | C136: L | D136: 7.6
A137: 132 | B137: ADITIVO PLASTIFICANTE RETARDADOR DE PEGA E REDUTOR DE AGUA PARA CONCRETO, LIQUIDO E ISENTO DE CLORETOS | C137: L | D137: 7.05
A138: 43618 | B138: ADITIVO SUPERPLASTIFICANTE DE PEGA NORMAL PARA CONCRETO, LIQUIDO E ISENTO DE CLORETOS | C138: KG | D138: 17.75
A139: 37476 | B139: ADUELA/ GALERIA PRE-MOLDADA DE CONCRETO ARMADO, SECAO QUADRADA INTERNA DE 1,50 X 1,50 M (L X A), MISULA DE 20 X 20 CM, C = 1,00 M, ESPESSURA MIN = 15 CM, TB-45 E FCK DO CONCRETO = 30 MPA | C139: UN | D139: 4230.21
A140: 37478 | B140: ADUELA/ GALERIA PRE-MOLDADA DE CONCRETO ARMADO, SECAO RETANGULAR INTERNA DE 2,00 X 2,00 M (L X A), MISULA DE 20 X 20 CM, C = 1,00 M, ESPESSURA MIN = 15 CM, TB-45 E FCK DO CONCRETO = 30 MPA | C140: UN | D140: 5298.44
A141: 37477 | B141: ADUELA/ GALERIA PRE-MOLDADA DE CONCRETO ARMADO, SECAO RETANGULAR INTERNA DE 2,50 X 2,50 M (L X A), MISULA DE 20 X 20 CM, C = 1,00 M, ESPESSURA MIN = 15 CM, TB-45 E FCK DO CONCRETO = 30 MPA | C141: UN | D141: 7178.54
A142: 37479 | B142: ADUELA/ GALERIA PRE-MOLDADA DE CONCRETO ARMADO, SECAO RETANGULAR INTERNA DE 3,00 X 3,00 M (L X A), MISULA DE 20 X 20 CM, C = 1.00 M, ESPESSURA MIN = 20 CM, TB-45 E FCK DO CONCRETO = 30 MPA | C142: UN | D142: 8513.83
A143: 4319 | B143: AFASTADOR PARA TELHA DE FIBROCIMENTO CANALETE 90 OU KALHETAO | C143: UN | D143: 2.07
A144: 42409 | B144: AGENTE DE CURA, PROTETOR DA EVAPORACAO DA AGUA DE HIDRATACAO DO CONCRETO | C144: KG | D144: 11.18
A145: 40553 | B145: AGREGADO RECICLADO, TIPO RACHAO RECICLADO CINZA, CLASSE A | C145: M3 | D145: 60
A146: 6114 | B146: AJUDANTE DE ARMADOR (HORISTA) | C146: H | D146: 13.76
A147: 40912 | B147: AJUDANTE DE ARMADOR (MENSALISTA) | C147: MES | D147: 2428.84
A148: 247 | B148: AJUDANTE DE ELETRICISTA (HORISTA) | C148: H | D148: 13.76
A149: 40919 | B149: AJUDANTE DE ELETRICISTA (MENSALISTA) | C149: MES | D149: 2428.84
A150: 44499 | B150: AJUDANTE DE ESTRUTURAS METALICAS (HORISTA) | C150: H | D150: 13.76
A151: 40984 | B151: AJUDANTE DE ESTRUTURAS METALICAS (MENSALISTA) | C151: MES | D151: 2428.84
A152: 248 | B152: AJUDANTE DE OPERACAO EM GERAL (HORISTA) | C152: H | D152: 14.9
A153: 41086 | B153: AJUDANTE DE OPERACAO EM GERAL (MENSALISTA) | C153: MES | D153: 2632.42
A154: 34466 | B154: AJUDANTE DE PINTOR (HORISTA) | C154: H | D154: 13.76
A155: 41083 | B155: AJUDANTE DE PINTOR (MENSALISTA) | C155: MES | D155: 2428.84
A156: 252 | B156: AJUDANTE DE SERRALHEIRO (HORISTA) | C156: H | D156: 13.76
A157: 40909 | B157: AJUDANTE DE SERRALHEIRO (MENSALISTA) | C157: MES | D157: 2428.84
A158: 242 | B158: AJUDANTE ESPECIALIZADO (HORISTA) | C158: H | D158: 14.9
A159: 41085 | B159: AJUDANTE ESPECIALIZADO (MENSALISTA) | C159: MES | D159: 2632.42
A160: 427 | B160: ALCA PREFORMADA DE CONTRA POSTE, EM ACO GALVANIZADO, PARA CABO 3/16", COMPRIMENTO *860* MM | C160: UN | D160: 6.31
A161: 417 | B161: ALCA PREFORMADA DE DISTRIBUICAO, EM ACO GALVANIZADO, PARA CABO DE ALUMINIO DIAMETRO 16 A 25 MM | C161: UN | D161: 2.97
A162: 11273 | B162: ALCA PREFORMADA DE DISTRIBUICAO, EM ACO GALVANIZADO, PARA CONDUTORES DE ALUMINIO AWG 1/0 (CAA 6/1 OU CA 7 FIOS) | C162: UN | D162: 9.22
A163: 11272 | B163: ALCA PREFORMADA DE DISTRIBUICAO, EM ACO GALVANIZADO, PARA CONDUTORES DE ALUMINIO AWG 2 (CAA 6/1 OU CA 7 FIOS) | C163: UN | D163: 5.57
A164: 11275 | B164: ALCA PREFORMADA DE SERVICO, EM ACO GALVANIZADO, PARA CONDUTORES DE ALUMINIO AWG 4 (CAA 6/1) | C164: UN | D164: 2.23
A165: 11274 | B165: ALCA PREFORMADA DE SERVICO, EM ACO GALVANIZADO, PARA CONDUTORES DE ALUMINIO AWG 6 (CAA 6/1) | C165: UN | D165: 1.7
A166: 38470 | B166: ALICATE DE CORTE DIAGONAL 6 " COM ISOLAMENTO | C166: UN | D166: 33.05
A167: 38547 | B167: ALICATE DE CRIMPAR RJ11, RJ12 E RJ45 | C167: UN | D167: 90.18
A168: 38469 | B168: ALICATE DE PRESSAO PARA SOLDA DE CHAPA 18 " | C168: UN | D168: 96.97
A169: 38467 | B169: ALICATE DE PRESSAO 11 " PARA SOLDA, TIPO C | C169: UN | D169: 54.56
A170: 38468 | B170: ALICATE DE PRESSAO 11 " PARA SOLDA, TIPO U | C170: UN | D170: 60.04
A171: 38471 | B171: ALICATE PARA ANEIS DE PISTAO, CAPACIDADE 50 A 100 MM | C171: UN | D171: 77.97
A172: 37370 | B172: ALIMENTACAO - HORISTA (COLETADO CAIXA - ENCARGOS COMPLEMENTARES) | C172: H | D172: 1.89
A173: 40862 | B173: ALIMENTACAO - MENSALISTA (COLETADO CAIXA - ENCARGOS COMPLEMENTARES) | C173: MES | D173: 355.72
A174: 10658 | B174: ALISADORA DE CONCRETO COM MOTOR A GASOLINA DE 5,5 HP, PESO COM MOTOR DE 78 KG, 4 PAS | C174: UN | D174: 7359
A175: 253 | B175: ALMOXARIFE (HORISTA) | C175: H | D175: 20.97
A176: 40809 | B176: ALMOXARIFE (MENSALISTA) | C176: MES | D176: 3702.33
A177: 42428 | B177: ALONGADOR COM TRES ALTURAS, EM TUBO DE ACO CARBONO, PINTURA NO PROCESSO ELETROSTATICO - EQUIPAMENTO DE GINASTICA PARA ACADEMIA AO AR LIVRE / ACADEMIA DA TERCEIRA IDADE - ATI | C177: UN | D177: 2271
A178: 301 | B178: ANEL BORRACHA PARA TUBO ESGOTO PREDIAL, DN 100 MM (NBR 5688) | C178: UN | D178: 2.89
A179: 296 | B179: ANEL BORRACHA PARA TUBO ESGOTO PREDIAL, DN 50 MM (NBR 5688) | C179: UN | D179: 1.63
A180: 297 | B180: ANEL BORRACHA PARA TUBO ESGOTO PREDIAL, DN 75 MM (NBR 5688) | C180: UN | D180: 2.4
A181: 299 | B181: ANEL BORRACHA, DN 100 MM, PARA TUBO SERIE REFORCADA ESGOTO PREDIAL | C181: UN | D181: 3.39
A182: 300 | B182: ANEL BORRACHA, DN 150 MM, PARA TUBO SERIE REFORCADA ESGOTO PREDIAL | C182: UN | D182: 11.73
A183: 20085 | B183: ANEL BORRACHA, DN 50 MM, PARA TUBO SERIE REFORCADA ESGOTO PREDIAL | C183: UN | D183: 2.14
A184: 298 | B184: ANEL BORRACHA, DN 75 MM, PARA TUBO SERIE REFORCADA ESGOTO PREDIAL | C184: UN | D184: 2.6
A185: 311 | B185: ANEL BORRACHA, PARA TUBO PVC DEFOFO, DN 100 MM (NBR 7665) | C185: UN | D185: 9.67
A186: 318 | B186: ANEL BORRACHA, PARA TUBO PVC DEFOFO, DN 150 MM (NBR 7665) | C186: UN | D186: 19.48
A187: 319 | B187: ANEL BORRACHA, PARA TUBO PVC DEFOFO, DN 200 MM (NBR 7665) | C187: UN | D187: 30.55
A188: 303 | B188: ANEL BORRACHA, PARA TUBO PVC, REDE COLETOR ESGOTO, DN 100 MM (NBR 7362) | C188: UN | D188: 3.2
A189: 305 | B189: ANEL BORRACHA, PARA TUBO PVC, REDE COLETOR ESGOTO, DN 150 MM (NBR 7362) | C189: UN | D189: 10.07
A190: 306 | B190: ANEL BORRACHA, PARA TUBO PVC, REDE COLETOR ESGOTO, DN 200 MM (NBR 7362) | C190: UN | D190: 15.27
A191: 307 | B191: ANEL BORRACHA, PARA TUBO PVC, REDE COLETOR ESGOTO, DN 250 MM (NBR 7362) | C191: UN | D191: 38.59
A192: 309 | B192: ANEL BORRACHA, PARA TUBO PVC, REDE COLETOR ESGOTO, DN 350 MM (NBR 7362) | C192: UN | D192: 63.21
A193: 310 | B193: ANEL BORRACHA, PARA TUBO PVC, REDE COLETOR ESGOTO, DN 400 MM (NBR 7362) | C193: UN | D193: 87.61
A194: 328 | B194: ANEL BORRACHA, PARA TUBO/CONEXAO PVC PBA, DN 100 MM, PARA REDE AGUA | C194: UN | D194: 7.66
A195: 325 | B195: ANEL BORRACHA, PARA TUBO/CONEXAO PVC PBA, DN 50 MM, PARA REDE AGUA | C195: UN | D195: 2.26
A196: 20326 | B196: ANEL BORRACHA, PARA TUBO/CONEXAO PVC PBA, DN 60 MM, PARA REDE AGUA | C196: UN | D196: 4.13
A197: 329 | B197: ANEL BORRACHA, PARA TUBO/CONEXAO PVC PBA, DN 75 MM, PARA REDE AGUA | C197: UN | D197: 6.4
A198: 308 | B198: ANEL BORRACHA, PARA TUBO, PVC REDE COLETOR ESGOTO, DN 300 MM (NBR 7362) | C198: UN | D198: 86.13
A199: 39642 | B199: ANEL DE BORRACHA PARA VEDACAO DE DUTO PEAD CORRUGADO PARA ELETRICA, DN 1 1/2" (NBR 15715) | C199: UN | D199: 2.84
A200: 39641 | B200: ANEL DE BORRACHA PARA VEDACAO DE DUTO PEAD CORRUGADO PARA ELETRICA, DN 1 1/4" (NBR 15715) | C200: UN | D200: 2.49
... 12267 more rows

Sheet SETOP
B1: SETOP AGOSTO 2023
A2: CÓDIGO | B2: DESCRIÇÃO | C2: UNIDADE | D2: PREÇO
A3: 8662 | B3: MOBILIZAÇÃO E DESMOBILIZAÇÃO DE OBRA
A4: 8700 | B4: OBRAS EM CENTRO URBANO OU REGIÃO LIMÍTROFE
A5: ED-50394 | B5: MOBILIZAÇÃO E DESMOBILIZAÇÃO DE OBRA EM CENTRO URBANO OU REGIÃO LIMÍTROFE COM VALOR ACIMA DE 3.000.000,01 | C5: % | D5: 0.2
A6: ED-50392 | B6: MOBILIZAÇÃO E DESMOBILIZAÇÃO DE OBRA EM CENTRO URBANO OU REGIÃO LIMÍTROFE COM VALOR ATÉ O VALOR DE 1.000.000,00 | C6: % | D6: 0.5
A7: ED-50393 | B7: MOBILIZAÇÃO E DESMOBILIZAÇÃO DE OBRA EM CENTRO URBANO OU REGIÃO LIMÍTROFE COM VALOR ENTRE 1.000.000,01 E 3.000.000,00 | C7: % | D7: 0.3
A8: 8701 | B8: OBRA DISTANTE DE CENTRO URBANO
A9: ED-50391 | B9: MOBILIZAÇÃO E DESMOBILIZAÇÃO OBRA DISTANTE DE CENTRO URBANO COM ACIMA DE 3.000.000,01 | C9: % | D9: 1
A10: ED-50390 | B10: MOBILIZAÇÃO E DESMOBILIZAÇÃO OBRA DISTANTE DE CENTRO URBANO COM ENTRE 1.000.000,01 E 3.000.000,00 | C10: % | D10: 1.5
A11: ED-50389 | B11: MOBILIZAÇÃO E DESMOBILIZAÇÃO OBRA DISTANTE DE CENTRO URBANO COM VALOR ATÉ O VALOR DE 1.000.000,00 | C11: % | D11: 2
A12: 8663 | B12: SERVIÇOS PRELIMINARES
A13: 8702 | B13: LIMPEZA DO TERRENO
A14: ED-50701 | B14: CAPINA MANUAL DO TERRENO, EXCLUSIVE RASTELAMENTO E QUEIMA | C14: m2 | D14: 1.18
A15: ED-28163 | B15: DESTOCAMENTO E AFASTAMENTO DE REMANESCENTE ARBÓREO, INCLUSIVE TRANSPORTE E RETIRADA DO MATERIAL ESCAVADO (EM CAÇAMBA) | C15: un | D15: 450.07
A16: ED-50703 | B16: LIMPEZA DE TERRENO, INCLUSIVE CAPINA, RASTELAMENTO COM AFASTAMENTO ATÉ VINTE (20) METROS E QUEIMA CONTROLADA | C16: m2 | D16: 2.08
A17: ED-8143 | B17: RASTELAMENTO DE ÁREA COM AFASTAMENTO DE ATÉ VINTE (20) METROS, EXCLUSIVE CAPINA OU ROÇADA MANUAL | C17: m2 | D17: 0.78
A18: ED-28162 | B18: ROÇADA MANUAL DE TERRENO COM ROÇADEIRA COSTAL, EXCLUSIVE RASTELAMENTO E QUEIMA | C18: m2 | D18: 0.17
A19: 8703 | B19: DESMATAMENTO E DESTOCAMENTO
A20: ED-50702 | B20: DESMATAMENTO, DESTOCAMENTO E LIMPEZA, INCLUSIVE TRANSPORTE ATÉ CINQUENTA (50) METROS | C20: m2 | D20: 0.49
A21: 8704 | B21: SUPRESSÃO DE ÁRVORE
A22: ED-50699 | B22: CORTE DE ÁRVORE COM MOTOSSERRA, DIÂMETRO DO TRONCO ACIMA DE TRINTA (30) CENTÍMETROS ATÉ CINQUENTA (50) CENTÍMETROS, EXCLUSIVE DESTOCAMENTO E AFASTAMENTO | C22: un | D22: 81.72
A23: ED-50697 | B23: CORTE DE ÁRVORE COM MOTOSSERRA, DIÂMETRO DO TRONCO DE QUINZE (15) CENTÍMETROS ATÉ TRINTA (30) CENTÍMETROS, EXCLUSIVE DESTOCAMENTO E AFASTAMENTO | C23: un | D23: 49.03
A24: 8706 | B24: REMOÇÃO DE TELHADO
A25: ED-48438 | B25: REMOÇÃO DE CALHA EM CHAPA GALVANIZADA OU EM PVC, COM REAPROVEITAMENTO, INCLUSIVE AFASTAMENTO E EMPILHAMENTO, EXCLUSIVE TRANSPORTE E RETIRADA DO MATERIAL REMOVIDO NÃO REAPROVEITÁVEL | C25: m | D25: 4.11
A26: ED-48446 | B26: REMOÇÃO MANUAL DE CONDUTOR EM PVC OU METÁLICO, COM REAPROVEITAMENTO, INCLUSIVE AFASTAMENTO E EMPILHAMENTO, EXCLUSIVE TRANSPORTE E RETIRADA DO MATERIAL REMOVIDO NÃO REAPROVEITÁVEL | C26: m | D26: 4.93
A27: ED-48455 | B27: REMOÇÃO MANUAL DE ENGRADAMENTO PARA TELHA TIPO CALHA ESTRUTURAL EM FIBROCIMENTO, COM REAPROVEITAMENTO, INCLUSIVE AFASTAMENTO E EMPILHAMENTO, EXCLUSIVE TRANSPORTE E RETIRADA DO MATERIAL REMOVIDO NÃO REAPROVEITÁVEL | C27: m2 | D27: 9.93
A28: ED-48457 | B28: REMOÇÃO MANUAL DE ENGRADAMENTO PARA TELHA TIPO CERÂMICA OU CONCRETO, INCLUSIVE AFASTAMENTO E EMPILHAMENTO, EXCLUSIVE TRANSPORTE E RETIRADA DO MATERIAL REMOVIDO NÃO REAPROVEITÁVEL | C28: m2 | D28: 19.86
A29: ED-48454 | B29: REMOÇÃO MANUAL DE ENGRADAMENTO PARA TELHA TIPO METÁLICA, PVC OU FIBROCIMENTO, COM REAPROVEITAMENTO, INCLUSIVE AFASTAMENTO E EMPILHAMENTO, EXCLUSIVE TRANSPORTE E RETIRADA DO MATERIAL REMOVIDO NÃO REAPROVEITÁVEL | C29: m2 | D29: 13.24
A30: ED-48506 | B30: REMOÇÃO MANUAL DE RUFO METÁLICO, COM REAPROVEITAMENTO, INCLUSIVE AFASTAMENTO E EMPILHAMENTO, EXCLUSIVE TRANSPORTE E RETIRADA DO MATERIAL REMOVIDO NÃO REAPROVEITÁVEL | C30: m | D30: 6.05
A31: ED-48512 | B31: REMOÇÃO MANUAL DE TELHA EM FIBROCIMENTO, TIPO ONDULADA, COM REAPROVEITAMENTO, INCLUSIVE AFASTAMENTO E EMPILHAMENTO, EXCLUSIVE TRANSPORTE E RETIRADA DO MATERIAL REMOVIDO NÃO REAPROVEITÁVEL | C31: m2 | D31: 11.35
A32: ED-48514 | B32: REMOÇÃO MANUAL DE TELHA CERÂMICA, COM REAPROVEITAMENTO, INCLUSIVE AFASTAMENTO E EMPILHAMENTO, EXCLUSIVE TRANSPORTE E RETIRADA DO MATERIAL REMOVIDO NÃO REAPROVEITÁVEL | C32: m2 | D32: 21.41
A33: ED-48510 | B33: REMOÇÃO MANUAL DE TELHA EM FIBROCIMENTO, TIPO CALHA ESTRUTURAL, COM REAPROVEITAMENTO, INCLUSIVE IÇAMENTO, AFASTAMENTO E EMPILHAMENTO, EXCLUSIVE TRANSPORTE E RETIRADA DO MATERIAL REMOVIDO NÃO REAPROVEITÁVEL | C33: m2 | D33: 23.25
A34: ED-48509 | B34: REMOÇÃO MANUAL DE TELHA METÁLICA OU PVC, COM REAPROVEITAMENTO, INCLUSIVE AFASTAMENTO E EMPILHAMENTO, EXCLUSIVE TRANSPORTE E RETIRADA DO MATERIAL REMOVIDO NÃO REAPROVEITÁVEL | C34: m2 | D34: 7.94
A35: 8707 | B35: DEMOLIÇÃO E REMOÇÃO DE INSTALAÇÃO
A36: ED-48500 | B36: DEMOLIÇÃO MANUAL DE TUBULAÇÕES EMBUTIDAS DE REDE (ÁGUA, ELÉTRICA, GASES, ETC.), INCLUSIVE RASGO EM ALVENARIA, REMOÇÃO DE ACESSÓRIOS DE FIXAÇÃO, AFASTAMENTO E EMPILHAMENTO, EXCLUSIVE TRANSPORTE E RETIRADA DO MATERIAL DEMOLIDO | C36: m | D36: 7.4
A37: ED-48466 | B37: REMOÇÃO MANUAL DE INTERFONE, COM REAPROVEITAMENTO, INCLUSIVE AFASTAMENTO E EMPILHAMENTO, EXCLUSIVE TRANSPORTE E RETIRADA DO MATERIAL REMOVIDO NÃO REAPROVEITÁVEL | C37: un | D37: 38.95
A38: ED-48468 | B38: REMOÇÃO MANUAL DE LUMINÁRIA COMERCIAL, EMBUTIDA OU SOBREPOR, COM REAPROVEITAMENTO, INCLUSIVE AFASTAMENTO E EMPILHAMENTO, EXCLUSIVE TRANSPORTE E RETIRADA DO MATERIAL REMOVIDO NÃO REAPROVEITÁVEL | C38: un | D38: 9.37
A39: ED-48469 | B39: REMOÇÃO MANUAL DE LUMINÁRIA COMPACTA (PLAFON, PAINEL LED, ETC.) EMBUTIDA OU SOBREPOR, COM REAPROVEITAMENTO, INCLUSIVE AFASTAMENTO E EMPILHAMENTO, EXCLUSIVE TRANSPORTE E RETIRADA DO MATERIAL REMOVIDO NÃO REAPROVEITÁVEL | C39: un | D39: 5.46
A40: ED-48499 | B40: REMOÇÃO MANUAL DE REDES DE DUTOS PARA CLIMATIZAÇÃO, INCLUSIVE AFASTAMENTO E EMPILHAMENTO, EXCLUSIVE TRANSPORTE E RETIRADA DO MATERIAL REMOVIDO NÃO REAPROVEITÁVEL | C40: m | D40: 8.22
A41: ED-48515 | B41: REMOÇÃO MANUAL DE TUBULAÇÕES EMBUTIDAS DE REDE (ÁGUA, ELÉTRICA, GASES, ETC.), COM REAPROVEITAMENTO, INCLUSIVE RASGO EM ALVENARIA, REMOÇÃO DE ACESSÓRIOS DE FIXAÇÃO, AFASTAMENTO E EMPILHAMENTO, EXCLUSIVE TRANSPORTE E RETIRADA DO MATERIAL REMOVIDO NÃO REAPROVEITÁVEL | C41: m | D41: 10.66
A42: 8708 | B42: DEMOLIÇÃO DE FORRO
A43: ED-48463 | B43: DEMOLIÇÃO MANUAL DE FORRO DE CHAPA OU PLACA DE GESSO, INCLUSIVE DEMOLIÇÃO DA ESTRUTURA DE SUSTENTAÇÃO, AFASTAMENTO E EMPILHAMENTO, EXCLUSIVE TRANSPORTE E RETIRADA DO MATERIAL DEMOLIDO | C43: m2 | D43: 4.88
A44: 8709 | B44: REMOÇÃO DE FORRO
A45: ED-48460 | B45: REMOÇÃO MANUAL DE FORRO DE PLACAS (GESSO, MINERAL, FIBRA, ISOPOR, COLMEIA, PVC, ETC.), COM REAPROVEITAMENTO, INCLUSIVE AFASTAMENTO E EMPILHAMENTO, EXCLUSIVE DEMOLIÇÃO DA ESTRUTURA DE SUSTENTAÇÃO, TRANSPORTE E RETIRADA DO MATERIAL REMOVIDO NÃO REAPROVEITÁVEL | C45: m2 | D45: 1.84
A46: ED-48459 | B46: REMOÇÃO MANUAL DE FORRO DE PLACAS (GESSO, MINERAL, FIBRA, ISOPOR, COLMEIA, PVC, ETC.), COM REAPROVEITAMENTO, INCLUSIVE DEMOLIÇÃO ESTRUTURA DE SUSTENTAÇÃO, AFASTAMENTO E EMPILHAMENTO, EXCLUSIVE TRANSPORTE E RETIRADA DO MATERIAL REMOVIDO NÃO REAPROVEITÁVEL | C46: m2 | D46: 5.53
A47: ED-48464 | B47: REMOÇÃO MANUAL DE FORRO DE TÁBUAS DE PINHO, COM REAPROVEITAMENTO, INCLUSIVE AFASTAMENTO E EMPILHAMENTO, EXCLUSIVE REMOÇÃO DA ESTRUTURA DE SUSTENTAÇÃO, TRANSPORTE E RETIRADA DO MATERIAL REMOVIDO NÃO REAPROVEITÁVEL | C47: m2 | D47: 8.71
A48: ED-28355 | B48: REMOÇÃO MANUAL ESTRUTURA OU TRAMA DE SUSTENTAÇÃO DE MADEIRA OU METÁLICA PARA FORRO, COM REAPROVEITAMENTO, INCLUSIVE AFASTAMENTO E EMPILHAMENTO, EXCLUSIVE TRANSPORTE E RETIRADA DO MATERIAL REMOVIDO NÃO REAPROVEITÁVEL | C48: m2 | D48: 3.69
A49: 8710 | B49: REMOÇÃO DE ESQUADRIA
A50: ED-48496 | B50: REMOÇÃO MANUAL DE CONJUNTO DE ALIZARES, COM REAPROVEITAMENTO, INCLUSIVE AFASTAMENTO E EMPILHAMENTO, EXCLUSIVE TRANSPORTE E RETIRADA DO MATERIAL REMOVIDO NÃO REAPROVEITÁVEL | C50: cj | D50: 3.09
A51: ED-48458 | B51: REMOÇÃO MANUAL DE CONJUNTO DE FERRAGENS (DOBRADIÇAS, FECHADURA E MAÇANETAS), COM REAPROVEITAMENTO, INCLUSIVE AFASTAMENTO E EMPILHAMENTO, EXCLUSIVE TRANSPORTE E RETIRADA DO MATERIAL REMOVIDO NÃO REAPROVEITÁVEL | C51: un | D51: 18.85
A52: ED-48493 | B52: REMOÇÃO MANUAL DE ESQUADRIA EM MADEIRA, COM REAPROVEITAMENTO, INCLUSIVE REMOÇÃO DE MARCO/ALIZAR/GUARNIÇÕES, AFASTAMENTO E EMPILHAMENTO, EXCLUSIVE TRANSPORTE E RETIRADA DO MATERIAL REMOVIDO NÃO REAPROVEITÁVEL | C52: m2 | D52: 11.85
A53: ED-48497 | B53: REMOÇÃO MANUAL DE ESQUADRIA METÁLICA, COM REAPROVEITAMENTO, INCLUSIVE MARCO/ALIZAR/GUARNIÇÕES, AFASTAMENTO E EMPILHAMENTO, EXCLUSIVE TRANSPORTE E RETIRADA DO MATERIAL REMOVIDO NÃO REAPROVEITÁVEL | C53: m2 | D53: 16.46
A54: ED-48494 | B54: REMOÇÃO MANUAL DE FOLHA DE PORTA OU JANELA DE MADEIRA OU METÁLICA, COM REAPROVEITAMENTO, INCLUSIVE AFASTAMENTO E EMPILHAMENTO, EXCLUSIVE TRANSPORTE E RETIRADA DO MATERIAL REMOVIDO NÃO REAPROVEITÁVEL | C54: m2 | D54: 8
A55: ED-48495 | B55: REMOÇÃO MANUAL DE MARCO EM MADEIRA OU METÁLICO, COM REAPROVEITAMENTO, INCLUSIVE AFASTAMENTO E EMPILHAMENTO, EXCLUSIVE TRANSPORTE E RETIRADA DO MATERIAL REMOVIDO NÃO REAPROVEITÁVEL | C55: un | D55: 16
A56: 8711 | B56: DEMOLIÇÃO DE IMPERMEABILIZAÇÃO
A57: ED-48465 | B57: DEMOLIÇÃO MANUAL DE IMPERMEABILIZAÇÃO E PROTEÇÃO MECÂNICA, INCLUSIVE AFASTAMENTO E EMPILHAMENTO, EXCLUSIVE TRANSPORTE E RETIRADA DO MATERIAL DEMOLIDO | C57: m2 | D57: 24.42
A58: 8712 | B58: REMOÇÃO DE LOUÇA E ACESSÓRIOS
A59: ED-48467 | B59: REMOÇÃO DE LOUÇAS (LAVATÓRIO, BANHEIRA, PIA, VASO SANITÁRIO, TANQUE), COM REAPROVEITAMENTO, INCLUSIVE AFASTAMENTO E EMPILHAMENTO, EXCLUSIVE TRANSPORTE E RETIRADA DO MATERIAL REMOVIDO NÃO REAPROVEITÁVEL | C59: un | D59: 37.99
A60: ED-48470 | B60: REMOÇÃO MANUAL DE METAIS COMUNS E ACABAMENTOS (TORNEIRA, ACABAMENTO PARA REGISTRO, SIFÃO, ENGATE FLEXÍVEL, ETC.), COM REAPROVEITAMENTO, INCLUSIVE AFASTAMENTO E EMPILHAMENTO, EXCLUSIVE TRANSPORTE E RETIRADA DO MATERIAL REMOVIDO NÃO REAPROVEITÁVEL | C60: un | D60: 5.66
A61: ED-48471 | B61: REMOÇÃO MANUAL DE METAIS EMBUTIDOS (BASE DE REGISTRO, VÁLVULA DE DESCARGA, TORNEIRA ANTIVANDALISMO, ETC.), COM REAPROVEITAMENTO, INCLUSIVE AFASTAMENTO E EMPILHAMENTO, EXCLUSIVE TRANSPORTE E RETIRADA DO MATERIAL REMOVIDO NÃO REAPROVEITÁVEL | C61: un | D61: 18.08
A62: 8713 | B62: DEMOLIÇÃO E REMOÇÃO DE DIVISÓRIA E BANCADA
A63: ED-48452 | B63: DEMOLIÇÃO MANUAL DE ALVENARIA/DIVISÓRIA DE ELEMENTOS VAZADOS (COBOGÓ, ETC. ), INCLUSIVE AFASTAMENTO E EMPILHAMENTO, EXCLUSIVE TRANSPORTE E RETIRADA DO MATERIAL DEMOLIDO | C63: m2 | D63: 15.59
A64: ED-48453 | B64: DEMOLIÇÃO MANUAL DE DIVISÓRIA COMERCIAL EM LAMINADO, INCLUSIVE AFASTAMENTO E EMPILHAMENTO, EXCLUSIVE TRANSPORTE E RETIRADA DO MATERIAL DEMOLIDO | C64: m2 | D64: 6.27
A65: ED-8024 | B65: DEMOLIÇÃO MANUAL DE DIVISÓRIA DE MADEIRA, INCLUSIVE AFASTAMENTO E EMPILHAMENTO, EXCLUSIVE TRANSPORTE E RETIRADA DO MATERIAL DEMOLIDO | C65: m2 | D65: 9.56
A66: ED-48437 | B66: REMOÇÃO MANUAL DE BANCADA DE PEDRA (MÁRMORE, GRANITO, ARDÓSIA, MARMORITE, ETC.), COM REAPROVEITAMENTO, INCLUSIVE RASGO EM ALVENARIA, REMOÇÃO DE ACESSÓRIOS DE FIXAÇÃO, AFASTAMENTO E EMPILHAMENTO, EXCLUSIVE TRANSPORTE E RETIRADA DO MATERIAL REMOVIDO NÃO REAPROVEITÁVEL | C66: m2 | D66: 47.42
A67: ED-28348 | B67: REMOÇÃO MANUAL DE DIVISÓRIA EM PEDRA (MÁRMORE, GRANITO, ARDÓSIA, MARMORITE, ETC.), COM REAPROVEITAMENTO, INCLUSIVE RASGO EM ALVENARIA, REMOÇÃO DE ACESSÓRIOS DE FIXAÇÃO, AFASTAMENTO E EMPILHAMENTO, EXCLUSIVE TRANSPORTE E RETIRADA DO MATERIAL REMOVIDO NÃO REAPROVEITÁVEL | C67: m2 | D67: 39.57
A68: 8714 | B68: DEMOLIÇÃO DE ALVENARIA
A69: ED-48436 | B69: DEMOLIÇÃO MANUAL DE ALVENARIA DE TIJOLO CERÂMICO MACIÇO, INCLUSIVE AFASTAMENTO E EMPILHAMENTO, EXCLUSIVE TRANSPORTE E RETIRADA DO MATERIAL DEMOLIDO | C69: m3 | D69: 134.74
A70: ED-48435 | B70: DEMOLIÇÃO MANUAL DE ALVENARIA DE TIJOLO CERÂMICO OU BLOCO DE CONCRETO, INCLUSIVE AFASTAMENTO E EMPILHAMENTO, EXCLUSIVE TRANSPORTE E RETIRADA DO MATERIAL DEMOLIDO | C70: m3 | D70: 92.63
A71: ED-28338 | B71: DEMOLIÇÃO MANUAL DE CONSTRUÇÃO EM ALVENARIAS DE VEDAÇÃO, COM ESPESSURA MÁXIMA DE 15CM, INCLUSIVE REMOÇÃO COM REAPROVEITAMENTO DE ESQUADRIAS, AFASTAMENTO E EMPILHAMENTO, EXCLUSIVE TRANSPORTE E RETIRADA DO MATERIAL DEMOLIDO/REMOVIDO NÃO REAPROVEITÁVEL | C71: m2 | D71: 14.71
A72: 8715 | B72: DEMOLIÇÃO DE CONCRETO
A73: ED-48441 | B73: DEMOLIÇÃO MANUAL DE CONCRETO ARMADO, INCLUSIVE AFASTAMENTO E EMPILHAMENTO, EXCLUSIVE TRANSPORTE E RETIRADA DO MATERIAL DEMOLIDO | C73: m3 | D73: 423.5
A74: ED-48440 | B74: DEMOLIÇÃO MANUAL DE CONCRETO, SEM ARMAÇÃO, INCLUSIVE AFASTAMENTO E EMPILHAMENTO, EXCLUSIVE TRANSPORTE E RETIRADA DO MATERIAL DEMOLIDO | C74: m3 | D74: 256.67
A75: ED-48443 | B75: DEMOLIÇÃO MECANIZADA DE CONCRETO ARMADO, COM EQUIPAMENTO ELÉTRICO, INCLUSIVE AFASTAMENTO E EMPILHAMENTO, EXCLUSIVE TRANSPORTE E RETIRADA DO MATERIAL DEMOLIDO | C75: m3 | D75: 220.49
A76: ED-48445 | B76: DEMOLIÇÃO MECANIZADA DE CONCRETO ARMADO, COM EQUIPAMENTO PNEUMÁTICO, INCLUSIVE AFASTAMENTO E EMPILHAMENTO, EXCLUSIVE TRANSPORTE E RETIRADA DO MATERIAL DEMOLIDO | C76: m3 | D76: 302.64
A77: ED-48442 | B77: DEMOLIÇÃO MECANIZADA DE CONCRETO, SEM ARMAÇÃO, COM EQUIPAMENTO ELÉTRICO, INCLUSIVE AFASTAMENTO E EMPILHAMENTO, EXCLUSIVE TRANSPORTE E RETIRADA DO MATERIAL DEMOLIDO | C77: m3 | D77: 135.88
A78: ED-48444 | B78: DEMOLIÇÃO MECANIZADA DE CONCRETO, SEM ARMAÇÃO, COM EQUIPAMENTO PNEUMÁTICO, INCLUSIVE AFASTAMENTO E EMPILHAMENTO, EXCLUSIVE TRANSPORTE E RETIRADA DO MATERIAL DEMOLIDO | C78: m3 | D78: 185.66
A79: 8716 | B79: REMOÇÃO DE PADRÃO CONCESSIONÁRIA
A80: ED-48475 | B80: REMOÇÃO MANUAL DE PADRÃO DE ENTRADA DE ÁGUA, COM REAPROVEITAMENTO, INCLUSIVE AFASTAMENTO E EMPILHAMENTO, EXCLUSIVE TRANSPORTE E RETIRADA DO MATERIAL REMOVIDO NÃO REAPROVEITÁVEL | C80: un | D80: 86.86
A81: ED-48474 | B81: REMOÇÃO MANUAL DE PADRÃO DE ENTRADA DE ENERGIA, COM REAPROVEITAMENTO, INCLUSIVE AFASTAMENTO E EMPILHAMENTO, EXCLUSIVE TRANSPORTE E RETIRADA DO MATERIAL REMOVIDO NÃO REAPROVEITÁVEL | C81: un | D81: 218.82
A82: 8717 | B82: DEMOLIÇÃO E REMOÇÃO DE PAVIMENTAÇÃO
A83: ED-48487 | B83: DEMOLIÇÃO MANUAL DE LAJE DE CONCRETO ARMADO, COM ESPESSURA DE ATÉ 15CM, INCLUSIVE AFASTAMENTO E EMPILHAMENTO, EXCLUSIVE TRANSPORTE E RETIRADA DO MATERIAL DEMOLIDO | C83: m2 | D83: 37.04
A84: ED-48507 | B84: DEMOLIÇÃO MANUAL DE SARJETA OU SARJETÃO DE CONCRETO, INCLUSIVE AFASTAMENTO E EMPILHAMENTO, EXCLUSIVE TRANSPORTE E RETIRADA DO MATERIAL DEMOLIDO | C84: m2 | D84: 9.25
A85: ED-48489 | B85: DEMOLIÇÃO MECANIZADA DE LAJE DE CONCRETO ARMADO, COM ESPESSURA DE ATÉ 15CM, , COM EQUIPAMENTO ELÉTRICO, INCLUSIVE AFASTAMENTO E EMPILHAMENTO, EXCLUSIVE TRANSPORTE E RETIRADA DO MATERIAL DEMOLIDO | C85: m2 | D85: 20.02
A86: ED-48486 | B86: DEMOLIÇÃO MECANIZADA DE LAJE DE CONCRETO ARMADO, COM ESPESSURA DE ATÉ 15CM, , COM EQUIPAMENTO PNEUMÁTICO, INCLUSIVE AFASTAMENTO E EMPILHAMENTO, EXCLUSIVE TRANSPORTE E RETIRADA DO MATERIAL DEMOLIDO | C86: m2 | D86: 26.98
A87: ED-48492 | B87: DEMOLIÇÃO MECANIZADA DE REVESTIMENTO ASFÁLTICO, COM EQUIPAMENTO PNEUMÁTICO, INCLUSIVE AFASTAMENTO E EMPILHAMENTO, EXCLUSIVE TRANSPORTE E RETIRADA DO MATERIAL DEMOLIDO | C87: m2 | D87: 8.96
A88: ED-48490 | B88: REMOÇÃO MANUAL DE ALVENARIA POLIÉDRICA, COM REAPROVEITAMENTO, INCLUSIVE AFASTAMENTO E EMPILHAMENTO, EXCLUSIVE TRANSPORTE E RETIRADA DO MATERIAL REMOVIDO NÃO REAPROVEITÁVEL | C88: m2 | D88: 12.73
A89: ED-48488 | B89: REMOÇÃO MANUAL DE CALÇADA PORTUGUESA, COM REAPROVEITAMENTO, INCLUSIVE AFASTAMENTO E EMPILHAMENTO, EXCLUSIVE TRANSPORTE E RETIRADA DO MATERIAL REMOVIDO NÃO REAPROVEITÁVEL | C89: m2 | D89: 7.68
A90: ED-48473 | B90: REMOÇÃO MANUAL DE GUIA DE MEIO-FIO EM PEDRA (GNAISSE, BASALTO, ETC.), COM REAPROVEITAMENTO, INCLUSIVE AFASTAMENTO E EMPILHAMENTO, EXCLUSIVE TRANSPORTE E RETIRADA DO MATERIAL REMOVIDO NÃO REAPROVEITÁVEL | C90: m | D90: 18.51
A91: ED-48472 | B91: REMOÇÃO MANUAL DE GUIA DE MEIO-FIO PRÉ-MOLDADA EM CONCRETO, COM REAPROVEITAMENTO, INCLUSIVE AFASTAMENTO E EMPILHAMENTO, EXCLUSIVE TRANSPORTE E RETIRADA DO MATERIAL REMOVIDO NÃO REAPROVEITÁVEL | C91: m | D91: 9.87
A92: ED-48476 | B92: REMOÇÃO MANUAL DE PAVIMENTAÇÃO INTERTRAVADA OU SEXTAVADO EM PRÉ-MOLDADO DE CONCRETO, COM REAPROVEITAMENTO, INCLUSIVE AFASTAMENTO E EMPILHAMENTO, EXCLUSIVE TRANSPORTE E RETIRADA DO MATERIAL REMOVIDO NÃO REAPROVEITÁVEL | C92: m2 | D92: 12.73
A93: ED-48491 | B93: REMOÇÃO MANUAL DE PAVIMENTO PARALELEPÍPEDO, COM REAPROVEITAMENTO, INCLUSIVE AFASTAMENTO E EMPILHAMENTO, EXCLUSIVE TRANSPORTE E RETIRADA DO MATERIAL REMOVIDO NÃO REAPROVEITÁVEL | C93: m2 | D93: 14.14
A94: 8718 | B94: DEMOLIÇÃO E REMOÇÃO DE REVESTIMENTO
A95: ED-48504 | B95: DEMOLIÇÃO MANUAL DE LAMINADO MELAMÍNICO EM SUPERFÍCIE DE MADEIRA OU PAREDE, INCLUSIVE AFASTAMENTO E EMPILHAMENTO, EXCLUSIVE TRANSPORTE E RETIRADA DO MATERIAL DEMOLIDO | C95: m2 | D95: 9.25
A96: ED-48501 | B96: DEMOLIÇÃO MANUAL DE REBOCO OU EMBOÇO, COM ESPESSURA DE ATÉ 55MM, INCLUSIVE AFASTAMENTO E EMPILHAMENTO, EXCLUSIVE TRANSPORTE E RETIRADA DO MATERIAL DEMOLIDO | C96: m2 | D96: 8.79
A97: ED-48502 | B97: DEMOLIÇÃO MANUAL DE REVESTIMENTO CERÂMICO, AZULEJO OU LADRILHO HIDRÁULICO, INCLUSIVE AFASTAMENTO E EMPILHAMENTO, EXCLUSIVE DEMOLIÇÃO DO REBOCO OU EMBOÇO, TRANSPORTE E RETIRADA DO MATERIAL DEMOLIDO | C97: m2 | D97: 18.31
A98: ED-48503 | B98: DEMOLIÇÃO MANUAL DE REVESTIMENTO DE PEDRA (MÁRMORE, GRANITO, ARDÓSIA, ETC.), INCLUSIVE AFASTAMENTO E EMPILHAMENTO, EXCLUSIVE DEMOLIÇÃO DO REBOCO OU EMBOÇO, TRANSPORTE E RETIRADA DO MATERIAL DEMOLIDO | C98: m2 | D98: 21.98
A99: ED-48478 | B99: REMOÇÃO MANUAL DE PEITORIL DE MÁRMORE OU GRANITO, COM REAPROVEITAMENTO, INCLUSIVE AFASTAMENTO E EMPILHAMENTO, EXCLUSIVE TRANSPORTE E RETIRADA DO MATERIAL REMOVIDO NÃO REAPROVEITÁVEL | C99: m | D99: 7.2
A100: 8719 | B100: DEMOLIÇÃO E REMOÇÃO DE PISO
A101: ED-48480 | B101: DEMOLIÇÃO MANUAL DE PISO CERÂMICO OU LADRILHO HIDRÁULICO, INCLUSIVE AFASTAMENTO E EMPILHAMENTO, EXCLUSIVE DEMOLIÇÃO DE CONTRAPISO, TRANSPORTE E RETIRADA DO MATERIAL DEMOLIDO | C101: m2 | D101: 14.65
A102: ED-48479 | B102: DEMOLIÇÃO MANUAL DE PISO CIMENTADO OU CONTRAPISO DE ARGAMASSA, COM ESPESSURA MÁXIMA DE 10CM, INCLUSIVE AFASTAMENTO E EMPILHAMENTO, EXCLUSIVE TRANSPORTE E RETIRADA DO MATERIAL DEMOLIDO | C102: m2 | D102: 15.69
A103: ED-48481 | B103: DEMOLIÇÃO MANUAL DE PISO DE PEDRAS (MÁRMORE, GRANITO, ARDÓSIA, ETC.), INCLUSIVE AFASTAMENTO E EMPILHAMENTO, EXCLUSIVE DEMOLIÇÃO DE CONTRAPISO, TRANSPORTE E RETIRADA DO MATERIAL DEMOLIDO | C103: m2 | D103: 18.31
A104: ED-48483 | B104: DEMOLIÇÃO MANUAL DE PISO EM GRANILITE/MARMORITE, INCLUSIVE AFASTAMENTO E EMPILHAMENTO, EXCLUSIVE TRANSPORTE E RETIRADA DO MATERIAL DEMOLIDO | C104: m2 | D104: 19.98
A105: ED-48482 | B105: DEMOLIÇÃO MANUAL DE PISO VINÍLICO, INCLUSIVE AFASTAMENTO E EMPILHAMENTO, EXCLUSIVE TRANSPORTE E RETIRADA DO MATERIAL DEMOLIDO | C105: m2 | D105: 7.79
A106: ED-48505 | B106: DEMOLIÇÃO MANUAL DE RODAPÉ, INCLUSIVE ARGAMASSA DE ASSENTAMENTO E AFASTAMENTO, EXCLUSIVE TRANSPORTE E RETIRADA DO MATERIAL DEMOLIDO | C106: m | D106: 2.42
A107: ED-48485 | B107: REMOÇÃO MANUAL DE PISO DE TÁBUAS, COM REAPROVEITAMENTO, INCLUSIVE AFASTAMENTO E EMPILHAMENTO, EXCLUSIVE TRANSPORTE E RETIRADA DO MATERIAL REMOVIDO NÃO REAPROVEITÁVEL | C107: m2 | D107: 21.98
A108: ED-48484 | B108: REMOÇÃO MANUAL DE PISO DE TACO DE MADEIRA, COM REAPROVEITAMENTO, INCLUSIVE AFASTAMENTO E EMPILHAMENTO, EXCLUSIVE TRANSPORTE E RETIRADA DO MATERIAL REMOVIDO NÃO REAPROVEITÁVEL | C108: m2 | D108: 19.11
A109: ED-48508 | B109: REMOÇÃO MANUAL DE SOLEIRA DE MÁRMORE OU GRANITO, COM REAPROVEITAMENTO, INCLUSIVE AFASTAMENTO E EMPILHAMENTO, EXCLUSIVE TRANSPORTE E RETIRADA DO MATERIAL REMOVIDO NÃO REAPROVEITÁVEL | C109: m | D109: 7.7
A110: 8720 | B110: REMOÇÃO DE CERCA E ALAMBRADO
A111: ED-48434 | B111: REMOÇÃO MANUAL DE ALAMBRADO METÁLICO, COM REAPROVEITAMENTO, INCLUSIVE AFASTAMENTO E EMPILHAMENTO, EXCLUSIVE TRANSPORTE E RETIRADA DO MATERIAL REMOVIDO NÃO REAPROVEITÁVEL | C111: m2 | D111: 16.91
A112: ED-48439 | B112: REMOÇÃO MANUAL DE CERCA, COM REAPROVEITAMENTO, INCLUSIVE AFASTAMENTO E EMPILHAMENTO, EXCLUSIVE TRANSPORTE E RETIRADA DO MATERIAL REMOVIDO NÃO REAPROVEITÁVEL | C112: m2 | D112: 14.65
A113: ED-48449 | B113: REMOÇÃO MANUAL DE CONCERTINA, COM DIÂMETRO DE ATÉ 730MM, COM REAPROVEITAMENTO, INCLUSIVE AFASTAMENTO E EMPILHAMENTO, EXCLUSIVE TRANSPORTE E RETIRADA DO MATERIAL REMOVIDO NÃO REAPROVEITÁVEL | C113: m | D113: 2.45
A114: 8721 | B114: REMOÇÃO DE VIDRO
A115: ED-48516 | B115: REMOÇÃO MANUAL DE VIDRO EM ESQUADRIAS, COM REAPROVEITAMENTO, INCLUSIVE LIMPEZA DO ENCAIXE, AFASTAMENTO E EMPILHAMENTO, EXCLUSIVE TRANSPORTE E RETIRADA DO MATERIAL REMOVIDO NÃO REAPROVEITÁVEL | C115: m2 | D115: 5.78
A116: 8722 | B116: REMOÇÃO DE ITEM ESCOLAR
A117: ED-48498 | B117: REMOÇÃO MANUAL DE QUADRO NEGRO, COM REAPROVEITAMENTO, INCLUSIVE AFASTAMENTO E EMPILHAMENTO, EXCLUSIVE TRANSPORTE E RETIRADA DO MATERIAL REMOVIDO NÃO REAPROVEITÁVEL | C117: m2 | D117: 24.69
A118: 8664 | B118: INSTALAÇÕES PROVISÓRIAS
A119: 8723 | B119: PLACA DE OBRA
A120: ED-16660 | B120: FORNECIMENTO E COLOCAÇÃO DE PLACA DE OBRA EM CHAPA GALVANIZADA #26, ESP. 0,45 MM, PLOTADA COM ADESIVO VINÍLICO, AFIXADA COM REBITES 4,8X40 MM, EM ESTRUTURA METÁLICA DE METALON 20X20 MM, ESP. 1,25 MM, INCLUSIVE SUPORTE EM EUCALIPTO AUTOCLAVADO PINTADO COM TINTA PVA DUAS (2) DEMÃOS | C120: m2 | D120: 303.81
A121: ED-28427 | B121: FORNECIMENTO E COLOCAÇÃO DE PLACA DE OBRA EM CHAPA GALVANIZADA #26, ESP. 0,45MM, DIMENSÃO (3X1,5)M, PLOTADA COM ADESIVO VINÍLICO, AFIXADA COM REBITES 4,8X40MM, EM ESTRUTURA METÁLICA DE METALON 20X20MM, ESP. 1,25MM, INCLUSIVE SUPORTE EM EUCALIPTO AUTOCLAVADO PINTADO COM TINTA PVA DUAS (2) DEMÃOS | C121: un | D121: 1367.14
A122: ED-28428 | B122: FORNECIMENTO E COLOCAÇÃO DE PLACA DE OBRA EM CHAPA GALVANIZADA #26, ESP. 0,45MM, DIMENSÃO (4X3)M, PLOTADA COM ADESIVO VINÍLICO, AFIXADA COM REBITES 4,8X40MM, EM ESTRUTURA METÁLICA DE METALON 20X20MM, ESP. 1,25MM, INCLUSIVE SUPORTE EM EUCALIPTO AUTOCLAVADO PINTADO COM TINTA PVA DUAS (2) DEMÃOS | C122: un | D122: 3645.72
A123: ED-28429 | B123: FORNECIMENTO E COLOCAÇÃO DE PLACA DE OBRA EM CHAPA GALVANIZADA #26, ESP. 0,45MM, DIMENSÃO (6X3)M, PLOTADA COM ADESIVO VINÍLICO, AFIXADA COM REBITES 4,8X40MM, EM ESTRUTURA METÁLICA DE METALON 20X20MM, ESP. 1,25MM, INCLUSIVE SUPORTE EM EUCALIPTO AUTOCLAVADO PINTADO COM TINTA PVA DUAS (2) DEMÃOS | C123: un | D123: 5468.58
A124: 8724 | B124: INSTALAÇÃO PROVISÓRIA ÁGUA E ENERGIA
A125: ED-50150 | B125: LIGAÇÃO DE ÁGUA PROVISÓRIA PARA CANTEIRO, INCLUSIVE HIDRÔMETRO E CAVALETE PARA MEDIÇÃO DE ÁGUA - ENTRADA PRINCIPAL, EM AÇO GALVANIZADO DN 20MM (1/2") - PADRÃO CONCESSIONÁRIA | C125: un | D125: 375.83
A126: ED-31745 | B126: LIGAÇÃO DE ESGOTO PARA BARRACÃO DE OBRA EM CANTEIRO, EXCLUSIVE FOSSA SÉPTICA | C126: un | D126: 752.33
A127: ED-50151 | B127: LIGAÇÃO PROVISÓRIA COM ENTRADA DE ENERGIA AÉREA, PADRÃO CEMIG, CARGA INSTALADA DE 15,1KVA ATÉ 30KVA, TRIFÁSICO, COM SAÍDA SUBTERRÂNEA, INCLUSIVE POSTE, CAIXA PARA MEDIDOR, DISJUNTOR, BARRAMENTO, ATERRAMENTO E ACESSÓRIOS | C127: un | D127: 1154.49
A128: 8725 | B128: ESCRITÓRIO DE OBRA
A129: ED-50125 | B129: ÁREA COBERTA EM TELHA FIBROCIMENTO PARA CENTRAL DE CORTE/DOBRA/MONTAGEM EM CANTEIRO DE OBRAS, INCLUSIVE BANCADA E INSTALAÇÕES ELÉTRICAS, EXCLUSIVE VEDAÇÕES LATERAIS | C129: m2 | D129: 121.56
A130: ED-50135 | B130: BARRACÃO DE OBRA, EM CHAPA DE COMPENSADO RESINADO, INCLUSIVE INSTALAÇÕES SANITÁRIAS E MOBILIÁRIO - PADRÃO DER-MG | C130: m2 | D130: 555.94
A131: ED-50128 | B131: BARRACÃO DE OBRA PARA DEPÓSITO E FERRAMENTARIA TIPO-I, ÁREA INTERNA 14,52M2, EM CHAPA DE COMPENSADO RESINADO, INCLUSIVE MOBILIÁRIO (OBRA DE PEQUENO PORTE, EFETIVO ATÉ 30 HOMENS), PADRÃO DER-MG | C131: un | D131: 7385.19
A132: ED-50129 | B132: BARRACÃO DE OBRA PARA DEPÓSITO E FERRAMENTARIA TIPO-II, ÁREA INTERNA 25,41M2, EM CHAPA DE COMPENSADO RESINADO, INCLUSIVE MOBILIÁRIO (OBRA DE MÉDIO PORTE, EFETIVO DE 30 A 60 HOMENS), PADRÃO DER-MG | C132: un | D132: 12169.03
A133: ED-50148 | B133: BARRACÃO DE OBRA PARA ESCRITÓRIO DA EMPREITEIRA TIPO-I, ÁREA INTERNA 18,15M2, EM CHAPA DE COMPENSADO RESINADO, INCLUSIVE MOBILIÁRIO (OBRA DE PEQUENO A MÉDIO PORTE, EFETIVO ATÉ 60 HOMENS) - PADRÃO DER-MG | C133: un | D133: 10116.29
A134: ED-50149 | B134: BARRACÃO DE OBRA PARA ESCRITÓRIO DA EMPREITEIRA TIPO-II, ÁREA INTERNA 21,78M2, EM CHAPA DE COMPENSADO RESINADO, INCLUSIVE MOBILIÁRIO (OBRA DE GRANDE PORTE, EFETIVO ACIMA 60 HOMENS) - PADRÃO DER-MG | C134: un | D134: 11635.62
A135: ED-50146 | B135: BARRACÃO DE OBRA PARA ESCRITÓRIO DA FISCALIZAÇÃO TIPO-I, ÁREA INTERNA 18,15M2, EM CHAPA DE COMPENSADO RESINADO, INCLUSIVE MOBILIÁRIO (OBRA DE PEQUENO A MÉDIO PORTE, EFETIVO ATÉ 60 HOMENS) - PADRÃO DER-MG | C135: un | D135: 9946.31
A136: ED-50147 | B136: BARRACÃO DE OBRA PARA ESCRITÓRIO DA FISCALIZAÇÃO TIPO-II, ÁREA INTERNA 21,78M2, EM CHAPA DE COMPENSADO RESINADO, INCLUSIVE MOBILIÁRIO (OBRA DE GRANDE PORTE, EFETIVO ACIMA 60 HOMENS) - PADRÃO DER-MG | C136: un | D136: 11465.64
A137: ED-50130 | B137: BARRACÃO DE OBRA PARA INSTALAÇÃO SANITÁRIA TIPO-I, ÁREA INTERNA 14,52M2, EM CHAPA DE COMPENSADO RESINADO (OBRA DE PEQUENO PORTE, EFETIVO ATÉ 30 HOMENS), PADRÃO DER-MG | C137: un | D137: 8216.64
A138: ED-50131 | B138: BARRACÃO DE OBRA PARA INSTALAÇÃO SANITÁRIA TIPO-II, ÁREA INTERNA 18,15M2, EM CHAPA DE COMPENSADO RESINADO (OBRA DE MÉDIO PORTE, EFETIVO DE 30 A 60 HOMENS), PADRÃO DER-MG | C138: un | D138: 10482.06
A139: ED-50132 | B139: BARRACÃO DE OBRA PARA INSTALAÇÃO SANITÁRIA TIPO-III, ÁREA INTERNA 25,41M2, EM CHAPA DE COMPENSADO RESINADO (OBRA DE GRANDE PORTE, EFETIVO ACIMA DE 60 HOMENS), PADRÃO DER-MG | C139: un | D139: 14797.35
A140: ED-50133 | B140: BARRACÃO DE OBRA PARA REFEITÓRIO TIPO-I, ÁREA INTERNA 18,15M2, EM CHAPA DE COMPENSADO RESINADO (OBRA DE MÉDIO PORTE, EFETIVO DE 30 A 60 HOMENS), PADRÃO DER-MG | C140: un | D140: 9248.88
A141: ED-50134 | B141: BARRACÃO DE OBRA PARA REFEITÓRIO TIPO-II, ÁREA INTERNA 25,41M2, EM CHAPA DE COMPENSADO RESINADO (OBRA DE GRANDE PORTE, EFETIVO ACIMA DE 60 HOMENS), PADRÃO DER-MG | C141: un | D141: 12453.32
A142: ED-50126 | B142: BARRACÃO DE OBRA PARA VESTIÁRIO TIPO-I, ÁREA INTERNA 25,41M2, EM CHAPA DE COMPENSADO RESINADO, INCLUSIVE MOBILIÁRIO (OBRA DE PEQUENO PORTE, EFETIVO ATÉ 30 HOMENS), PADRÃO DER-MG | C142: un | D142: 13615.07
A143: ED-50127 | B143: BARRACÃO DE OBRA PARA VESTIÁRIO TIPO-II, ÁREA INTERNA 67,76M2, EM CHAPA DE COMPENSADO RESINADO, INCLUSIVE MOBILIÁRIO (OBRA DE MÉDIO PORTE, EFETIVO DE 30 A 60 HOMENS), PADRÃO DER-MG | C143: un | D143: 26636.58
A144: ED-16341 | B144: LIGAÇÃO PROVISÓRIA DE ÁGUA E ESGOTO PARA CONTAINER (ESCRITÓRIO DE OBRA) | C144: un | D144: 287.82
A145: ED-16343 | B145: LIGAÇÃO PROVISÓRIA DE ÁGUA E ESGOTO PARA CONTAINER (VESTIÁRIO DE OBRA), EXCLUSIVE CHUVEIRO ELÉTRICO | C145: un | D145: 339.94
A146: ED-16342 | B146: LIGAÇÃO PROVISÓRIA DE ENERGIA ELÉTRICA PARA CONTAINER | C146: un | D146: 296.2
A147: ED-16356 | B147: LIGAÇÕES PROVISÓRIAS PARA CONTAINER TIPO 1 (CORRESPONDENTE AO CÓDIGO ED-16348) | C147: un | D147: 296.2
A148: ED-16357 | B148: LIGAÇÕES PROVISÓRIAS PARA CONTAINER TIPO 2 (CORRESPONDENTE AO CÓDIGO ED-16349) | C148: un | D148: 584.02
A149: ED-16358 | B149: LIGAÇÕES PROVISÓRIAS PARA CONTAINER TIPO 3 (CORRESPONDENTE AO CÓDIGO ED-16350) | C149: un | D149: 296.2
A150: ED-16359 | B150: LIGAÇÕES PROVISÓRIAS PARA CONTAINER TIPO 4 (CORRESPONDENTE AO CÓDIGO ED-16351) | C150: un | D150: 296.2
A151: ED-16360 | B151: LIGAÇÕES PROVISÓRIAS PARA CONTAINER TIPO 5 (CORRESPONDENTE AO CÓDIGO ED-16352) | C151: un | D151: 1011.34
A152: ED-16361 | B152: LIGAÇÕES PROVISÓRIAS PARA CONTAINER TIPO 6 (CORRESPONDENTE AO CÓDIGO ED-16353) | C152: un | D152: 636.14
A153: ED-16362 | B153: LIGAÇÕES PROVISÓRIAS PARA CONTAINER TIPO 7 (CORRESPONDENTE AO CÓDIGO ED-16354) | C153: un | D153: 850.54
A154: ED-16363 | B154: LIGAÇÕES PROVISÓRIAS PARA CONTAINER TIPO 8 (CORRESPONDENTE AO CÓDIGO ED-16355) | C154: un | D154: 296.2
A155: ED-50155 | B155: LOCAÇÃO DE BANHEIRO QUÍMICO, DIMENSÃO (110X120X230)CM, LINHA PADRÃO, CONTENDO UMA (1) PIA/HIGIENIZADOR DE MÃOS, INCLUSIVE MANUTENÇÃO E MOBILIZAÇÃO/DESMOBILIZAÇÃO | C155: mês | D155: 836.4
A156: ED-16348 | B156: LOCAÇÃO DE CONTAINER COM ISOLAMENTO TÉRMICO, TIPO 1, PARA ESCRITÓRIO DE OBRA, COM MEDIDAS REFERENCIAIS DE (6) METROS COMPRIMENTO, (2,3) METROS LARGURA E (2,5) METROS ALTURA ÚTIL INTERNA, INCLUSIVE AR CONDICIONADO E LIGAÇÕES ELÉTRICAS INTERNAS, EXCLUSIVE MOBILIZAÇÃO/DESMOBILIZAÇÃO E LIGAÇÕES PROVISÓRIAS EXTERNAS | C156: mês | D156: 944.26
A157: ED-16349 | B157: LOCAÇÃO DE CONTAINER COM ISOLAMENTO TÉRMICO, TIPO 2, PARA ESCRITÓRIO DE OBRA COM SANITÁRIO CONTENDO UM (1) VASO SANITÁRIO E UM (1) LAVATÓRIO, COM MEDIDAS REFERENCIAIS DE (6) METROS COMPRIMENTO, (2,3) METROS LARGURA E (2,5) METROS ALTURA ÚTIL INTERNA, INCLUSIVE AR CONDICIONADO E LIGAÇÕES ELÉTRICAS E HIDROSSANITÁRIAS INTERNAS, EXCLUSIVE MOBILIZAÇÃO/DESMOBILIZAÇÃO E LIGAÇÕES PROVISÓRIAS EXTERNAS | C157: mês | D157: 1121.54
A158: ED-16350 | B158: LOCAÇÃO DE CONTAINER COM ISOLAMENTO TÉRMICO, TIPO 3, PARA DEPÓSITO/FERRAMENTARIA DE OBRA, COM MEDIDAS REFERENCIAIS DE (6) METROS COMPRIMENTO, (2,3) METROS LARGURA E (2,5) METROS ALTURA ÚTIL INTERNA, INCLUSIVE LIGAÇÕES ELÉTRICAS INTERNAS, EXCLUSIVE MOBILIZAÇÃO/DESMOBILIZAÇÃO E LIGAÇÕES PROVISÓRIAS EXTERNAS | C158: mês | D158: 882.56
A159: ED-16351 | B159: LOCAÇÃO DE CONTAINER COM ISOLAMENTO TÉRMICO, TIPO 4, PARA REFEITÓRIO DE OBRA, COM MEDIDAS REFERENCIAIS DE (6) METROS COMPRIMENTO, (2,3) METROS LARGURA E (2,5) METROS ALTURA ÚTIL INTERNA, INCLUSIVE LIGAÇÕES ELÉTRICAS INTERNAS, EXCLUSIVE MOBILIZAÇÃO/DESMOBILIZAÇÃO E LIGAÇÕES PROVISÓRIAS EXTERNAS | C159: mês | D159: 721.22
A160: ED-16352 | B160: LOCAÇÃO DE CONTAINER COM ISOLAMENTO TÉRMICO, TIPO 5, PARA VESTIÁRIO DE OBRA COM SETE (7) CHUVEIROS E DOIS (2) LAVATÓRIOS, COM MEDIDAS REFERENCIAIS DE (6) METROS COMPRIMENTO, (2,3) METROS LARGURA E (2,5) METROS ALTURA ÚTIL INTERNA, INCLUSIVE LIGAÇÕES ELÉTRICAS E HIDROSSANITÁRIAS INTERNAS, EXCLUSIVE MOBILIZAÇÃO/DESMOBILIZAÇÃO E LIGAÇÕES PROVISÓRIAS EXTERNAS | C160: mês | D160: 982.6
A161: ED-16353 | B161: LOCAÇÃO DE CONTAINER COM ISOLAMENTO TÉRMICO, TIPO 6, PARA VESTIÁRIO DE OBRA COM SETE (7) VASOS SANITÁRIOS, UM (1) MICTÓRIO E UM (1) LAVATÓRIO, COM MEDIDAS REFERENCIAIS DE (6) METROS COMPRIMENTO, (2,3) METROS LARGURA E (2,5) METROS ALTURA ÚTIL INTERNA, INCLUSIVE LIGAÇÕES ELÉTRICAS E HIDROSSANITÁRIAS INTERNAS, EXCLUSIVE MOBILIZAÇÃO/DESMOBILIZAÇÃO E LIGAÇÕES PROVISÓRIAS EXTERNAS | C161: mês | D161: 945.65
A162: ED-16354 | B162: LOCAÇÃO DE CONTAINER COM ISOLAMENTO TÉRMICO, TIPO 7, PARA VESTIÁRIO DE OBRA COM QUATRO (4) CHUVEIROS, TRÊS (3) VASOS SANITÁRIOS, UM (1) MICTÓRIO E UM (1) LAVATÓRIO, COM MEDIDAS REFERENCIAIS DE (6) METROS COMPRIMENTO, (2,3) METROS LARGURA E (2,5) METROS ALTURA ÚTIL INTERNA, INCLUSIVE LIGAÇÕES ELÉTRICAS E HIDROSSANITÁRIAS INTERNAS, EXCLUSIVE MOBILIZAÇÃO/DESMOBILIZAÇÃO E LIGAÇÕES PROVISÓRIAS EXTERNAS | C162: mês | D162: 951.21
A163: ED-16355 | B163: LOCAÇÃO DE CONTAINER COM ISOLAMENTO TÉRMICO, TIPO 8, PARA VESTIÁRIO DE OBRA COM OITO (8) BANCOS E CINCO (5) ARMÁRIOS, COM MEDIDAS REFERENCIAIS DE (6) METROS COMPRIMENTO, (2,3) METROS LARGURA E (2,5) METROS ALTURA ÚTIL INTERNA, INCLUSIVE LIGAÇÕES ELÉTRICAS INTERNAS, EXCLUSIVE MOBILIZAÇÃO/DESMOBILIZAÇÃO E LIGAÇÕES PROVISÓRIAS EXTERNAS | C163: mês | D163: 767.2
A164: ED-50137 | B164: MOBILIZAÇÃO E DESMOBILIZAÇÃO DE CONTAINER, INCLUSIVE CARGA, DESCARGA E TRANSPORTE EM CAMINHÃO CARROCERIA COM GUINDAUTO (MUNCK), EXCLUSIVE LOCAÇÃO DO CONTAINER | C164: un | D164: 1524.82
A165: 8726 | B165: LOCAÇÃO DA OBRA
A166: ED-17989 | B166: LOCAÇÃO DE OBRA COM GABARITO DE TÁBUAS CORRIDAS PONTALETADAS A CADA 2,00M, REAPROVEITAMENTO (2X), INCLUSIVE ACOMPANHAMENTO DE EQUIPE TOPOGRÁFICA PARA MARCAÇÃO DE PONTO TOPOGRÁFICO | C166: m | D166: 49.91
A167: ED-50276 | B167: LOCAÇÃO TOPOGRÁFICA ACIMA DE CINQUENTA (50) PONTOS REFERENCIAIS, INCLUSIVE ESTACA (PIQUETE) DE MARCAÇÃO | C167: un | D167: 32.81
A168: ED-50275 | B168: LOCAÇÃO TOPOGRÁFICA DE VINTE UM (21) ATÉ CINQUENTA (50) PONTOS REFERENCIAIS, INCLUSIVE ESTACA (PIQUETE) DE MARCAÇÃO | C168: un | D168: 56.75
A169: ED-50274 | B169: LOCAÇÃO TOPOGRÁFICA PARA ATÉ VINTE (20) PONTOS REFERENCIAIS, INCLUSIVE ESTACA (PIQUETE) DE MARCAÇÃO | C169: un | D169: 75.37
A170: 8727 | B170: TAPUME E CERCA
A171: ED-50136 | B171: CERCA COM MOURÕES DE MADEIRA ROLIÇA, COM CINCO (5) FIOS DE ARAME FARPADO, BWG 14 (2,0MM), ALTURA DE 150CM, INCLUSIVE ESCAVAÇÃO, REATERRO COMPACTADO E FORNECIMENTO | C171: m | D171: 39.13
A172: ED-50162 | B172: PORTÃO PARA TAPUME FIXO DE PROTEÇÃO COM FECHAMENTO DE OBRA EM CHAPA DE COMPENSADO, ESP. 12MM, COM MÓDULO NA DIMENSÃO DE (110X220)CM, INCLUSIVE FERRAGENS E PINTURA LÁTEX (PVA) COM DUAS (2) DEMÃOS | C172: m2 | D172: 145.31
A173: ED-50166 | B173: REMANEJAMENTO DE TAPUME FIXO DE PROTEÇÃO PARA FECHAMENTO DE OBRA, INCLUSIVE ESCAVAÇÃO MANUAL E REATERRO COMPACTADO | C173: m2 | D173: 9.33
A174: ED-50163 | B174: TAPUME DE PROTEÇÃO PARA TRANSEUNTE EM TELA DE POLIETILENO, COM MÓDULO NA DIMENSÃO DE (150X150)CM, INCLUSIVE PONTALETE COM BASE DE APOIO EM CONCRETO MAGRO, FORNECIMENTO E MOVIMENTAÇÃO | C174: m | D174: 12.36
A175: ED-50159 | B175: TAPUME FIXO DE PROTEÇÃO PARA FECHAMENTO DE OBRA EM CHAPA DE COMPENSADO, ESP. 12MM, COM MÓDULO NA DIMENSÃO DE (110X220)CM, INCLUSIVE PINTURA LÁTEX (PVA) COM DUAS (2) DEMÃOS, EXCLUSIVE ABERTURA PARA PORTÃO | C175: m | D175: 192.5
A176: ED-50164 | B176: TAPUME FIXO DE PROTEÇÃO PARA FECHAMENTO DE OBRA EM TELA GALVANIZADA, COM TRAMA LOSANGULAR DE 2"X2", FIO BWG 14, COM MÓDULO NA DIMENSÃO DE (300X220)CM, INCLUSIVE PINTURA ESMALTE COM DUAS (2) DEMÃOS, EXCLUSIVE ABERTURA PARA PORTÃO | C176: m2 | D176: 77.46
A177: ED-29823 | B177: TAPUME FIXO DE PROTEÇÃO PARA FECHAMENTO DE OBRA EM TELHA METÁLICA GALVANIZADA, TIPO TRAPEZOIDAL, ESP. 0,5MM, COM MÓDULO NA DIMENSÃO DE (300X220)CM, COM REAPROVEITAMENTO, EXCLUSIVE PINTURA ESMALTE, INCLUSIVE PONTALETE E FIXAÇÃO | C177: m2 | D177: 57.5
A178: ED-50165 | B178: TAPUME REMOVÍVEL DE PROTEÇÃO PARA FECHAMENTO DE OBRA EM TELA GALVANIZADA, COM TRAMA LOSANGULAR DE 2"X2", FIO BWG 14, COM MÓDULO NA DIMENSÃO DE (300X220)CM, INCLUSIVE PONTALETE COM BASE DE APOIO EM CONCRETO MAGRO | C178: m2 | D178: 71.9
A179: 8728 | B179: PROTEÇÃO DE TRANSEUNTE
A180: ED-27006 | B180: CONE PARA SINALIZAÇÃO/ISOLAMENTO DE ÁREAS, ALTURA 75CM, INCLUSIVE FORNECIMENTO E MOVIMENTAÇÃO | C180: un | D180: 4.63
A181: ED-50157 | B181: FITA ZEBRADA AMARELA PARA SINALIZAÇÃO ISOLAMENTO DE ÁREA, EXCLUSIVE SUPORTE PARA SUSTENTAÇÃO, INCLUSIVE FIXAÇÃO E FORNECIMENTO | C181: m | D181: 2.5
A182: ED-50156 | B182: PROTEÇÃO PARA TRANSEUNTE OU ISOLAMENTO DE ÁREA COM FITA ZEBRADA AMARELA, INCLUSIVE PONTALETE COM BASE DE APOIO EM CONCRETO MAGRO, ALTURA DE 150CM, FORNECIMENTO E MOVIMENTAÇÃO | C182: m | D182: 10.21
A183: 8729 | B183: ANDAIME
A184: ED-28530 | B184: ANDAIME EM CAVALETE METÁLICO PARA ALVENARIA, COM CHAPA DE COMPENSADO E TÁBUA, COM REAPROVEITAMENTO, INCLUSIVE MONTAGEM/DESMONTAGEM E REMANEJAMENTO | C184: m | D184: 1.42
A185: ED-28533 | B185: ANDAIME EM CAVALETE METÁLICO PARA FORRO OU SERVIÇO EM ALTURA INTERNO, COM CHAPA DE COMPENSADO E TÁBUA, COM REAPROVEITAMENTO, INCLUSIVE MONTAGEM/DESMONTAGEM E REMANEJAMENTO | C185: m2 | D185: 1.29
A186: ED-48243 | B186: CONDUTOR/DUTO DE ENTULHO EM POLIETILENO, INCLUSIVE ACESSÓRIOS DE FIXAÇÃO, SUPORTES, MONTAGEM/DESMONTAGEM E REMANEJAMENTO | C186: mxmês | D186: 45.13
A187: ED-9075 | B187: FORNECIMENTO DE ANDAIME METÁLICO PARA FACHADA (LOCAÇÃO), INCLUSIVE PISO METÁLICO E SAPATAS, EXCLUSIVE MONTAGEM E DESMONTAGEM | C187: m2xmês | D187: 9.82
A188: ED-9076 | B188: FORNECIMENTO DE ANDAIME METÁLICO TUBULAR TIPO TORRE (LOCAÇÃO), INCLUSIVE RODÍZIOS, EXCLUSIVE MONTAGEM E DESMONTAGEM | C188: mxmês | D188: 20
A189: ED-48246 | B189: MONTAGEM E DESMONTAGEM DE ANDAIME METÁLICO PARA FACHADA COM PISO METÁLICO, EXCLUSIVE FORNECIMENTO DO ANDAIME E RODAPÉ/GUARDA-CORPO EM MADEIRA | C189: m2 | D189: 8.88
A190: ED-48245 | B190: MONTAGEM E DESMONTAGEM DE ANDAIME METÁLICO PARA FACHADA COM PISO METÁLICO, INCLUSIVE RODAPÉ/GUARDA-CORPO EM MADEIRA, EXCLUSIVE FORNECIMENTO DO ANDAIME | C190: m2 | D190: 12.09
A191: ED-9077 | B191: MONTAGEM E DESMONTAGEM DE ANDAIME METÁLICO TUBULAR TIPO TORRE, EXCLUSIVE FORNECIMENTO DO ANDAIME | C191: m | D191: 9.74
A192: ED-48249 | B192: TELA DE PROTEÇÃO, TIPO FACHADEIRA, INSTALADA EM ANDAIME METÁLICO PARA FACHADA, EXCLUSIVE ANDAIME METÁLICO, INCLUSIVE ACESSÓRIOS DE FIXAÇÃO | C192: m2 | D192: 11.85
A193: ED-48248 | B193: TELA PARA PROTEÇÃO DE FACHADA EM POLIETILENO, EXCLUSIVE BANDEJA SALVA VIDAS, INCLUSIVE ACESSÓRIOS DE FIXAÇÃO | C193: m2 | D193: 13.58
A194: 8730 | B194: BANDEJA DE PROTEÇÃO/SALVA VIDAS
A195: ED-28493 | B195: BANDEJA SALVA VIDAS, TIPO PRIMÁRIA, EM SUPORTE METÁLICO COM FORRO EM COMPENSADO RESINADO E TÁBUA, COMPRIMENTO DE 250CM COM COMPLEMENTO DE 80CM, INCLUSIVE ACESSÓRIOS DE FIXAÇÃO E INSTALAÇÃO | C195: m | D195: 190.31
A196: ED-28494 | B196: BANDEJA SALVA VIDAS, TIPO SECUNDÁRIA, EM SUPORTE METÁLICO COM FORRO EM COMPENSADO RESINADO E TÁBUA, COMPRIMENTO DE 140CM COM COMPLEMENTO DE 80CM, INCLUSIVE ACESSÓRIOS DE FIXAÇÃO E INSTALAÇÃO | C196: m | D196: 119.15
A197: 8665 | B197: TERRAPLENAGEM/TRABALHOS EM TERRA
A198: 8731 | B198: REGULARIZAÇÃO E COMPACTAÇÃO DE SOLO
A199: ED-51100 | B199: CORTE E DESATERRO MECÂNICO PARA REGULARIZAÇÃO, COM TRATOR DE ESTEIRA, INCLUSIVE ARRASTAMENTO NIVELADO, AFASTAMENTO E EMPILHAMENTO, EXCLUSIVE CARGA, TRANSPORTE E DESCARGA | C199: m3 | D199: 3.74
A200: ED-51122 | B200: REGULARIZAÇÃO E COMPACTAÇÃO DE TERRENO MANUAL COM SOQUETE, EXCLUSIVE DESMATAMENTO, DESTOCAMENTO, LIMPEZA/ROÇADA DO TERRENO | C200: m2 | D200: 8.72
... 4231 more rows

Sheet SICRO
B1: SICRO OUTUBRO 2023
A2: CÓDIGO | B2: DESCRIÇÃO | C2: UNIDADE | D2: PREÇO
A3: 307731 | B3: Aparelho de apoio de neoprene fretado para estruturas moldadas no local - fornecimento e instalação | C3: dm³ | D3: 113.75
A4: 307732 | B4: Aparelho de apoio de neoprene fretado para estruturas pré-moldadas - fornecimento e instalação | C4: dm³ | D4: 91.1
A5: 308308 | B5: Aparelho de apoio metálico elastomérico fixo com capacidade de 1.500 kN - fornecimento e instalação | C5: un | D5: 10620.15
A6: 308313 | B6: Aparelho de apoio metálico elastomérico fixo com capacidade de 10.000 kN - fornecimento e instalação | C6: un | D6: 68884.66
A7: 308309 | B7: Aparelho de apoio metálico elastomérico fixo com capacidade de 2.500 kN - fornecimento e instalação | C7: un | D7: 16988.8
A8: 308310 | B8: Aparelho de apoio metálico elastomérico fixo com capacidade de 4.000 kN - fornecimento e instalação | C8: un | D8: 27337.56
A9: 308311 | B9: Aparelho de apoio metálico elastomérico fixo com capacidade de 5.500 kN - fornecimento e instalação | C9: un | D9: 36931.63
A10: 308312 | B10: Aparelho de apoio metálico elastomérico fixo com capacidade de 7.500 kN - fornecimento e instalação | C10: un | D10: 50780.55
A11: 308307 | B11: Aparelho de apoio metálico elastomérico fixo com capacidade de 700 kN - fornecimento e instalação | C11: un | D11: 7483.04
A12: 308322 | B12: Aparelho de apoio metálico elastomérico multidirecional com capacidade de 1.500 kN - fornecimento e instalação | C12: un | D12: 7118
A13: 308327 | B13: Aparelho de apoio metálico elastomérico multidirecional com capacidade de 10.000 kN - fornecimento e instalação | C13: un | D13: 45255.19
A14: 308323 | B14: Aparelho de apoio metálico elastomérico multidirecional com capacidade de 2.500 kN - fornecimento e instalação | C14: un | D14: 10074.51
A15: 308324 | B15: Aparelho de apoio metálico elastomérico multidirecional com capacidade de 4.000 kN - fornecimento e instalação | C15: un | D15: 16418.9
A16: 308325 | B16: Aparelho de apoio metálico elastomérico multidirecional com capacidade de 5.500 kN - fornecimento e instalação | C16: un | D16: 23429.78
A17: 308326 | B17: Aparelho de apoio metálico elastomérico multidirecional com capacidade de 7.500 kN - fornecimento e instalação | C17: un | D17: 33130.96
A18: 308321 | B18: Aparelho de apoio metálico elastomérico multidirecional com capacidade de 700 kN - fornecimento e instalação | C18: un | D18: 4128.55
A19: 308315 | B19: Aparelho de apoio metálico elastomérico unidirecional com capacidade de 1.500 kN - fornecimento e instalação | C19: un | D19: 8545.31
A20: 308320 | B20: Aparelho de apoio metálico elastomérico unidirecional com capacidade de 10.000 kN - fornecimento e instalação | C20: un | D20: 49214.55
A21: 308316 | B21: Aparelho de apoio metálico elastomérico unidirecional com capacidade de 2.500 kN - fornecimento e instalação | C21: un | D21: 12184.57
A22: 308317 | B22: Aparelho de apoio metálico elastomérico unidirecional com capacidade de 4.000 kN - fornecimento e instalação | C22: un | D22: 20419.26
A23: 308318 | B23: Aparelho de apoio metálico elastomérico unidirecional com capacidade de 5.500 kN - fornecimento e instalação | C23: un | D23: 26757.41
A24: 308319 | B24: Aparelho de apoio metálico elastomérico unidirecional com capacidade de 7.500 kN - fornecimento e instalação | C24: un | D24: 37070.37
A25: 308314 | B25: Aparelho de apoio metálico elastomérico unidirecional com capacidade de 700 kN - fornecimento e instalação | C25: un | D25: 5278.66
A26: 308250 | B26: Aparelho de apoio metálico esférico fixo com capacidade de 1.000 kN - fornecimento e instalação | C26: un | D26: 5404.31
A27: 308251 | B27: Aparelho de apoio metálico esférico fixo com capacidade de 1.500 kN - fornecimento e instalação | C27: un | D27: 8223.38
A28: 308268 | B28: Aparelho de apoio metálico esférico fixo com capacidade de 10.000 kN - fornecimento e instalação | C28: un | D28: 87326.78
A29: 308252 | B29: Aparelho de apoio metálico esférico fixo com capacidade de 2.000 kN - fornecimento e instalação | C29: un | D29: 10106.17
A30: 308253 | B30: Aparelho de apoio metálico esférico fixo com capacidade de 2.500 kN - fornecimento e instalação | C30: un | D30: 12579.49
A31: 308254 | B31: Aparelho de apoio metálico esférico fixo com capacidade de 3.000 kN - fornecimento e instalação | C31: un | D31: 14671.65
A32: 308255 | B32: Aparelho de apoio metálico esférico fixo com capacidade de 3.500 kN - fornecimento e instalação | C32: un | D32: 17410.2
A33: 308256 | B33: Aparelho de apoio metálico esférico fixo com capacidade de 4.000 kN - fornecimento e instalação | C33: un | D33: 20263.01
A34: 308257 | B34: Aparelho de apoio metálico esférico fixo com capacidade de 4.500 kN - fornecimento e instalação | C34: un | D34: 37855.53
A35: 308258 | B35: Aparelho de apoio metálico esférico fixo com capacidade de 5.000 kN - fornecimento e instalação | C35: un | D35: 42131.96
A36: 308259 | B36: Aparelho de apoio metálico esférico fixo com capacidade de 5.500 kN - fornecimento e instalação | C36: un | D36: 45961.66
A37: 308260 | B37: Aparelho de apoio metálico esférico fixo com capacidade de 6.000 kN - fornecimento e instalação | C37: un | D37: 50126.01
A38: 308261 | B38: Aparelho de apoio metálico esférico fixo com capacidade de 6.500 kN - fornecimento e instalação | C38: un | D38: 56226.85
A39: 308262 | B39: Aparelho de apoio metálico esférico fixo com capacidade de 7.000 kN - fornecimento e instalação | C39: un | D39: 58672.91
A40: 308263 | B40: Aparelho de apoio metálico esférico fixo com capacidade de 7.500 kN - fornecimento e instalação | C40: un | D40: 64954.99
A41: 308264 | B41: Aparelho de apoio metálico esférico fixo com capacidade de 8.000 kN - fornecimento e instalação | C41: un | D41: 69412
A42: 308265 | B42: Aparelho de apoio metálico esférico fixo com capacidade de 8.500 kN - fornecimento e instalação | C42: un | D42: 72567.22
A43: 308266 | B43: Aparelho de apoio metálico esférico fixo com capacidade de 9.000 kN - fornecimento e instalação | C43: un | D43: 78039.26
A44: 308267 | B44: Aparelho de apoio metálico esférico fixo com capacidade de 9.500 kN - fornecimento e instalação | C44: un | D44: 82418.37
A45: 308288 | B45: Aparelho de apoio metálico esférico multidirecional com capacidade de 1.000 kN - fornecimento e instalação | C45: un | D45: 10280.11
A46: 308289 | B46: Aparelho de apoio metálico esférico multidirecional com capacidade de 1.500 kN - fornecimento e instalação | C46: un | D46: 14482.33
A47: 308306 | B47: Aparelho de apoio metálico esférico multidirecional com capacidade de 10.000 kN - fornecimento e instalação | C47: un | D47: 95030.51
A48: 308290 | B48: Aparelho de apoio metálico esférico multidirecional com capacidade de 2.000 kN - fornecimento e instalação | C48: un | D48: 19210.64
A49: 308291 | B49: Aparelho de apoio metálico esférico multidirecional com capacidade de 2.500 kN - fornecimento e instalação | C49: un | D49: 22897.47
A50: 308292 | B50: Aparelho de apoio metálico esférico multidirecional com capacidade de 3.000 kN - fornecimento e instalação | C50: un | D50: 26082.66
A51: 308293 | B51: Aparelho de apoio metálico esférico multidirecional com capacidade de 3.500 kN - fornecimento e instalação | C51: un | D51: 30372.19
A52: 308294 | B52: Aparelho de apoio metálico esférico multidirecional com capacidade de 4.000 kN - fornecimento e instalação | C52: un | D52: 30717.94
A53: 308295 | B53: Aparelho de apoio metálico esférico multidirecional com capacidade de 4.500 kN - fornecimento e instalação | C53: un | D53: 40070.95
A54: 308296 | B54: Aparelho de apoio metálico esférico multidirecional com capacidade de 5.000 kN - fornecimento e instalação | C54: un | D54: 44601.79
A55: 308297 | B55: Aparelho de apoio metálico esférico multidirecional com capacidade de 5.500 kN - fornecimento e instalação | C55: un | D55: 48284.68
A56: 308298 | B56: Aparelho de apoio metálico esférico multidirecional com capacidade de 6.000 kN - fornecimento e instalação | C56: un | D56: 55022.67
A57: 308299 | B57: Aparelho de apoio metálico esférico multidirecional com capacidade de 6.500 kN - fornecimento e instalação | C57: un | D57: 59462.36
A58: 308300 | B58: Aparelho de apoio metálico esférico multidirecional com capacidade de 7.000 kN - fornecimento e instalação | C58: un | D58: 64027.17
A59: 308301 | B59: Aparelho de apoio metálico esférico multidirecional com capacidade de 7.500 kN - fornecimento e instalação | C59: un | D59: 69068.62
A60: 308302 | B60: Aparelho de apoio metálico esférico multidirecional com capacidade de 8.000 kN - fornecimento e instalação | C60: un | D60: 73600.05
A61: 308303 | B61: Aparelho de apoio metálico esférico multidirecional com capacidade de 8.500 kN - fornecimento e instalação | C61: un | D61: 80873.6
A62: 308304 | B62: Aparelho de apoio metálico esférico multidirecional com capacidade de 9.000 kN - fornecimento e instalação | C62: un | D62: 85210.5
A63: 308305 | B63: Aparelho de apoio metálico esférico multidirecional com capacidade de 9.500 kN - fornecimento e instalação | C63: un | D63: 90498.55
A64: 308269 | B64: Aparelho de apoio metálico esférico unidirecional com capacidade de 1.000 kN - fornecimento e instalação | C64: un | D64: 8166.93
A65: 308270 | B65: Aparelho de apoio metálico esférico unidirecional com capacidade de 1.500 kN - fornecimento e instalação | C65: un | D65: 11932.45
A66: 308287 | B66: Aparelho de apoio metálico esférico unidirecional com capacidade de 10.000 kN - fornecimento e instalação | C66: un | D66: 106269.84
A67: 308271 | B67: Aparelho de apoio metálico esférico unidirecional com capacidade de 2.000 kN - fornecimento e instalação | C67: un | D67: 14517.54
A68: 308272 | B68: Aparelho de apoio metálico esférico unidirecional com capacidade de 2.500 kN - fornecimento e instalação | C68: un | D68: 17426.8
A69: 308273 | B69: Aparelho de apoio metálico esférico unidirecional com capacidade de 3.000 kN - fornecimento e instalação | C69: un | D69: 21000.36
A70: 308274 | B70: Aparelho de apoio metálico esférico unidirecional com capacidade de 3.500 kN - fornecimento e instalação | C70: un | D70: 24084.47
A71: 308275 | B71: Aparelho de apoio metálico esférico unidirecional com capacidade de 4.000 kN - fornecimento e instalação | C71: un | D71: 31872.89
A72: 308276 | B72: Aparelho de apoio metálico esférico unidirecional com capacidade de 4.500 kN - fornecimento e instalação | C72: un | D72: 47054.73
A73: 308277 | B73: Aparelho de apoio metálico esférico unidirecional com capacidade de 5.000 kN - fornecimento e instalação | C73: un | D73: 52106.4
A74: 308278 | B74: Aparelho de apoio metálico esférico unidirecional com capacidade de 5.500 kN - fornecimento e instalação | C74: un | D74: 56576.39
A75: 308279 | B75: Aparelho de apoio metálico esférico unidirecional com capacidade de 6.000 kN - fornecimento e instalação | C75: un | D75: 59903.51
A76: 308280 | B76: Aparelho de apoio metálico esférico unidirecional com capacidade de 6.500 kN - fornecimento e instalação | C76: un | D76: 67933.79
A77: 308281 | B77: Aparelho de apoio metálico esférico unidirecional com capacidade de 7.000 kN - fornecimento e instalação | C77: un | D77: 72957.57
A78: 308282 | B78: Aparelho de apoio metálico esférico unidirecional com capacidade de 7.500 kN - fornecimento e instalação | C78: un | D78: 78427.7
A79: 308283 | B79: Aparelho de apoio metálico esférico unidirecional com capacidade de 8.000 kN - fornecimento e instalação | C79: un | D79: 83310.49
A80: 308284 | B80: Aparelho de apoio metálico esférico unidirecional com capacidade de 8.500 kN - fornecimento e instalação | C80: un | D80: 90054.78
A81: 308285 | B81: Aparelho de apoio metálico esférico unidirecional com capacidade de 9.000 kN - fornecimento e instalação | C81: un | D81: 95561.3
A82: 308286 | B82: Aparelho de apoio metálico esférico unidirecional com capacidade de 9.500 kN - fornecimento e instalação | C82: un | D82: 101131.06
A83: 307733 | B83: Junta de dilatação em elastômero e perfil VV - L = 20 mm e H = 40 mm - fornecimento e instalação | C83: m | D83: 412.65
A84: 307734 | B84: Junta de dilatação em elastômero e perfil VV - L = 25 mm e H = 50 mm - fornecimento e instalação | C84: m | D84: 543.04
A85: 307735 | B85: Junta de dilatação em elastômero e perfil VV - L = 35 mm e H = 60 mm - fornecimento e instalação | C85: m | D85: 927.85
A86: 307736 | B86: Junta de dilatação em elastômero e perfil VV - L = 40 mm e H = 70 mm - fornecimento e instalação | C86: m | D86: 1282.92
A87: 307737 | B87: Junta de dilatação em elastômero e perfil VV - L = 50 mm e H = 80 mm - fornecimento e instalação | C87: m | D87: 1602.69
A88: 307730 | B88: Junta de dilatação em perfil extrudado de borracha vulcanizada | C88: m | D88: 0
A89: 307084 | B89: Lábios poliméricos em junta de pavimento de concreto - L = 20 mm e H = 30 mm - confecção e assentamento | C89: m | D89: 29.72
A90: 407818 | B90: Armação em aço CA-25 - fornecimento, preparo e colocação | C90: kg | D90: 11.48
A91: 407819 | B91: Armação em aço CA-50 - fornecimento, preparo e colocação | C91: kg | D91: 11.55
A92: 407820 | B92: Armação em aço CA-60 - fornecimento, preparo e colocação | C92: kg | D92: 12.4
A93: 407740 | B93: Chumbador tipo espera em aço CA-25 para fixação de estrutura metálica em concreto - fornecimento e instalação | C93: kg | D93: 14.56
A94: 408037 | B94: Luva de emenda com rosca cônica para aço CA-50 - D = 12,5 mm - fornecimento e instalação | C94: un | D94: 20.31
A95: 408038 | B95: Luva de emenda com rosca cônica para aço CA-50 - D = 16 mm - fornecimento e instalação | C95: un | D95: 31.67
A96: 408039 | B96: Luva de emenda com rosca cônica para aço CA-50 - D = 20 mm - fornecimento e instalação | C96: un | D96: 41.82
A97: 408041 | B97: Luva de emenda com rosca cônica para aço CA-50 - D = 25 mm - fornecimento e instalação | C97: un | D97: 58.34
A98: 408042 | B98: Luva de emenda com rosca cônica para aço CA-50 - D = 32 mm - fornecimento e instalação | C98: un | D98: 84.53
A99: 408031 | B99: Luva de emenda prensada para aço CA-50 - D = 12,5 mm - fornecimento e instalação | C99: un | D99: 20.02
A100: 408032 | B100: Luva de emenda prensada para aço CA-50 - D = 16 mm - fornecimento e instalação | C100: un | D100: 27.16
A101: 408033 | B101: Luva de emenda prensada para aço CA-50 - D = 20 mm - fornecimento e instalação | C101: un | D101: 37.34
A102: 408035 | B102: Luva de emenda prensada para aço CA-50 - D = 25 mm - fornecimento e instalação | C102: un | D102: 71.93
A103: 408036 | B103: Luva de emenda prensada para aço CA-50 - D = 32 mm - fornecimento e instalação | C103: un | D103: 138.14
A104: 408067 | B104: Tela de aço eletrossoldada - fornecimento, preparo e colocação | C104: kg | D104: 10.89
A105: 407743 | B105: Treliça nervurada três barras longitudinais interligadas por duas diagonais sinusoidal - fornecimento e instalação | C105: kg | D105: 12.07
A106: 607137 | B106: Arco metálico galvanizado tipo MP 152S - arco alto - vão = 10,08 m e altura = 6,12 m - aterro rodoviário mínimo = 0,90 m e máximo = 5,00 m - areia e brita comerciais | C106: m | D106: 59939.53
A107: 606785 | B107: Arco metálico galvanizado tipo MP 152S - arco alto - vão = 10,08 m e altura = 6,12 m - aterro rodoviário mínimo = 0,90 m e máximo = 5,00 m - areia extraída e brita produzida | C107: m | D107: 59131.89
A108: 607139 | B108: Arco metálico galvanizado tipo MP 152S - arco alto - vão = 10,31 m e altura = 6,17 m - aterro rodoviário mínimo = 0,90 m e máximo = 4,90 m - areia e brita comerciais | C108: m | D108: 60740.06
A109: 606787 | B109: Arco metálico galvanizado tipo MP 152S - arco alto - vão = 10,31 m e altura = 6,17 m - aterro rodoviário mínimo = 0,90 m e máximo = 4,90 m - areia extraída e brita produzida | C109: m | D109: 59621.9
A110: 607140 | B110: Arco metálico galvanizado tipo MP 152S - arco alto - vão = 10,36 m e altura = 5,38 m - aterro rodoviário mínimo = 1,20 m e máximo = 3,60 m - areia e brita comerciais | C110: m | D110: 55475.27
A111: 606788 | B111: Arco metálico galvanizado tipo MP 152S - arco alto - vão = 10,36 m e altura = 5,38 m - aterro rodoviário mínimo = 1,20 m e máximo = 3,60 m - areia extraída e brita produzida | C111: m | D111: 55048.67
A112: 607141 | B112: Arco metálico galvanizado tipo MP 152S - arco alto - vão = 10,54 m e altura = 6,05 m - aterro rodoviário mínimo = 1,20 m e máximo = 4,20 m - areia e brita comerciais | C112: m | D112: 61833.16
A113: 606789 | B113: Arco metálico galvanizado tipo MP 152S - arco alto - vão = 10,54 m e altura = 6,05 m - aterro rodoviário mínimo = 1,20 m e máximo = 4,20 m - areia extraída e brita produzida | C113: m | D113: 60993.81
A114: 607144 | B114: Arco metálico galvanizado tipo MP 152S - arco alto - vão = 10,57 m e altura = 5,41 m - aterro rodoviário mínimo = 1,20 m e máximo = 4,10 m - areia e brita comerciais | C114: m | D114: 72454.45
A115: 606792 | B115: Arco metálico galvanizado tipo MP 152S - arco alto - vão = 10,57 m e altura = 5,41 m - aterro rodoviário mínimo = 1,20 m e máximo = 4,10 m - areia extraída e brita produzida | C115: m | D115: 71687.8
A116: 607142 | B116: Arco metálico galvanizado tipo MP 152S - arco alto - vão = 10,74 m e altura = 6,48 m - aterro rodoviário mínimo = 1,20 m e máximo = 4,70 m - areia e brita comerciais | C116: m | D116: 64847.45
A117: 606790 | B117: Arco metálico galvanizado tipo MP 152S - arco alto - vão = 10,74 m e altura = 6,48 m - aterro rodoviário mínimo = 1,20 m e máximo = 4,70 m - areia extraída e brita produzida | C117: m | D117: 63944.64
A118: 607145 | B118: Arco metálico galvanizado tipo MP 152S - arco alto - vão = 10,77 m e altura = 6,10 m - aterro rodoviário mínimo = 1,20 m e máximo = 4,70 m - areia e brita comerciais | C118: m | D118: 80021.97
A119: 606793 | B119: Arco metálico galvanizado tipo MP 152S - arco alto - vão = 10,77 m e altura = 6,10 m - aterro rodoviário mínimo = 1,20 m e máximo = 4,70 m - areia extraída e brita produzida | C119: m | D119: 79164.53
A120: 607146 | B120: Arco metálico galvanizado tipo MP 152S - arco alto - vão = 10,97 m e altura = 6,53 m - aterro rodoviário mínimo = 1,20 m e máximo = 4,70 m - areia e brita comerciais | C120: m | D120: 83447.34
A121: 606794 | B121: Arco metálico galvanizado tipo MP 152S - arco alto - vão = 10,97 m e altura = 6,53 m - aterro rodoviário mínimo = 1,20 m e máximo = 4,70 m - areia extraída e brita produzida | C121: m | D121: 82516.72
A122: 607143 | B122: Arco metálico galvanizado tipo MP 152S - arco alto - vão = 11,35 m e altura = 7,12 m - aterro rodoviário mínimo = 1,20 m e máximo = 4,70 m - areia e brita comerciais | C122: m | D122: 70045.57
A123: 606791 | B123: Arco metálico galvanizado tipo MP 152S - arco alto - vão = 11,35 m e altura = 7,12 m - aterro rodoviário mínimo = 1,20 m e máximo = 4,70 m - areia extraída e brita produzida | C123: m | D123: 69006.18
A124: 607147 | B124: Arco metálico galvanizado tipo MP 152S - arco alto - vão = 11,58 m e altura = 7,16 m - aterro rodoviário mínimo = 1,20 m e máximo = 6,40 m - areia e brita comerciais | C124: m | D124: 90010.1
A125: 606795 | B125: Arco metálico galvanizado tipo MP 152S - arco alto - vão = 11,58 m e altura = 7,16 m - aterro rodoviário mínimo = 1,20 m e máximo = 6,40 m - areia extraída e brita produzida | C125: m | D125: 88937.73
A126: 607112 | B126: Arco metálico galvanizado tipo MP 152S - arco alto - vão = 6,12 m e altura = 2,77 m - aterro rodoviário mínimo = 0,75 m e máximo = 5,40 m - areia e brita comerciais | C126: m | D126: 29275.58
A127: 606760 | B127: Arco metálico galvanizado tipo MP 152S - arco alto - vão = 6,12 m e altura = 2,77 m - aterro rodoviário mínimo = 0,75 m e máximo = 5,40 m - areia extraída e brita produzida | C127: m | D127: 28994.47
A128: 607113 | B128: Arco metálico galvanizado tipo MP 152S - arco alto - vão = 6,30 m e altura = 3,68 m - aterro rodoviário mínimo = 0,75 m e máximo = 7,50 m - areia e brita comerciais | C128: m | D128: 34509.04
A129: 606761 | B129: Arco metálico galvanizado tipo MP 152S - arco alto - vão = 6,30 m e altura = 3,68 m - aterro rodoviário mínimo = 0,75 m e máximo = 7,50 m - areia extraída e brita produzida | C129: m | D129: 34185.92
A130: 606762 | B130: Arco metálico galvanizado tipo MP 152S - arco alto - vão = 6,55 m e altura = 3,56 m - aterro rodoviário mínimo = 0,75 m e máximo = 4,9 m - areia extraída e brita produzida | C130: m | D130: 33934.47
A131: 607114 | B131: Arco metálico galvanizado tipo MP 152S - arco alto - vão = 6,55 m e altura = 3,56 m - aterro rodoviário mínimo = 0,75 m e máximo = 4,90 m - areia e brita comerciais | C131: m | D131: 34263.7
A132: 607116 | B132: Arco metálico galvanizado tipo MP 152S - arco alto - vão = 6,78 m e altura = 3,61 m - aterro rodoviário mínimo = 0,75 m e máximo = 4,80 m - areia e brita comerciais | C132: m | D132: 36082.67
A133: 606764 | B133: Arco metálico galvanizado tipo MP 152S - arco alto - vão = 6,78 m e altura = 3,61 m - aterro rodoviário mínimo = 0,75 m e máximo = 4,80 m - areia extraída e brita produzida | C133: m | D133: 35739.58
A134: 607115 | B134: Arco metálico galvanizado tipo MP 152S - arco alto - vão = 6,96 m e altura = 4,42 m - aterro rodoviário mínimo = 0,75 m e máximo = 8,10 m - areia e brita comerciais | C134: m | D134: 40970.79
A135: 606763 | B135: Arco metálico galvanizado tipo MP 152S - arco alto - vão = 6,96 m e altura = 4,42 m - aterro rodoviário mínimo = 0,75 m e máximo = 8,10 m - areia extraída e brita produzida | C135: m | D135: 40558.03
A136: 607117 | B136: Arco metálico galvanizado tipo MP 152S - arco alto - vão = 6,99 m e altura = 4,27 m - aterro rodoviário mínimo = 0,75 m e máximo = 5,70 m - areia e brita comerciais | C136: m | D136: 40965.79
A137: 606765 | B137: Arco metálico galvanizado tipo MP 152S - arco alto - vão = 6,99 m e altura = 4,27 m - aterro rodoviário mínimo = 0,75 m e máximo = 5,70 m - areia extraída e brita produzida | C137: m | D137: 40564.36
A138: 607118 | B138: Arco metálico galvanizado tipo MP 152S - arco alto - vão = 7,01 m e altura = 3,63 m - aterro rodoviário mínimo = 0,75 m e máximo = 4,60 m - areia e brita comerciais | C138: m | D138: 36717.62
A139: 606766 | B139: Arco metálico galvanizado tipo MP 152S - arco alto - vão = 7,01 m e altura = 3,63 m - aterro rodoviário mínimo = 0,75 m e máximo = 4,60 m - areia extraída e brita produzida | C139: m | D139: 36363.43
A140: 607120 | B140: Arco metálico galvanizado tipo MP 152S - arco alto - vão = 7,24 m e altura = 3,68 m - aterro rodoviário mínimo = 0,90 m e máximo = 4,4 m - areia e brita comerciais | C140: m | D140: 37389.35
A141: 606768 | B141: Arco metálico galvanizado tipo MP 152S - arco alto - vão = 7,24 m e altura = 3,68 m - aterro rodoviário mínimo = 0,90 m e máximo = 4,40 m - areia extraída e brita produzida | C141: m | D141: 37016.37
A142: 607119 | B142: Arco metálico galvanizado tipo MP 152S - arco alto - vão = 7,42 m e altura = 4,52 m - aterro rodoviário mínimo = 0,90 m e máximo = 6,40 m - areia e brita comerciais | C142: m | D142: 42970.32
A143: 606767 | B143: Arco metálico galvanizado tipo MP 152S - arco alto - vão = 7,42 m e altura = 4,52 m - aterro rodoviário mínimo = 0,90 m e máximo = 6,40 m - areia extraída e brita produzida | C143: m | D143: 42515.46
A144: 607121 | B144: Arco metálico galvanizado tipo MP 152S - arco alto - vão = 7,47 m e altura = 4,19 m - aterro rodoviário mínimo = 0,90 m e máximo = 4,30 m - areia e brita comerciais | C144: m | D144: 40480.64
A145: 606769 | B145: Arco metálico galvanizado tipo MP 152S - arco alto - vão = 7,47 m e altura = 4,19 m - aterro rodoviário mínimo = 0,90 m e máximo = 4,30 m - areia extraída e brita produzida | C145: m | D145: 40055.4
A146: 607123 | B146: Arco metálico galvanizado tipo MP 152S - arco alto - vão = 7,67 m e altura = 3,99 m - aterro rodoviário mínimo = 0,90 m e máximo = 4,10 m - areia e brita comerciais | C146: m | D146: 39942.51
A147: 606771 | B147: Arco metálico galvanizado tipo MP 152S - arco alto - vão = 7,67 m e altura = 3,99 m - aterro rodoviário mínimo = 0,90 m e máximo = 4,10 m - areia extraída e brita produzida | C147: m | D147: 39518.85
A148: 607122 | B148: Arco metálico galvanizado tipo MP 152S - arco alto - vão = 7,85 m e altura = 4,60 m - aterro rodoviário mínimo = 0,90 m e máximo = 6,00 m - areia e brita comerciais | C148: m | D148: 44305.29
A149: 606770 | B149: Arco metálico galvanizado tipo MP 152S - arco alto - vão = 7,85 m e altura = 4,60 m - aterro rodoviário mínimo = 0,90 m e máximo = 6,00 m - areia extraída e brita produzida | C149: m | D149: 43816.69
A150: 607125 | B150: Arco metálico galvanizado tipo MP 152S - arco alto - vão = 7,90 m e altura = 4,04 m - aterro rodoviário mínimo = 0,90 m e máximo = 4,00 m - areia e brita comerciais | C150: m | D150: 41294.21
A151: 606773 | B151: Arco metálico galvanizado tipo MP 152S - arco alto - vão = 7,90 m e altura = 4,04 m - aterro rodoviário mínimo = 0,90 m e máximo = 4,00 m - areia extraída e brita produzida | C151: m | D151: 40848.45
A152: 607124 | B152: Arco metálico galvanizado tipo MP 152S - arco alto - vão = 8,08 m e altura = 4,65 m - aterro rodoviário mínimo = 0,90 m e máximo = 5,80 m - areia e brita comerciais | C152: m | D152: 44968.89
A153: 606772 | B153: Arco metálico galvanizado tipo MP 152S - arco alto - vão = 8,08 m e altura = 4,65 m - aterro rodoviário mínimo = 0,90 m e máximo = 5,80 m - areia extraída e brita produzida | C153: m | D153: 44464.65
A154: 607126 | B154: Arco metálico galvanizado tipo MP 152S - arco alto - vão = 8,31 m e altura = 4,70 m - aterro rodoviário mínimo = 0,90 m e máximo = 5,60 m - areia e brita comerciais | C154: m | D154: 46216.96
A155: 606774 | B155: Arco metálico galvanizado tipo MP 152S - arco alto - vão = 8,31 m e altura = 4,70 m - aterro rodoviário mínimo = 0,90 m e máximo = 5,60 m - areia extraída e brita produzida | C155: m | D155: 45688.43
A156: 607127 | B156: Arco metálico galvanizado tipo MP 152S - arco alto - vão = 8,36 m e altura = 4,11 m - aterro rodoviário mínimo = 0,90 m e máximo = 3,70 m - areia e brita comerciais | C156: m | D156: 42567.99
A157: 606775 | B157: Arco metálico galvanizado tipo MP 152S - arco alto - vão = 8,36 m e altura = 4,11 m - aterro rodoviário mínimo = 0,90 m e máximo = 3,70 m - areia extraída e brita produzida | C157: m | D157: 42095.45
A158: 607129 | B158: Arco metálico galvanizado tipo MP 152S - arco alto - vão = 8,59 m e altura = 4,39 m - aterro rodoviário mínimo = 0,90 m e máximo = 3,60 m - areia e brita comerciais | C158: m | D158: 44545.21
A159: 606777 | B159: Arco metálico galvanizado tipo MP 152S - arco alto - vão = 8,59 m e altura = 4,39 m - aterro rodoviário mínimo = 0,90 m e máximo = 3,60 m - areia extraída e brita produzida | C159: m | D159: 44027.7
A160: 607128 | B160: Arco metálico galvanizado tipo MP 152S - arco alto - vão = 8,97 m e altura = 5,00 m - aterro rodoviário mínimo = 0,90 m e máximo = 5,80 m - areia e brita comerciais | C160: m | D160: 48975.91
A161: 606776 | B161: Arco metálico galvanizado tipo MP 152S - arco alto - vão = 8,97 m e altura = 5,00 m - aterro rodoviário mínimo = 0,90 m e máximo = 5,80 m - areia extraída e brita produzida | C161: m | D161: 48371.24
A162: 607130 | B162: Arco metálico galvanizado tipo MP 152S - arco alto - vão = 9,17 m e altura = 5,49 m - aterro rodoviário mínimo = 0,90 m e máximo = 5,60 m - areia e brita comerciais | C162: m | D162: 52188.77
A163: 606778 | B163: Arco metálico galvanizado tipo MP 152S - arco alto - vão = 9,17 m e altura = 5,49 m - aterro rodoviário mínimo = 0,90 m e máximo = 5,60 m - areia extraída e brita produzida | C163: m | D163: 51524.14
A164: 607131 | B164: Arco metálico galvanizado tipo MP 152S - arco alto - vão = 9,22 m e altura = 4,70 m - aterro rodoviário mínimo = 0,90 m e máximo = 4,10 m - areia e brita comerciais | C164: m | D164: 48990.65
A165: 606779 | B165: Arco metálico galvanizado tipo MP 152S - arco alto - vão = 9,22 m e altura = 4,70 m - aterro rodoviário mínimo = 0,90 m e máximo = 4,10 m - areia extraída e brita produzida | C165: m | D165: 48402.67
A166: 607133 | B166: Arco metálico galvanizado tipo MP 152S - arco alto - vão = 9,45 m e altura = 4,75 m - aterro rodoviário mínimo = 0,90 m e máximo = 4,00 m - areia e brita comerciais | C166: m | D166: 49736.67
A167: 606781 | B167: Arco metálico galvanizado tipo MP 152S - arco alto - vão = 9,45 m e altura = 4,75 m - aterro rodoviário mínimo = 0,90 m e máximo = 4,00 m - areia extraída e brita produzida | C167: m | D167: 49131.01
A168: 607132 | B168: Arco metálico galvanizado tipo MP 152S - arco alto - vão = 9,63 m e altura = 5,59 m - aterro rodoviário mínimo = 0,90 m e máximo = 5,30 m - areia e brita comerciais | C168: m | D168: 54214.08
A169: 606780 | B169: Arco metálico galvanizado tipo MP 152S - arco alto - vão = 9,63 m e altura = 5,59 m - aterro rodoviário mínimo = 0,90 m e máximo = 5,30 m - areia extraída e brita produzida | C169: m | D169: 53502.86
A170: 607134 | B170: Arco metálico galvanizado tipo MP 152S - arco alto - vão = 9,65 m e altura = 5,41 m - aterro rodoviário mínimo = 0,90 m e máximo = 4,70 m - areia e brita comerciais | C170: m | D170: 53680
A171: 606782 | B171: Arco metálico galvanizado tipo MP 152S - arco alto - vão = 9,65 m e altura = 5,41 m - aterro rodoviário mínimo = 0,90 m e máximo = 4,70 m - areia extraída e brita produzida | C171: m | D171: 52985.04
A172: 607136 | B172: Arco metálico galvanizado tipo MP 152S - arco alto - vão = 9,68 m e altura = 5,23 m - aterro rodoviário mínimo = 0,90 m e máximo = 3,90 m - areia e brita comerciais | C172: m | D172: 52970.46
A173: 606784 | B173: Arco metálico galvanizado tipo MP 152S - arco alto - vão = 9,68 m e altura = 5,23 m - aterro rodoviário mínimo = 0,90 m e máximo = 3,90 m - areia extraída e brita produzida | C173: m | D173: 52297.7
A174: 607135 | B174: Arco metálico galvanizado tipo MP 152S - arco alto - vão = 9,86 m e altura = 6,07 m - aterro rodoviário mínimo = 0,90 m e máximo = 5,20 m - areia e brita comerciais | C174: m | D174: 59082.55
A175: 606783 | B175: Arco metálico galvanizado tipo MP 152S - arco alto - vão = 9,86 m e altura = 6,07 m - aterro rodoviário mínimo = 0,90 m e máximo = 5,20 m - areia extraída e brita produzida | C175: m | D175: 58302.64
A176: 607138 | B176: Arco metálico galvanizado tipo MP 152S - arco alto - vão = 9,91 m e altura = 5,28 m - aterro rodoviário mínimo = 0,90 m e máximo = 3,80 m - areia e brita comerciais | C176: m | D176: 53870.69
A177: 606786 | B177: Arco metálico galvanizado tipo MP 152S - arco alto - vão = 9,91 m e altura = 5,28 m - aterro rodoviário mínimo = 0,90 m e máximo = 3,80 m - areia extraída e brita produzida | C177: m | D177: 53154
A178: 606842 | B178: Arco metálico galvanizado tipo MP 152S - ovoide - vão = 7,21 m e altura = 7,82 m - aterro rodoviário mínimo = 0,75 m e máximo = 6,70 m - areia e brita comerciais | C178: m | D178: 67221.21
A179: 606832 | B179: Arco metálico galvanizado tipo MP 152S - ovoide - vão = 7,21 m e altura = 7,82 m - aterro rodoviário mínimo = 0,75 m e máximo = 6,70 m - areia extraída e brita produzida | C179: m | D179: 66819.37
A180: 606843 | B180: Arco metálico galvanizado tipo MP 152S - ovoide - vão = 7,31 m e altura = 7,87 m - aterro rodoviário mínimo = 0,90 m e máximo = 6,80 m - areia e brita comerciais | C180: m | D180: 69850.59
A181: 606833 | B181: Arco metálico galvanizado tipo MP 152S - ovoide - vão = 7,31 m e altura = 7,87 m - aterro rodoviário mínimo = 0,90 m e máximo = 6,80 m - areia extraída e brita produzida | C181: m | D181: 69428.21
A182: 606845 | B182: Arco metálico galvanizado tipo MP 152S - ovoide - vão = 7,57 m e altura = 8,44 m - aterro rodoviário mínimo = 0,90 m e máximo = 5,60 m - areia e brita comerciais | C182: m | D182: 72419.5
A183: 606835 | B183: Arco metálico galvanizado tipo MP 152S - ovoide - vão = 7,57 m e altura = 8,44 m - aterro rodoviário mínimo = 0,90 m e máximo = 5,60 m - areia extraída e brita produzida | C183: m | D183: 71998.64
A184: 606844 | B184: Arco metálico galvanizado tipo MP 152S - ovoide - vão = 7,77 m e altura = 7,90 m - aterro rodoviário mínimo = 0,90 m e máximo = 6,80 m - areia e brita comerciais | C184: m | D184: 70946.68
A185: 606834 | B185: Arco metálico galvanizado tipo MP 152S - ovoide - vão = 7,77 m e altura = 7,90 m - aterro rodoviário mínimo = 0,90 m e máximo = 6,80 m - areia extraída e brita produzida | C185: m | D185: 70513.44
A186: 606847 | B186: Arco metálico galvanizado tipo MP 152S - ovoide - vão = 8,13 m e altura = 8,01 m - aterro rodoviário mínimo = 0,90 m e máximo = 3,50 m - areia e brita comerciais | C186: m | D186: 75740.27
A187: 606837 | B187: Arco metálico galvanizado tipo MP 152S - ovoide - vão = 8,13 m e altura = 8,01 m - aterro rodoviário mínimo = 0,90 m e máximo = 3,50 m - areia extraída e brita produzida | C187: m | D187: 75266.49
A188: 606846 | B188: Arco metálico galvanizado tipo MP 152S - ovoide - vão = 8,36 m e altura = 8,23 m - aterro rodoviário mínimo = 0,90 m e máximo = 4,30 m - areia e brita comerciais | C188: m | D188: 76415.07
A189: 606836 | B189: Arco metálico galvanizado tipo MP 152S - ovoide - vão = 8,36 m e altura = 8,23 m - aterro rodoviário mínimo = 0,90 m e máximo = 4,30 m - areia extraída e brita produzida | C189: m | D189: 75936.15
A190: 606848 | B190: Arco metálico galvanizado tipo MP 152S - ovoide - vão = 8,56 m e altura = 8,48 m - aterro rodoviário mínimo = 0,90 m e máximo = 5,30 m - areia e brita comerciais | C190: m | D190: 76403.88
A191: 606838 | B191: Arco metálico galvanizado tipo MP 152S - ovoide - vão = 8,56 m e altura = 8,48 m - aterro rodoviário mínimo = 0,90 m e máximo = 5,30 m - areia extraída e brita produzida | C191: m | D191: 75905.67
A192: 606849 | B192: Arco metálico galvanizado tipo MP 152S - ovoide - vão = 8,71 m e altura = 9,32 m - aterro rodoviário mínimo = 0,90 m e máximo = 6,00 m - areia e brita comerciais | C192: m | D192: 82650.14
A193: 606839 | B193: Arco metálico galvanizado tipo MP 152S - ovoide - vão = 8,71 m e altura = 9,32 m - aterro rodoviário mínimo = 0,90 m e máximo = 6,00 m - areia extraída e brita produzida | C193: m | D193: 82164.37
A194: 606850 | B194: Arco metálico galvanizado tipo MP 152S - ovoide - vão = 9,15 m e altura = 9,04 m - aterro rodoviário mínimo = 0,90 m e máximo = 4,70 m - areia e brita comerciais | C194: m | D194: 83344.44
A195: 606840 | B195: Arco metálico galvanizado tipo MP 152S - ovoide - vão = 9,15 m e altura = 9,04 m - aterro rodoviário mínimo = 0,90 m e máximo = 4,70 m - areia extraída e brita produzida | C195: m | D195: 82813
A196: 606851 | B196: Arco metálico galvanizado tipo MP 152S - ovoide - vão = 9,15 m e altura = 9,50 m - aterro rodoviário mínimo = 0,90 m e máximo = 5,70 m - areia e brita comerciais | C196: m | D196: 84029.38
A197: 606841 | B197: Arco metálico galvanizado tipo MP 152S - ovoide - vão = 9,15 m e altura = 9,50 m - aterro rodoviário mínimo = 0,90 m e máximo = 5,70 m - areia extraída e brita produzida | C197: m | D197: 83520.81
A198: 605604 | B198: Argamassa de solo-cimento com 10% de cimento e material de jazida - preparo e injeção em tunnel liner | C198: m³ | D198: 280.24
A199: 605695 | B199: Bueiro metálico com chapas múltiplas MP 100 com revestimento em epóxi - D = 0,60 m - brita comercial | C199: m | D199: 1605.03
A200: 605607 | B200: Bueiro metálico com chapas múltiplas MP 100 com revestimento em epóxi - D = 0,60 m - brita produzida | C200: m | D200: 1572.67
... 7831 more rows

Sheet SUDECAP
B1: SUDECAP OUTUBRO 2023
A2: CÓDIGO | B2: DESCRIÇÃO | C2: UNIDADE | D2: PREÇO
A3: 01 | B3: INSTALAÇAO DA OBRA
A4: 01.01 | B4: ESCRITORIO DE OBRA
A5: 01.01.07 | B5: ESCRITORIO TIPO I | C5: UN | D5: 6649.43
A6: 01.01.09 | B6: ESCRITORIO TIPO II | C6: UN | D6: 8921.83
A7: 01.01.13 | B7: LAVABO | C7: UN | D7: 3034.43
A8: 01.02 | B8: BARRACAO DE OBRA
A9: 01.02.06 | B9: VESTIARIO TIPO I | C9: UN | D9: 6022.51
A10: 01.02.07 | B10: VESTIARIO TIPO II | C10: UN | D10: 12261.84
A11: 01.02.08 | B11: VESTIARIO TIPO III | C11: UN | D11: 16319.03
A12: 01.02.11 | B12: AREA COBERTA EM TELHA ONDULADA DE FIBROCIMENTO 4MM | C12: M2 | D12: 70.18
A13: 01.02.12 | B13: DEPOSITO E FERRAMENTARIA TIPO I | C13: UN | D13: 4827.06
A14: 01.02.13 | B14: DEPOSITO E FERRAMENTARIA TIPO II | C14: UN | D14: 7375.48
A15: 01.02.14 | B15: DEPOSITO E FERRAMENTARIA TIPO III | C15: UN | D15: 10002.72
A16: 01.02.15 | B16: DEPOSITO DE MATERIAIS ENSACADOS | C16: UN | D16: 3609.63
A17: 01.02.20 | B17: INSTALAÇAO SANITARIA TIPO I | C17: UN | D17: 6254.64
A18: 01.02.21 | B18: INSTALAÇAO SANITARIA TIPO II | C18: UN | D18: 7794.37
A19: 01.02.22 | B19: INSTALAÇAO SANITARIA TIPO III | C19: UN | D19: 11041.91
A20: 01.02.25 | B20: REFEITORIO TIPO I | C20: UN | D20: 5068.59
A21: 01.02.26 | B21: REFEITORIO TIPO II | C21: UN | D21: 5658.76
A22: 01.03 | B22: PLACA DE OBRA AFIXADA COM PEÇAS DE MADEIRA
A23: 01.03.01 | B23: 3,00 X 2,00 M EM LONA IMPRESSAO DIGITAL P.SUDECAP | C23: UN | D23: 1632.98
A24: 01.03.02 | B24: PLACA DE OBRA EM LONA IMPRESSAO DIGITAL P. SUDECAP | C24: M2 | D24: 214.59
A25: 01.03.03 | B25: PLACA DE OBRA EM CHAPA GALVANIZADA ADESIVADA, DIMENSÕES 2,40 X 1,20 M, PADRÃO CEF | C25: M2 | D25: 271.29
A26: 01.04 | B26: TAPUME PADRAO SUDECAP (TIPO I, II E III)
A27: 01.04.01 | B27: TAPUME PADRÃO SUDECAP DE COMPENSADO 10MM COM FIXAÇAO ENTERRADA | C27: M | D27: 91.12
A28: 01.04.03 | B28: TAPUME PADRÃO SUDECAP DE COMPENSADO 10MM COM BASE DE CONCRETO | C28: M | D28: 95.89
A29: 01.04.05 | B29: INFORME PUBLIC.LONA IMP.DIGITAL APLICADO EM TAPUME | C29: M2 | D29: 112.99
A30: 01.04.06 | B30: DE TELA GALVANIZADA #2" FIO 14 C/FIXAÇAO ENTERRADA | C30: M | D30: 57.72
A31: 01.04.07 | B31: DE TELA GALVANIZADA #2" FIO 14 C/BASE DE CONCRETO | C31: M | D31: 62.56
A32: 01.04.09 | B32: TELA-TAPUME DE POLIPROPILENO H= 1,20 M, INCL. BASE | C32: M | D32: 10.6
A33: 01.04.10 | B33: PROTEÇAO COM FITA ZEBRADA AMARELA L=7CM E PEÇA 7X7 | C33: M | D33: 7.87
A34: 01.04.11 | B34: FITA ZEBRADA AMARELA PARA SINALIZAÇAO L= 7CM | C34: M | D34: 2.94
A35: 01.04.16 | B35: TAPUME METÁLICO COM BASE DE CONCRETO (M) | C35: M | D35: 106.86
A36: 01.04.17 | B36: TAPUME METÁLICO COM BASE ENTERRADA (M) | C36: M | D36: 93.72
A37: 01.04.18 | B37: TAPUME METÁLICO COM TELA E BASE DE CONCRETO (M) | C37: M | D37: 115.99
A38: 01.04.19 | B38: TAPUME METÁLICO COM TELA E BASE ENTERRADA (M) | C38: M | D38: 102.82
A39: 01.04.20 | B39: REMANEJAMENTO DE TAPUME | C39: M | D39: 7.56
A40: 01.06 | B40: INSTALAÇAO PROVISORIA - CONCESSIONARIA
A41: 01.06.01 | B41: PADRÃO CEMIG PROVISÓRIO TIPO C3, DEMANDA PROVÁVEL DE 23,1 ATÉ 27,0KW (3F+N) | C41: UN | D41: 690.41
A42: 01.06.05 | B42: PADRAO COPASA - KIT CAVALTE METAL E REGISTRO 3/4" | C42: UN | D42: 453.32
A43: 01.07 | B43: FOSSA E SUMIDOURO
A44: 01.07.02 | B44: FOSSA SEPTICA E SUMIDOURO DN=1,20M H=4,00M | C44: UN | D44: 7045.92
A45: 01.08 | B45: REDE INTERNA E PROVISORIA DE AGUA E ESGOTO
A46: 01.08.01 | B46: TUBO PVC D= 100 MM | C46: M | D46: 23.01
A47: 01.08.02 | B47: TUBO PVC D= 150 MM | C47: M | D47: 49.38
A48: 01.08.03 | B48: TUBO PVC D= 200 MM | C48: M | D48: 101.59
A49: 01.08.04 | B49: TUBO PVC D= 250 MM | C49: M | D49: 100.56
A50: 01.08.20 | B50: TUBO PVC AGUA SOLDA E CONEXOES D=20MM (1/2") | C50: M | D50: 5.42
A51: 01.08.21 | B51: TUBO PVC AGUA SOLDA E CONEXOES D=25MM (3/4") | C51: M | D51: 6.25
A52: 01.09 | B52: CONTAINER 6,0X2,30X2,82 M COM ISOLAMENTO TERMICO
A53: 01.09.01 | B53: MOBILIZACAO DE CONTAINER | C53: UN | D53: 1200
A54: 01.09.02 | B54: CONTAINER SIMPLES COM AR CONDICIONADO PARA ESCRITÓRIO | C54: MES | D54: 1030
A55: 01.09.03 | B55: CONTAINER COM SANITÁRIO E AR CONDICIONADO PARA ESCRITÓRIO | C55: MES | D55: 1090
A56: 01.09.11 | B56: DESMOBILIZAÇÃO DE CONTAINER | C56: UN | D56: 1200
A57: 01.09.12 | B57: INSTALAÇÕES DE MOBILIÁRIOS PARA CONTAINER TIPO ESCRITÓRIO COM SANITÁRIO | C57: UN | D57: 510.97
A58: 01.09.14 | B58: INSTALAÇÕES DE MOBILIÁRIOS PARA CONTAINER TIPO REFEITÓRIO | C58: UN | D58: 185.11
A59: 01.09.15 | B59: INSTALAÇÕES DE MOBILIÁRIOS PARA CONTAINER TIPO DEPÓSITO E FERRAMENTARIA COM LAVATÓRIO | C59: UN | D59: 765.39
A60: 01.09.17 | B60: INSTALAÇÕES DE MOBILIÁRIOS PARA CONTAINER TIPO ESCRITÓRIO SEM SANITÁRIO | C60: UN | D60: 651.93
A61: 01.09.18 | B61: CONTAINER VESTIÁRIO TIPO I | C61: MES | D61: 1800
A62: 01.09.19 | B62: CONTAINER VESTIÁRIO TIPO II | C62: MES | D62: 2800
A63: 01.09.20 | B63: CONTAINER VESTIÁRIO TIPO III | C63: MES | D63: 3800
A64: 01.09.21 | B64: CONTAINER SIMPLES | C64: MES | D64: 730
A65: 01.09.22 | B65: CONTAINER COM LAVATÓRIO | C65: MES | D65: 790
A66: 01.09.23 | B66: CONTAINER COM SANITÁRIO | C66: MES | D66: 790
A67: 01.09.24 | B67: INSTALAÇÕES DE MOBILIÁRIOS PARA CONTAINER VESTIÁRIO 1 | C67: UN | D67: 113
A68: 01.09.25 | B68: INSTALAÇÕES DE MOBILIÁRIOS PARA CONTAINER VESTIÁRIO 2 | C68: UN | D68: 236.06
A69: 01.09.26 | B69: INSTALAÇÕES DE MOBILIÁRIOS PARA CONTAINER VESTIÁRIO 3 | C69: UN | D69: 339
A70: 01.10 | B70: BANHEIRO QUIMICO
A71: 01.10.01 | B71: BANHEIRO QUIMICO 110X120X230CM COM MANUTENCAO | C71: MES | D71: 680
A72: 01.10.02 | B72: BANHEIRO QUÍMICO E REBOQUE PARA TRANSPORTE DE BANHEIRO QUÍMICO | C72: MES | D72: 1003.05
A73: 01.11 | B73: SINALIZAÇAO
A74: 01.11.01 | B74: PLACA 1,0X0,60M DUPLA FACE CH.GALV. 26 EM CAVALETE | C74: UNMES | D74: 14.98
A75: 01.11.02 | B75: PLACA 1,0X0,60M CH.26 EM CAVALETE METALON 20X20MM | C75: UNMES | D75: 13.78
A76: 01.11.03 | B76: PLACA 0,50X0,50M DUPLA FACE CH.GALV.22 EM CAVALETE | C76: UNMES | D76: 10.98
A77: 01.11.04 | B77: PLACA 0,50X0,50M CH.GALV.22 CAVALETE METALON 20X20 | C77: UNMES | D77: 9.98
A78: 01.11.05 | B78: INSTALAÇÃO DE FAIXA MORIM 6,00M X 0,80M EM TECIDO COMUM E EUCALIPTO | C78: UN | D78: 112.74
A79: 01.11.06 | B79: CONE MASTER 75CM BASE DE BORRACHA CORPO POLIETILEN | C79: UN | D79: 131.44
A80: 01.11.07 | B80: CONE EM PVC H= 75 CM | C80: UN | D80: 40.49
A81: 01.11.08 | B81: SINALIZADOR ELET.MONOLIGHT LED 60 A 70 FLASHES/MIN | C81: UN | D81: 146.6
A82: 01.12 | B82: VISTORIA CAUTELAR
A83: 01.12.01 | B83: VISTORIA CAUTELAR - ÁREA CONSTRUÍDA <= 100M2 | C83: UN | D83: 314.47
A84: 01.12.02 | B84: VISTORIA CAUTELAR - 101M2 < ÁREA CONSTRUÍDA <= 200M2 | C84: UN | D84: 397.5
A85: 01.12.03 | B85: VISTORIA CAUTELAR - 201M2 < ÁREA CONSTRUÍDA <= 500M2 | C85: UN | D85: 528.91
A86: 01.12.04 | B86: VISTORIA CAUTELAR - 501M2 < ÁREA CONSTRUÍDA <= 2000M2 | C86: UN | D86: 767.15
A87: 01.12.05 | B87: VISTORIA CAUTELAR - 2001M2 < ÁREA CONSTRUÍDA <= 7000M2 | C87: UN | D87: 1278.65
A88: 01.12.06 | B88: VISTORIA CAUTELAR - ÁREA CONSTRUÍDA > 7001M2 | C88: UN | D88: 1797.43
A89: 01.13 | B89: GERENCIAMENTO DE RESÍDUOS DA CONSTRUÇÃO CIVIL
A90: 01.13.01 | B90: BAIA SIMPLES PARA RESÍDUOS DA CONSTRUÇÃO CIVIL | C90: UN | D90: 1575.57
A91: 01.13.02 | B91: BAIA DUPLA PARA RESÍDUOS DA CONSTRUÇÃO CIVIL | C91: UN | D91: 2699.65
A92: 01.13.03 | B92: PLACA IDENTIFCAÇÃO RESÍDUOS-PGRCC, CONFORME RESOLUÇÃO CONAMA-RDC Nº 275/01,EM LONA (BANNER), (30X30)CM | C92: UN | D92: 45.39
A94: 01.13.04 | B94: FORNECIMENTO BIG BAG P/ RESÍDUOS COMUNS-CAP. APROX.1M3, PADRÃO CLUB FARM OU EQUIVALENTE | C94: UN | D94: 42.48
A95: 01.13.05 | B95: FORNECIMENTO LIXEIRA PLÁSTICA C/ TAMPA VAI-VEM - 100 LITROS, PADRÃO Q100 WEBPLASTICO/EQUIVALENTE | C95: UN | D95: 143.54
A96: 01.13.06 | B96: FORNECIMENTO DE LONA REFORÇADA DE POLIETILENO PARA COBERTURA DE CAÇAMBA (4Mx4M), 600 MICRA | C96: UN | D96: 144.9
A97: 01.13.07 | B97: FORNECIMENTO DE BOMBONA BOCA LARGA PARA RESÍDUOS CLASSE B - 100 LITROS | C97: UN | D97: 406.9
A98: 01.14 | B98: SERVIÇOS AUXILIARES DE INSTALAÇÃO DE OBRA
A99: 01.14.01 | B99: PORTA EM COMPENSADO RESINADO 10MM 80X210CM | C99: UN | D99: 114.61
A100: 01.14.02 | B100: CONJUNTO MESA (130X60CM) E 2 BANCOS (130X40CM) EM MADEIRITE | C100: CJ | D100: 302.28
A101: 01.14.03 | B101: BANCO (130X40CM) EM MADEIRITE, PARA VESTIARIO | C101: UN | D101: 88.17
A102: 01.14.04 | B102: MAPOTECA PARA PROJETO 1,40X1,10X1,40M E PEÇA 8X8 CM | C102: UN | D102: 131.64
A103: 01.14.05 | B103: JANELA DE CORRER DE FERRO 1x1/8", AREA > 1,0 M2 | C103: UN | D103: 338.57
A104: 01.14.11 | B104: INSTALACAO HIDRAULICA - ESCRITORIO EMPREITEIRA | C104: UN | D104: 1214.4
A105: 01.14.12 | B105: INSTALACAO ELETRICA - ESCRITÓRIO EMPREITEIRA, DEPOSITO OU VESTIARIO | C105: UN | D105: 582.86
A106: 01.14.13 | B106: INSTALACAO HIDRAULICA - VESTIARIO | C106: UN | D106: 2341.44
A107: 01.14.14 | B107: INSTALAÇAO ELETRICA - ESCRITORIO TIPO I | C107: UN | D107: 609.77
A108: 01.14.15 | B108: INSTALAÇAO ELETRICA - ESCRITORIO TIPO II | C108: UN | D108: 707.78
A109: 01.14.16 | B109: INSTALAÇAO ELETRICA - VESTIARIO TIPO I | C109: UN | D109: 248.33
A110: 01.14.17 | B110: INSTALAÇAO ELETRICA - VESTIARIO TIPO II | C110: UN | D110: 366.22
A111: 01.14.18 | B111: INSTALAÇAO ELETRICA - VESTIARIO TIPO III | C111: UN | D111: 491.61
A112: 01.14.19 | B112: INSTALAÇAO ELETRICA - DEPOSITO TIPO I | C112: UN | D112: 200.01
A113: 01.14.20 | B113: INSTALAÇAO ELETRICA - DEPOSITO TIPO II | C113: UN | D113: 242.07
A114: 01.14.21 | B114: INSTALAÇAO ELETRICA - DEPOSITO TIPO III | C114: UN | D114: 330.6
A115: 01.14.22 | B115: INSTALAÇAO ELETRICA - SANITARIO TIPO I | C115: UN | D115: 273.23
A116: 01.14.23 | B116: INSTALAÇAO ELETRICA - SANITARIO TIPO II | C116: UN | D116: 348.77
A117: 01.14.24 | B117: INSTALAÇAO ELETRICA - SANITARIO TIPO III | C117: UN | D117: 492.71
A118: 01.14.25 | B118: INSTALAÇAO ELETRICA - REFEITORIO TIPO I | C118: UN | D118: 230.87
A119: 01.14.26 | B119: INSTALAÇAO ELETRICA - REFEITORIO TIPO II | C119: UN | D119: 327.23
A120: 01.14.28 | B120: INSTALAÇAO HIDRAULICA - SANITARIO TIPO I | C120: UN | D120: 1121.77
A121: 01.14.29 | B121: INSTALAÇAO HIDROSANITARIA TIPO II | C121: UN | D121: 1820.22
A122: 01.14.30 | B122: INSTALAÇAO HIDROSANITARIA - SANITARIO TIPO III | C122: UN | D122: 2746.51
A123: 01.14.31 | B123: INSTALAÇAO HIDROSANITARIA - REFEITORIO I E II | C123: UN | D123: 395.57
A124: 01.14.32 | B124: INSTALAÇAO HIDROSSANITÁRIA - LAVABO | C124: UN | D124: 921.52
A125: 01.14.33 | B125: INSTALAÇAO ELÉTRICA - LAVABO | C125: UN | D125: 163
A126: 01.14.34 | B126: TORRE PROVISÓRIA PARA CAIXA D'ÁGUA DE 1000L, H=4,00M | C126: UN | D126: 1189.89
A127: 01.17 | B127: LOCAÇAO DE OBRA
A128: 01.17.01 | B128: GABARITO | C128: M | D128: 28.94
A129: 01.29 | B129: ANDAIMES
A130: 01.29.03 | B130: MONTAGEM DE ANDAIME FACHADEIRO ADP REF 97063 | C130: M2 | D130: 6.19
A131: 01.29.04 | B131: DESMONTAGEM DE ANDAIME FACHADEIRO ADP REF 97063 | C131: M2 | D131: 6.19
A132: 01.29.05 | B132: ANDAIME FACHADEIRO COMPLETO | C132: M2 | D132: 15
A133: 01.29.10 | B133: ANDAIME METALICO TUBULAR, TIPO TORRE, L=1,0 ATE 1,5M E H=1,0 M COMPLETO | C133: M | D133: 24.89
A134: 01.29.11 | B134: MONTAGEM DE ANDAIME DO TIPO TORRE ADP REF 97064 | C134: M | D134: 10.48
A135: 01.29.12 | B135: DESMONTAGEM DE ANDAIME DO TIPO TORRE ADP REF 97064 | C135: M | D135: 10.48
A136: 02 | B136: DEMOLIÇOES E REMOÇOES
A137: 02.01 | B137: REMOÇAO DE TELHA INCLUSIVE EMPILHAMENTO
A138: 02.01.01 | B138: METALICA OU PVC | C138: M2 | D138: 4.26
A139: 02.01.03 | B139: TIPO CALHA DE FIBROCIMENTO | C139: M2 | D139: 10.2
A140: 02.01.05 | B140: ONDULADA DE FIBROCIMENTO | C140: M2 | D140: 8.5
A141: 02.01.07 | B141: CERAMICA COLONIAL OU FRANCESA | C141: M2 | D141: 10.2
A142: 02.02 | B142: REMOÇAO DE CALHA, RUFO E CONDUTOR,INCL.AFASTAMENTO
A143: 02.02.01 | B143: DE CALHA GALVANIZADA OU PVC | C143: M | D143: 5.1
A144: 02.02.05 | B144: DE RUFO DE CHAPA GALVANIZADA | C144: M | D144: 3.4
A145: 02.02.10 | B145: DE CONDUTOR DE CHAPA GALVANIZADA OU PVC | C145: M | D145: 3.4
A146: 02.03 | B146: REMOÇAO DE ENGRADAMENTO DE TELHADO INCL.EMPILHAM.
A147: 02.03.01 | B147: DE TELHA METALICA OU PVC | C147: M2 | D147: 5.73
A148: 02.03.03 | B148: DE TELHA TIPO CALHA DE FIBROCIMENTO | C148: M2 | D148: 2.87
A149: 02.03.05 | B149: DE TELHA ONDULADA DE FIBROCIMENTO | C149: M2 | D149: 5.73
A150: 02.03.07 | B150: DE TELHA CERAMICA, COLONIAL OU FRANCESA | C150: M2 | D150: 8.07
A151: 02.04 | B151: REMOÇAO DE FORRO INCLUSIVE EMPILHAMENTO
A152: 02.04.01 | B152: DE PLACAS INCLUSIVE BARROTEAMENTO | C152: M2 | D152: 14.39
A153: 02.04.02 | B153: DE PLACAS EXCLUSIVE BARROTEAMENTO | C153: M2 | D153: 7.2
A154: 02.04.10 | B154: DE GESSO | C154: M2 | D154: 10.79
A155: 02.06 | B155: REMOÇAO DE ESQUADRIA DE MADEIRA INCL. EMPILHAMENTO
A156: 02.06.01 | B156: DE PORTA OU JANELA INCLUSIVE MARCO E ALIZAR | C156: M2 | D156: 10.18
A157: 02.06.02 | B157: DE FOLHA DE PORTA OU JANELA | C157: M2 | D157: 5.09
A158: 02.06.03 | B158: DE MARCO E ALIZAR | C158: UN | D158: 8.69
A159: 02.06.04 | B159: DE MARCO | C159: UN | D159: 6.14
A160: 02.06.05 | B160: DE ALIZAR | C160: CJ | D160: 2.54
A161: 02.07 | B161: REMOÇAO DE ESQUADRIA METALICA
A162: 02.07.01 | B162: DE PORTA OU JANELA | C162: M2 | D162: 12.72
A163: 02.09 | B163: DEMOLIÇAO DE REVESTIMENTO INCLUSIVE AFASTAMENTO
A164: 02.09.01 | B164: DE REBOCO | C164: M2 | D164: 2.36
A165: 02.09.03 | B165: CERAMICO, AZULEJO OU LADRILHO HIDRAULICO | C165: M2 | D165: 15.31
A166: 02.09.05 | B166: DE PEDRA (MARMORE, GRANITO, ARDOSIA, SAO TOME,ETC) | C166: M2 | D166: 17.01
A167: 02.09.06 | B167: DE FORMICA | C167: M2 | D167: 5.09
A168: 02.09.07 | B168: DE PEDRA ALMOFADADA | C168: M2 | D168: 35.98
A169: 02.10 | B169: DEMOLIÇAO DE PISO INCLUSIVE AFASTAMENTO
A170: 02.10.01 | B170: CIMENTADO OU CONTRAPISO DE ARGAMASSA | C170: M2 | D170: 2.36
A171: 02.10.03 | B171: CERAMICO OU LADRILHO HIDRAULICO | C171: M2 | D171: 11.91
A172: 02.10.05 | B172: DE PEDRA (MARMORE, GRANITO, ARDOSIA, SAO TOME,ETC) | C172: M2 | D172: 22.1
A173: 02.10.07 | B173: VINILICO | C173: M2 | D173: 5.96
A174: 02.10.08 | B174: DE MARMORITE | C174: M2 | D174: 14.03
A175: 02.10.09 | B175: DE TACO DE MADEIRA | C175: M2 | D175: 23.33
A176: 02.11 | B176: DEMOLIÇAO DE PASSEIO E PAVIMENTO
A177: 02.11.01 | B177: PASSEIO OU LAJE DE CONCRETO MANUALMENTE | C177: M2 | D177: 20.41
A178: 02.11.02 | B178: PASSEIO OU LAJE DE CONCRETO C/ EQUIP. PNEUMATICO | C178: M2 | D178: 13.16
A179: 02.11.03 | B179: CALÇADA PORTUGUESA | C179: M2 | D179: 4.78
A180: 02.11.04 | B180: PASSEIO OU LAJE DE CONCRETO C/EQUIPAMENTO ELETRICO | C180: M2 | D180: 6.05
A181: 02.11.05 | B181: MANUAL DE ALVENARIA POLIEDRICA | C181: M2 | D181: 5.96
A182: 02.11.07 | B182: DE REVESTIMENTO ASFALTICO COM EQUIP. PNEUMATICO | C182: M2 | D182: 13.16
A183: 02.12 | B183: CORTE MECANICO EM CONCRETO/ASFALTO
A184: 02.12.01 | B184: CORTE MECAN. C/ SERRA CIRCULAR EM CONCRETO/ASFALTO | C184: M | D184: 1.95
A185: 02.13 | B185: DEMOLIÇAO DE CONCRETO INCLUSIVE AFASTAMENTO
A186: 02.13.01 | B186: SIMPLES - MANUAL | C186: M3 | D186: 210.42
A187: 02.13.02 | B187: ARMADO - MANUAL | C187: M3 | D187: 289.14
A188: 02.13.03 | B188: SIMPLES - COM EQUIPAMENTO ELETRICO | C188: M3 | D188: 77.42
A189: 02.13.04 | B189: ARMADO - COM EQUIPAMENTO ELETRICO | C189: M3 | D189: 121.94
A190: 02.14 | B190: DEMOLIÇAO MANUAL, DE ALVENARIA INCL. AFASTAMENTO
A191: 02.14.01 | B191: DE ALVENARIA DE TIJOLOS E BLOCOS | C191: M3 | D191: 95.58
A192: 02.15 | B192: REMOÇAO DE MEIO-FIO
A193: 02.15.01 | B193: PREMOLDADO DE CONCRETO | C193: M | D193: 7.45
A194: 02.15.02 | B194: DE PEDRA (GNAISSE, BASALTO ETC.) | C194: M | D194: 22.35
A195: 02.16 | B195: DEMOLIÇAO, REMOÇAO E CARGA MECANICA
A196: 02.16.01 | B196: DE CONSTRUÇOES DE ALVENARIA | C196: M2 | D196: 7.39
A197: 02.16.04 | B197: DE GABIAO | C197: M3 | D197: 18.87
A198: 02.19 | B198: DEMOLIÇAO DE DIVISORIA INCLUSIVE AFASTAMENTO
A199: 02.19.01 | B199: DE PEDRA (MARMORE, ARDOSIA OU MARMORITE) | C199: M2 | D199: 35.98
A200: 02.19.03 | B200: DE MADEIRA | C200: M2 | D200: 13.16
A201: 02.19.05 | B201: DE ELEMENTOS VAZADOS (COBOGO, ETC) | C201: M2 | D201: 6.7
... 3832 more rows

Sheet CRO 1 mes
A2: CRONOGRAMA FÍSICO-FINANCEIRO | K2: Revisão: | L2: =DADOS!D6 -> R00
K3: Data: | L3: =DADOS!D2 -> 2024-02-19
A4: Projeto: | D4: Responsável: | H4: Cliente: | K4: Bancos:
A5: =DADOS!D8 -> SISTEMA DE PROTEÇÃO CONTRA INCÊNDIO E PÂNICO CEIM PROFESSORA MARIA GRAFIRA NUNES SAPONARA | K5: =DADOS!D14 -> SINAPI: 12/2023 Minas Gerais SETOP: 08/2023 Minas Gerais SICRO : 10/2023 Minas Gerais SUDECAP: 10/2023 Minas Gerais
K8: BDI 1: | L8: =DADOS!D10 -> 0.2652
K9: BDI 2: | L9: =DADOS!D12 -> -
A11: =A2&" DE "&DADOS!D20&" - "&A5 -> CRONOGRAMA FÍSICO-FINANCEIRO DE PROJETO EXECUTIVO - SISTEMA DE PROTEÇÃO CONTRA INCÊNDIO E PÂNICO CEIM PROFESSORA MARIA GRAFIRA NUNES SAPONARA
A13: ITEM | B13: DESCRIÇÃO | F13: Unid. | G13: 30 DIAS | K13: Total por Etapa
A15: 1 | B15: =VLOOKUP(A15,ORC!$D:$N,2,0) -> CANTEIRO DE OBRAS | F15: % | G15: 1 | K15: =SUM(G15:J15) -> 1
A16: =IFERROR(IF(B15<>"",100,B15),"") -> 100 | F16: R$ | G16: =IF(G15="","",IFERROR(G15*$K16,"")) -> 4537.17 | K16: =VLOOKUP(A15,ORC!$D:$N,11,0) -> 4537.17
A17: 2 | B17: =VLOOKUP(A17,ORC!$D:$N,2,0) -> SERVIÇOS PRELIMINARES | F17: % | G17: 1 | K17: =SUM(G17:J17) -> 1
A18: =IFERROR(IF(B17<>"",100,B17),"") -> 100 | F18: R$ | G18: =IF(G17="","",IFERROR(G17*$K18,"")) -> 1729.7 | K18: =VLOOKUP(A17,ORC!$D:$N,11,0) -> 1729.7
A19: 3 | B19: =VLOOKUP(A19,ORC!$D:$N,2,0) -> INSTALAÇÕES ELÉTRICAS | F19: % | G19: 1 | K19: =SUM(G19:J19) -> 1
A20: =IFERROR(IF(B19<>"",100,B19),"") -> 100 | F20: R$ | G20: =IF(G19="","",IFERROR(G19*$K20,"")) -> 31414.61 | K20: =VLOOKUP(A19,ORC!$D:$N,11,0) -> 31414.61
A21: 4 | B21: =VLOOKUP(A21,ORC!$D:$N,2,0) -> SISTEMA DE PROTEÇÃO CONTRA INCÊNDIO E PÂNICO | F21: % | G21: 1 | K21: =SUM(G21:J21) -> 1
A22: =IFERROR(IF(B21<>"",100,B21),"") -> 100 | F22: R$ | G22: =IF(G21="","",IFERROR(G21*$K22,"")) -> 108508.53 | K22: =VLOOKUP(A21,ORC!$D:$N,11,0) -> 108508.53
A23: 5 | B23: =VLOOKUP(A23,ORC!$D:$N,2,0) -> SERVIÇOS FINAIS | F23: % | G23: 1 | K23: =SUM(G23:J23) -> 1
A24: =IFERROR(IF(B23<>"",100,B23),"") -> 100 | F24: R$ | G24: =IF(G23="","",IFERROR(G23*$K24,"")) -> 17025.58 | K24: =VLOOKUP(A23,ORC!$D:$N,11,0) -> 17025.58
A25: 6 | B25: =VLOOKUP(A25,ORC!$D:$N,2,0) ->  | F25: % | G25: 1 | K25: =SUM(G25:J25) -> 1
A26: =IFERROR(IF(B25<>"",100,B25),"") ->  | F26: R$ | G26: =IF(G25="","",IFERROR(G25*$K26,"")) ->  | K26: =VLOOKUP(A25,ORC!$D:$N,11,0) -> 
A27: 7 | B27: =VLOOKUP(A27,ORC!$D:$N,2,0) ->  | F27: % | G27: 1 | K27: =SUM(G27:J27) -> 1
A28: =IFERROR(IF(B27<>"",100,B27),"") ->  | F28: R$ | G28: =IF(G27="","",IFERROR(G27*$K28,"")) ->  | K28: =VLOOKUP(A27,ORC!$D:$N,11,0) -> 
A29: 8 | B29: =VLOOKUP(A29,ORC!$D:$N,2,0) ->  | F29: % | G29: 1 | K29: =SUM(G29:J29) -> 1
A30: =IFERROR(IF(B29<>"",100,B29),"") ->  | F30: R$ | G30: =IF(G29="","",IFERROR(G29*$K30,"")) ->  | K30: =VLOOKUP(A29,ORC!$D:$N,11,0) -> 
A31: 9 | B31: =VLOOKUP(A31,ORC!$D:$N,2,0) ->  | F31: % | G31: 1 | K31: =SUM(G31:J31) -> 1
A32: =IFERROR(IF(B31<>"",100,B31),"") ->  | F32: R$ | G32: =IF(G31="","",IFERROR(G31*$K32,"")) ->  | K32: =VLOOKUP(A31,ORC!$D:$N,11,0) -> 
A33: 10 | B33: =VLOOKUP(A33,ORC!$D:$N,2,0) ->  | F33: % | G33: 1 | K33: =SUM(G33:J33) -> 1
A34: =IFERROR(IF(B33<>"",100,B33),"") ->  | F34: R$ | G34: =IF(G33="","",IFERROR(G33*$K34,"")) ->  | K34: =VLOOKUP(A33,ORC!$D:$N,11,0) -> 
A35: 11 | B35: =VLOOKUP(A35,ORC!$D:$N,2,0) ->  | F35: % | G35: 1 | K35: =SUM(G35:J35) -> 1
A36: =IFERROR(IF(B35<>"",100,B35),"") ->  | F36: R$ | G36: =IF(G35="","",IFERROR(G35*$K36,"")) ->  | K36: =VLOOKUP(A35,ORC!$D:$N,11,0) -> 
A37: 12 | B37: =VLOOKUP(A37,ORC!$D:$N,2,0) ->  | F37: % | G37: 1 | K37: =SUM(G37:J37) -> 1
A38: =IFERROR(IF(B37<>"",100,B37),"") ->  | F38: R$ | G38: =IF(G37="","",IFERROR(G37*$K38,"")) ->  | K38: =VLOOKUP(A37,ORC!$D:$N,11,0) -> 
A39: 13 | B39: =VLOOKUP(A39,ORC!$D:$N,2,0) ->  | F39: % | G39: 1 | K39: =SUM(G39:J39) -> 1
A40: =IFERROR(IF(B39<>"",100,B39),"") ->  | F40: R$ | G40: =IF(G39="","",IFERROR(G39*$K40,"")) ->  | K40: =VLOOKUP(A39,ORC!$D:$N,11,0) -> 
A41: 14 | B41: =VLOOKUP(A41,ORC!$D:$N,2,0) ->  | F41: % | G41: 1 | K41: =SUM(G41:J41) -> 1
A42: =IFERROR(IF(B41<>"",100,B41),"") ->  | F42: R$ | G42: =IF(G41="","",IFERROR(G41*$K42,"")) ->  | K42: =VLOOKUP(A41,ORC!$D:$N,11,0) -> 
A43: 15 | B43: =VLOOKUP(A43,ORC!$D:$N,2,0) ->  | F43: % | G43: 1 | K43: =SUM(G43:J43) -> 1
A44: =IFERROR(IF(B43<>"",100,B43),"") ->  | F44: R$ | G44: =IF(G43="","",IFERROR(G43*$K44,"")) ->  | K44: =VLOOKUP(A43,ORC!$D:$N,11,0) -> 
A45: 16 | B45: =VLOOKUP(A45,ORC!$D:$N,2,0) ->  | F45: % | G45: 1 | K45: =SUM(G45:J45) -> 1
A46: =IFERROR(IF(B45<>"",100,B45),"") ->  | F46: R$ | G46: =IF(G45="","",IFERROR(G45*$K46,"")) ->  | K46: =VLOOKUP(A45,ORC!$D:$N,11,0) -> 
A47: 17 | B47: =VLOOKUP(A47,ORC!$D:$N,2,0) ->  | F47: % | G47: 1 | K47: =SUM(G47:J47) -> 1
A48: =IFERROR(IF(B47<>"",100,B47),"") ->  | F48: R$ | G48: =IF(G47="","",IFERROR(G47*$K48,"")) ->  | K48: =VLOOKUP(A47,ORC!$D:$N,11,0) -> 
A49: 18 | B49: =VLOOKUP(A49,ORC!$D:$N,2,0) ->  | F49: % | G49: 1 | K49: =SUM(G49:J49) -> 1
A50: =IFERROR(IF(B49<>"",100,B49),"") ->  | F50: R$ | G50: =IF(G49="","",IFERROR(G49*$K50,"")) ->  | K50: =VLOOKUP(A49,ORC!$D:$N,11,0) -> 
A51: 19 | B51: =VLOOKUP(A51,ORC!$D:$N,2,0) ->  | F51: % | G51: 1 | K51: =SUM(G51:J51) -> 1
A52: =IFERROR(IF(B51<>"",100,B51),"") ->  | F52: R$ | G52: =IF(G51="","",IFERROR(G51*$K52,"")) ->  | K52: =VLOOKUP(A51,ORC!$D:$N,11,0) -> 
A53: 20 | B53: =VLOOKUP(A53,ORC!$D:$N,2,0) ->  | F53: % | G53: 1 | K53: =SUM(G53:J53) -> 1
A54: =IFERROR(IF(B53<>"",100,B53),"") ->  | F54: R$ | G54: =IF(G53="","",IFERROR(G53*$K54,"")) ->  | K54: =VLOOKUP(A53,ORC!$D:$N,11,0) -> 
A55: 21 | B55: =VLOOKUP(A55,ORC!$D:$N,2,0) ->  | F55: % | G55: 1 | K55: =SUM(G55:J55) -> 1
A56: =IFERROR(IF(B55<>"",100,B55),"") ->  | F56: R$ | G56: =IF(G55="","",IFERROR(G55*$K56,"")) ->  | K56: =VLOOKUP(A55,ORC!$D:$N,11,0) -> 
A57: 22 | B57: =VLOOKUP(A57,ORC!$D:$N,2,0) ->  | F57: % | G57: 1 | K57: =SUM(G57:J57) -> 1
A58: =IFERROR(IF(B57<>"",100,B57),"") ->  | F58: R$ | G58: =IF(G57="","",IFERROR(G57*$K58,"")) ->  | K58: =VLOOKUP(A57,ORC!$D:$N,11,0) -> 
A59: 23 | B59: =VLOOKUP(A59,ORC!$D:$N,2,0) ->  | F59: % | G59: 1 | K59: =SUM(G59:J59) -> 1
A60: =IFERROR(IF(B59<>"",100,B59),"") ->  | F60: R$ | G60: =IF(G59="","",IFERROR(G59*$K60,"")) ->  | K60: =VLOOKUP(A59,ORC!$D:$N,11,0) -> 
A61: 24 | B61: =VLOOKUP(A61,ORC!$D:$N,2,0) ->  | F61: % | G61: 1 | K61: =SUM(G61:J61) -> 1
A62: =IFERROR(IF(B61<>"",100,B61),"") ->  | F62: R$ | G62: =IF(G61="","",IFERROR(G61*$K62,"")) ->  | K62: =VLOOKUP(A61,ORC!$D:$N,11,0) -> 
A63: 25 | B63: =VLOOKUP(A63,ORC!$D:$N,2,0) ->  | F63: % | K63: =SUM(G63:J63) -> 0
A64: =IFERROR(IF(B63<>"",100,B63),"") ->  | F64: R$ | G64: =IF(G63="","",IFERROR(G63*$K64,"")) ->  | K64: =VLOOKUP(A63,ORC!$D:$N,11,0) -> 
A65: 26 | B65: =VLOOKUP(A65,ORC!$D:$N,2,0) ->  | F65: % | K65: =SUM(G65:J65) -> 0
A66: =IFERROR(IF(B65<>"",100,B65),"") ->  | F66: R$ | G66: =IF(G65="","",IFERROR(G65*$K66,"")) ->  | K66: =VLOOKUP(A65,ORC!$D:$N,11,0) -> 
A67: 27 | B67: =VLOOKUP(A67,ORC!$D:$N,2,0) ->  | F67: % | K67: =SUM(G67:J67) -> 0
A68: =IFERROR(IF(B67<>"",100,B67),"") ->  | F68: R$ | G68: =IF(G67="","",IFERROR(G67*$K68,"")) ->  | K68: =VLOOKUP(A67,ORC!$D:$N,11,0) -> 
A69: 28 | B69: =VLOOKUP(A69,ORC!$D:$N,2,0) ->  | F69: % | K69: =SUM(G69:J69) -> 0
A70: =IFERROR(IF(B69<>"",100,B69),"") ->  | F70: R$ | G70: =IF(G69="","",IFERROR(G69*$K70,"")) ->  | K70: =VLOOKUP(A69,ORC!$D:$N,11,0) -> 
A71: 29 | B71: =VLOOKUP(A71,ORC!$D:$N,2,0) ->  | F71: % | K71: =SUM(G71:J71) -> 0
A72: =IFERROR(IF(B71<>"",100,B71),"") ->  | F72: R$ | G72: =IF(G71="","",IFERROR(G71*$K72,"")) ->  | K72: =VLOOKUP(A71,ORC!$D:$N,11,0) -> 
A73: 30 | B73: =VLOOKUP(A73,ORC!$D:$N,2,0) ->  | F73: % | K73: =SUM(G73:J73) -> 0
A74: =IFERROR(IF(B73<>"",100,B73),"") ->  | F74: R$ | G74: =IF(G73="","",IFERROR(G73*$K74,"")) ->  | K74: =VLOOKUP(A73,ORC!$D:$N,11,0) -> 
F76: Porcentagem | G76: =G77/$G$79 -> 1
F77: Custo | G77: =SUMIF($A:$A,100,G:G) -> 163215.59
F78: Porcentagem Acumulada | G78: =I78 -> 0
F79: Custo Acumulado | G79: =IF(G77=ORC!M398,G77,"ERRO") -> 163215.59
F83: RESPONSÁVEL TÉCNICO | G83: =DADOS!D16 -> FLÁVIA CRISTINA BARBOSA
G84: =DADOS!D18 -> CREA - MG 187.842/D

Sheet CRO 2 meses
A2: CRONOGRAMA FÍSICO-FINANCEIRO | K2: Revisão: | L2: =DADOS!D6 -> R00
K3: Data: | L3: =DADOS!D2 -> 2024-02-19
A4: Projeto: | D4: Responsável: | H4: Cliente: | K4: Bancos:
A5: =DADOS!D8 -> SISTEMA DE PROTEÇÃO CONTRA INCÊNDIO E PÂNICO CEIM PROFESSORA MARIA GRAFIRA NUNES SAPONARA | K5: =DADOS!D14 -> SINAPI: 12/2023 Minas Gerais SETOP: 08/2023 Minas Gerais SICRO : 10/2023 Minas Gerais SUDECAP: 10/2023 Minas Gerais
K8: BDI 1: | L8: =DADOS!D10 -> 0.2652
K9: BDI 2: | L9: =DADOS!D12 -> -
A11: =A2&" DE "&DADOS!D20&" - "&A5 -> CRONOGRAMA FÍSICO-FINANCEIRO DE PROJETO EXECUTIVO - SISTEMA DE PROTEÇÃO CONTRA INCÊNDIO E PÂNICO CEIM PROFESSORA MARIA GRAFIRA NUNES SAPONARA
A13: ITEM | B13: DESCRIÇÃO | F13: Unid. | G13: 30 DIAS | I13: 60 DIAS | K13: Total por Etapa
A15: 1 | B15: =VLOOKUP(A15,ORC!$D:$N,2,0) -> CANTEIRO DE OBRAS | F15: % | G15: 0.5 | I15: 0.5 | K15: =SUM(G15:J15) -> 1
A16: =IFERROR(IF(B15<>"",100,B15),"") -> 100 | F16: R$ | G16: =IF(G15="","",IFERROR(G15*$K16,"")) -> 2268.585 | I16: =IF(I15="","",IFERROR(I15*$K16,"")) -> 2268.585 | K16: =VLOOKUP(A15,ORC!$D:$N,11,0) -> 4537.17
A17: 2 | B17: =VLOOKUP(A17,ORC!$D:$N,2,0) -> SERVIÇOS PRELIMINARES | F17: % | G17: 1 | K17: =SUM(G17:J17) -> 1
A18: =IFERROR(IF(B17<>"",100,B17),"") -> 100 | F18: R$ | G18: =IF(G17="","",IFERROR(G17*$K18,"")) -> 1729.7 | I18: =IF(I17="","",IFERROR(I17*$K18,"")) ->  | K18: =VLOOKUP(A17,ORC!$D:$N,11,0) -> 1729.7
A19: 3 | B19: =VLOOKUP(A19,ORC!$D:$N,2,0) -> INSTALAÇÕES ELÉTRICAS | F19: % | G19: 0.5 | I19: 0.5 | K19: =SUM(G19:J19) -> 1
A20: =IFERROR(IF(B19<>"",100,B19),"") -> 100 | F20: R$ | G20: =IF(G19="","",IFERROR(G19*$K20,"")) -> 15707.305 | I20: =IF(I19="","",IFERROR(I19*$K20,"")) -> 15707.305 | K20: =VLOOKUP(A19,ORC!$D:$N,11,0) -> 31414.61
A21: 4 | B21: =VLOOKUP(A21,ORC!$D:$N,2,0) -> SISTEMA DE PROTEÇÃO CONTRA INCÊNDIO E PÂNICO | F21: % | G21: 0.5 | I21: 0.5 | K21: =SUM(G21:J21) -> 1
A22: =IFERROR(IF(B21<>"",100,B21),"") -> 100 | F22: R$ | G22: =IF(G21="","",IFERROR(G21*$K22,"")) -> 54254.265 | I22: =IF(I21="","",IFERROR(I21*$K22,"")) -> 54254.265 | K22: =VLOOKUP(A21,ORC!$D:$N,11,0) -> 108508.53
A23: 5 | B23: =VLOOKUP(A23,ORC!$D:$N,2,0) -> SERVIÇOS FINAIS | F23: % | I23: 1 | K23: =SUM(G23:J23) -> 1
A24: =IFERROR(IF(B23<>"",100,B23),"") -> 100 | F24: R$ | G24: =IF(G23="","",IFERROR(G23*$K24,"")) ->  | I24: =IF(I23="","",IFERROR(I23*$K24,"")) -> 17025.58 | K24: =VLOOKUP(A23,ORC!$D:$N,11,0) -> 17025.58
A25: 6 | B25: =VLOOKUP(A25,ORC!$D:$N,2,0) ->  | F25: % | K25: =SUM(G25:J25) -> 0
A26: =IFERROR(IF(B25<>"",100,B25),"") ->  | F26: R$ | G26: =IF(G25="","",IFERROR(G25*$K26,"")) ->  | I26: =IF(I25="","",IFERROR(I25*$K26,"")) ->  | K26: =VLOOKUP(A25,ORC!$D:$N,11,0) -> 
A27: 7 | B27: =VLOOKUP(A27,ORC!$D:$N,2,0) ->  | F27: % | K27: =SUM(G27:J27) -> 0
A28: =IFERROR(IF(B27<>"",100,B27),"") ->  | F28: R$ | G28: =IF(G27="","",IFERROR(G27*$K28,"")) ->  | I28: =IF(I27="","",IFERROR(I27*$K28,"")) ->  | K28: =VLOOKUP(A27,ORC!$D:$N,11,0) -> 
A29: 8 | B29: =VLOOKUP(A29,ORC!$D:$N,2,0) ->  | F29: % | K29: =SUM(G29:J29) -> 0
A30: =IFERROR(IF(B29<>"",100,B29),"") ->  | F30: R$ | G30: =IF(G29="","",IFERROR(G29*$K30,"")) ->  | I30: =IF(I29="","",IFERROR(I29*$K30,"")) ->  | K30: =VLOOKUP(A29,ORC!$D:$N,11,0) -> 
A31: 9 | B31: =VLOOKUP(A31,ORC!$D:$N,2,0) ->  | F31: % | K31: =SUM(G31:J31) -> 0
A32: =IFERROR(IF(B31<>"",100,B31),"") ->  | F32: R$ | G32: =IF(G31="","",IFERROR(G31*$K32,"")) ->  | I32: =IF(I31="","",IFERROR(I31*$K32,"")) ->  | K32: =VLOOKUP(A31,ORC!$D:$N,11,0) -> 
A33: 10 | B33: =VLOOKUP(A33,ORC!$D:$N,2,0) ->  | F33: % | K33: =SUM(G33:J33) -> 0
A34: =IFERROR(IF(B33<>"",100,B33),"") ->  | F34: R$ | G34: =IF(G33="","",IFERROR(G33*$K34,"")) ->  | I34: =IF(I33="","",IFERROR(I33*$K34,"")) ->  | K34: =VLOOKUP(A33,ORC!$D:$N,11,0) -> 
A35: 11 | B35: =VLOOKUP(A35,ORC!$D:$N,2,0) ->  | F35: % | K35: =SUM(G35:J35) -> 0
A36: =IFERROR(IF(B35<>"",100,B35),"") ->  | F36: R$ | G36: =IF(G35="","",IFERROR(G35*$K36,"")) ->  | I36: =IF(I35="","",IFERROR(I35*$K36,"")) ->  | K36: =VLOOKUP(A35,ORC!$D:$N,11,0) -> 
A37: 12 | B37: =VLOOKUP(A37,ORC!$D:$N,2,0) ->  | F37: % | K37: =SUM(G37:J37) -> 0
A38: =IFERROR(IF(B37<>"",100,B37),"") ->  | F38: R$ | G38: =IF(G37="","",IFERROR(G37*$K38,"")) ->  | I38: =IF(I37="","",IFERROR(I37*$K38,"")) ->  | K38: =VLOOKUP(A37,ORC!$D:$N,11,0) -> 
A39: 13 | B39: =VLOOKUP(A39,ORC!$D:$N,2,0) ->  | F39: % | K39: =SUM(G39:J39) -> 0
A40: =IFERROR(IF(B39<>"",100,B39),"") ->  | F40: R$ | G40: =IF(G39="","",IFERROR(G39*$K40,"")) ->  | I40: =IF(I39="","",IFERROR(I39*$K40,"")) ->  | K40: =VLOOKUP(A39,ORC!$D:$N,11,0) -> 
A41: 14 | B41: =VLOOKUP(A41,ORC!$D:$N,2,0) ->  | F41: % | K41: =SUM(G41:J41) -> 0
A42: =IFERROR(IF(B41<>"",100,B41),"") ->  | F42: R$ | G42: =IF(G41="","",IFERROR(G41*$K42,"")) ->  | I42: =IF(I41="","",IFERROR(I41*$K42,"")) ->  | K42: =VLOOKUP(A41,ORC!$D:$N,11,0) -> 
A43: 15 | B43: =VLOOKUP(A43,ORC!$D:$N,2,0) ->  | F43: % | K43: =SUM(G43:J43) -> 0
A44: =IFERROR(IF(B43<>"",100,B43),"") ->  | F44: R$ | G44: =IF(G43="","",IFERROR(G43*$K44,"")) ->  | I44: =IF(I43="","",IFERROR(I43*$K44,"")) ->  | K44: =VLOOKUP(A43,ORC!$D:$N,11,0) -> 
A45: 16 | B45: =VLOOKUP(A45,ORC!$D:$N,2,0) ->  | F45: % | K45: =SUM(G45:J45) -> 0
A46: =IFERROR(IF(B45<>"",100,B45),"") ->  | F46: R$ | G46: =IF(G45="","",IFERROR(G45*$K46,"")) ->  | I46: =IF(I45="","",IFERROR(I45*$K46,"")) ->  | K46: =VLOOKUP(A45,ORC!$D:$N,11,0) -> 
A47: 17 | B47: =VLOOKUP(A47,ORC!$D:$N,2,0) ->  | F47: % | K47: =SUM(G47:J47) -> 0
A48: =IFERROR(IF(B47<>"",100,B47),"") ->  | F48: R$ | G48: =IF(G47="","",IFERROR(G47*$K48,"")) ->  | I48: =IF(I47="","",IFERROR(I47*$K48,"")) ->  | K48: =VLOOKUP(A47,ORC!$D:$N,11,0) -> 
A49: 18 | B49: =VLOOKUP(A49,ORC!$D:$N,2,0) ->  | F49: % | K49: =SUM(G49:J49) -> 0
A50: =IFERROR(IF(B49<>"",100,B49),"") ->  | F50: R$ | G50: =IF(G49="","",IFERROR(G49*$K50,"")) ->  | I50: =IF(I49="","",IFERROR(I49*$K50,"")) ->  | K50: =VLOOKUP(A49,ORC!$D:$N,11,0) -> 
A51: 19 | B51: =VLOOKUP(A51,ORC!$D:$N,2,0) ->  | F51: % | K51: =SUM(G51:J51) -> 0
A52: =IFERROR(IF(B51<>"",100,B51),"") ->  | F52: R$ | G52: =IF(G51="","",IFERROR(G51*$K52,"")) ->  | I52: =IF(I51="","",IFERROR(I51*$K52,"")) ->  | K52: =VLOOKUP(A51,ORC!$D:$N,11,0) -> 
A53: 20 | B53: =VLOOKUP(A53,ORC!$D:$N,2,0) ->  | F53: % | K53: =SUM(G53:J53) -> 0
A54: =IFERROR(IF(B53<>"",100,B53),"") ->  | F54: R$ | G54: =IF(G53="","",IFERROR(G53*$K54,"")) ->  | I54: =IF(I53="","",IFERROR(I53*$K54,"")) ->  | K54: =VLOOKUP(A53,ORC!$D:$N,11,0) -> 
A55: 21 | B55: =VLOOKUP(A55,ORC!$D:$N,2,0) ->  | F55: % | K55: =SUM(G55:J55) -> 0
A56: =IFERROR(IF(B55<>"",100,B55),"") ->  | F56: R$ | G56: =IF(G55="","",IFERROR(G55*$K56,"")) ->  | I56: =IF(I55="","",IFERROR(I55*$K56,"")) ->  | K56: =VLOOKUP(A55,ORC!$D:$N,11,0) -> 
A57: 22 | B57: =VLOOKUP(A57,ORC!$D:$N,2,0) ->  | F57: % | K57: =SUM(G57:J57) -> 0
A58: =IFERROR(IF(B57<>"",100,B57),"") ->  | F58: R$ | G58: =IF(G57="","",IFERROR(G57*$K58,"")) ->  | I58: =IF(I57="","",IFERROR(I57*$K58,"")) ->  | K58: =VLOOKUP(A57,ORC!$D:$N,11,0) -> 
A59: 23 | B59: =VLOOKUP(A59,ORC!$D:$N,2,0) ->  | F59: % | K59: =SUM(G59:J59) -> 0
A60: =IFERROR(IF(B59<>"",100,B59),"") ->  | F60: R$ | G60: =IF(G59="","",IFERROR(G59*$K60,"")) ->  | I60: =IF(I59="","",IFERROR(I59*$K60,"")) ->  | K60: =VLOOKUP(A59,ORC!$D:$N,11,0) -> 
A61: 24 | B61: =VLOOKUP(A61,ORC!$D:$N,2,0) ->  | F61: % | K61: =SUM(G61:J61) -> 0
A62: =IFERROR(IF(B61<>"",100,B61),"") ->  | F62: R$ | G62: =IF(G61="","",IFERROR(G61*$K62,"")) ->  | I62: =IF(I61="","",IFERROR(I61*$K62,"")) ->  | K62: =VLOOKUP(A61,ORC!$D:$N,11,0) -> 
A63: 25 | B63: =VLOOKUP(A63,ORC!$D:$N,2,0) ->  | F63: % | K63: =SUM(G63:J63) -> 0
A64: =IFERROR(IF(B63<>"",100,B63),"") ->  | F64: R$ | G64: =IF(G63="","",IFERROR(G63*$K64,"")) ->  | I64: =IF(I63="","",IFERROR(I63*$K64,"")) ->  | K64: =VLOOKUP(A63,ORC!$D:$N,11,0) -> 
A65: 26 | B65: =VLOOKUP(A65,ORC!$D:$N,2,0) ->  | F65: % | K65: =SUM(G65:J65) -> 0
A66: =IFERROR(IF(B65<>"",100,B65),"") ->  | F66: R$ | G66: =IF(G65="","",IFERROR(G65*$K66,"")) ->  | I66: =IF(I65="","",IFERROR(I65*$K66,"")) ->  | K66: =VLOOKUP(A65,ORC!$D:$N,11,0) -> 
A67: 27 | B67: =VLOOKUP(A67,ORC!$D:$N,2,0) ->  | F67: % | K67: =SUM(G67:J67) -> 0
A68: =IFERROR(IF(B67<>"",100,B67),"") ->  | F68: R$ | G68: =IF(G67="","",IFERROR(G67*$K68,"")) ->  | I68: =IF(I67="","",IFERROR(I67*$K68,"")) ->  | K68: =VLOOKUP(A67,ORC!$D:$N,11,0) -> 
A69: 28 | B69: =VLOOKUP(A69,ORC!$D:$N,2,0) ->  | F69: % | K69: =SUM(G69:J69) -> 0
A70: =IFERROR(IF(B69<>"",100,B69),"") ->  | F70: R$ | G70: =IF(G69="","",IFERROR(G69*$K70,"")) ->  | I70: =IF(I69="","",IFERROR(I69*$K70,"")) ->  | K70: =VLOOKUP(A69,ORC!$D:$N,11,0) -> 
A71: 29 | B71: =VLOOKUP(A71,ORC!$D:$N,2,0) ->  | F71: % | K71: =SUM(G71:J71) -> 0
A72: =IFERROR(IF(B71<>"",100,B71),"") ->  | F72: R$ | G72: =IF(G71="","",IFERROR(G71*$K72,"")) ->  | I72: =IF(I71="","",IFERROR(I71*$K72,"")) ->  | K72: =VLOOKUP(A71,ORC!$D:$N,11,0) -> 
A73: 30 | B73: =VLOOKUP(A73,ORC!$D:$N,2,0) ->  | F73: % | K73: =SUM(G73:J73) -> 0
A74: =IFERROR(IF(B73<>"",100,B73),"") ->  | F74: R$ | G74: =IF(G73="","",IFERROR(G73*$K74,"")) ->  | I74: =IF(I73="","",IFERROR(I73*$K74,"")) ->  | K74: =VLOOKUP(A73,ORC!$D:$N,11,0) -> 
F76: Porcentagem | G76: =G77/$I$79 -> 0.4531420987 | I76: =I77/$I$79 -> 0.5468579013
F77: Custo | G77: =SUMIF($A:$A,100,G:G) -> 73959.855 | I77: =SUMIF($A:$A,100,I:I) -> 89255.735
F78: Porcentagem Acumulada | G78: =G76 -> 0.4531420987 | I78: =G78+I76 -> 1
F79: Custo Acumulado | G79: =G77 -> 73959.855 | I79: =IF(I77+G79=ORC!M398,I77+G79,"ERRO") -> 163215.59
F83: RESPONSÁVEL TÉCNICO | G83: =DADOS!D16 -> FLÁVIA CRISTINA BARBOSA
G84: =DADOS!D18 -> CREA - MG 187.842/D
